Workbook

Sheet OneVarMCSim (hidden)
A1: Results of Monte Carlo Simulation | AK1: 0 | AL1: 0
A2: Sample Number | F2: Simulation Stats | AH2: 0 | AK2: 0 | AL2: 0
A3: 1 | G3: repetitions | AH3: 0.1290322542 | AI3: 0 | AK3: 0.1290322542 | AL3: 0
A4: 2 | G4: seconds | I4: Summary Statistics | L4: Notes | AH4: 0.2580645084 | AI4: 3 | AK4: 0.1290322542 | AL4: 3
A5: 3 | I5: Average | J5: 1.16710423 | AH5: 0.3870967627 | AI5: 4 | AK5: 0.2580645084 | AL5: 3
A6: 4 | I6: SD | J6: 0.5760398821 | AH6: 0.5161290169 | AI6: 8 | AK6: 0.2580645084 | AL6: 4
A7: 5 | E7: 3 | I7: Max | J7: 2.5793023 | AH7: 0.6451612711 | AI7: 4 | AK7: 0.3870967627 | AL7: 4
A8: 6 | I8: Min | J8: 0.2134278418 | AH8: 0.7741935253 | AI8: 9 | AK8: 0.3870967627 | AL8: 8
A9: 7 | AH9: 0.9032257795 | AI9: 9 | AK9: 0.5161290169 | AL9: 8
A10: 8 | AH10: 1.032258034 | AI10: 12 | AK10: 0.5161290169 | AL10: 4
A11: 9 | AH11: 1.161290288 | AI11: 8 | AK11: 0.6451612711 | AL11: 4
A12: 10 | AH12: 1.290322542 | AI12: 3 | AK12: 0.6451612711 | AL12: 9
A13: 11 | AH13: 1.419354796 | AI13: 6 | AK13: 0.7741935253 | AL13: 9
A14: 12 | AH14: 1.548387051 | AI14: 7 | AK14: 0.7741935253 | AL14: 9
A15: 13 | AH15: 1.677419305 | AI15: 6 | AK15: 0.9032257795 | AL15: 9
A16: 14 | AH16: 1.806451559 | AI16: 6 | AK16: 0.9032257795 | AL16: 12
A17: 15 | AH17: 1.935483813 | AI17: 2 | AK17: 1.032258034 | AL17: 12
A18: 16 | AH18: 2.064516068 | AI18: 5 | AK18: 1.032258034 | AL18: 8
A19: 17 | AH19: 2.193548322 | AI19: 2 | AK19: 1.161290288 | AL19: 8
A20: 18 | AH20: 2.322580576 | AI20: 3 | AK20: 1.161290288 | AL20: 3
A21: 19 | AH21: 2.45161283 | AI21: 2 | AK21: 1.290322542 | AL21: 3
A22: 20 | AH22: 2.580645084 | AI22: 1 | AK22: 1.290322542 | AL22: 6
A23: 21 | AH23: 2.709677339 | AI23: 0 | AK23: 1.419354796 | AL23: 6
A24: 22 | AH24: 2.838709593 | AI24: 0 | AK24: 1.419354796 | AL24: 7
A25: 23 | AH25: 2.967741847 | AI25: 0 | AK25: 1.548387051 | AL25: 7
A26: 24 | AH26: 3.096774101 | AI26: 0 | AK26: 1.548387051 | AL26: 6
A27: 25 | AH27: 3.225806355 | AI27: 0 | AK27: 1.677419305 | AL27: 6
A28: 26 | AH28: 3.35483861 | AI28: 0 | AK28: 1.677419305 | AL28: 6
A29: 27 | AH29: 3.483870864 | AI29: 0 | AK29: 1.806451559 | AL29: 6
A30: 28 | AH30: 3.612903118 | AI30: 0 | AK30: 1.806451559 | AL30: 2
A31: 29 | AH31: 3.741935372 | AI31: 0 | AK31: 1.935483813 | AL31: 2
A32: 30 | AH32: 3.870967627 | AI32: 0 | AK32: 1.935483813 | AL32: 5
A33: 31 | AH33: 3.999999881 | AI33: 0 | AK33: 2.064516068 | AL33: 5
A34: 32 | AK34: 2.064516068 | AL34: 2
A35: 33 | AK35: 2.193548322 | AL35: 2
A36: 34 | AK36: 2.193548322 | AL36: 3
A37: 35 | AK37: 2.322580576 | AL37: 3
A38: 36 | AK38: 2.322580576 | AL38: 2
A39: 37 | AK39: 2.45161283 | AL39: 2
A40: 38 | AK40: 2.45161283 | AL40: 1
A41: 39 | AK41: 2.580645084 | AL41: 1
A42: 40 | AK42: 2.580645084 | AL42: 0
A43: 41 | AK43: 2.709677339 | AL43: 0
A44: 42 | AK44: 2.709677339 | AL44: 0
A45: 43 | AK45: 2.838709593 | AL45: 0
A46: 44 | AK46: 2.838709593 | AL46: 0
A47: 45 | AK47: 2.967741847 | AL47: 0
A48: 46 | AK48: 2.967741847 | AL48: 0
A49: 47 | AK49: 3.096774101 | AL49: 0
A50: 48 | AK50: 3.096774101 | AL50: 0
A51: 49 | AK51: 3.225806355 | AL51: 0
A52: 50 | AK52: 3.225806355 | AL52: 0
A53: 51 | AK53: 3.35483861 | AL53: 0
A54: 52 | AK54: 3.35483861 | AL54: 0
A55: 53 | AK55: 3.483870864 | AL55: 0
A56: 54 | AK56: 3.483870864 | AL56: 0
A57: 55 | AK57: 3.612903118 | AL57: 0
A58: 56 | AK58: 3.612903118 | AL58: 0
A59: 57 | AK59: 3.741935372 | AL59: 0
A60: 58 | AK60: 3.741935372 | AL60: 0
A61: 59 | AK61: 3.870967627 | AL61: 0
A62: 60 | AK62: 3.870967627 | AL62: 0
A63: 61 | AK63: 3.999999881 | AL63: 0
A64: 62 | AK64: 3.999999881 | AL64: 0
A65: 63
A66: 64
A67: 65
A68: 66
A69: 67
A70: 68
A71: 69
A72: 70
A73: 71
A74: 72
A75: 73
A76: 74
A77: 75
A78: 76
A79: 77
A80: 78
A81: 79
A82: 80
A83: 81
A84: 82
A85: 83
A86: 84
A87: 85
A88: 86
A89: 87
A90: 88
A91: 89
A92: 90
A93: 91
A94: 92
A95: 93
A96: 94
A97: 95
A98: 96
A99: 97
A100: 98
A101: 99
A102: 100
A103: Only the first 100 repetitions are displayed on this worksheet.

Sheet TwoVarMCSim (hidden)
A1: Results of Monte Carlo Simulation
A2: Sample Number | B2: Var1 | C2: Var2 | F2: Simulation Stats
A3: 1 | G3: repetitions
A4: 2 | G4: secs | I4: Var1 | K4: Var2 | M4: Notes
A5: 3 | I5: Average | J5: 0.003891987077 | K5: Average | L5: 0.003355620617
A6: 4 | I6: SD | J6: 0.1659865299 | K6: SD | L6: 0.1488266145
A7: 5 | I7: Max | J7: 0.5008107016 | K7: Max | L7: 0.4001902531
A8: 6 | I8: Min | J8: -0.5496349566 | K8: Min | L8: -0.4673416415
A9: 7
A10: 8
A11: 9
A12: 10
A13: 11
A14: 12
A15: 13
A16: 14
A17: 15
A18: 16
A19: 17 | F19: 1
A20: 18
A21: 19
A22: 20
A23: 21
A24: 22
A25: 23
A26: 24
A27: 25
A28: 26
A29: 27
A30: 28
A31: 29
A32: 30
A33: 31
A34: 32
A35: 33
A36: 34
A37: 35
A38: 36
A39: 37
A40: 38
A41: 39
A42: 40
A43: 41
A44: 42
A45: 43
A46: 44
A47: 45
A48: 46
A49: 47
A50: 48
A51: 49
A52: 50
A53: 51
A54: 52
A55: 53
A56: 54
A57: 55
A58: 56
A59: 57
A60: 58
A61: 59
A62: 60
A63: 61
A64: 62
A65: 63
A66: 64
A67: 65
A68: 66
A69: 67
A70: 68
A71: 69
A72: 70
A73: 71
A74: 72
A75: 73
A76: 74
A77: 75
A78: 76
A79: 77
A80: 78
A81: 79
A82: 80
A83: 81
A84: 82
A85: 83
A86: 84
A87: 85
A88: 86
A89: 87
A90: 88
A91: 89
A92: 90
A93: 91
A94: 92
A95: 93
A96: 94
A97: 95
A98: 96
A99: 97
A100: 98
A101: 99
A102: 100
A103: Only the first 100 repetitions are displayed on this worksheet.

Sheet Clean Interface
A1: This Excel File is meant to explain baseball's WinsAboveReplacement Statistic and evaluates some of its characteristics. During the 2021 Collective Bargaining effort between the players and the owners, it was decided that approximately $60m in bonus pool would be distributed as a proportion of WAR. | H1: Jack Fitzgerald
H2: jackfitzgerald_2023@depauw.edu
H3: 2023-04-26
A19: What is WinsAboveReplacement?
A21: Commonly Referred to as WAR, WinsAboveReplacement measures the number of wins a players provides to their team over the production of a "replacement level" player. That is, if major league player X got injured how much better would he have been versus his AAA quality replacement.
A28: How is WAR computed?
A30: In simple terms, WAR uses a variety of counting stats and weights to determine how many runs a position players produces through batting, defense and baserunning. After adjusting for factors like position and park, the numbers of total runs a player produces is compared to the number of runs scored in thewhole league divided by the number of wins that year. This is how one turns runs into Wins Above Replacement.

Sheet Player Selection
A1: User Interface | K1: Year | N1: Players | P1: Fielding Sheet | Q1: =B4&"f" -> 2019f
A2: Player Selection | B2: Mike Trout | G2: fWinsAboveReplacement | H2: =(H4+H5+H6+'Adjustments!'!B1+'Adjustments!'!E1+'Adjustments!'!H1)/Q5 -> 8.579395301 | K2: 2000 | N2: A.J. Ellis
K3: 2001 | N3: A.J. Pierzynski
A4: Year Selection | B4: 2019 | G4: BattingRuns | H4: ='Batting Runs!'!B1 -> 60.44365177 | K4: 2002 | N4: A.J. Pollock | P4: Yearly Values | T4: NL | U4: AL
G5: FieldingRuns | H5: ='Baserunning and Defense!'!F1 -> -2.6 | K5: 2003 | N5: Aaron Altherr | P5: RunsPerWin | Q5: =VLOOKUP(B4, 'Adjustment Values'!A4:X1267,13,0) -> 10.296 | S5: lgFieldingRuns | T5: =VLOOKUP(B4, 'League Totals'!A4:BC22,20,0) -> 125.9 | U5: =VLOOKUP(B4, 'League Totals'!A4:BC22,47,0) -> -128.3
G6: BaseRunningRuns | H6: ='Baserunning and Defense!'!B1 -> 7.151553364 | K6: 2004 | N6: Aaron Boone | P6: lgWOBA | Q6: =VLOOKUP(B4, 'Adjustment Values'!A1:X1264,2,0) -> 0.32 | S6: lgBattingRuns | T6: =VLOOKUP(B4, 'League Totals'!A4:BC22,19,0) -> 3 | U6: =VLOOKUP(B4, 'League Totals'!A4:BC22,46,0) -> -3.2
A7: Player Information | K7: 2005 | N7: Aaron Guiel | P7: Park Factor | Q7: =VLOOKUP(B8,'Park Factors'!A1:U33,'Player Selection'!B4-1998,0) -> 101 | S7: lgBaserunningRuns | T7: =VLOOKUP(B4, 'League Totals'!A4:BC22,18,0) -> 15.3 | U7: =VLOOKUP(B4, 'League Totals'!A4:BC22,45,0) -> -17.9
A8: Team | B8: =VLOOKUP(B2, '2019'!A1:W180,2,0) -> LAA | K8: 2006 | N8: Aaron Hicks | P8: Runs Per PA | Q8: =VLOOKUP(B4, 'Adjustment Values'!A1:X1264,12,0) -> 0.126 | S8: lgPA | T8: =VLOOKUP(B4, 'League Totals'!A4:BC22,3,0) -> 93237 | U8: =VLOOKUP(B4, 'League Totals'!A4:BC22,30,0) -> 93279
G9: expected cut of bonus pool money | K9: 2007 | N9: Aaron Hill | P9: wOBA Scale | Q9: =VLOOKUP(B4, 'Adjustment Values'!A1:X1264,3,0) -> 1.157 | S9: League WRC | T9: =VLOOKUP(B4, 'League Totals'!A4:BC22,27,0) -> 11545 | U9: =VLOOKUP(B4, 'League Totals'!A4:BC22,54,0) -> 11862
A10: League | B10: =IF(OR(B8="LAD",B8="ATL",B8="WSN",B8="STL",B8="PHI",B8="NYM",B8="MON",B8="PIT",B8="MIA",B8="FLA",B8="LAD",B8="CHC",B8="SD",B8="CIN",B8="COL",B8="MIL",B8="ARI",B8="SFG",B8="HOU NL",),"National League","American League") -> American League | G10: 50000000 | K10: 2008 | N10: Aaron Judge | P10: wBB | Q10: =VLOOKUP(B4, 'Adjustment Values'!A1:X1264,4,0) -> 0.69 | S10: lgSB | T10: =VLOOKUP(B4, 'League Totals'!A4:BC22,7,0) -> 1133 | U10: =VLOOKUP(B4, 'League Totals'!A4:BC22,34,0) -> 1147
A11: Games Played | B11: =VLOOKUP(B2, '2019'!A1:W180,3,0) -> 134 | G11: 572.1 | K11: 2009 | N11: Aaron Miles | P11: wHBP | Q11: =VLOOKUP(B4, 'Adjustment Values'!A1:X1264,5,0) -> 0.719 | S11: lgCS | T11: =VLOOKUP(B4, 'League Totals'!A4:BC22,25,0) -> 397 | U11: =VLOOKUP(B4, 'League Totals'!A4:BC22,52,0) -> 435
A12: Main Position Played | B12: Innings at Main Position | G12: =G10/G11 -> 87397.30816 | H12: =H2*G12 -> 749816.055 | K12: 2010 | N12: Aaron Rowand | P12: w1B | Q12: =VLOOKUP(B4, 'Adjustment Values'!A1:X1264,6,0) -> 0.87 | S12: lg1B | T12: =VLOOKUP(B4, 'League Totals'!A4:BC22,22,0) -> 12974 | U12: =VLOOKUP(B4, 'League Totals'!A4:BC22,49,0) -> 12973
A13: =VLOOKUP(B2, '2019f'!A1:X1264,3,0) -> CF | B13: =VLOOKUP(B2, '2019f'!A1:X1264,4,0) -> 1051.2 | D13: Variable | K13: 2011 | N13: Abraham Almonte | P13: w2B | Q13: =VLOOKUP(B4, 'Adjustment Values'!A1:X1267,7,0) -> 1.217 | S13: lgBB | T13: =VLOOKUP(B4, 'League Totals'!A4:BC22,23,0) -> 7979 | U13: =VLOOKUP(B4, 'League Totals'!A4:BC22,50,0) -> 7916
D14: =_xlfn.NORM.INV(RAND(),110,18.43995) -> 116.7666173 | K14: 2012 | N14: Abraham Nunez | P14: w3B | Q14: =VLOOKUP(B4, 'Adjustment Values'!A1:X1268,8,0) -> 1.529 | S14: lgHBP | T14: =VLOOKUP(B4, 'League Totals'!A4:BC22,26,0) -> 1048 | U14: =VLOOKUP(B4, 'League Totals'!A4:BC22,53,0) -> 936
A15: Fielding Runs | B15: =VLOOKUP(B2, '2019'!A1:Z180,26,0) -> -2.6 | K15: 2013 | N15: Adam Dunn | P15: wHR | Q15: =VLOOKUP(B4, 'Adjustment Values'!A1:X1269,9,0) -> 1.94 | S15: lgIBB | T15: =VLOOKUP(B4, 'League Totals'!A4:BC22,24,0) -> 478 | U15: =VLOOKUP(B4, 'League Totals'!A4:BC22,51,0) -> 275
K16: 2014 | N16: Adam Duvall | P16: RunCS | Q16: =VLOOKUP(B4, 'Adjustment Values'!A1:X1268,11,0) -> -0.435 | S16: League Runs | T16: =VLOOKUP(B4, 'League Totals'!A4:BC22,5,0) -> 11608 | U16: =VLOOKUP(B4, 'League Totals'!A4:BC22,32,0) -> 11859
K17: 2015 | N17: Adam Eaton | S17: League Outs | T17: =VLOOKUP(B4, 'League Totals'!A4:BC22,28,0) -> 30115.551 | U17: =VLOOKUP(B4, 'League Totals'!A4:BC22,55,0) -> 30129.117
K18: 2016 | N18: Adam Engel | S18: lgGIDP | T18: =VLOOKUP(B4, 'League Totals'!A4:BE22,56,0) -> 1735 | U18: =VLOOKUP(B4, 'League Totals'!A4:BE22,57,0) -> 1728
A19: Offensive Production | D19: Baserunning Production | K19: 2017 | N19: Adam Everett | S19: lgTotalPositionalAdjustment | T19: =VLOOKUP(B4, 'League Totals'!A4:BG22,58,0) -> -18.3 | U19: =VLOOKUP(B4, 'League Totals'!A4:BG22,59,0) -> -264.3
A20: PA | B20: =VLOOKUP(B2, '2019'!A1:W180,5,0) -> 600 | D20: SB | E20: =VLOOKUP(B2, '2019'!A1:W180,20,0) -> 11 | F20: The years 2000 and 2001 do not have the necessary video tracking technology to properly calculate a player's baserunning. | K20: 2018 | N20: Adam Frazier
A21: AB | B21: =VLOOKUP(B2, '2019'!A1:W180,4,0) -> 470 | D21: CS | E21: =VLOOKUP(B2, '2019'!A1:W180,21,0) -> 2 | K21: 2019 | N21: Adam Jones
A22: 1B | B22: =VLOOKUP(B2, '2019'!A1:W180,7,0) -> 63 | D22: GIDP | E22: =VLOOKUP(B2, '2019'!A1:W180,19,0) -> 5 | N22: Adam Kennedy
A23: 2B | B23: =VLOOKUP(B2, '2019'!A1:W180,8,0) -> 27 | D23: UBR | E23: =VLOOKUP(B2, '2019'!A1:Z180,24,0) -> 3.7 | N23: Adam LaRoche
A24: 3B | B24: =VLOOKUP(B2, '2019'!A1:W180,9,0) -> 2 | D24: wGDP | E24: =VLOOKUP(B2, '2019'!A1:Z180,25,0) -> 2.5 | N24: Adam Lind
A25: HR | B25: =VLOOKUP(B2, '2019'!A1:W180,10,0) -> 45 | N25: Adam Rosales
A26: BB | B26: =VLOOKUP(B2, '2019'!A1:W180,13,0) -> 110 | D26: Ultimate Zone Rating | E26: =VLOOKUP(B2, '2019f'!A1:X1264,18,0) -> -0.9 | N26: Addison Russell
A27: IBB | B27: =VLOOKUP(B2, '2019'!A1:W180,14,0) -> 14 | N27: Adeiny Hechavarria
A28: HBP | B28: =VLOOKUP(B2, '2019'!A1:W180,16,0) -> 16 | N28: Adrian Beltre
A29: SF | B29: =VLOOKUP(B2, '2019'!A1:W180,17,0) -> 4 | N29: Adrian Gonzalez
N30: Akinori Iwamura
N31: Al Martin
N32: Albert Almora Jr.
N33: Albert Pujols
N34: Alberto Callaspo
N35: Alberto Gonzalez
N36: Alcides Escobar
N37: Aledmys Diaz
N38: Alejandro De Aza
N39: Alex Avila
N40: Alex Bregman
N41: Alex Cintron
N42: Alex Cora
N43: Alex Gonzalez
N44: Alex Gonzalez
N45: Alex Gordon
N46: Alex Ochoa
N47: Alex Presley
N48: Alex Rios
N49: Alex Rodriguez
N50: Alex Sanchez
N51: Alexei Ramirez
N52: Alexi Amarista
N53: Alexi Casilla
N54: Alfonso Soriano
N55: Alfredo Amezaga
N56: Allen Craig
N57: Amed Rosario
N58: Andre Ethier
N59: Andrelton Simmons
N60: Andres Blanco
N61: Andres Galarraga
N62: Andres Torres
N63: Andrew Benintendi
N64: Andrew McCutchen
N65: Andrew Romine
N66: Andruw Jones
N67: Andy Dirks
N68: Andy Fox
N69: Andy LaRoche
N70: Angel Berroa
N71: Angel Pagan
N72: Anthony Gose
N73: Anthony Rendon
N74: Anthony Rizzo
N75: Aramis Ramirez
N76: Asdrubal Cabrera
N77: Aubrey Huff
N78: Augie Ojeda
N79: Austin Hedges
N80: Austin Jackson
N81: Austin Kearns
N82: Austin Romine
N83: Avisail Garcia
N84: B.J. Surhoff
N85: Barry Bonds
N86: Barry Larkin
N87: Ben Broussard
N88: Ben Davis
N89: Ben Francisco
N90: Ben Gamel
N91: Ben Grieve
N92: Ben Revere
N93: Ben Zobrist
N94: Bengie Molina
N95: Benito Santiago
N96: Bernie Williams
N97: Bill Hall
N98: Bill Mueller
N99: Billy Butler
N100: Billy Hamilton
N101: Blake DeWitt
N102: Bobby Abreu
N103: Bobby Crosby
N104: Bobby Higginson
N105: Bobby Kielty
N106: Bobby Wilson
N107: Brad Ausmus
N108: Brad Fullmer
N109: Brad Hawpe
N110: Brad Miller
N111: Brad Wilkerson
N112: Brady Anderson
N113: Brady Clark
N114: Brandon Barnes
N115: Brandon Belt
N116: Brandon Crawford
N117: Brandon Drury
N118: Brandon Guyer
N119: Brandon Inge
N120: Brandon Moss
N121: Brandon Nimmo
N122: Brandon Phillips
N123: Brayan Pena
N124: Brendan Harris
N125: Brendan Ryan
N126: Brennan Boesch
N127: Brent Mayne
N128: Bret Boone
N129: Brett Gardner
N130: Brett Lawrie
N131: Brett Wallace
N132: Brian Anderson
N133: Brian Daubach
N134: Brian Dozier
N135: Brian Giles
N136: Brian Jordan
N137: Brian McCann
N138: Brian Roberts
N139: Brian Schneider
N140: Brock Holt
N141: Brook Fordyce
N142: Bryce Harper
N143: Bubba Trammell
N144: Buster Posey
N145: Byron Buxton
N146: C.J. Cron
N147: Caleb Joseph
N148: Cameron Maybin
N149: Cameron Rupp
N150: Carl Crawford
N151: Carl Everett
N152: Carlos Beltran
N153: Carlos Correa
N154: Carlos Delgado
N155: Carlos Febles
N156: Carlos Gomez
N157: Carlos Gonzalez
N158: Carlos Guillen
N159: Carlos Lee
N160: Carlos Pena
N161: Carlos Quentin
N162: Carlos Ruiz
N163: Carlos Santana
N164: Casey Blake
N165: Casey Kotchman
N166: Casey McGehee
N167: Cesar Hernandez
N168: Cesar Izturis
N169: Chad Moeller
N170: Chad Pinder
N171: Chad Tracy
N172: Charles Johnson
N173: Charlie Blackmon
N174: Chase Headley
N175: Chase Utley
N176: Cheslor Cuthbert
N177: Chipper Jones
N178: Chone Figgins
N179: Chris Burke
N180: Chris Carter
N181: Chris Coghlan
N182: Chris Davis
N183: Chris Denorfia
N184: Chris Duncan
N185: Chris Getz
N186: Chris Gimenez
N187: Chris Gomez
N188: Chris Heisey
N189: Chris Iannetta
N190: Chris Johnson
N191: Chris Owings
N192: Chris Parmelee
N193: Chris Richard
N194: Chris Shelton
N195: Chris Singleton
N196: Chris Snyder
N197: Chris Stewart
N198: Chris Stynes
N199: Chris Taylor
N200: Chris Woodward
... 779 more rows

Sheet Adjustments!
A1: League Adjustment | B1: =((-1)*((B6+B7+B8+B9)/B10))*B14 -> 2.661049111 | D1: Replacement Runs | E1: =((570)*(B16/B10)*B14)/2 -> 18.87473065 | G1: Positional Adjustment | H1: =((E5/9)/162)*(E7) -> 1.802469136
G3: FanGraphs Positional Adjustments per 162
A4: League | B4: ='Player Selection'!B10 -> American League | D4: Position | E4: ='Player Selection'!A13 -> CF | G4: Catcher | H4: 12.5
A5: League Run Values | B5: ='Player Selection'!B4 -> 2019 | D5: Innings | E5: ='Player Selection'!B13 -> 1051.2 | G5: First Base | H5: -12.5
A6: lgBatting Runs | B6: =IF('Player Selection'!B10="National League",'Player Selection'!T6,'Player Selection'!U6) -> -3.2 | G6: Second Base | H6: 2.5
A7: lgBaseRunningRuns | B7: =IF('Player Selection'!B10="National League",'Player Selection'!T7,'Player Selection'!U7) -> -17.9 | D7: Player Positional Adjustment Per 162 | E7: =IF(OR(E4="CF",E4="2B",E4="3B"),2.5,IF(OR(E4="LF",E4="RF"),-7.5,IF(E4="SS",7.5,IF(E4="1B",-12.5,12.5)))) -> 2.5 | G7: Third Base | H7: 2.5
A8: lgFieldingRuns | B8: =IF('Player Selection'!B10="National League",'Player Selection'!T5,'Player Selection'!U5) -> -128.3 | G8: Shortstop | H8: 7.5
A9: lgPositional Adjustment | B9: =IF('Player Selection'!B10="National League",'Player Selection'!T19,'Player Selection'!U19) -> -264.3 | G9: Left Field | H9: -7.5
A10: lgPA | B10: =IF('Player Selection'!B10="National League",'Player Selection'!T8,'Player Selection'!U8) -> 93279 | G10: Center Field | H10: 2.5
G11: Right Field | H11: -7.5
G12: Designated Hitter | H12: -17.5
A13: League Games | B13: ='Player Selection'!B11 -> 134
A14: Player PA | B14: ='Player Selection'!B20 -> 600
A16: Runs PerWin | B16: ='Player Selection'!Q5 -> 10.296

Sheet Batting Runs!
A1: Batting Runs | B1: =B3+(F17-(G18*F17))*F2+(F17-F22)*F2 -> 60.44365177 | E1: Offensive Production
E2: PA | F2: ='Player Selection'!B20 -> 600
A3: Weighted Runs Above Average (wRAA) | B3: =((B4-F15)/F16)*F2 -> 61.89978363 | E3: AB | F3: ='Player Selection'!B21 -> 470
A4: Weighted On-Base Average (wOBA) | B4: =((F4*F29)+(F5*F30)+(F6*F31)+(F7*F32)+((F8-F9)*F27)+(F10*F28))/(F10+F8-F9+F3+F11) -> 0.4393634161 | E4: 1B | F4: ='Player Selection'!B22 -> 63
E5: 2B | F5: ='Player Selection'!B23 -> 27
E6: 3B | F6: ='Player Selection'!B24 -> 2
E7: HR | F7: ='Player Selection'!B25 -> 45
E8: BB | F8: ='Player Selection'!D14 -> 116.7666173
E9: IBB | F9: ='Player Selection'!B27 -> 14
E10: HBP | F10: ='Player Selection'!B28 -> 16
E11: SF | F11: ='Player Selection'!B29 -> 4
E13: Run Environment
E15: League Average Weighted On-Base Average (lgwOBA) | F15: ='Player Selection'!Q6 -> 0.32
E16: wOBA Scale | F16: ='Player Selection'!Q9 -> 1.157
E17: MLB runs/PA (lgR/PA) | F17: ='Player Selection'!Q8 -> 0.126
E18: Home Park Factor | F18: ='Player Selection'!Q7 -> 101 | G18: =F18/100 -> 1.01
E19: League wRC | F19: =IF('Player Selection'!B10="National League",'Player Selection'!T9,'Player Selection'!U9) -> 11862
E20: League Total PA | F20: =IF('Player Selection'!B10="National League",'Player Selection'!T8,'Player Selection'!U8) -> 93279
E22: League wRC/PA | F22: =F19/F20 -> 0.1271668864
E24: Weights
E25: Year | F25: ='Player Selection'!B4 -> 2019
E27: NIBBs | F27: ='Player Selection'!Q10 -> 0.69
E28: HBPs | F28: ='Player Selection'!Q11 -> 0.719
E29: Singles | F29: ='Player Selection'!Q12 -> 0.87
E30: Doubles | F30: ='Player Selection'!Q13 -> 1.217
E31: Triples | F31: ='Player Selection'!Q14 -> 1.529
E32: Homeruns | F32: ='Player Selection'!Q15 -> 1.94

Sheet Baserunning and Defense!
A1: Baserunning Runs | B1: =B3+B5+B7 -> 7.151553364 | E1: Fielding Runs | F1: ='Player Selection'!B15 -> -2.6
A3: Ultimate Base Running | B3: ='Player Selection'!E23 -> 3.7 | E3: Ultimate Zone Rating | F3: ='Player Selection'!E26 -> -0.9
A5: Weighted Grounded in Double Plays | B5: ='Player Selection'!E24 -> 2.5 | E5: Primary Position Played | F5: Innings
E6: ='Player Selection'!A13 -> CF | F6: ='Player Selection'!B13 -> 1051.2
A7: Weighted Stolen Base Runs | B7: =(B16*J13)+(B17*B9)-(B14*(B20+B21+B22+B23)) -> 0.9515533643
A9: runCS (expected run value of CS) | B9: ='Player Selection'!Q16 -> -0.435
A11: RunsPerOut | B11: ='Baserunning and Defense!'!B26/'Baserunning and Defense!'!B27 -> 0.3936059593
I13: runSB (expect run value of a SB) | J13: 0.2
A14: lgWSB | B14: =((B29*J13)+(B30*B9))/(B32+B31+B33-B34) -> 0.001864269142
A15: Inputs
A16: Stolen Bases | B16: ='Player Selection'!E20 -> 11
A17: Caught Stealing | B17: ='Player Selection'!E21 -> 2
A18: GIDP | B18: ='Player Selection'!E22 -> 5
A20: 1b | B20: ='Player Selection'!B22 -> 63
A21: bb | B21: ='Player Selection'!B26 -> 110
A22: HBP | B22: ='Player Selection'!B28 -> 16
A23: IBB | B23: ='Player Selection'!B27 -> 14
A25: Year | B25: ='Player Selection'!B4 -> 2019
A26: League Runs | B26: =IF('Player Selection'!B10="National League",'Player Selection'!T16,'Player Selection'!U16) -> 11859
A27: League Outs | B27: =IF('Player Selection'!B10="National League",'Player Selection'!T17,'Player Selection'!U17) -> 30129.117
A29: lgSB | B29: =IF('Player Selection'!B10="National League",'Player Selection'!T10,'Player Selection'!U10) -> 1147
A30: lgCS | B30: =IF('Player Selection'!B10="National League",'Player Selection'!T11,'Player Selection'!U11) -> 435
A31: lg1b | B31: =IF('Player Selection'!B10="National League",'Player Selection'!T12,'Player Selection'!U12) -> 12973
A32: lgBB | B32: =IF('Player Selection'!B10="National League",'Player Selection'!T13,'Player Selection'!U13) -> 7916
A33: lgHBP | B33: =IF('Player Selection'!B10="National League",'Player Selection'!T14,'Player Selection'!U14) -> 936
A34: lgIBB | B34: =IF('Player Selection'!B10="National League",'Player Selection'!T15,'Player Selection'!U15) -> 275
A35: lgGIDP | B35: =IF('Player Selection'!B10="National League",'Player Selection'!T18,'Player Selection'!U18) -> 1728

Sheet Sim 1B
A1: Results of Monte Carlo Simulation | AK1: 0 | AL1: $H$2
A2: Sample Number | B2: $H$2 | F2: Simulation Stats | AH2: 0 | AK2: 3 | AL2: 0
A3: 1 | B3: 8.32052014 | F3: 100000 | G3: repetitions | L3: Range | M3: =J7-J8 -> 10.54360138 | AH3: 0.1290322542 | AI3: 0 | AK3: 3 | AL3: 1
A4: 2 | B4: 5.922478492 | F4: 52.00000021 | G4: seconds | I4: Summary Statistics | L4: Notes | AH4: 0.2580645084 | AI4: 3 | AK4: 3.2 | AL4: 1
A5: 3 | B5: 7.1068274 | I5: Average | J5: 8.433273664 | L5: Variability of WAR given a STDev of 14.9 for singles centered at 63, Trout's singles total for 2019. | AH5: 0.3870967627 | AI5: 4 | AK5: 3.2 | AL5: 0
A6: 4 | B6: 7.883092895 | I6: SD | J6: 1.119972188 | AH6: 0.5161290169 | AI6: 8 | AK6: 3.4 | AL6: 0
A7: 5 | B7: 8.923407534 | E7: 3 | I7: Max | J7: 13.55485456 | AH7: 0.6451612711 | AI7: 4 | AK7: 3.4 | AL7: 0
A8: 6 | B8: 7.315157815 | I8: Min | J8: 3.01125318 | AH8: 0.7741935253 | AI8: 9 | AK8: 3.6 | AL8: 0
A9: 7 | B9: 9.581183572 | AH9: 0.9032257795 | AI9: 9 | AK9: 3.6 | AL9: 2
A10: 8 | B10: 9.152672404 | AH10: 1.032258034 | AI10: 12 | AK10: 3.8 | AL10: 2
A11: 9 | B11: 8.946429337 | AH11: 1.161290288 | AI11: 8 | AK11: 3.8 | AL11: 1
A12: 10 | B12: 9.310973293 | AH12: 1.290322542 | AI12: 3 | AK12: 4 | AL12: 1
A13: 11 | B13: 8.282576726 | AH13: 1.419354796 | AI13: 6 | AK13: 4 | AL13: 3
A14: 12 | B14: 7.753728389 | AH14: 1.548387051 | AI14: 7 | AK14: 4.2 | AL14: 3
A15: 13 | B15: 6.727552982 | AH15: 1.677419305 | AI15: 6 | AK15: 4.2 | AL15: 11
A16: 14 | B16: 6.86509863 | AH16: 1.806451559 | AI16: 6 | AK16: 4.4 | AL16: 11
A17: 15 | B17: 9.056047353 | AH17: 1.935483813 | AI17: 2 | AK17: 4.4 | AL17: 16
A18: 16 | B18: 7.62661516 | AH18: 2.064516068 | AI18: 5 | AK18: 4.6 | AL18: 16
A19: 17 | B19: 7.598993381 | AH19: 2.193548322 | AI19: 2 | AK19: 4.6 | AL19: 24
A20: 18 | B20: 7.543838435 | AH20: 2.322580576 | AI20: 3 | AK20: 4.8 | AL20: 24
A21: 19 | B21: 7.85270227 | AH21: 2.45161283 | AI21: 2 | AK21: 4.8 | AL21: 46
A22: 20 | B22: 8.387560223 | AH22: 2.580645084 | AI22: 1 | AK22: 5 | AL22: 46
A23: 21 | B23: 7.926223679 | AH23: 2.709677339 | AI23: 0 | AK23: 5 | AL23: 84
A24: 22 | B24: 10.02338212 | AH24: 2.838709593 | AI24: 0 | AK24: 5.2 | AL24: 84
A25: 23 | B25: 9.179998034 | AH25: 2.967741847 | AI25: 0 | AK25: 5.2 | AL25: 157
A26: 24 | B26: 8.109092066 | AH26: 3.096774101 | AI26: 0 | AK26: 5.4 | AL26: 157
A27: 25 | B27: 8.451540239 | AH27: 3.225806355 | AI27: 0 | AK27: 5.4 | AL27: 249
A28: 26 | B28: 9.090083368 | AH28: 3.35483861 | AI28: 0 | AK28: 5.6 | AL28: 249
A29: 27 | B29: 7.993261981 | AH29: 3.483870864 | AI29: 0 | AK29: 5.6 | AL29: 318
A30: 28 | B30: 5.785452537 | AH30: 3.612903118 | AI30: 0 | AK30: 5.8 | AL30: 318
A31: 29 | B31: 8.28341703 | AH31: 3.741935372 | AI31: 0 | AK31: 5.8 | AL31: 517
A32: 30 | B32: 8.988635214 | AH32: 3.870967627 | AI32: 0 | AK32: 6 | AL32: 517
A33: 31 | B33: 7.678548639 | AH33: 3.999999881 | AI33: 0 | AK33: 6 | AL33: 824
A34: 32 | B34: 9.605571723 | AK34: 6.2 | AL34: 824
A35: 33 | B35: 9.704927075 | AK35: 6.2 | AL35: 1206
A36: 34 | B36: 9.508629136 | AK36: 6.4 | AL36: 1206
A37: 35 | B37: 8.619202448 | AK37: 6.4 | AL37: 1649
A38: 36 | B38: 7.420449155 | AK38: 6.6 | AL38: 1649
A39: 37 | B39: 9.133497794 | AK39: 6.6 | AL39: 2117
A40: 38 | B40: 6.965797817 | AK40: 6.8 | AL40: 2117
A41: 39 | B41: 9.226160267 | AK41: 6.8 | AL41: 2797
A42: 40 | B42: 8.925104975 | AK42: 7 | AL42: 2797
A43: 41 | B43: 10.35906277 | AK43: 7 | AL43: 3605
A44: 42 | B44: 9.368412666 | AK44: 7.2 | AL44: 3605
A45: 43 | B45: 6.823574735 | AK45: 7.2 | AL45: 4203
A46: 44 | B46: 8.811392825 | AK46: 7.4 | AL46: 4203
A47: 45 | B47: 8.633009944 | AK47: 7.4 | AL47: 5073
A48: 46 | B48: 9.465506366 | AK48: 7.6 | AL48: 5073
A49: 47 | B49: 10.03549983 | AK49: 7.6 | AL49: 5716
A50: 48 | B50: 9.729399241 | AK50: 7.8 | AL50: 5716
A51: 49 | B51: 5.951396863 | AK51: 7.8 | AL51: 6262
A52: 50 | B52: 7.469537446 | AK52: 8 | AL52: 6262
A53: 51 | B53: 9.202306159 | AK53: 8 | AL53: 6845
A54: 52 | B54: 8.605706387 | AK54: 8.2 | AL54: 6845
A55: 53 | B55: 9.681367286 | AK55: 8.2 | AL55: 7067
A56: 54 | B56: 8.878195379 | AK56: 8.4 | AL56: 7067
A57: 55 | B57: 7.894816205 | AK57: 8.4 | AL57: 7164
A58: 56 | B58: 8.482686881 | AK58: 8.6 | AL58: 7164
A59: 57 | B59: 8.495050691 | AK59: 8.6 | AL59: 6883
A60: 58 | B60: 7.293483909 | AK60: 8.8 | AL60: 6883
A61: 59 | B61: 7.623950783 | AK61: 8.8 | AL61: 6436
A62: 60 | B62: 9.558285679 | AK62: 9 | AL62: 6436
A63: 61 | B63: 6.939356929 | AK63: 9 | AL63: 6007
A64: 62 | B64: 9.124782072 | AK64: 9.2 | AL64: 6007
A65: 63 | B65: 10.11919537 | AK65: 9.2 | AL65: 5305
A66: 64 | B66: 7.311855361 | AK66: 9.4 | AL66: 5305
A67: 65 | B67: 7.39122587 | AK67: 9.4 | AL67: 4607
A68: 66 | B68: 7.721835503 | AK68: 9.6 | AL68: 4607
A69: 67 | B69: 8.810719084 | AK69: 9.6 | AL69: 3713
A70: 68 | B70: 7.694267918 | AK70: 9.8 | AL70: 3713
A71: 69 | B71: 5.623919286 | AK71: 9.8 | AL71: 2942
A72: 70 | B72: 8.153245974 | AK72: 10 | AL72: 2942
A73: 71 | B73: 8.590318777 | AK73: 10 | AL73: 2393
A74: 72 | B74: 9.251916104 | AK74: 10.2 | AL74: 2393
A75: 73 | B75: 9.262681614 | AK75: 10.2 | AL75: 1747
A76: 74 | B76: 8.049857883 | AK76: 10.4 | AL76: 1747
A77: 75 | B77: 8.25777294 | AK77: 10.4 | AL77: 1310
A78: 76 | B78: 8.830330822 | AK78: 10.6 | AL78: 1310
A79: 77 | B79: 8.079331438 | AK79: 10.6 | AL79: 956
A80: 78 | B80: 8.690566616 | AK80: 10.8 | AL80: 956
A81: 79 | B81: 8.659203909 | AK81: 10.8 | AL81: 638
A82: 80 | B82: 8.746778918 | AK82: 11 | AL82: 638
A83: 81 | B83: 8.288730811 | AK83: 11 | AL83: 440
A84: 82 | B84: 6.974369342 | AK84: 11.2 | AL84: 440
A85: 83 | B85: 8.723421618 | AK85: 11.2 | AL85: 289
A86: 84 | B86: 7.868897596 | AK86: 11.4 | AL86: 289
A87: 85 | B87: 7.156149277 | AK87: 11.4 | AL87: 155
A88: 86 | B88: 7.455277229 | AK88: 11.6 | AL88: 155
A89: 87 | B89: 7.595302639 | AK89: 11.6 | AL89: 103
A90: 88 | B90: 8.652326067 | AK90: 11.8 | AL90: 103
A91: 89 | B91: 7.328009472 | AK91: 11.8 | AL91: 54
A92: 90 | B92: 8.425642936 | AK92: 12 | AL92: 54
A93: 91 | B93: 7.848985128 | AK93: 12 | AL93: 31
A94: 92 | B94: 8.536360723 | AK94: 12.2 | AL94: 31
A95: 93 | B95: 8.902860184 | AK95: 12.2 | AL95: 16
A96: 94 | B96: 8.958708144 | AK96: 12.4 | AL96: 16
A97: 95 | B97: 7.047472005 | AK97: 12.4 | AL97: 9
A98: 96 | B98: 8.467264655 | AK98: 12.6 | AL98: 9
A99: 97 | B99: 8.019215781 | AK99: 12.6 | AL99: 7
A100: 98 | B100: 6.428193574 | AK100: 12.8 | AL100: 7
A101: 99 | B101: 8.145436328 | AK101: 12.8 | AL101: 0
A102: 100 | B102: 7.699652241 | AK102: 13 | AL102: 0
A103: Only the first 100 repetitions are displayed on this worksheet. | AK103: 13 | AL103: 1
AK104: 13.2 | AL104: 1
AK105: 13.2 | AL105: 0
AK106: 13.4 | AL106: 0
AK107: 13.4 | AL107: 1
AK108: 13.6 | AL108: 1
AK109: 13.6 | AL109: 0

Sheet Sim 2B
A1: Results of Monte Carlo Simulation | AK1: 0 | AL1: $H$2
A2: Sample Number | B2: $H$2 | F2: Simulation Stats | AH2: 0 | AK2: 6.7 | AL2: 0
A3: 1 | B3: 7.676481789 | F3: 100000 | G3: repetitions | AH3: 0.1290322542 | AI3: 0 | AK3: 6.7 | AL3: 1
A4: 2 | B4: 8.942428115 | F4: 50.00000037 | G4: seconds | I4: Summary Statistics | L4: Notes | AH4: 0.2580645084 | AI4: 3 | AK4: 6.75 | AL4: 1
A5: 3 | B5: 9.140579656 | I5: Average | J5: 8.434182622 | L5: The variance of doubles given a standard deviation of 3.5. Centered on 27, Trout's doubles total for 2019. | P5: Range | Q5: =J7-J8 -> 3.355224632 | AH5: 0.3870967627 | AI5: 4 | AK5: 6.75 | AL5: 0
A6: 4 | B6: 8.765248083 | I6: SD | J6: 0.3659070907 | AH6: 0.5161290169 | AI6: 8 | AK6: 6.8 | AL6: 0
A7: 5 | B7: 8.094421403 | E7: 3 | I7: Max | J7: 10.09408249 | AH7: 0.6451612711 | AI7: 4 | AK7: 6.8 | AL7: 0
A8: 6 | B8: 8.569745176 | I8: Min | J8: 6.73885786 | AH8: 0.7741935253 | AI8: 9 | AK8: 6.85 | AL8: 0
A9: 7 | B9: 8.678810481 | AH9: 0.9032257795 | AI9: 9 | AK9: 6.85 | AL9: 0
A10: 8 | B10: 8.277530076 | E10: 39 | AH10: 1.032258034 | AI10: 12 | AK10: 6.9 | AL10: 0
A11: 9 | B11: 8.583849464 | E11: 39 | AH11: 1.161290288 | AI11: 8 | AK11: 6.9 | AL11: 0
A12: 10 | B12: 9.004685454 | E12: 32 | AH12: 1.290322542 | AI12: 3 | AK12: 6.95 | AL12: 0
A13: 11 | B13: 8.41872903 | E13: 32 | AH13: 1.419354796 | AI13: 6 | AK13: 6.95 | AL13: 0
A14: 12 | B14: 8.965997661 | E14: =_xlfn.STDEV.P(E10:E13) -> 3.5 | AH14: 1.548387051 | AI14: 7 | AK14: 7 | AL14: 0
A15: 13 | B15: 7.577664953 | AH15: 1.677419305 | AI15: 6 | AK15: 7 | AL15: 5
A16: 14 | B16: 8.657929922 | AH16: 1.806451559 | AI16: 6 | AK16: 7.05 | AL16: 5
A17: 15 | B17: 8.458814693 | AH17: 1.935483813 | AI17: 2 | AK17: 7.05 | AL17: 3
A18: 16 | B18: 8.401252808 | AH18: 2.064516068 | AI18: 5 | AK18: 7.1 | AL18: 3
A19: 17 | B19: 8.397979499 | AH19: 2.193548322 | AI19: 2 | AK19: 7.1 | AL19: 9
A20: 18 | B20: 8.543594842 | AH20: 2.322580576 | AI20: 3 | AK20: 7.15 | AL20: 9
A21: 19 | B21: 8.150011837 | AH21: 2.45161283 | AI21: 2 | AK21: 7.15 | AL21: 15
A22: 20 | B22: 8.286766758 | AH22: 2.580645084 | AI22: 1 | AK22: 7.2 | AL22: 15
A23: 21 | B23: 8.458757338 | AH23: 2.709677339 | AI23: 0 | AK23: 7.2 | AL23: 24
A24: 22 | B24: 8.854078691 | AH24: 2.838709593 | AI24: 0 | AK24: 7.25 | AL24: 24
A25: 23 | B25: 8.355257827 | AH25: 2.967741847 | AI25: 0 | AK25: 7.25 | AL25: 41
A26: 24 | B26: 8.250835535 | AH26: 3.096774101 | AI26: 0 | AK26: 7.3 | AL26: 41
A27: 25 | B27: 8.27217419 | AH27: 3.225806355 | AI27: 0 | AK27: 7.3 | AL27: 55
A28: 26 | B28: 8.264443123 | AH28: 3.35483861 | AI28: 0 | AK28: 7.35 | AL28: 55
A29: 27 | B29: 8.641482423 | AH29: 3.483870864 | AI29: 0 | AK29: 7.35 | AL29: 84
A30: 28 | B30: 7.860467135 | AH30: 3.612903118 | AI30: 0 | AK30: 7.4 | AL30: 84
A31: 29 | B31: 8.63185258 | AH31: 3.741935372 | AI31: 0 | AK31: 7.4 | AL31: 126
A32: 30 | B32: 8.533001184 | AH32: 3.870967627 | AI32: 0 | AK32: 7.45 | AL32: 126
A33: 31 | B33: 8.093459454 | AH33: 3.999999881 | AI33: 0 | AK33: 7.45 | AL33: 168
A34: 32 | B34: 8.732574617 | AK34: 7.5 | AL34: 168
A35: 33 | B35: 8.741273713 | AK35: 7.5 | AL35: 241
A36: 34 | B36: 8.096044137 | AK36: 7.55 | AL36: 241
A37: 35 | B37: 8.336283597 | AK37: 7.55 | AL37: 326
A38: 36 | B38: 8.213139258 | AK38: 7.6 | AL38: 326
A39: 37 | B39: 8.257352868 | AK39: 7.6 | AL39: 463
A40: 38 | B40: 8.697678325 | AK40: 7.65 | AL40: 463
A41: 39 | B41: 8.008803649 | AK41: 7.65 | AL41: 634
A42: 40 | B42: 8.662858956 | AK42: 7.7 | AL42: 634
A43: 41 | B43: 8.213915599 | AK43: 7.7 | AL43: 835
A44: 42 | B44: 8.977685459 | AK44: 7.75 | AL44: 835
A45: 43 | B45: 8.116720846 | AK45: 7.75 | AL45: 1070
A46: 44 | B46: 8.942187156 | AK46: 7.8 | AL46: 1070
A47: 45 | B47: 8.260320333 | AK47: 7.8 | AL47: 1336
A48: 46 | B48: 8.314160551 | AK48: 7.85 | AL48: 1336
A49: 47 | B49: 7.843033078 | AK49: 7.85 | AL49: 1805
A50: 48 | B50: 9.357138682 | AK50: 7.9 | AL50: 1805
A51: 49 | B51: 8.899288388 | AK51: 7.9 | AL51: 2098
A52: 50 | B52: 8.244877977 | AK52: 7.95 | AL52: 2098
A53: 51 | B53: 9.020030513 | AK53: 7.95 | AL53: 2416
A54: 52 | B54: 8.256149962 | AK54: 8 | AL54: 2416
A55: 53 | B55: 8.293670579 | AK55: 8 | AL55: 2852
A56: 54 | B56: 8.043342515 | AK56: 8.05 | AL56: 2852
A57: 55 | B57: 8.168295386 | AK57: 8.05 | AL57: 3455
A58: 56 | B58: 8.680987355 | AK58: 8.1 | AL58: 3455
A59: 57 | B59: 8.962598182 | AK59: 8.1 | AL59: 3872
A60: 58 | B60: 8.521601279 | AK60: 8.15 | AL60: 3872
A61: 59 | B61: 8.798842987 | AK61: 8.15 | AL61: 4271
A62: 60 | B62: 8.622496326 | AK62: 8.2 | AL62: 4271
A63: 61 | B63: 8.17182893 | AK63: 8.2 | AL63: 4664
A64: 62 | B64: 7.749687279 | AK64: 8.25 | AL64: 4664
A65: 63 | B65: 8.284359271 | AK65: 8.25 | AL65: 5003
A66: 64 | B66: 8.158235388 | AK66: 8.3 | AL66: 5003
A67: 65 | B67: 8.587890239 | AK67: 8.3 | AL67: 5082
A68: 66 | B68: 8.406093512 | AK68: 8.35 | AL68: 5082
A69: 67 | B69: 7.99389545 | AK69: 8.35 | AL69: 5349
A70: 68 | B70: 8.874959265 | AK70: 8.4 | AL70: 5349
A71: 69 | B71: 8.25402238 | AK71: 8.4 | AL71: 5445
A72: 70 | B72: 8.554335202 | AK72: 8.45 | AL72: 5445
A73: 71 | B73: 9.210605231 | AK73: 8.45 | AL73: 5365
A74: 72 | B74: 8.833599223 | AK74: 8.5 | AL74: 5365
A75: 73 | B75: 8.629030073 | AK75: 8.5 | AL75: 5294
A76: 74 | B76: 8.5101284 | AK76: 8.55 | AL76: 5294
A77: 75 | B77: 8.380242675 | AK77: 8.55 | AL77: 5040
A78: 76 | B78: 9.187623435 | AK78: 8.6 | AL78: 5040
A79: 77 | B79: 8.541564458 | AK79: 8.6 | AL79: 4825
A80: 78 | B80: 8.910006972 | AK80: 8.65 | AL80: 4825
A81: 79 | B81: 8.324090104 | AK81: 8.65 | AL81: 4382
A82: 80 | B82: 8.33258463 | AK82: 8.7 | AL82: 4382
A83: 81 | B83: 8.574307436 | AK83: 8.7 | AL83: 3877
A84: 82 | B84: 8.557142113 | AK84: 8.75 | AL84: 3877
A85: 83 | B85: 8.095210531 | AK85: 8.75 | AL85: 3595
A86: 84 | B86: 9.334029243 | AK86: 8.8 | AL86: 3595
A87: 85 | B87: 8.448319554 | AK87: 8.8 | AL87: 3165
A88: 86 | B88: 8.879260796 | AK88: 8.85 | AL88: 3165
A89: 87 | B89: 8.888233751 | AK89: 8.85 | AL89: 2553
A90: 88 | B90: 8.505444297 | AK90: 8.9 | AL90: 2553
A91: 89 | B91: 8.745499465 | AK91: 8.9 | AL91: 2210
A92: 90 | B92: 9.003307819 | AK92: 8.95 | AL92: 2210
A93: 91 | B93: 8.445992287 | AK93: 8.95 | AL93: 1776
A94: 92 | B94: 8.864164117 | AK94: 9 | AL94: 1776
A95: 93 | B95: 8.412705465 | AK95: 9 | AL95: 1451
A96: 94 | B96: 8.260895437 | AK96: 9.05 | AL96: 1451
A97: 95 | B97: 8.813099207 | AK97: 9.05 | AL97: 1230
A98: 96 | B98: 8.329556218 | AK98: 9.1 | AL98: 1230
A99: 97 | B99: 8.330805679 | AK99: 9.1 | AL99: 943
A100: 98 | B100: 8.392641085 | AK100: 9.15 | AL100: 943
A101: 99 | B101: 8.581630051 | AK101: 9.15 | AL101: 665
A102: 100 | B102: 7.889787332 | AK102: 9.2 | AL102: 665
A103: Only the first 100 repetitions are displayed on this worksheet. | AK103: 9.2 | AL103: 543
AK104: 9.25 | AL104: 543
AK105: 9.25 | AL105: 406
AK106: 9.3 | AL106: 406
AK107: 9.3 | AL107: 287
AK108: 9.35 | AL108: 287
AK109: 9.35 | AL109: 230
AK110: 9.4 | AL110: 230
AK111: 9.4 | AL111: 145
AK112: 9.45 | AL112: 145
AK113: 9.45 | AL113: 97
AK114: 9.5 | AL114: 97
AK115: 9.5 | AL115: 78
AK116: 9.55 | AL116: 78
AK117: 9.55 | AL117: 36
AK118: 9.6 | AL118: 36
AK119: 9.6 | AL119: 21
AK120: 9.65 | AL120: 21
AK121: 9.65 | AL121: 18
AK122: 9.7 | AL122: 18
AK123: 9.7 | AL123: 6
AK124: 9.75 | AL124: 6
AK125: 9.75 | AL125: 4
AK126: 9.8 | AL126: 4
AK127: 9.8 | AL127: 4
AK128: 9.85 | AL128: 4
AK129: 9.85 | AL129: 5
AK130: 9.9 | AL130: 5
AK131: 9.9 | AL131: 0
AK132: 9.95 | AL132: 0
AK133: 9.95 | AL133: 0
AK134: 10 | AL134: 0
AK135: 10 | AL135: 0
AK136: 10.05 | AL136: 0
AK137: 10.05 | AL137: 1
AK138: 10.1 | AL138: 1
AK139: 10.1 | AL139: 0

Sheet Sim BB
A1: Results of Monte Carlo Simulation | AK1: 0 | AL1: $H$2
A2: Sample Number | B2: $H$2 | F2: Simulation Stats | AH2: 0 | AK2: 6.05 | AL2: 0
A3: 1 | B3: 8.506063306 | F3: 100000 | G3: repetitions | L3: Range | M3: =J7-J8 -> 3.830807813 | AH3: 0.1290322542 | AI3: 0 | AK3: 6.05 | AL3: 1
A4: 2 | B4: 8.788406847 | F4: 52.99999982 | G4: seconds | I4: Summary Statistics | L4: Notes | AH4: 0.2580645084 | AI4: 3 | AK4: 6.1 | AL4: 1
A5: 3 | B5: 9.218847293 | I5: Average | J5: 8.419083741 | L5: Variability of WAR given a STDev of 18.43995 for walks centered at 110, Trout's walk total for 2019. | AH5: 0.3870967627 | AI5: 4 | AK5: 6.1 | AL5: 0
A6: 4 | B6: 8.315352119 | I6: SD | J6: 0.4026211423 | AH6: 0.5161290169 | AI6: 8 | AK6: 6.15 | AL6: 0
A7: 5 | B7: 8.529233409 | E7: 3 | I7: Max | J7: 9.905678877 | AH7: 0.6451612711 | AI7: 4 | AK7: 6.15 | AL7: 0
A8: 6 | B8: 8.435748255 | I8: Min | J8: 6.074871064 | AH8: 0.7741935253 | AI8: 9 | AK8: 6.2 | AL8: 0
A9: 7 | B9: 8.82525091 | AH9: 0.9032257795 | AI9: 9 | AK9: 6.2 | AL9: 0
A10: 8 | B10: 9.136076003 | AH10: 1.032258034 | AI10: 12 | AK10: 6.25 | AL10: 0
A11: 9 | B11: 7.984838833 | AH11: 1.161290288 | AI11: 8 | AK11: 6.25 | AL11: 0
A12: 10 | B12: 8.147168229 | AH12: 1.290322542 | AI12: 3 | AK12: 6.3 | AL12: 0
A13: 11 | B13: 8.178284938 | AH13: 1.419354796 | AI13: 6 | AK13: 6.3 | AL13: 0
A14: 12 | B14: 7.685989071 | AH14: 1.548387051 | AI14: 7 | AK14: 6.35 | AL14: 0
A15: 13 | B15: 7.872693253 | AH15: 1.677419305 | AI15: 6 | AK15: 6.35 | AL15: 0
A16: 14 | B16: 8.494050234 | AH16: 1.806451559 | AI16: 6 | AK16: 6.4 | AL16: 0
A17: 15 | B17: 8.131466925 | AH17: 1.935483813 | AI17: 2 | AK17: 6.4 | AL17: 0
A18: 16 | B18: 7.968758158 | AH18: 2.064516068 | AI18: 5 | AK18: 6.45 | AL18: 0
A19: 17 | B19: 8.538340332 | AH19: 2.193548322 | AI19: 2 | AK19: 6.45 | AL19: 1
A20: 18 | B20: 8.069512643 | AH20: 2.322580576 | AI20: 3 | AK20: 6.5 | AL20: 1
A21: 19 | B21: 7.957459672 | AH21: 2.45161283 | AI21: 2 | AK21: 6.5 | AL21: 1
A22: 20 | B22: 8.63880558 | AH22: 2.580645084 | AI22: 1 | AK22: 6.55 | AL22: 1
A23: 21 | B23: 8.858129403 | AH23: 2.709677339 | AI23: 0 | AK23: 6.55 | AL23: 1
A24: 22 | B24: 8.7007306 | AH24: 2.838709593 | AI24: 0 | AK24: 6.6 | AL24: 1
A25: 23 | B25: 8.147411235 | AH25: 2.967741847 | AI25: 0 | AK25: 6.6 | AL25: 1
A26: 24 | B26: 8.40775707 | AH26: 3.096774101 | AI26: 0 | AK26: 6.65 | AL26: 1
A27: 25 | B27: 8.491176615 | AH27: 3.225806355 | AI27: 0 | AK27: 6.65 | AL27: 1
A28: 26 | B28: 8.320616417 | AH28: 3.35483861 | AI28: 0 | AK28: 6.7 | AL28: 1
A29: 27 | B29: 8.93782884 | AH29: 3.483870864 | AI29: 0 | AK29: 6.7 | AL29: 2
A30: 28 | B30: 8.521309449 | AH30: 3.612903118 | AI30: 0 | AK30: 6.75 | AL30: 2
A31: 29 | B31: 8.78462347 | AH31: 3.741935372 | AI31: 0 | AK31: 6.75 | AL31: 5
A32: 30 | B32: 8.753605195 | AH32: 3.870967627 | AI32: 0 | AK32: 6.8 | AL32: 5
A33: 31 | B33: 8.695610019 | AH33: 3.999999881 | AI33: 0 | AK33: 6.8 | AL33: 3
A34: 32 | B34: 8.178346898 | AK34: 6.85 | AL34: 3
A35: 33 | B35: 8.734527293 | AK35: 6.85 | AL35: 15
A36: 34 | B36: 8.204994116 | AK36: 6.9 | AL36: 15
A37: 35 | B37: 8.126829357 | AK37: 6.9 | AL37: 17
A38: 36 | B38: 8.114319533 | AK38: 6.95 | AL38: 17
A39: 37 | B39: 8.345798922 | AK39: 6.95 | AL39: 22
A40: 38 | B40: 8.613071172 | AK40: 7 | AL40: 22
A41: 39 | B41: 8.00458757 | AK41: 7 | AL41: 25
A42: 40 | B42: 8.937086861 | AK42: 7.05 | AL42: 25
A43: 41 | B43: 9.333685476 | AK43: 7.05 | AL43: 35
A44: 42 | B44: 8.27607838 | AK44: 7.1 | AL44: 35
A45: 43 | B45: 8.01806477 | AK45: 7.1 | AL45: 58
A46: 44 | B46: 8.580506436 | AK46: 7.15 | AL46: 58
A47: 45 | B47: 8.269805363 | AK47: 7.15 | AL47: 72
A48: 46 | B48: 8.767038821 | AK48: 7.2 | AL48: 72
A49: 47 | B49: 8.868581578 | AK49: 7.2 | AL49: 90
A50: 48 | B50: 7.947453017 | AK50: 7.25 | AL50: 90
A51: 49 | B51: 8.521529935 | AK51: 7.25 | AL51: 126
A52: 50 | B52: 8.352685187 | AK52: 7.3 | AL52: 126
A53: 51 | B53: 8.0136588 | AK53: 7.3 | AL53: 173
A54: 52 | B54: 7.884230048 | AK54: 7.35 | AL54: 173
A55: 53 | B55: 9.129687256 | AK55: 7.35 | AL55: 240
A56: 54 | B56: 9.028304077 | AK56: 7.4 | AL56: 240
A57: 55 | B57: 8.517244204 | AK57: 7.4 | AL57: 288
A58: 56 | B58: 8.235461439 | AK58: 7.45 | AL58: 288
A59: 57 | B59: 8.017229334 | AK59: 7.45 | AL59: 398
A60: 58 | B60: 8.94258422 | AK60: 7.5 | AL60: 398
A61: 59 | B61: 9.026215759 | AK61: 7.5 | AL61: 458
A62: 60 | B62: 8.79423613 | AK62: 7.55 | AL62: 458
A63: 61 | B63: 8.56542304 | AK63: 7.55 | AL63: 564
A64: 62 | B64: 8.534324747 | AK64: 7.6 | AL64: 564
A65: 63 | B65: 8.898102126 | AK65: 7.6 | AL65: 716
A66: 64 | B66: 8.071386971 | AK66: 7.65 | AL66: 716
A67: 65 | B67: 8.427050381 | AK67: 7.65 | AL67: 882
A68: 66 | B68: 8.694497099 | AK68: 7.7 | AL68: 882
A69: 67 | B69: 8.459145666 | AK69: 7.7 | AL69: 1057
A70: 68 | B70: 8.854376347 | AK70: 7.75 | AL70: 1057
A71: 69 | B71: 7.866546324 | AK71: 7.75 | AL71: 1370
A72: 70 | B72: 8.207615135 | AK72: 7.8 | AL72: 1370
A73: 71 | B73: 8.361066029 | AK73: 7.8 | AL73: 1551
A74: 72 | B74: 7.907187039 | AK74: 7.85 | AL74: 1551
A75: 73 | B75: 8.45342777 | AK75: 7.85 | AL75: 1960
A76: 74 | B76: 7.946381708 | AK76: 7.9 | AL76: 1960
A77: 75 | B77: 8.041305372 | AK77: 7.9 | AL77: 2225
A78: 76 | B78: 8.538762993 | AK78: 7.95 | AL78: 2225
A79: 77 | B79: 8.91102787 | AK79: 7.95 | AL79: 2539
A80: 78 | B80: 8.053017145 | AK80: 8 | AL80: 2539
A81: 79 | B81: 8.663415432 | AK81: 8 | AL81: 2792
A82: 80 | B82: 8.50564937 | AK82: 8.05 | AL82: 2792
A83: 81 | B83: 9.306237539 | AK83: 8.05 | AL83: 3247
A84: 82 | B84: 8.873145797 | AK84: 8.1 | AL84: 3247
A85: 83 | B85: 8.613210962 | AK85: 8.1 | AL85: 3579
A86: 84 | B86: 8.318774405 | AK86: 8.15 | AL86: 3579
A87: 85 | B87: 8.267170143 | AK87: 8.15 | AL87: 4036
A88: 86 | B88: 7.070393307 | AK88: 8.2 | AL88: 4036
A89: 87 | B89: 7.788854134 | AK89: 8.2 | AL89: 4262
A90: 88 | B90: 8.347316497 | AK90: 8.25 | AL90: 4262
A91: 89 | B91: 7.47920632 | AK91: 8.25 | AL91: 4450
A92: 90 | B92: 8.784714162 | AK92: 8.3 | AL92: 4450
A93: 91 | B93: 8.545759374 | AK93: 8.3 | AL93: 4750
A94: 92 | B94: 8.43329777 | AK94: 8.35 | AL94: 4750
A95: 93 | B95: 8.452476663 | AK95: 8.35 | AL95: 4882
A96: 94 | B96: 8.221341267 | AK96: 8.4 | AL96: 4882
A97: 95 | B97: 8.493620584 | AK97: 8.4 | AL97: 4987
A98: 96 | B98: 8.404359102 | AK98: 8.45 | AL98: 4987
A99: 97 | B99: 7.268591336 | AK99: 8.45 | AL99: 4957
A100: 98 | B100: 8.300776982 | AK100: 8.5 | AL100: 4957
A101: 99 | B101: 8.436603634 | AK101: 8.5 | AL101: 4951
A102: 100 | B102: 8.71683053 | AK102: 8.55 | AL102: 4951
A103: Only the first 100 repetitions are displayed on this worksheet. | AK103: 8.55 | AL103: 4726
AK104: 8.6 | AL104: 4726
AK105: 8.6 | AL105: 4508
AK106: 8.65 | AL106: 4508
AK107: 8.65 | AL107: 4318
AK108: 8.7 | AL108: 4318
AK109: 8.7 | AL109: 3939
AK110: 8.75 | AL110: 3939
AK111: 8.75 | AL111: 3569
AK112: 8.8 | AL112: 3569
AK113: 8.8 | AL113: 3069
AK114: 8.85 | AL114: 3069
AK115: 8.85 | AL115: 2748
AK116: 8.9 | AL116: 2748
AK117: 8.9 | AL117: 2342
AK118: 8.95 | AL118: 2342
AK119: 8.95 | AL119: 2044
AK120: 9 | AL120: 2044
AK121: 9 | AL121: 1709
AK122: 9.05 | AL122: 1709
AK123: 9.05 | AL123: 1251
AK124: 9.1 | AL124: 1251
AK125: 9.1 | AL125: 1042
AK126: 9.15 | AL126: 1042
AK127: 9.15 | AL127: 845
AK128: 9.2 | AL128: 845
AK129: 9.2 | AL129: 646
AK130: 9.25 | AL130: 646
AK131: 9.25 | AL131: 475
AK132: 9.3 | AL132: 475
AK133: 9.3 | AL133: 303
AK134: 9.35 | AL134: 303
AK135: 9.35 | AL135: 214
AK136: 9.4 | AL136: 214
AK137: 9.4 | AL137: 172
AK138: 9.45 | AL138: 172
AK139: 9.45 | AL139: 91
AK140: 9.5 | AL140: 91
AK141: 9.5 | AL141: 78
AK142: 9.55 | AL142: 78
AK143: 9.55 | AL143: 49
AK144: 9.6 | AL144: 49
AK145: 9.6 | AL145: 35
AK146: 9.65 | AL146: 35
AK147: 9.65 | AL147: 17
AK148: 9.7 | AL148: 17
AK149: 9.7 | AL149: 10
AK150: 9.75 | AL150: 10
AK151: 9.75 | AL151: 5
AK152: 9.8 | AL152: 5
AK153: 9.8 | AL153: 3
AK154: 9.85 | AL154: 3
AK155: 9.85 | AL155: 1
AK156: 9.9 | AL156: 1
AK157: 9.9 | AL157: 1
AK158: 9.95 | AL158: 1
AK159: 9.95 | AL159: 0

Sheet Sim HR
A1: Results of Monte Carlo Simulation | AK1: 0 | AL1: $H$2
A2: Sample Number | B2: $H$2 | F2: Simulation Stats | AH2: 0 | AK2: 3.4 | AL2: 0
A3: 1 | B3: 9.317800018 | F3: 100000 | G3: repetitions | M3: Range | N3: =J7-J8 -> 9.916506919 | AH3: 0.1290322542 | AI3: 0 | AK3: 3.4 | AL3: 2
A4: 2 | B4: 7.335426594 | F4: 48.00000053 | G4: seconds | I4: Summary Statistics | L4: Notes | AH4: 0.2580645084 | AI4: 3 | AK4: 3.6 | AL4: 2
A5: 3 | B5: 7.868287842 | I5: Average | J5: 8.437453592 | L5: Variability of WAR given a STDev of 7 for homeruns centered at 45, Trout's HR total for 2019. | AH5: 0.3870967627 | AI5: 4 | AK5: 3.6 | AL5: 5
A6: 4 | B6: 6.779187795 | I6: SD | J6: 1.16958787 | AH6: 0.5161290169 | AI6: 8 | AK6: 3.8 | AL6: 5
A7: 5 | B7: 9.220295959 | E7: 3 | I7: Max | J7: 13.36974873 | AH7: 0.6451612711 | AI7: 4 | AK7: 3.8 | AL7: 2
A8: 6 | B8: 8.534273245 | I8: Min | J8: 3.453241814 | AH8: 0.7741935253 | AI8: 9 | AK8: 4 | AL8: 2
A9: 7 | B9: 8.416251179 | AH9: 0.9032257795 | AI9: 9 | AK9: 4 | AL9: 5
A10: 8 | B10: 7.508980978 | AH10: 1.032258034 | AI10: 12 | AK10: 4.2 | AL10: 5
A11: 9 | B11: 9.844184219 | AH11: 1.161290288 | AI11: 8 | AK11: 4.2 | AL11: 19
A12: 10 | B12: 10.38640482 | AH12: 1.290322542 | AI12: 3 | AK12: 4.4 | AL12: 19
A13: 11 | B13: 8.330992268 | AH13: 1.419354796 | AI13: 6 | AK13: 4.4 | AL13: 17
A14: 12 | B14: 8.20378511 | AH14: 1.548387051 | AI14: 7 | AK14: 4.6 | AL14: 17
A15: 13 | B15: 7.430852008 | AH15: 1.677419305 | AI15: 6 | AK15: 4.6 | AL15: 36
A16: 14 | B16: 9.871413701 | AH16: 1.806451559 | AI16: 6 | AK16: 4.8 | AL16: 36
A17: 15 | B17: 8.780527084 | AH17: 1.935483813 | AI17: 2 | AK17: 4.8 | AL17: 79
A18: 16 | B18: 9.834759334 | AH18: 2.064516068 | AI18: 5 | AK18: 5 | AL18: 79
A19: 17 | B19: 8.476080024 | AH19: 2.193548322 | AI19: 2 | AK19: 5 | AL19: 116
A20: 18 | B20: 8.100139603 | AH20: 2.322580576 | AI20: 3 | AK20: 5.2 | AL20: 116
A21: 19 | B21: 8.684182774 | AH21: 2.45161283 | AI21: 2 | AK21: 5.2 | AL21: 189
A22: 20 | B22: 9.539149341 | AH22: 2.580645084 | AI22: 1 | AK22: 5.4 | AL22: 189
A23: 21 | B23: 8.128394357 | AH23: 2.709677339 | AI23: 0 | AK23: 5.4 | AL23: 324
A24: 22 | B24: 7.508961463 | AH24: 2.838709593 | AI24: 0 | AK24: 5.6 | AL24: 324
A25: 23 | B25: 6.277235205 | AH25: 2.967741847 | AI25: 0 | AK25: 5.6 | AL25: 419
A26: 24 | B26: 7.373871041 | AH26: 3.096774101 | AI26: 0 | AK26: 5.8 | AL26: 419
A27: 25 | B27: 7.272375591 | AH27: 3.225806355 | AI27: 0 | AK27: 5.8 | AL27: 632
A28: 26 | B28: 7.833634215 | AH28: 3.35483861 | AI28: 0 | AK28: 6 | AL28: 632
A29: 27 | B29: 9.453901274 | AH29: 3.483870864 | AI29: 0 | AK29: 6 | AL29: 929
A30: 28 | B30: 8.783499379 | AH30: 3.612903118 | AI30: 0 | AK30: 6.2 | AL30: 929
A31: 29 | B31: 7.667527834 | AH31: 3.741935372 | AI31: 0 | AK31: 6.2 | AL31: 1282
A32: 30 | B32: 10.54854306 | AH32: 3.870967627 | AI32: 0 | AK32: 6.4 | AL32: 1282
A33: 31 | B33: 7.943574719 | AH33: 3.999999881 | AI33: 0 | AK33: 6.4 | AL33: 1702
A34: 32 | B34: 6.392642235 | AK34: 6.6 | AL34: 1702
A35: 33 | B35: 9.004702052 | AK35: 6.6 | AL35: 2170
A36: 34 | B36: 9.201376903 | AK36: 6.8 | AL36: 2170
A37: 35 | B37: 10.71190042 | AK37: 6.8 | AL37: 2925
A38: 36 | B38: 9.112941252 | AK38: 7 | AL38: 2925
A39: 37 | B39: 8.027678389 | AK39: 7 | AL39: 3581
A40: 38 | B40: 7.880849818 | AK40: 7.2 | AL40: 3581
A41: 39 | B41: 5.938578072 | AK41: 7.2 | AL41: 4323
A42: 40 | B42: 9.328396549 | AK42: 7.4 | AL42: 4323
A43: 41 | B43: 9.352869526 | AK43: 7.4 | AL43: 5086
A44: 42 | B44: 8.879821404 | AK44: 7.6 | AL44: 5086
A45: 43 | B45: 7.059777197 | AK45: 7.6 | AL45: 5547
A46: 44 | B46: 8.498411798 | AK46: 7.8 | AL46: 5547
A47: 45 | B47: 10.01324244 | AK47: 7.8 | AL47: 6112
A48: 46 | B48: 8.98554441 | AK48: 8 | AL48: 6112
A49: 47 | B49: 10.70746588 | AK49: 8 | AL49: 6539
A50: 48 | B50: 10.31920066 | AK50: 8.2 | AL50: 6539
A51: 49 | B51: 7.491334791 | AK51: 8.2 | AL51: 6730
A52: 50 | B52: 9.678716938 | AK52: 8.4 | AL52: 6730
A53: 51 | B53: 6.752596745 | AK53: 8.4 | AL53: 6823
A54: 52 | B54: 8.589850057 | AK54: 8.6 | AL54: 6823
A55: 53 | B55: 8.912807263 | AK55: 8.6 | AL55: 6750
A56: 54 | B56: 9.08507965 | AK56: 8.8 | AL56: 6750
A57: 55 | B57: 7.717879503 | AK57: 8.8 | AL57: 6269
A58: 56 | B58: 5.908147363 | AK58: 9 | AL58: 6269
A59: 57 | B59: 8.147648254 | AK59: 9 | AL59: 5698
A60: 58 | B60: 6.658800216 | AK60: 9.2 | AL60: 5698
A61: 59 | B61: 6.526904806 | AK61: 9.2 | AL61: 5057
A62: 60 | B62: 9.563102661 | AK62: 9.4 | AL62: 5057
A63: 61 | B63: 8.958343297 | AK63: 9.4 | AL63: 4518
A64: 62 | B64: 9.287531892 | AK64: 9.6 | AL64: 4518
A65: 63 | B65: 8.89197815 | AK65: 9.6 | AL65: 3796
A66: 64 | B66: 9.665125472 | AK66: 9.8 | AL66: 3796
A67: 65 | B67: 6.305729302 | AK67: 9.8 | AL67: 3171
A68: 66 | B68: 8.166231089 | AK68: 10 | AL68: 3171
A69: 67 | B69: 10.55454941 | AK69: 10 | AL69: 2534
A70: 68 | B70: 6.608311033 | AK70: 10.2 | AL70: 2534
A71: 69 | B71: 6.030452401 | AK71: 10.2 | AL71: 1977
A72: 70 | B72: 10.07543302 | AK72: 10.4 | AL72: 1977
A73: 71 | B73: 8.977375354 | AK73: 10.4 | AL73: 1428
A74: 72 | B74: 8.750738877 | AK74: 10.6 | AL74: 1428
A75: 73 | B75: 9.786227107 | AK75: 10.6 | AL75: 1055
A76: 74 | B76: 8.494930044 | AK76: 10.8 | AL76: 1055
A77: 75 | B77: 8.101332551 | AK77: 10.8 | AL77: 727
A78: 76 | B78: 8.432396679 | AK78: 11 | AL78: 727
A79: 77 | B79: 10.23623996 | AK79: 11 | AL79: 496
A80: 78 | B80: 7.318798787 | AK80: 11.2 | AL80: 496
A81: 79 | B81: 10.2842625 | AK81: 11.2 | AL81: 363
A82: 80 | B82: 6.644444946 | AK82: 11.4 | AL82: 363
A83: 81 | B83: 9.446356295 | AK83: 11.4 | AL83: 231
A84: 82 | B84: 6.639820332 | AK84: 11.6 | AL84: 231
A85: 83 | B85: 7.936558256 | AK85: 11.6 | AL85: 146
A86: 84 | B86: 10.08696514 | AK86: 11.8 | AL86: 146
A87: 85 | B87: 10.10870411 | AK87: 11.8 | AL87: 73
A88: 86 | B88: 7.349706964 | AK88: 12 | AL88: 73
A89: 87 | B89: 6.761417386 | AK89: 12 | AL89: 45
A90: 88 | B90: 8.785832443 | AK90: 12.2 | AL90: 45
A91: 89 | B91: 8.8833233 | AK91: 12.2 | AL91: 31
A92: 90 | B92: 7.286134742 | AK92: 12.4 | AL92: 31
A93: 91 | B93: 10.10116407 | AK93: 12.4 | AL93: 18
A94: 92 | B94: 6.981079167 | AK94: 12.6 | AL94: 18
A95: 93 | B95: 9.886790417 | AK95: 12.6 | AL95: 10
A96: 94 | B96: 7.372682323 | AK96: 12.8 | AL96: 10
A97: 95 | B97: 7.975844974 | AK97: 12.8 | AL97: 6
A98: 96 | B98: 8.821257181 | AK98: 13 | AL98: 6
A99: 97 | B99: 6.57663018 | AK99: 13 | AL99: 6
A100: 98 | B100: 8.981648371 | AK100: 13.2 | AL100: 6
A101: 99 | B101: 8.160616599 | AK101: 13.2 | AL101: 1
A102: 100 | B102: 7.634198555 | AK102: 13.4 | AL102: 1
A103: Only the first 100 repetitions are displayed on this worksheet. | AK103: 13.4 | AL103: 0

Sheet St Dev Calc
A1: 30 | B1: 139 | C1: =A1/B1 -> 0.2158273381 | D1: =C1*134 -> 28.92086331
A2: 27 | B2: 157 | C2: =A2/B2 -> 0.1719745223 | D2: =C2*134 -> 23.04458599 | F2: =_xlfn.STDEV.P(D1:D8) -> 7.006053079
A3: 36 | B3: 157 | C3: 0.2292993631 | D3: 30.72611465
A4: 41 | B4: 159 | C4: 0.2578616352 | D4: 34.55345912
A5: 29 | B5: 159 | C5: 0.1823899371 | D5: 24.44025157
A6: 33 | B6: 114 | C6: 0.2894736842 | D6: 38.78947368
A7: 39 | B7: 140 | C7: 0.2785714286 | D7: 37.32857143
A8: 45 | B8: 134 | C8: 0.3358208955 | D8: 45
A10: 117 | B10: 139 | C10: =A10/B10 -> 0.8417266187 | D10: =C10*134 -> 112.7913669
A11: 115 | B11: 157 | C11: =A11/B11 -> 0.7324840764 | D11: =C11*134 -> 98.15286624 | F11: =_xlfn.STDEV.P(D10:D17) -> 14.9224044
A12: 89 | B12: 157 | C12: 0.5668789809 | D12: 75.96178344
A13: 93 | B13: 159 | C13: 0.5849056604 | D13: 78.37735849
A14: 107 | B14: 159 | C14: 0.6729559748 | D14: 90.17610063
A15: 62 | B15: 114 | C15: 0.5438596491 | D15: 72.87719298
A16: 80 | B16: 140 | C16: 0.5714285714 | D16: 76.57142857
A17: 63 | B17: 134 | C17: 0.4701492537 | D17: 63
A19: 67 | B19: 139 | C19: =A19/B19 -> 0.4820143885 | D19: =C19*134 -> 64.58992806
A20: 110 | B20: 157 | C20: =A20/B20 -> 0.7006369427 | D20: =C20*134 -> 93.88535032 | F20: =_xlfn.STDEV.P(D19:D26) -> 18.43994597
A21: 83 | B21: 157 | C21: 0.5286624204 | D21: 70.84076433
A22: 92 | B22: 159 | C22: 0.5786163522 | D22: 77.53459119
A23: 116 | B23: 159 | C23: 0.7295597484 | D23: 97.76100629
A24: 94 | B24: 114 | C24: 0.8245614035 | D24: 110.4912281
A25: 122 | B25: 140 | C25: 0.8714285714 | D25: 116.7714286
A26: 110 | B26: 134 | C26: 0.8208955224 | D26: 110

Sheet 2000 (hidden)
A1: Name | B1: Team | C1: G | D1: AB | E1: PA | F1: H | G1: 1B | H1: 2B | I1: 3B | J1: HR | K1: R | L1: RBI | M1: BB | N1: IBB | O1: SO | P1: HBP | Q1: SF | R1: SH | S1: GDP | T1: SB | U1: CS | V1: AVG | W1: playerid | X1: Column1 | Y1: Column2 | Z1: Fielding
A2: Adam Kennedy | B2: ANA | C2: 156 | D2: 598 | E2: 641 | F2: 159 | G2: 106 | H2: 33 | I2: 11 | J2: 9 | K2: 82 | L2: 72 | M2: 28 | N2: 5 | O2: 73 | P2: 3 | Q2: 4 | R2: 8 | S2: 10 | T2: 22 | U2: 8 | V2: 0.266 | W2: 19 | Z2: 3
A3: Adrian Beltre | B3: LAD | C3: 138 | D3: 510 | E3: 575 | F3: 148 | G3: 96 | H3: 30 | I3: 2 | J3: 20 | K3: 71 | L3: 85 | M3: 56 | N3: 2 | O3: 80 | P3: 2 | Q3: 4 | R3: 3 | S3: 13 | T3: 12 | U3: 5 | V3: 0.29 | W3: 639 | Z3: 7
A4: Al Martin | B4: - - - | C4: 135 | D4: 480 | E4: 523 | F4: 137 | G4: 97 | H4: 15 | I4: 10 | J4: 15 | K4: 81 | L4: 36 | M4: 36 | N4: 5 | O4: 85 | P4: 4 | Q4: 3 | R4: 0 | S4: 3 | T4: 10 | U4: 9 | V4: 0.285 | W4: 1167 | Z4: -11
A5: Albert Belle | B5: BAL | C5: 141 | D5: 559 | E5: 622 | F5: 157 | G5: 96 | H5: 37 | I5: 1 | J5: 23 | K5: 71 | L5: 103 | M5: 52 | N5: 11 | O5: 68 | P5: 4 | Q5: 7 | R5: 0 | S5: 17 | T5: 0 | U5: 5 | V5: 0.281 | W5: 1000802 | Z5: -5
A6: Alex Gonzalez | B6: TOR | C6: 141 | D6: 527 | E6: 591 | F6: 133 | G6: 85 | H6: 31 | I6: 2 | J6: 15 | K6: 68 | L6: 69 | M6: 43 | N6: 0 | O6: 113 | P6: 4 | Q6: 1 | R6: 16 | S6: 14 | T6: 4 | U6: 4 | V6: 0.252 | W6: 281 | Z6: -12
A7: Alex Rodriguez | B7: SEA | C7: 148 | D7: 554 | E7: 672 | F7: 175 | G7: 98 | H7: 34 | I7: 2 | J7: 41 | K7: 134 | L7: 132 | M7: 100 | N7: 5 | O7: 121 | P7: 7 | Q7: 11 | R7: 0 | S7: 10 | T7: 15 | U7: 4 | V7: 0.316 | W7: 1274 | Z7: 16
A8: Andres Galarraga | B8: ATL | C8: 141 | D8: 494 | E8: 548 | F8: 149 | G8: 95 | H8: 25 | I8: 1 | J8: 28 | K8: 67 | L8: 100 | M8: 36 | N8: 5 | O8: 126 | P8: 17 | Q8: 1 | R8: 0 | S8: 15 | T8: 3 | U8: 5 | V8: 0.302 | W8: 1390 | Z8: -9
A9: Andruw Jones | B9: ATL | C9: 161 | D9: 656 | E9: 729 | F9: 199 | G9: 121 | H9: 36 | I9: 6 | J9: 36 | K9: 122 | L9: 104 | M9: 59 | N9: 0 | O9: 100 | P9: 9 | Q9: 5 | R9: 0 | S9: 12 | T9: 21 | U9: 6 | V9: 0.303 | W9: 96 | Z9: 25
A10: B.J. Surhoff | B10: - - - | C10: 147 | D10: 539 | E10: 587 | F10: 157 | G10: 105 | H10: 36 | I10: 2 | J10: 14 | K10: 69 | L10: 68 | M10: 41 | N10: 3 | O10: 58 | P10: 3 | Q10: 2 | R10: 2 | S10: 10 | T10: 10 | U10: 2 | V10: 0.291 | W10: 117 | Z10: 9
A11: Barry Bonds | B11: SFG | C11: 143 | D11: 480 | E11: 607 | F11: 147 | G11: 66 | H11: 28 | I11: 4 | J11: 49 | K11: 129 | L11: 106 | M11: 117 | N11: 22 | O11: 77 | P11: 3 | Q11: 7 | R11: 0 | S11: 6 | T11: 11 | U11: 3 | V11: 0.306 | W11: 1109 | Z11: 5
A12: Ben Grieve | B12: OAK | C12: 158 | D12: 594 | E12: 675 | F12: 166 | G12: 98 | H12: 40 | I12: 1 | J12: 27 | K12: 92 | L12: 104 | M12: 73 | N12: 2 | O12: 130 | P12: 3 | Q12: 5 | R12: 0 | S12: 32 | T12: 3 | U12: 0 | V12: 0.279 | W12: 1209 | Z12: -7
A13: Bengie Molina | B13: ANA | C13: 130 | D13: 473 | E13: 513 | F13: 133 | G13: 97 | H13: 20 | I13: 2 | J13: 14 | K13: 59 | L13: 71 | M13: 23 | N13: 0 | O13: 33 | P13: 6 | Q13: 7 | R13: 4 | S13: 17 | T13: 1 | U13: 0 | V13: 0.281 | W13: 24 | Z13: 6
A14: Bernie Williams | B14: NYY | C14: 141 | D14: 537 | E14: 616 | F14: 165 | G14: 92 | H14: 37 | I14: 6 | J14: 30 | K14: 108 | L14: 121 | M14: 71 | N14: 11 | O14: 84 | P14: 5 | Q14: 3 | R14: 0 | S14: 15 | T14: 13 | U14: 5 | V14: 0.307 | W14: 857 | Z14: -3
A15: Bill Mueller | B15: SFG | C15: 153 | D15: 560 | E15: 631 | F15: 150 | G15: 107 | H15: 29 | I15: 4 | J15: 10 | K15: 97 | L15: 55 | M15: 52 | N15: 0 | O15: 62 | P15: 6 | Q15: 6 | R15: 7 | S15: 16 | T15: 4 | U15: 2 | V15: 0.268 | W15: 295 | Z15: 1
A16: Bobby Abreu | B16: PHI | C16: 154 | D16: 576 | E16: 680 | F16: 182 | G16: 105 | H16: 42 | I16: 10 | J16: 25 | K16: 103 | L16: 79 | M16: 100 | N16: 9 | O16: 116 | P16: 1 | Q16: 3 | R16: 0 | S16: 12 | T16: 28 | U16: 8 | V16: 0.316 | W16: 945 | Z16: 15
A17: Bobby Higginson | B17: DET | C17: 154 | D17: 597 | E17: 679 | F17: 179 | G17: 101 | H17: 44 | I17: 4 | J17: 30 | K17: 104 | L17: 102 | M17: 74 | N17: 6 | O17: 99 | P17: 2 | Q17: 3 | R17: 2 | S17: 5 | T17: 15 | U17: 3 | V17: 0.3 | W17: 469 | Z17: -1
A18: Brad Ausmus | B18: DET | C18: 150 | D18: 523 | E18: 604 | F18: 139 | G18: 104 | H18: 25 | I18: 3 | J18: 7 | K18: 75 | L18: 51 | M18: 69 | N18: 0 | O18: 79 | P18: 6 | Q18: 2 | R18: 4 | S18: 19 | T18: 11 | U18: 5 | V18: 0.266 | W18: 546 | Z18: 15
A19: Brad Fullmer | B19: TOR | C19: 133 | D19: 482 | E19: 524 | F19: 142 | G19: 80 | H19: 29 | I19: 1 | J19: 32 | K19: 76 | L19: 104 | M19: 30 | N19: 3 | O19: 68 | P19: 6 | Q19: 6 | R19: 0 | S19: 14 | T19: 3 | U19: 1 | V19: 0.295 | W19: 13 | Z19: 0
A20: Brady Anderson | B20: BAL | C20: 141 | D20: 506 | E20: 618 | F20: 130 | G20: 85 | H20: 26 | I20: 0 | J20: 19 | K20: 89 | L20: 50 | M20: 92 | N20: 5 | O20: 103 | P20: 8 | Q20: 7 | R20: 5 | S20: 4 | T20: 16 | U20: 9 | V20: 0.257 | W20: 364 | Z20: -8
A21: Bret Boone | B21: SDP | C21: 127 | D21: 463 | E21: 525 | F21: 116 | G21: 77 | H21: 18 | I21: 2 | J21: 19 | K21: 61 | L21: 74 | M21: 50 | N21: 7 | O21: 97 | P21: 5 | Q21: 7 | R21: 0 | S21: 11 | T21: 8 | U21: 4 | V21: 0.251 | W21: 1067 | Z21: -9
A22: Brian Daubach | B22: BOS | C22: 142 | D22: 495 | E22: 549 | F22: 123 | G22: 68 | H22: 32 | I22: 2 | J22: 21 | K22: 55 | L22: 76 | M22: 44 | N22: 2 | O22: 130 | P22: 6 | Q22: 4 | R22: 0 | S22: 6 | T22: 1 | U22: 1 | V22: 0.248 | W22: 186 | Z22: 6
A23: Brian Giles | B23: PIT | C23: 156 | D23: 559 | E23: 688 | F23: 176 | G23: 97 | H23: 37 | I23: 7 | J23: 35 | K23: 111 | L23: 123 | M23: 114 | N23: 13 | O23: 69 | P23: 7 | Q23: 8 | R23: 0 | S23: 15 | T23: 6 | U23: 0 | V23: 0.315 | W23: 990 | Z23: -3
A24: Brian Jordan | B24: ATL | C24: 133 | D24: 489 | E24: 537 | F24: 129 | G24: 86 | H24: 26 | I24: 0 | J24: 17 | K24: 71 | L24: 77 | M24: 38 | N24: 1 | O24: 80 | P24: 5 | Q24: 5 | R24: 0 | S24: 12 | T24: 10 | U24: 2 | V24: 0.264 | W24: 658 | Z24: 15
A25: Carl Everett | B25: BOS | C25: 137 | D25: 496 | E25: 561 | F25: 149 | G25: 79 | H25: 32 | I25: 4 | J25: 34 | K25: 82 | L25: 108 | M25: 52 | N25: 5 | O25: 113 | P25: 8 | Q25: 5 | R25: 0 | S25: 4 | T25: 11 | U25: 4 | V25: 0.3 | W25: 1249 | Z25: 2
A26: Carlos Delgado | B26: TOR | C26: 162 | D26: 569 | E26: 711 | F26: 196 | G26: 97 | H26: 57 | I26: 1 | J26: 41 | K26: 115 | L26: 137 | M26: 123 | N26: 18 | O26: 104 | P26: 15 | Q26: 4 | R26: 0 | S26: 12 | T26: 0 | U26: 1 | V26: 0.344 | W26: 1297 | Z26: -9
A27: Carlos Lee | B27: CHW | C27: 152 | D27: 572 | E27: 619 | F27: 172 | G27: 117 | H27: 29 | I27: 2 | J27: 24 | K27: 107 | L27: 92 | M27: 38 | N27: 1 | O27: 94 | P27: 3 | Q27: 5 | R27: 1 | S27: 17 | T27: 13 | U27: 4 | V27: 0.301 | W27: 243 | Z27: 1
A28: Chipper Jones | B28: ATL | C28: 156 | D28: 579 | E28: 686 | F28: 180 | G28: 105 | H28: 38 | I28: 1 | J28: 36 | K28: 118 | L28: 111 | M28: 95 | N28: 10 | O28: 64 | P28: 2 | Q28: 10 | R28: 0 | S28: 14 | T28: 14 | U28: 7 | V28: 0.311 | W28: 97 | Z28: 1
A29: Chris Singleton | B29: CHW | C29: 147 | D29: 511 | E29: 566 | F29: 130 | G29: 92 | H29: 22 | I29: 5 | J29: 11 | K29: 83 | L29: 62 | M29: 35 | N29: 2 | O29: 85 | P29: 1 | Q29: 4 | R29: 12 | S29: 6 | T29: 22 | U29: 7 | V29: 0.254 | W29: 170 | Z29: 5
A30: Corey Koskie | B30: MIN | C30: 146 | D30: 474 | E30: 559 | F30: 142 | G30: 97 | H30: 32 | I30: 4 | J30: 9 | K30: 79 | L30: 65 | M30: 77 | N30: 7 | O30: 104 | P30: 4 | Q30: 3 | R30: 1 | S30: 11 | T30: 5 | U30: 4 | V30: 0.3 | W30: 738 | Z30: -4
A31: Cristian Guzman | B31: MIN | C31: 156 | D31: 631 | E31: 690 | F31: 156 | G31: 103 | H31: 25 | I31: 20 | J31: 8 | K31: 89 | L31: 54 | M31: 46 | N31: 1 | O31: 101 | P31: 2 | Q31: 4 | R31: 7 | S31: 5 | T31: 28 | U31: 10 | V31: 0.247 | W31: 728 | Z31: -4
A32: Damian Jackson | B32: SDP | C32: 138 | D32: 470 | E32: 541 | F32: 120 | G32: 81 | H32: 27 | I32: 6 | J32: 6 | K32: 68 | L32: 37 | M32: 62 | N32: 2 | O32: 108 | P32: 3 | Q32: 2 | R32: 4 | S32: 7 | T32: 28 | U32: 6 | V32: 0.255 | W32: 471 | Z32: 8
A33: Damion Easley | B33: DET | C33: 126 | D33: 464 | E33: 535 | F33: 120 | G33: 77 | H33: 27 | I33: 2 | J33: 14 | K33: 76 | L33: 58 | M33: 55 | N33: 1 | O33: 79 | P33: 11 | Q33: 1 | R33: 4 | S33: 11 | T33: 13 | U33: 4 | V33: 0.259 | W33: 464 | Z33: 20
A34: Damon Buford | B34: CHC | C34: 150 | D34: 495 | E34: 556 | F34: 124 | G34: 88 | H34: 18 | I34: 3 | J34: 15 | K34: 64 | L34: 48 | M34: 47 | N34: 3 | O34: 118 | P34: 8 | Q34: 2 | R34: 4 | S34: 9 | T34: 4 | U34: 6 | V34: 0.251 | W34: 1001635 | Z34: -2
A35: Dante Bichette | B35: - - - | C35: 155 | D35: 575 | E35: 636 | F35: 169 | G35: 112 | H35: 32 | I35: 2 | J35: 23 | K35: 80 | L35: 90 | M35: 49 | N35: 3 | O35: 91 | P35: 4 | Q35: 7 | R35: 1 | S35: 21 | T35: 5 | U35: 2 | V35: 0.294 | W35: 1000946 | Z35: -2
A36: Darin Erstad | B36: ANA | C36: 157 | D36: 676 | E36: 747 | F36: 240 | G36: 170 | H36: 39 | I36: 6 | J36: 25 | K36: 121 | L36: 100 | M36: 64 | N36: 9 | O36: 82 | P36: 1 | Q36: 4 | R36: 2 | S36: 8 | T36: 28 | U36: 8 | V36: 0.355 | W36: 11 | Z36: 29
A37: Dave Martinez | B37: - - - | C37: 132 | D37: 457 | E37: 513 | F37: 125 | G37: 96 | H37: 19 | I37: 5 | J37: 5 | K37: 60 | L37: 47 | M37: 50 | N37: 3 | O37: 73 | P37: 2 | Q37: 3 | R37: 1 | S37: 12 | T37: 8 | U37: 7 | V37: 0.274 | W37: 1008160 | Z37: 9
A38: David Bell | B38: SEA | C38: 133 | D38: 454 | E38: 512 | F38: 112 | G38: 75 | H38: 24 | I38: 2 | J38: 11 | K38: 57 | L38: 47 | M38: 42 | N38: 0 | O38: 66 | P38: 6 | Q38: 4 | R38: 6 | S38: 11 | T38: 2 | U38: 3 | V38: 0.247 | W38: 1108 | Z38: -1
A39: David Justice | B39: - - - | C39: 146 | D39: 524 | E39: 606 | F39: 150 | G39: 77 | H39: 31 | I39: 1 | J39: 41 | K39: 89 | L39: 118 | M39: 77 | N39: 3 | O39: 91 | P39: 1 | Q39: 3 | R39: 0 | S39: 13 | T39: 2 | U39: 1 | V39: 0.286 | W39: 923 | Z39: 11
A40: David Segui | B40: - - - | C40: 150 | D40: 574 | E40: 634 | F40: 192 | G40: 130 | H40: 42 | I40: 1 | J40: 19 | K40: 93 | L40: 103 | M40: 53 | N40: 2 | O40: 84 | P40: 1 | Q40: 6 | R40: 0 | S40: 20 | T40: 0 | U40: 1 | V40: 0.334 | W40: 169 | Z40: -5
A41: Dean Palmer | B41: DET | C41: 145 | D41: 524 | E41: 604 | F41: 134 | G41: 81 | H41: 22 | I41: 2 | J41: 29 | K41: 73 | L41: 102 | M41: 66 | N41: 2 | O41: 146 | P41: 4 | Q41: 10 | R41: 0 | S41: 9 | T41: 4 | U41: 2 | V41: 0.256 | W41: 482 | Z41: -17
A42: Deivi Cruz | B42: DET | C42: 156 | D42: 583 | E42: 615 | F42: 176 | G42: 115 | H42: 46 | I42: 5 | J42: 10 | K42: 68 | L42: 82 | M42: 13 | N42: 2 | O42: 43 | P42: 4 | Q42: 7 | R42: 8 | S42: 25 | T42: 1 | U42: 4 | V42: 0.302 | W42: 1025 | Z42: 4
A43: Delino DeShields | B43: BAL | C43: 151 | D43: 561 | E43: 643 | F43: 166 | G43: 108 | H43: 43 | I43: 5 | J43: 10 | K43: 84 | L43: 86 | M43: 69 | N43: 2 | O43: 82 | P43: 1 | Q43: 9 | R43: 3 | S43: 16 | T43: 37 | U43: 10 | V43: 0.296 | W43: 275 | Z43: -6
A44: Derek Bell | B44: NYM | C44: 144 | D44: 546 | E44: 622 | F44: 145 | G44: 95 | H44: 31 | I44: 1 | J44: 18 | K44: 87 | L44: 69 | M44: 65 | N44: 0 | O44: 125 | P44: 6 | Q44: 3 | R44: 2 | S44: 14 | T44: 8 | U44: 4 | V44: 0.266 | W44: 1000801 | Z44: -1
A45: Derek Jeter | B45: NYY | C45: 148 | D45: 593 | E45: 679 | F45: 201 | G45: 151 | H45: 31 | I45: 4 | J45: 15 | K45: 119 | L45: 73 | M45: 68 | N45: 4 | O45: 99 | P45: 12 | Q45: 3 | R45: 3 | S45: 14 | T45: 22 | U45: 4 | V45: 0.339 | W45: 826 | Z45: -23
A46: Derrek Lee | B46: FLA | C46: 158 | D46: 477 | E46: 546 | F46: 134 | G46: 85 | H46: 18 | I46: 3 | J46: 28 | K46: 70 | L46: 70 | M46: 63 | N46: 6 | O46: 123 | P46: 4 | Q46: 2 | R46: 0 | S46: 14 | T46: 0 | U46: 3 | V46: 0.281 | W46: 525 | Z46: -4
A47: Dmitri Young | B47: CIN | C47: 152 | D47: 548 | E47: 593 | F47: 166 | G47: 105 | H47: 37 | I47: 6 | J47: 18 | K47: 68 | L47: 88 | M47: 36 | N47: 6 | O47: 80 | P47: 3 | Q47: 5 | R47: 1 | S47: 16 | T47: 0 | U47: 3 | V47: 0.303 | W47: 505 | Z47: 3
A48: Doug Glanville | B48: PHI | C48: 154 | D48: 637 | E48: 689 | F48: 175 | G48: 134 | H48: 27 | I48: 6 | J48: 8 | K48: 89 | L48: 52 | M48: 31 | N48: 1 | O48: 76 | P48: 2 | Q48: 7 | R48: 12 | S48: 11 | T48: 31 | U48: 8 | V48: 0.275 | W48: 956 | Z48: 2
A49: Edgar Martinez | B49: SEA | C49: 153 | D49: 556 | E49: 665 | F49: 180 | G49: 112 | H49: 31 | I49: 0 | J49: 37 | K49: 100 | L49: 145 | M49: 96 | N49: 8 | O49: 95 | P49: 5 | Q49: 8 | R49: 0 | S49: 13 | T49: 3 | U49: 0 | V49: 0.324 | W49: 1086 | Z49: 0
A50: Edgar Renteria | B50: STL | C50: 150 | D50: 562 | E50: 643 | F50: 156 | G50: 107 | H50: 32 | I50: 1 | J50: 16 | K50: 94 | L50: 76 | M50: 63 | N50: 3 | O50: 77 | P50: 1 | Q50: 9 | R50: 8 | S50: 19 | T50: 21 | U50: 13 | V50: 0.278 | W50: 1178 | Z50: 0
A51: Edgardo Alfonzo | B51: NYM | C51: 150 | D51: 544 | E51: 650 | F51: 176 | G51: 109 | H51: 40 | I51: 2 | J51: 25 | K51: 109 | L51: 94 | M51: 95 | N51: 1 | O51: 70 | P51: 5 | Q51: 6 | R51: 0 | S51: 12 | T51: 3 | U51: 2 | V51: 0.324 | W51: 859 | Z51: 1
A52: Eric Chavez | B52: OAK | C52: 153 | D52: 501 | E52: 569 | F52: 139 | G52: 86 | H52: 23 | I52: 4 | J52: 26 | K52: 89 | L52: 86 | M52: 62 | N52: 8 | O52: 94 | P52: 1 | Q52: 5 | R52: 0 | S52: 9 | T52: 2 | U52: 2 | V52: 0.277 | W52: 906 | Z52: -9
A53: Eric Karros | B53: LAD | C53: 155 | D53: 584 | E53: 663 | F53: 146 | G53: 86 | H53: 29 | I53: 0 | J53: 31 | K53: 84 | L53: 106 | M53: 63 | N53: 2 | O53: 122 | P53: 4 | Q53: 12 | R53: 0 | S53: 18 | T53: 4 | U53: 3 | V53: 0.25 | W53: 659 | Z53: 7
A54: Eric Owens | B54: SDP | C54: 145 | D54: 583 | E54: 636 | F54: 171 | G54: 139 | H54: 19 | I54: 7 | J54: 6 | K54: 87 | L54: 51 | M54: 45 | N54: 4 | O54: 63 | P54: 4 | Q54: 4 | R54: 0 | S54: 16 | T54: 29 | U54: 14 | V54: 0.293 | W54: 534 | Z54: 8
A55: Eric Young | B55: CHC | C55: 153 | D55: 607 | E55: 690 | F55: 180 | G55: 132 | H55: 40 | I55: 2 | J55: 6 | K55: 98 | L55: 47 | M55: 63 | N55: 1 | O55: 39 | P55: 8 | Q55: 5 | R55: 7 | S55: 12 | T55: 54 | U55: 7 | V55: 0.297 | W55: 716 | Z55: 5
A56: Fernando Vina | B56: STL | C56: 123 | D56: 487 | E56: 554 | F56: 146 | G56: 112 | H56: 24 | I56: 6 | J56: 4 | K56: 81 | L56: 31 | M56: 36 | N56: 0 | O56: 36 | P56: 28 | Q56: 1 | R56: 2 | S56: 5 | T56: 10 | U56: 8 | V56: 0.3 | W56: 1189 | Z56: 10
A57: Frank Thomas | B57: CHW | C57: 159 | D57: 582 | E57: 707 | F57: 191 | G57: 104 | H57: 44 | I57: 0 | J57: 43 | K57: 115 | L57: 143 | M57: 112 | N57: 18 | O57: 94 | P57: 5 | Q57: 8 | R57: 0 | S57: 13 | T57: 1 | U57: 3 | V57: 0.328 | W57: 255 | Z57: -2
A58: Fred McGriff | B58: TBD | C58: 158 | D58: 566 | E58: 664 | F58: 157 | G58: 112 | H58: 18 | I58: 0 | J58: 27 | K58: 82 | L58: 106 | M58: 91 | N58: 10 | O58: 120 | P58: 0 | Q58: 7 | R58: 0 | S58: 16 | T58: 2 | U58: 0 | V58: 0.277 | W58: 293 | Z58: -17
A59: Garret Anderson | B59: ANA | C59: 159 | D59: 647 | E59: 681 | F59: 185 | G59: 107 | H59: 40 | I59: 3 | J59: 35 | K59: 92 | L59: 117 | M59: 24 | N59: 5 | O59: 87 | P59: 0 | Q59: 9 | R59: 1 | S59: 21 | T59: 7 | U59: 6 | V59: 0.286 | W59: 2 | Z59: 1
A60: Gary Sheffield | B60: LAD | C60: 141 | D60: 501 | E60: 612 | F60: 163 | G60: 93 | H60: 24 | I60: 3 | J60: 43 | K60: 105 | L60: 109 | M60: 101 | N60: 7 | O60: 71 | P60: 4 | Q60: 6 | R60: 0 | S60: 13 | T60: 4 | U60: 6 | V60: 0.325 | W60: 114 | Z60: -3
A61: Geoff Jenkins | B61: MIL | C61: 135 | D61: 512 | E61: 564 | F61: 155 | G61: 81 | H61: 36 | I61: 4 | J61: 34 | K61: 100 | L61: 94 | M61: 33 | N61: 6 | O61: 135 | P61: 15 | Q61: 4 | R61: 0 | S61: 9 | T61: 11 | U61: 1 | V61: 0.303 | W61: 690 | Z61: 8
A62: Gerald Williams | B62: TBD | C62: 146 | D62: 632 | E62: 682 | F62: 173 | G62: 120 | H62: 30 | I62: 2 | J62: 21 | K62: 87 | L62: 89 | M62: 34 | N62: 0 | O62: 103 | P62: 3 | Q62: 4 | R62: 9 | S62: 6 | T62: 12 | U62: 12 | V62: 0.274 | W62: 1395 | Z62: -3
A63: Greg Vaughn | B63: TBD | C63: 127 | D63: 461 | E63: 545 | F63: 117 | G63: 61 | H63: 27 | I63: 1 | J63: 28 | K63: 83 | L63: 74 | M63: 80 | N63: 3 | O63: 128 | P63: 2 | Q63: 2 | R63: 0 | S63: 10 | T63: 8 | U63: 1 | V63: 0.254 | W63: 1233 | Z63: 0
A64: J.T. Snow | B64: SFG | C64: 155 | D64: 536 | E64: 627 | F64: 152 | G64: 98 | H64: 33 | I64: 2 | J64: 19 | K64: 82 | L64: 96 | M64: 66 | N64: 6 | O64: 129 | P64: 11 | Q64: 14 | R64: 0 | S64: 20 | T64: 1 | U64: 3 | V64: 0.284 | W64: 1133 | Z64: -4
A65: Jacque Jones | B65: MIN | C65: 154 | D65: 523 | E65: 552 | F65: 149 | G65: 99 | H65: 26 | I65: 5 | J65: 19 | K65: 66 | L65: 76 | M65: 26 | N65: 4 | O65: 111 | P65: 0 | Q65: 0 | R65: 1 | S65: 17 | T65: 7 | U65: 5 | V65: 0.285 | W65: 735 | Z65: 5
A66: Jason Giambi | B66: OAK | C66: 152 | D66: 510 | E66: 664 | F66: 170 | G66: 97 | H66: 29 | I66: 1 | J66: 43 | K66: 108 | L66: 137 | M66: 137 | N66: 6 | O66: 96 | P66: 9 | Q66: 8 | R66: 0 | S66: 9 | T66: 2 | U66: 0 | V66: 0.333 | W66: 818 | Z66: -4
A67: Jason Kendall | B67: PIT | C67: 152 | D67: 579 | E67: 678 | F67: 185 | G67: 132 | H67: 33 | I67: 6 | J67: 14 | K67: 112 | L67: 58 | M67: 79 | N67: 3 | O67: 79 | P67: 15 | Q67: 4 | R67: 1 | S67: 13 | T67: 22 | U67: 12 | V67: 0.32 | W67: 993 | Z67: -6
A68: Jason Varitek | B68: BOS | C68: 139 | D68: 448 | E68: 519 | F68: 111 | G68: 69 | H68: 31 | I68: 1 | J68: 10 | K68: 55 | L68: 65 | M68: 60 | N68: 3 | O68: 84 | P68: 6 | Q68: 4 | R68: 1 | S68: 16 | T68: 1 | U68: 1 | V68: 0.248 | W68: 217 | Z68: -1
A69: Javy Lopez | B69: ATL | C69: 134 | D69: 481 | E69: 525 | F69: 138 | G69: 92 | H69: 21 | I69: 1 | J69: 24 | K69: 60 | L69: 89 | M69: 35 | N69: 3 | O69: 80 | P69: 4 | Q69: 5 | R69: 0 | S69: 20 | T69: 0 | U69: 0 | V69: 0.287 | W69: 103 | Z69: 0
A70: Jay Bell | B70: ARI | C70: 149 | D70: 565 | E70: 649 | F70: 151 | G70: 97 | H70: 30 | I70: 6 | J70: 18 | K70: 87 | L70: 68 | M70: 70 | N70: 0 | O70: 88 | P70: 3 | Q70: 5 | R70: 6 | S70: 7 | T70: 7 | U70: 3 | V70: 0.267 | W70: 48 | Z70: -7
A71: Jay Payton | B71: NYM | C71: 149 | D71: 488 | E71: 529 | F71: 142 | G71: 101 | H71: 23 | I71: 1 | J71: 17 | K71: 63 | L71: 62 | M71: 30 | N71: 0 | O71: 60 | P71: 3 | Q71: 8 | R71: 0 | S71: 9 | T71: 5 | U71: 11 | V71: 0.291 | W71: 890 | Z71: 7
A72: Jeff Bagwell | B72: HOU NL | C72: 159 | D72: 590 | E72: 719 | F72: 183 | G72: 98 | H72: 37 | I72: 1 | J72: 47 | K72: 152 | L72: 132 | M72: 107 | N72: 11 | O72: 116 | P72: 15 | Q72: 7 | R72: 0 | S72: 19 | T72: 9 | U72: 6 | V72: 0.31 | W72: 547 | Z72: 0
A73: Jeff Cirillo | B73: COL | C73: 157 | D73: 598 | E73: 684 | F73: 195 | G73: 129 | H73: 53 | I73: 2 | J73: 11 | K73: 111 | L73: 115 | M73: 67 | N73: 4 | O73: 72 | P73: 6 | Q73: 12 | R73: 1 | S73: 19 | T73: 3 | U73: 4 | V73: 0.326 | W73: 1073 | Z73: 9
A74: Jeff Kent | B74: SFG | C74: 159 | D74: 587 | E74: 695 | F74: 196 | G74: 115 | H74: 41 | I74: 7 | J74: 33 | K74: 114 | L74: 125 | M74: 90 | N74: 6 | O74: 107 | P74: 9 | Q74: 9 | R74: 0 | S74: 17 | T74: 12 | U74: 9 | V74: 0.334 | W74: 1119 | Z74: 1
A75: Jeffrey Hammonds | B75: COL | C75: 122 | D75: 454 | E75: 511 | F75: 152 | G75: 106 | H75: 24 | I75: 2 | J75: 20 | K75: 94 | L75: 106 | M75: 44 | N75: 4 | O75: 83 | P75: 5 | Q75: 6 | R75: 2 | S75: 11 | T75: 14 | U75: 7 | V75: 0.335 | W75: 687 | Z75: -1
A76: Jermaine Dye | B76: KCR | C76: 157 | D76: 601 | E76: 679 | F76: 193 | G76: 117 | H76: 41 | I76: 2 | J76: 33 | K76: 107 | L76: 118 | M76: 69 | N76: 6 | O76: 99 | P76: 3 | Q76: 6 | R76: 0 | S76: 12 | T76: 0 | U76: 1 | V76: 0.321 | W76: 911 | Z76: 0
A77: Jeromy Burnitz | B77: MIL | C77: 161 | D77: 564 | E77: 686 | F77: 131 | G77: 69 | H77: 29 | I77: 2 | J77: 31 | K77: 91 | L77: 98 | M77: 99 | N77: 10 | O77: 121 | P77: 14 | Q77: 9 | R77: 0 | S77: 12 | T77: 6 | U77: 4 | V77: 0.232 | W77: 867 | Z77: 1
A78: Jim Edmonds | B78: STL | C78: 152 | D78: 525 | E78: 643 | F78: 155 | G78: 88 | H78: 25 | I78: 0 | J78: 42 | K78: 129 | L78: 108 | M78: 103 | N78: 3 | O78: 167 | P78: 6 | Q78: 8 | R78: 1 | S78: 5 | T78: 10 | U78: 3 | V78: 0.295 | W78: 1153 | Z78: 3
A79: Jim Thome | B79: CLE | C79: 158 | D79: 557 | E79: 684 | F79: 150 | G79: 79 | H79: 33 | I79: 1 | J79: 37 | K79: 106 | L79: 106 | M79: 118 | N79: 4 | O79: 171 | P79: 4 | Q79: 5 | R79: 0 | S79: 8 | T79: 1 | U79: 0 | V79: 0.269 | W79: 409 | Z79: 6
A80: Joe Randa | B80: KCR | C80: 158 | D80: 612 | E80: 665 | F80: 186 | G80: 138 | H80: 29 | I80: 4 | J80: 15 | K80: 88 | L80: 106 | M80: 36 | N80: 3 | O80: 66 | P80: 6 | Q80: 10 | R80: 1 | S80: 19 | T80: 6 | U80: 3 | V80: 0.304 | W80: 623 | Z80: 5
A81: John Olerud | B81: SEA | C81: 159 | D81: 565 | E81: 683 | F81: 161 | G81: 102 | H81: 45 | I81: 0 | J81: 14 | K81: 84 | L81: 103 | M81: 102 | N81: 11 | O81: 96 | P81: 4 | Q81: 10 | R81: 2 | S81: 17 | T81: 0 | U81: 2 | V81: 0.285 | W81: 1093 | Z81: 12
A82: Johnny Damon | B82: KCR | C82: 159 | D82: 655 | E82: 741 | F82: 214 | G82: 146 | H82: 42 | I82: 10 | J82: 16 | K82: 136 | L82: 88 | M82: 65 | N82: 4 | O82: 60 | P82: 1 | Q82: 12 | R82: 8 | S82: 7 | T82: 46 | U82: 9 | V82: 0.327 | W82: 185 | Z82: 6
A83: Jorge Posada | B83: NYY | C83: 151 | D83: 505 | E83: 624 | F83: 145 | G83: 81 | H83: 35 | I83: 1 | J83: 28 | K83: 92 | L83: 86 | M83: 107 | N83: 10 | O83: 151 | P83: 8 | Q83: 4 | R83: 0 | S83: 11 | T83: 2 | U83: 2 | V83: 0.287 | W83: 841 | Z83: 1
A84: Jose Cruz | B84: TOR | C84: 162 | D84: 603 | E84: 681 | F84: 146 | G84: 78 | H84: 32 | I84: 5 | J84: 31 | K84: 91 | L84: 76 | M84: 71 | N84: 3 | O84: 129 | P84: 2 | Q84: 3 | R84: 2 | S84: 11 | T84: 15 | U84: 5 | V84: 0.242 | W84: 1296 | Z84: 3
A85: Jose Offerman | B85: BOS | C85: 116 | D85: 451 | E85: 527 | F85: 115 | G85: 89 | H85: 14 | I85: 3 | J85: 9 | K85: 73 | L85: 41 | M85: 70 | N85: 0 | O85: 70 | P85: 1 | Q85: 3 | R85: 2 | S85: 9 | T85: 0 | U85: 8 | V85: 0.255 | W85: 205 | Z85: 1
A86: Jose Valentin | B86: CHW | C86: 144 | D86: 568 | E86: 648 | F86: 155 | G86: 87 | H86: 37 | I86: 6 | J86: 25 | K86: 107 | L86: 92 | M86: 59 | N86: 1 | O86: 106 | P86: 4 | Q86: 4 | R86: 13 | S86: 11 | T86: 19 | U86: 2 | V86: 0.273 | W86: 256 | Z86: 9
A87: Jose Vidro | B87: MON | C87: 153 | D87: 606 | E87: 663 | F87: 200 | G87: 123 | H87: 51 | I87: 2 | J87: 24 | K87: 101 | L87: 97 | M87: 49 | N87: 4 | O87: 69 | P87: 2 | Q87: 6 | R87: 0 | S87: 17 | T87: 5 | U87: 4 | V87: 0.33 | W87: 802 | Z87: -3
A88: Juan Encarnacion | B88: DET | C88: 141 | D88: 547 | E88: 590 | F88: 158 | G88: 113 | H88: 25 | I88: 6 | J88: 14 | K88: 75 | L88: 72 | M88: 29 | N88: 1 | O88: 90 | P88: 7 | Q88: 4 | R88: 3 | S88: 15 | T88: 16 | U88: 4 | V88: 0.289 | W88: 320 | Z88: -8
A89: Ken Griffey Jr. | B89: CIN | C89: 145 | D89: 520 | E89: 631 | F89: 141 | G89: 76 | H89: 22 | I89: 3 | J89: 40 | K89: 100 | L89: 118 | M89: 94 | N89: 17 | O89: 117 | P89: 9 | Q89: 8 | R89: 0 | S89: 7 | T89: 6 | U89: 4 | V89: 0.271 | W89: 327 | Z89: 11
A90: Kenny Lofton | B90: CLE | C90: 137 | D90: 543 | E90: 640 | F90: 151 | G90: 108 | H90: 23 | I90: 5 | J90: 15 | K90: 107 | L90: 73 | M90: 79 | N90: 3 | O90: 72 | P90: 4 | Q90: 8 | R90: 6 | S90: 11 | T90: 30 | U90: 7 | V90: 0.278 | W90: 246 | Z90: 4
A91: Kevin Young | B91: PIT | C91: 132 | D91: 496 | E91: 541 | F91: 128 | G91: 81 | H91: 27 | I91: 0 | J91: 20 | K91: 77 | L91: 88 | M91: 32 | N91: 1 | O91: 96 | P91: 8 | Q91: 5 | R91: 0 | S91: 15 | T91: 8 | U91: 3 | V91: 0.258 | W91: 1018 | Z91: -10
A92: Luis Alicea | B92: TEX | C92: 139 | D92: 540 | E92: 619 | F92: 159 | G92: 120 | H92: 25 | I92: 8 | J92: 6 | K92: 85 | L92: 63 | M92: 59 | N92: 1 | O92: 75 | P92: 5 | Q92: 7 | R92: 7 | S92: 13 | T92: 1 | U92: 3 | V92: 0.294 | W92: 584 | Z92: -10
A93: Luis Castillo | B93: FLA | C93: 136 | D93: 539 | E93: 626 | F93: 180 | G93: 158 | H93: 17 | I93: 3 | J93: 2 | K93: 101 | L93: 17 | M93: 78 | N93: 0 | O93: 86 | P93: 0 | Q93: 0 | R93: 9 | S93: 11 | T93: 62 | U93: 22 | V93: 0.334 | W93: 513 | Z93: -1
A94: Luis Gonzalez | B94: ARI | C94: 162 | D94: 618 | E94: 722 | F94: 192 | G94: 112 | H94: 47 | I94: 2 | J94: 31 | K94: 106 | L94: 114 | M94: 78 | N94: 6 | O94: 85 | P94: 12 | Q94: 12 | R94: 2 | S94: 12 | T94: 2 | U94: 4 | V94: 0.311 | W94: 55 | Z94: 5
A95: Magglio Ordonez | B95: CHW | C95: 153 | D95: 588 | E95: 665 | F95: 185 | G95: 116 | H95: 34 | I95: 3 | J95: 32 | K95: 102 | L95: 126 | M95: 60 | N95: 3 | O95: 64 | P95: 2 | Q95: 15 | R95: 0 | S95: 28 | T95: 18 | U95: 4 | V95: 0.315 | W95: 248 | Z95: -16
A96: Manny Ramirez | B96: CLE | C96: 118 | D96: 439 | E96: 532 | F96: 154 | G96: 80 | H96: 34 | I96: 2 | J96: 38 | K96: 92 | L96: 122 | M96: 86 | N96: 9 | O96: 117 | P96: 3 | Q96: 4 | R96: 0 | S96: 9 | T96: 1 | U96: 1 | V96: 0.351 | W96: 210 | Z96: -18
A97: Mark Grace | B97: CHC | C97: 143 | D97: 510 | E97: 621 | F97: 143 | G97: 90 | H97: 41 | I97: 1 | J97: 11 | K97: 75 | L97: 82 | M97: 95 | N97: 11 | O97: 28 | P97: 6 | Q97: 8 | R97: 2 | S97: 7 | T97: 1 | U97: 2 | V97: 0.28 | W97: 56 | Z97: 12
A98: Mark Grudzielanek | B98: LAD | C98: 148 | D98: 617 | E98: 676 | F98: 172 | G98: 124 | H98: 35 | I98: 6 | J98: 7 | K98: 101 | L98: 49 | M98: 45 | N98: 0 | O98: 81 | P98: 9 | Q98: 3 | R98: 2 | S98: 16 | T98: 12 | U98: 3 | V98: 0.279 | W98: 653 | Z98: -3
A99: Mark Kotsay | B99: FLA | C99: 152 | D99: 530 | E99: 578 | F99: 158 | G99: 110 | H99: 31 | I99: 5 | J99: 12 | K99: 87 | L99: 57 | M99: 42 | N99: 2 | O99: 46 | P99: 0 | Q99: 4 | R99: 2 | S99: 17 | T99: 19 | U99: 9 | V99: 0.298 | W99: 1042 | Z99: 10
A100: Mark McLemore | B100: SEA | C100: 138 | D100: 481 | E100: 578 | F100: 118 | G100: 91 | H100: 23 | I100: 1 | J100: 3 | K100: 72 | L100: 46 | M100: 81 | N100: 2 | O100: 78 | P100: 1 | Q100: 4 | R100: 11 | S100: 12 | T100: 30 | U100: 14 | V100: 0.245 | W100: 1088 | Z100: 5
A101: Mark Quinn | B101: KCR | C101: 135 | D101: 500 | E101: 544 | F101: 147 | G101: 92 | H101: 33 | I101: 2 | J101: 20 | K101: 76 | L101: 78 | M101: 35 | N101: 1 | O101: 91 | P101: 3 | Q101: 3 | R101: 3 | S101: 11 | T101: 5 | U101: 2 | V101: 0.294 | W101: 621 | Z101: 4
A102: Marquis Grissom | B102: MIL | C102: 146 | D102: 595 | E102: 640 | F102: 145 | G102: 111 | H102: 18 | I102: 2 | J102: 14 | K102: 67 | L102: 62 | M102: 39 | N102: 2 | O102: 99 | P102: 0 | Q102: 4 | R102: 2 | S102: 9 | T102: 20 | U102: 10 | V102: 0.244 | W102: 652 | Z102: -6
A103: Marvin Benard | B103: SFG | C103: 149 | D103: 560 | E103: 633 | F103: 147 | G103: 102 | H103: 27 | I103: 6 | J103: 12 | K103: 102 | L103: 55 | M103: 63 | N103: 0 | O103: 97 | P103: 6 | Q103: 2 | R103: 2 | S103: 4 | T103: 22 | U103: 7 | V103: 0.263 | W103: 1382 | Z103: 6
A104: Matt Lawton | B104: MIN | C104: 156 | D104: 561 | E104: 664 | F104: 171 | G104: 112 | H104: 44 | I104: 2 | J104: 13 | K104: 84 | L104: 88 | M104: 91 | N104: 8 | O104: 63 | P104: 7 | Q104: 5 | R104: 0 | S104: 10 | T104: 23 | U104: 7 | V104: 0.305 | W104: 390 | Z104: -11
A105: Matt Stairs | B105: OAK | C105: 143 | D105: 476 | E105: 562 | F105: 108 | G105: 61 | H105: 26 | I105: 0 | J105: 21 | K105: 74 | L105: 81 | M105: 78 | N105: 4 | O105: 122 | P105: 1 | Q105: 6 | R105: 1 | S105: 7 | T105: 5 | U105: 2 | V105: 0.227 | W105: 1384 | Z105: -8
A106: Miguel Tejada | B106: OAK | C106: 160 | D106: 607 | E106: 681 | F106: 167 | G106: 104 | H106: 32 | I106: 1 | J106: 30 | K106: 105 | L106: 115 | M106: 66 | N106: 6 | O106: 102 | P106: 4 | Q106: 2 | R106: 2 | S106: 15 | T106: 6 | U106: 0 | V106: 0.275 | W106: 941 | Z106: -3
A107: Mike Bordick | B107: - - - | C107: 156 | D107: 583 | E107: 644 | F107: 166 | G107: 115 | H107: 30 | I107: 1 | J107: 20 | K107: 88 | L107: 80 | M107: 49 | N107: 0 | O107: 99 | P107: 3 | Q107: 5 | R107: 4 | S107: 16 | T107: 9 | U107: 6 | V107: 0.285 | W107: 129 | Z107: -8
A108: Mike Cameron | B108: SEA | C108: 155 | D108: 543 | E108: 643 | F108: 145 | G108: 94 | H108: 28 | I108: 4 | J108: 19 | K108: 96 | L108: 78 | M108: 78 | N108: 0 | O108: 133 | P108: 9 | Q108: 6 | R108: 7 | S108: 10 | T108: 24 | U108: 7 | V108: 0.267 | W108: 1070 | Z108: 3
A109: Mike Lamb | B109: TEX | C109: 138 | D109: 493 | E109: 538 | F109: 137 | G109: 104 | H109: 25 | I109: 2 | J109: 6 | K109: 65 | L109: 47 | M109: 34 | N109: 6 | O109: 60 | P109: 4 | Q109: 2 | R109: 5 | S109: 10 | T109: 0 | U109: 2 | V109: 0.278 | W109: 1258 | Z109: -16
A110: Mike Lansing | B110: - - - | C110: 139 | D110: 504 | E110: 548 | F110: 121 | G110: 86 | H110: 18 | I110: 6 | J110: 11 | K110: 72 | L110: 60 | M110: 38 | N110: 2 | O110: 75 | P110: 0 | Q110: 3 | R110: 3 | S110: 20 | T110: 8 | U110: 2 | V110: 0.24 | W110: 1007334 | Z110: 0
A111: Mike Lowell | B111: FLA | C111: 140 | D111: 508 | E111: 583 | F111: 137 | G111: 77 | H111: 38 | I111: 0 | J111: 22 | K111: 73 | L111: 91 | M111: 54 | N111: 4 | O111: 75 | P111: 9 | Q111: 11 | R111: 0 | S111: 4 | T111: 4 | U111: 0 | V111: 0.27 | W111: 527 | Z111: 1
A112: Mike Piazza | B112: NYM | C112: 136 | D112: 482 | E112: 545 | F112: 156 | G112: 92 | H112: 26 | I112: 0 | J112: 38 | K112: 90 | L112: 113 | M112: 58 | N112: 10 | O112: 69 | P112: 3 | Q112: 2 | R112: 0 | S112: 15 | T112: 4 | U112: 2 | V112: 0.324 | W112: 893 | Z112: -3
A113: Mike Sweeney | B113: KCR | C113: 159 | D113: 618 | E113: 717 | F113: 206 | G113: 147 | H113: 30 | I113: 0 | J113: 29 | K113: 105 | L113: 144 | M113: 71 | N113: 5 | O113: 67 | P113: 15 | Q113: 13 | R113: 0 | S113: 15 | T113: 8 | U113: 3 | V113: 0.333 | W113: 634 | Z113: -5
A114: Mo Vaughn | B114: ANA | C114: 161 | D114: 614 | E114: 712 | F114: 167 | G114: 100 | H114: 31 | I114: 0 | J114: 36 | K114: 93 | L114: 117 | M114: 79 | N114: 11 | O114: 181 | P114: 14 | Q114: 5 | R114: 0 | S114: 14 | T114: 2 | U114: 0 | V114: 0.272 | W114: 899 | Z114: -7
A115: Moises Alou | B115: HOU NL | C115: 126 | D115: 454 | E115: 517 | F115: 161 | G115: 101 | H115: 28 | I115: 2 | J115: 30 | K115: 82 | L115: 114 | M115: 52 | N115: 4 | O115: 45 | P115: 2 | Q115: 9 | R115: 0 | S115: 21 | T115: 3 | U115: 3 | V115: 0.355 | W115: 261 | Z115: -14
A116: Neifi Perez | B116: COL | C116: 162 | D116: 651 | E116: 699 | F116: 187 | G116: 127 | H116: 39 | I116: 11 | J116: 10 | K116: 92 | L116: 71 | M116: 30 | N116: 6 | O116: 63 | P116: 0 | Q116: 11 | R116: 7 | S116: 9 | T116: 3 | U116: 6 | V116: 0.287 | W116: 620 | Z116: 13
A117: Nomar Garciaparra | B117: BOS | C117: 140 | D117: 529 | E117: 599 | F117: 197 | G117: 122 | H117: 51 | I117: 3 | J117: 21 | K117: 104 | L117: 96 | M117: 61 | N117: 20 | O117: 50 | P117: 2 | Q117: 7 | R117: 0 | S117: 8 | T117: 5 | U117: 2 | V117: 0.372 | W117: 190 | Z117: 9
A118: Omar Vizquel | B118: CLE | C118: 156 | D118: 613 | E118: 717 | F118: 176 | G118: 139 | H118: 27 | I118: 3 | J118: 7 | K118: 101 | L118: 66 | M118: 87 | N118: 0 | O118: 72 | P118: 5 | Q118: 5 | R118: 7 | S118: 13 | T118: 22 | U118: 10 | V118: 0.287 | W118: 411 | Z118: -1
A119: Pat Meares | B119: PIT | C119: 132 | D119: 462 | E119: 514 | F119: 111 | G119: 74 | H119: 22 | I119: 2 | J119: 13 | K119: 55 | L119: 47 | M119: 36 | N119: 6 | O119: 91 | P119: 8 | Q119: 3 | R119: 5 | S119: 13 | T119: 1 | U119: 0 | V119: 0.24 | W119: 1008712 | Z119: -3
A120: Paul Konerko | B120: CHW | C120: 143 | D120: 524 | E120: 586 | F120: 156 | G120: 103 | H120: 31 | I120: 1 | J120: 21 | K120: 84 | L120: 97 | M120: 47 | N120: 0 | O120: 72 | P120: 10 | Q120: 5 | R120: 0 | S120: 22 | T120: 1 | U120: 0 | V120: 0.298 | W120: 242 | Z120: -4
A121: Paul O'Neill | B121: NYY | C121: 142 | D121: 566 | E121: 628 | F121: 160 | G121: 116 | H121: 26 | I121: 0 | J121: 18 | K121: 79 | L121: 100 | M121: 51 | N121: 2 | O121: 90 | P121: 0 | Q121: 11 | R121: 0 | S121: 17 | T121: 14 | U121: 9 | V121: 0.283 | W121: 1009818 | Z121: 7
A122: Peter Bergeron | B122: MON | C122: 148 | D122: 518 | E122: 592 | F122: 127 | G122: 90 | H122: 25 | I122: 7 | J122: 5 | K122: 80 | L122: 31 | M122: 58 | N122: 0 | O122: 100 | P122: 0 | Q122: 2 | R122: 14 | S122: 4 | T122: 11 | U122: 13 | V122: 0.245 | W122: 763 | Z122: -9
A123: Phil Nevin | B123: SDP | C123: 143 | D123: 538 | E123: 605 | F123: 163 | G123: 97 | H123: 34 | I123: 1 | J123: 31 | K123: 87 | L123: 107 | M123: 59 | N123: 9 | O123: 121 | P123: 4 | Q123: 4 | R123: 0 | S123: 17 | T123: 2 | U123: 0 | V123: 0.303 | W123: 1049 | Z123: -1
A124: Pokey Reese | B124: CIN | C124: 135 | D124: 518 | E124: 577 | F124: 132 | G124: 94 | H124: 20 | I124: 6 | J124: 12 | K124: 76 | L124: 46 | M124: 45 | N124: 5 | O124: 86 | P124: 6 | Q124: 5 | R124: 3 | S124: 8 | T124: 29 | U124: 3 | V124: 0.255 | W124: 1004 | Z124: 16
A125: Preston Wilson | B125: FLA | C125: 161 | D125: 605 | E125: 674 | F125: 160 | G125: 91 | H125: 35 | I125: 3 | J125: 31 | K125: 94 | L125: 121 | M125: 55 | N125: 1 | O125: 187 | P125: 8 | Q125: 6 | R125: 0 | S125: 11 | T125: 36 | U125: 14 | V125: 0.264 | W125: 545 | Z125: -10
A126: Rafael Furcal | B126: ATL | C126: 131 | D126: 455 | E126: 542 | F126: 134 | G126: 106 | H126: 20 | I126: 4 | J126: 4 | K126: 87 | L126: 37 | M126: 73 | N126: 0 | O126: 80 | P126: 3 | Q126: 2 | R126: 9 | S126: 2 | T126: 40 | U126: 14 | V126: 0.295 | W126: 88 | Z126: 6
A127: Rafael Palmeiro | B127: TEX | C127: 158 | D127: 565 | E127: 678 | F127: 163 | G127: 92 | H127: 29 | I127: 3 | J127: 39 | K127: 102 | L127: 120 | M127: 103 | N127: 17 | O127: 77 | P127: 3 | Q127: 7 | R127: 0 | S127: 14 | T127: 2 | U127: 1 | V127: 0.288 | W127: 1266 | Z127: -5
A128: Randy Velarde | B128: OAK | C128: 122 | D128: 485 | E128: 546 | F128: 135 | G128: 100 | H128: 23 | I128: 0 | J128: 12 | K128: 82 | L128: 41 | M128: 54 | N128: 0 | O128: 95 | P128: 3 | Q128: 1 | R128: 3 | S128: 15 | T128: 9 | U128: 3 | V128: 0.278 | W128: 942 | Z128: 3
A129: Ray Durham | B129: CHW | C129: 151 | D129: 614 | E129: 709 | F129: 172 | G129: 111 | H129: 35 | I129: 9 | J129: 17 | K129: 121 | L129: 75 | M129: 75 | N129: 0 | O129: 105 | P129: 7 | Q129: 8 | R129: 5 | S129: 13 | T129: 25 | U129: 13 | V129: 0.28 | W129: 230 | Z129: -2
A130: Rey Sanchez | B130: KCR | C130: 143 | D130: 509 | E130: 555 | F130: 139 | G130: 118 | H130: 18 | I130: 2 | J130: 1 | K130: 68 | L130: 38 | M130: 28 | N130: 0 | O130: 55 | P130: 4 | Q130: 3 | R130: 11 | S130: 17 | T130: 7 | U130: 3 | V130: 0.273 | W130: 213 | Z130: 22
A131: Rich Aurilia | B131: SFG | C131: 141 | D131: 509 | E131: 571 | F131: 138 | G131: 92 | H131: 24 | I131: 2 | J131: 20 | K131: 67 | L131: 79 | M131: 54 | N131: 2 | O131: 90 | P131: 0 | Q131: 4 | R131: 4 | S131: 15 | T131: 1 | U131: 2 | V131: 0.271 | W131: 1106 | Z131: 2
A132: Richard Hidalgo | B132: HOU NL | C132: 153 | D132: 558 | E132: 644 | F132: 175 | G132: 86 | H132: 42 | I132: 3 | J132: 44 | K132: 118 | L132: 122 | M132: 56 | N132: 3 | O132: 110 | P132: 21 | Q132: 9 | R132: 0 | S132: 13 | T132: 13 | U132: 6 | V132: 0.314 | W132: 561 | Z132: 13
A133: Richie Sexson | B133: - - - | C133: 148 | D133: 537 | E133: 607 | F133: 146 | G133: 85 | H133: 30 | I133: 1 | J133: 30 | K133: 89 | L133: 91 | M133: 59 | N133: 2 | O133: 159 | P133: 7 | Q133: 4 | R133: 0 | S133: 11 | T133: 2 | U133: 0 | V133: 0.272 | W133: 709 | Z133: -3
A134: Rickey Henderson | B134: - - - | C134: 123 | D134: 420 | E134: 519 | F134: 98 | G134: 78 | H134: 14 | I134: 2 | J134: 4 | K134: 75 | L134: 32 | M134: 88 | N134: 1 | O134: 75 | P134: 4 | Q134: 4 | R134: 3 | S134: 11 | T134: 36 | U134: 11 | V134: 0.233 | W134: 194 | Z134: -1
A135: Ricky Gutierrez | B135: CHC | C135: 125 | D135: 449 | E135: 542 | F135: 124 | G135: 92 | H135: 19 | I135: 2 | J135: 11 | K135: 73 | L135: 56 | M135: 66 | N135: 0 | O135: 58 | P135: 7 | Q135: 4 | R135: 16 | S135: 10 | T135: 8 | U135: 2 | V135: 0.276 | W135: 387 | Z135: -12
A136: Ricky Ledee | B136: - - - | C136: 137 | D136: 467 | E136: 531 | F136: 110 | G136: 73 | H136: 19 | I136: 5 | J136: 13 | K136: 59 | L136: 77 | M136: 59 | N136: 4 | O136: 98 | P136: 2 | Q136: 3 | R136: 0 | S136: 17 | T136: 13 | U136: 6 | V136: 0.236 | W136: 1407 | Z136: -2
A137: Roberto Alomar | B137: CLE | C137: 155 | D137: 610 | E137: 697 | F137: 189 | G137: 128 | H137: 40 | I137: 2 | J137: 19 | K137: 111 | L137: 89 | M137: 64 | N137: 4 | O137: 82 | P137: 6 | Q137: 6 | R137: 11 | S137: 19 | T137: 39 | U137: 4 | V137: 0.31 | W137: 860 | Z137: 7
A138: Robin Ventura | B138: NYM | C138: 141 | D138: 469 | E138: 551 | F138: 109 | G138: 61 | H138: 23 | I138: 1 | J138: 24 | K138: 61 | L138: 84 | M138: 75 | N138: 12 | O138: 91 | P138: 2 | Q138: 4 | R138: 1 | S138: 14 | T138: 3 | U138: 5 | V138: 0.232 | W138: 854 | Z138: 5
A139: Ron Coomer | B139: MIN | C139: 140 | D139: 544 | E139: 589 | F139: 147 | G139: 101 | H139: 29 | I139: 1 | J139: 16 | K139: 64 | L139: 82 | M139: 36 | N139: 2 | O139: 50 | P139: 4 | Q139: 5 | R139: 0 | S139: 25 | T139: 2 | U139: 0 | V139: 0.27 | W139: 816 | Z139: 2
A140: Ronnie Belliard | B140: MIL | C140: 152 | D140: 571 | E140: 667 | F140: 150 | G140: 103 | H140: 30 | I140: 9 | J140: 8 | K140: 83 | L140: 54 | M140: 82 | N140: 4 | O140: 84 | P140: 3 | Q140: 7 | R140: 4 | S140: 12 | T140: 7 | U140: 5 | V140: 0.263 | W140: 677 | Z140: 4
A141: Royce Clayton | B141: TEX | C141: 148 | D141: 513 | E141: 573 | F141: 124 | G141: 84 | H141: 21 | I141: 5 | J141: 14 | K141: 70 | L141: 54 | M141: 42 | N141: 1 | O141: 92 | P141: 3 | Q141: 3 | R141: 12 | S141: 21 | T141: 11 | U141: 7 | V141: 0.242 | W141: 226 | Z141: -9
A142: Ryan Klesko | B142: SDP | C142: 145 | D142: 494 | E142: 590 | F142: 140 | G142: 79 | H142: 33 | I142: 2 | J142: 26 | K142: 88 | L142: 92 | M142: 91 | N142: 9 | O142: 81 | P142: 1 | Q142: 4 | R142: 0 | S142: 10 | T142: 23 | U142: 7 | V142: 0.283 | W142: 1041 | Z142: -4
A143: Sammy Sosa | B143: CHC | C143: 156 | D143: 604 | E143: 705 | F143: 193 | G143: 104 | H143: 38 | I143: 1 | J143: 50 | K143: 106 | L143: 138 | M143: 91 | N143: 19 | O143: 168 | P143: 2 | Q143: 8 | R143: 0 | S143: 12 | T143: 7 | U143: 4 | V143: 0.32 | W143: 302 | Z143: -5
A144: Scott Brosius | B144: NYY | C144: 135 | D144: 470 | E144: 519 | F144: 108 | G144: 72 | H144: 20 | I144: 0 | J144: 16 | K144: 57 | L144: 64 | M144: 45 | N144: 1 | O144: 73 | P144: 2 | Q144: 2 | R144: 0 | S144: 17 | T144: 0 | U144: 3 | V144: 0.23 | W144: 1001477 | Z144: 2
A145: Scott Rolen | B145: PHI | C145: 128 | D145: 483 | E145: 541 | F145: 144 | G145: 80 | H145: 32 | I145: 6 | J145: 26 | K145: 88 | L145: 89 | M145: 51 | N145: 9 | O145: 99 | P145: 5 | Q145: 2 | R145: 0 | S145: 4 | T145: 8 | U145: 1 | V145: 0.298 | W145: 970 | Z145: 8
A146: Sean Casey | B146: CIN | C146: 133 | D146: 480 | E146: 545 | F146: 151 | G146: 96 | H146: 33 | I146: 2 | J146: 20 | K146: 69 | L146: 85 | M146: 52 | N146: 4 | O146: 80 | P146: 7 | Q146: 6 | R146: 0 | S146: 16 | T146: 1 | U146: 0 | V146: 0.315 | W146: 314 | Z146: 12
A147: Shannon Stewart | B147: TOR | C147: 136 | D147: 583 | E147: 631 | F147: 186 | G147: 117 | H147: 43 | I147: 5 | J147: 21 | K147: 107 | L147: 69 | M147: 37 | N147: 1 | O147: 79 | P147: 6 | Q147: 4 | R147: 1 | S147: 12 | T147: 20 | U147: 5 | V147: 0.319 | W147: 1322 | Z147: 17
A148: Shawn Green | B148: LAD | C148: 162 | D148: 610 | E148: 714 | F148: 164 | G148: 92 | H148: 44 | I148: 4 | J148: 24 | K148: 98 | L148: 99 | M148: 90 | N148: 9 | O148: 121 | P148: 8 | Q148: 6 | R148: 0 | S148: 18 | T148: 24 | U148: 5 | V148: 0.269 | W148: 651 | Z148: -1
A149: Steve Finley | B149: ARI | C149: 152 | D149: 539 | E149: 623 | F149: 151 | G149: 84 | H149: 27 | I149: 5 | J149: 35 | K149: 100 | L149: 96 | M149: 65 | N149: 7 | O149: 87 | P149: 8 | Q149: 9 | R149: 2 | S149: 9 | T149: 12 | U149: 6 | V149: 0.28 | W149: 54 | Z149: -3
A150: Terrence Long | B150: OAK | C150: 138 | D150: 584 | E150: 631 | F150: 168 | G150: 112 | H150: 34 | I150: 4 | J150: 18 | K150: 104 | L150: 80 | M150: 43 | N150: 1 | O150: 77 | P150: 1 | Q150: 3 | R150: 0 | S150: 18 | T150: 5 | U150: 0 | V150: 0.288 | W150: 927 | Z150: -6
A151: Tim Salmon | B151: ANA | C151: 158 | D151: 568 | E151: 680 | F151: 165 | G151: 93 | H151: 36 | I151: 2 | J151: 34 | K151: 108 | L151: 97 | M151: 104 | N151: 5 | O151: 139 | P151: 6 | Q151: 2 | R151: 0 | S151: 14 | T151: 0 | U151: 2 | V151: 0.29 | W151: 32 | Z151: -1
A152: Tino Martinez | B152: NYY | C152: 155 | D152: 569 | E152: 632 | F152: 147 | G152: 90 | H152: 37 | I152: 4 | J152: 16 | K152: 69 | L152: 91 | M152: 52 | N152: 9 | O152: 74 | P152: 8 | Q152: 3 | R152: 0 | S152: 16 | T152: 4 | U152: 1 | V152: 0.258 | W152: 1168 | Z152: 1
A153: Todd Helton | B153: COL | C153: 160 | D153: 580 | E153: 697 | F153: 216 | G153: 113 | H153: 59 | I153: 2 | J153: 42 | K153: 138 | L153: 147 | M153: 103 | N153: 22 | O153: 61 | P153: 4 | Q153: 10 | R153: 0 | S153: 12 | T153: 5 | U153: 3 | V153: 0.372 | W153: 432 | Z153: 18
A154: Todd Zeile | B154: NYM | C154: 153 | D154: 544 | E154: 623 | F154: 146 | G154: 85 | H154: 36 | I154: 3 | J154: 22 | K154: 67 | L154: 79 | M154: 74 | N154: 4 | O154: 85 | P154: 2 | Q154: 3 | R154: 0 | S154: 15 | T154: 3 | U154: 4 | V154: 0.268 | W154: 457 | Z154: 10
A155: Tom Goodwin | B155: - - - | C155: 147 | D155: 528 | E155: 606 | F155: 139 | G155: 113 | H155: 11 | I155: 9 | J155: 6 | K155: 94 | L155: 58 | M155: 68 | N155: 2 | O155: 117 | P155: 1 | Q155: 4 | R155: 5 | S155: 7 | T155: 55 | U155: 10 | V155: 0.263 | W155: 1114 | Z155: 13
A156: Tony Batista | B156: TOR | C156: 154 | D156: 620 | E156: 664 | F156: 163 | G156: 88 | H156: 32 | I156: 2 | J156: 41 | K156: 96 | L156: 114 | M156: 35 | N156: 1 | O156: 121 | P156: 6 | Q156: 3 | R156: 0 | S156: 15 | T156: 5 | U156: 4 | V156: 0.263 | W156: 124 | Z156: 3
A157: Tony Womack | B157: ARI | C157: 146 | D157: 617 | E157: 659 | F157: 167 | G157: 125 | H157: 21 | I157: 14 | J157: 7 | K157: 95 | L157: 57 | M157: 30 | N157: 0 | O157: 74 | P157: 5 | Q157: 5 | R157: 2 | S157: 6 | T157: 45 | U157: 11 | V157: 0.271 | W157: 78 | Z157: -6
A158: Travis Fryman | B158: CLE | C158: 155 | D158: 574 | E158: 658 | F158: 184 | G158: 120 | H158: 38 | I158: 4 | J158: 22 | K158: 93 | L158: 106 | M158: 73 | N158: 2 | O158: 111 | P158: 1 | Q158: 10 | R158: 0 | S158: 15 | T158: 1 | U158: 1 | V158: 0.321 | W158: 385 | Z158: 0
A159: Troy Glaus | B159: ANA | C159: 159 | D159: 563 | E159: 678 | F159: 160 | G159: 75 | H159: 37 | I159: 1 | J159: 47 | K159: 120 | L159: 102 | M159: 112 | N159: 6 | O159: 163 | P159: 2 | Q159: 1 | R159: 0 | S159: 14 | T159: 14 | U159: 11 | V159: 0.284 | W159: 15 | Z159: 17
A160: Troy O'Leary | B160: BOS | C160: 138 | D160: 513 | E160: 563 | F160: 134 | G160: 87 | H160: 30 | I160: 4 | J160: 13 | K160: 68 | L160: 70 | M160: 44 | N160: 2 | O160: 76 | P160: 2 | Q160: 4 | R160: 0 | S160: 12 | T160: 0 | U160: 2 | V160: 0.261 | W160: 789 | Z160: 14
A161: Vladimir Guerrero | B161: MON | C161: 154 | D161: 571 | E161: 641 | F161: 197 | G161: 114 | H161: 28 | I161: 11 | J161: 44 | K161: 101 | L161: 123 | M161: 58 | N161: 23 | O161: 74 | P161: 8 | Q161: 4 | R161: 0 | S161: 15 | T161: 9 | U161: 10 | V161: 0.345 | W161: 778 | Z161: 3
A162: Warren Morris | B162: PIT | C162: 144 | D162: 528 | E162: 606 | F162: 137 | G162: 101 | H162: 31 | I162: 2 | J162: 3 | K162: 68 | L162: 43 | M162: 65 | N162: 3 | O162: 78 | P162: 2 | Q162: 3 | R162: 8 | S162: 7 | T162: 7 | U162: 10 | V162: 0.259 | W162: 1424 | Z162: 0
A163: Wil Cordero | B163: - - - | C163: 127 | D163: 496 | E163: 536 | F163: 137 | G163: 81 | H163: 35 | I163: 5 | J163: 16 | K163: 64 | L163: 68 | M163: 32 | N163: 1 | O163: 76 | P163: 7 | Q163: 1 | R163: 0 | S163: 18 | T163: 1 | U163: 2 | V163: 0.276 | W163: 770 | Z163: -18
A164: Will Clark | B164: - - - | C164: 130 | D164: 427 | E164: 507 | F164: 136 | G164: 83 | H164: 30 | I164: 2 | J164: 21 | K164: 78 | L164: 70 | M164: 69 | N164: 3 | O164: 69 | P164: 7 | Q164: 4 | R164: 0 | S164: 7 | T164: 5 | U164: 2 | V164: 0.319 | W164: 1002318 | Z164: 0

Sheet 2001 (hidden)
A1: Name | B1: Team | C1: G | D1: AB | E1: PA | F1: H | G1: 1B | H1: 2B | I1: 3B | J1: HR | K1: R | L1: RBI | M1: BB | N1: IBB | O1: SO | P1: HBP | Q1: SF | R1: SH | S1: GDP | T1: SB | U1: CS | V1: AVG | W1: Column1 | X1: playerid | Y1: Column2 | Z1: Fielding
A2: Adam Kennedy | B2: ANA | C2: 137 | D2: 478 | E2: 532 | F2: 129 | G2: 95 | H2: 25 | I2: 3 | J2: 6 | K2: 48 | L2: 40 | M2: 27 | N2: 3 | O2: 71 | P2: 11 | Q2: 9 | R2: 7 | S2: 7 | T2: 12 | U2: 7 | V2: 0.27 | X2: 19 | Z2: -5
A3: Adrian Beltre | B3: LAD | C3: 126 | D3: 475 | E3: 515 | F3: 126 | G3: 87 | H3: 22 | I3: 4 | J3: 13 | K3: 59 | L3: 60 | M3: 28 | N3: 1 | O3: 82 | P3: 5 | Q3: 5 | R3: 2 | S3: 9 | T3: 13 | U3: 4 | V3: 0.265 | X3: 639 | Z3: 6
A4: Albert Pujols | B4: STL | C4: 161 | D4: 590 | E4: 676 | F4: 194 | G4: 106 | H4: 47 | I4: 4 | J4: 37 | K4: 112 | L4: 130 | M4: 69 | N4: 6 | O4: 93 | P4: 9 | Q4: 7 | R4: 1 | S4: 21 | T4: 1 | U4: 3 | V4: 0.329 | X4: 1177 | Z4: 4
A5: Alex Gonzalez | B5: FLA | C5: 145 | D5: 515 | E5: 561 | F5: 129 | G5: 83 | H5: 36 | I5: 1 | J5: 9 | K5: 57 | L5: 48 | M5: 30 | N5: 6 | O5: 107 | P5: 10 | Q5: 3 | R5: 3 | S5: 13 | T5: 2 | U5: 2 | V5: 0.25 | X5: 520 | Z5: 5
A6: Alex Gonzalez | B6: TOR | C6: 154 | D6: 636 | E6: 703 | F6: 161 | G6: 114 | H6: 25 | I6: 5 | J6: 17 | K6: 79 | L6: 76 | M6: 43 | N6: 0 | O6: 149 | P6: 7 | Q6: 10 | R6: 7 | S6: 16 | T6: 18 | U6: 11 | V6: 0.253 | X6: 281 | Z6: -9
A7: Alex Ochoa | B7: - - - | C7: 148 | D7: 536 | E7: 593 | F7: 148 | G7: 103 | H7: 30 | I7: 7 | J7: 8 | K7: 73 | L7: 52 | M7: 45 | N7: 0 | O7: 76 | P7: 4 | Q7: 4 | R7: 4 | S7: 10 | T7: 17 | U7: 13 | V7: 0.276 | X7: 700 | Z7: 12
A8: Alex Rodriguez | B8: TEX | C8: 162 | D8: 632 | E8: 732 | F8: 201 | G8: 114 | H8: 34 | I8: 1 | J8: 52 | K8: 133 | L8: 135 | M8: 75 | N8: 6 | O8: 131 | P8: 16 | Q8: 9 | R8: 0 | S8: 17 | T8: 18 | U8: 3 | V8: 0.318 | X8: 1274 | Z8: 14
A9: Alfonso Soriano | B9: NYY | C9: 158 | D9: 574 | E9: 614 | F9: 154 | G9: 99 | H9: 34 | I9: 3 | J9: 18 | K9: 77 | L9: 73 | M9: 29 | N9: 0 | O9: 125 | P9: 3 | Q9: 5 | R9: 3 | S9: 7 | T9: 43 | U9: 14 | V9: 0.268 | X9: 847 | Z9: 6
A10: Andruw Jones | B10: ATL | C10: 161 | D10: 625 | E10: 693 | F10: 157 | G10: 96 | H10: 25 | I10: 2 | J10: 34 | K10: 104 | L10: 104 | M10: 56 | N10: 3 | O10: 142 | P10: 3 | Q10: 9 | R10: 0 | S10: 10 | T10: 11 | U10: 4 | V10: 0.251 | X10: 96 | Z10: 5
A11: Aramis Ramirez | B11: PIT | C11: 158 | D11: 603 | E11: 655 | F11: 181 | G11: 107 | H11: 40 | I11: 0 | J11: 34 | K11: 83 | L11: 112 | M11: 40 | N11: 4 | O11: 100 | P11: 8 | Q11: 4 | R11: 0 | S11: 9 | T11: 5 | U11: 4 | V11: 0.3 | X11: 1002 | Z11: 7
A12: B.J. Surhoff | B12: ATL | C12: 141 | D12: 484 | E12: 531 | F12: 131 | G12: 87 | H12: 33 | I12: 1 | J12: 10 | K12: 68 | L12: 58 | M12: 38 | N12: 5 | O12: 48 | P12: 1 | Q12: 7 | R12: 1 | S12: 5 | T12: 9 | U12: 3 | V12: 0.271 | X12: 117 | Z12: -3
A13: Barry Bonds | B13: SFG | C13: 153 | D13: 476 | E13: 664 | F13: 156 | G13: 49 | H13: 32 | I13: 2 | J13: 73 | K13: 129 | L13: 137 | M13: 177 | N13: 35 | O13: 93 | P13: 9 | Q13: 2 | R13: 0 | S13: 5 | T13: 13 | U13: 3 | V13: 0.328 | X13: 1109 | Z13: 5
A14: Ben Davis | B14: SDP | C14: 138 | D14: 448 | E14: 526 | F14: 107 | G14: 76 | H14: 20 | I14: 0 | J14: 11 | K14: 56 | L14: 57 | M14: 66 | N14: 5 | O14: 112 | P14: 4 | Q14: 7 | R14: 1 | S14: 13 | T14: 4 | U14: 4 | V14: 0.239 | X14: 1074 | Z14: -5
A15: Ben Grieve | B15: TBD | C15: 154 | D15: 542 | E15: 639 | F15: 143 | G15: 100 | H15: 30 | I15: 2 | J15: 11 | K15: 72 | L15: 72 | M15: 87 | N15: 2 | O15: 159 | P15: 8 | Q15: 2 | R15: 0 | S15: 13 | T15: 7 | U15: 1 | V15: 0.264 | X15: 1209 | Z15: 12
A16: Benito Santiago | B16: SFG | C16: 133 | D16: 477 | E16: 515 | F16: 125 | G16: 90 | H16: 25 | I16: 4 | J16: 6 | K16: 39 | L16: 45 | M16: 23 | N16: 0 | O16: 78 | P16: 2 | Q16: 6 | R16: 7 | S16: 19 | T16: 5 | U16: 4 | V16: 0.262 | X16: 1130 | Z16: 5
A17: Bernie Williams | B17: NYY | C17: 146 | D17: 540 | E17: 633 | F17: 166 | G17: 102 | H17: 38 | I17: 0 | J17: 26 | K17: 102 | L17: 94 | M17: 78 | N17: 11 | O17: 67 | P17: 6 | Q17: 9 | R17: 0 | S17: 15 | T17: 11 | U17: 5 | V17: 0.307 | X17: 857 | Z17: -13
A18: Bobby Abreu | B18: PHI | C18: 162 | D18: 588 | E18: 704 | F18: 170 | G18: 87 | H18: 48 | I18: 4 | J18: 31 | K18: 118 | L18: 110 | M18: 106 | N18: 11 | O18: 137 | P18: 1 | Q18: 9 | R18: 0 | S18: 13 | T18: 36 | U18: 14 | V18: 0.289 | X18: 945 | Z18: 15
A19: Bobby Higginson | B19: DET | C19: 147 | D19: 541 | E19: 634 | F19: 150 | G19: 99 | H19: 28 | I19: 6 | J19: 17 | K19: 84 | L19: 71 | M19: 80 | N19: 3 | O19: 65 | P19: 2 | Q19: 9 | R19: 1 | S19: 8 | T19: 20 | U19: 12 | V19: 0.277 | X19: 469 | Z19: 16
A20: Brad Fullmer | B20: TOR | C20: 146 | D20: 522 | E20: 573 | F20: 143 | G20: 92 | H20: 31 | I20: 2 | J20: 18 | K20: 71 | L20: 83 | M20: 38 | N20: 8 | O20: 88 | P20: 6 | Q20: 7 | R20: 0 | S20: 13 | T20: 5 | U20: 2 | V20: 0.274 | X20: 13 | Z20: 10
A21: Bret Boone | B21: SEA | C21: 158 | D21: 623 | E21: 690 | F21: 206 | G21: 129 | H21: 37 | I21: 3 | J21: 37 | K21: 118 | L21: 141 | M21: 40 | N21: 5 | O21: 110 | P21: 9 | Q21: 13 | R21: 5 | S21: 11 | T21: 5 | U21: 5 | V21: 0.331 | X21: 1067 | Z21: -8
A22: Brian Giles | B22: PIT | C22: 160 | D22: 576 | E22: 674 | F22: 178 | G22: 97 | H22: 37 | I22: 7 | J22: 37 | K22: 116 | L22: 95 | M22: 90 | N22: 14 | O22: 67 | P22: 4 | Q22: 4 | R22: 0 | S22: 10 | T22: 13 | U22: 6 | V22: 0.309 | X22: 990 | Z22: 13
A23: Brian Jordan | B23: ATL | C23: 148 | D23: 560 | E23: 605 | F23: 165 | G23: 105 | H23: 32 | I23: 3 | J23: 25 | K23: 82 | L23: 97 | M23: 31 | N23: 3 | O23: 88 | P23: 6 | Q23: 8 | R23: 0 | S23: 18 | T23: 3 | U23: 2 | V23: 0.295 | X23: 658 | Z23: -6
A24: Bubba Trammell | B24: SDP | C24: 142 | D24: 490 | E24: 546 | F24: 128 | G24: 80 | H24: 20 | I24: 3 | J24: 25 | K24: 66 | L24: 92 | M24: 48 | N24: 2 | O24: 78 | P24: 4 | Q24: 4 | R24: 0 | S24: 10 | T24: 2 | U24: 2 | V24: 0.261 | X24: 1057 | Z24: 11
A25: Cal Ripken | B25: BAL | C25: 128 | D25: 477 | E25: 516 | F25: 114 | G25: 84 | H25: 16 | I25: 0 | J25: 14 | K25: 43 | L25: 68 | M25: 26 | N25: 1 | O25: 63 | P25: 2 | Q25: 9 | R25: 2 | S25: 15 | T25: 0 | U25: 2 | V25: 0.239 | X25: 1010978 | Z25: -9
A26: Carlos Beltran | B26: KCR | C26: 155 | D26: 617 | E26: 680 | F26: 189 | G26: 121 | H26: 32 | I26: 12 | J26: 24 | K26: 106 | L26: 101 | M26: 52 | N26: 2 | O26: 120 | P26: 5 | Q26: 5 | R26: 1 | S26: 7 | T26: 31 | U26: 1 | V26: 0.306 | X26: 589 | Z26: 5
A27: Carlos Delgado | B27: TOR | C27: 162 | D27: 574 | E27: 704 | F27: 160 | G27: 89 | H27: 31 | I27: 1 | J27: 39 | K27: 102 | L27: 102 | M27: 111 | N27: 22 | O27: 136 | P27: 16 | Q27: 3 | R27: 0 | S27: 9 | T27: 3 | U27: 0 | V27: 0.279 | X27: 1297 | Z27: 1
A28: Carlos Guillen | B28: SEA | C28: 140 | D28: 456 | E28: 523 | F28: 118 | G28: 88 | H28: 21 | I28: 4 | J28: 5 | K28: 72 | L28: 53 | M28: 53 | N28: 0 | O28: 89 | P28: 1 | Q28: 6 | R28: 7 | S28: 9 | T28: 4 | U28: 1 | V28: 0.259 | X28: 1079 | Z28: -3
A29: Carlos Lee | B29: CHW | C29: 150 | D29: 558 | E29: 605 | F29: 150 | G29: 90 | H29: 33 | I29: 3 | J29: 24 | K29: 75 | L29: 84 | M29: 38 | N29: 2 | O29: 85 | P29: 6 | Q29: 2 | R29: 1 | S29: 15 | T29: 17 | U29: 7 | V29: 0.269 | X29: 243 | Z29: 1
A30: Chipper Jones | B30: ATL | C30: 159 | D30: 572 | E30: 677 | F30: 189 | G30: 113 | H30: 33 | I30: 5 | J30: 38 | K30: 113 | L30: 102 | M30: 98 | N30: 20 | O30: 82 | P30: 2 | Q30: 5 | R30: 0 | S30: 13 | T30: 9 | U30: 10 | V30: 0.33 | X30: 97 | Z30: 0
A31: Chris Richard | B31: BAL | C31: 136 | D31: 483 | E31: 543 | F31: 128 | G31: 79 | H31: 31 | I31: 3 | J31: 15 | K31: 74 | L31: 61 | M31: 45 | N31: 4 | O31: 100 | P31: 8 | Q31: 4 | R31: 2 | S31: 15 | T31: 11 | U31: 9 | V31: 0.265 | X31: 163 | Z31: 5
A32: Chuck Knoblauch | B32: NYY | C32: 137 | D32: 521 | E32: 600 | F32: 130 | G32: 98 | H32: 20 | I32: 3 | J32: 9 | K32: 66 | L32: 44 | M32: 58 | N32: 1 | O32: 73 | P32: 14 | Q32: 2 | R32: 5 | S32: 10 | T32: 38 | U32: 9 | V32: 0.25 | X32: 609 | Z32: 27
A33: Cliff Floyd | B33: FLA | C33: 149 | D33: 555 | E33: 629 | F33: 176 | G33: 97 | H33: 44 | I33: 4 | J33: 31 | K33: 123 | L33: 103 | M33: 59 | N33: 19 | O33: 101 | P33: 10 | Q33: 5 | R33: 0 | S33: 9 | T33: 18 | U33: 3 | V33: 0.317 | X33: 518 | Z33: 3
A34: Corey Koskie | B34: MIN | C34: 153 | D34: 562 | E34: 649 | F34: 155 | G34: 90 | H34: 37 | I34: 2 | J34: 26 | K34: 100 | L34: 103 | M34: 68 | N34: 9 | O34: 118 | P34: 12 | Q34: 7 | R34: 0 | S34: 16 | T34: 27 | U34: 6 | V34: 0.276 | X34: 738 | Z34: -7
A35: Craig Biggio | B35: HOU NL | C35: 155 | D35: 617 | E35: 717 | F35: 180 | G35: 122 | H35: 35 | I35: 3 | J35: 20 | K35: 118 | L35: 70 | M35: 66 | N35: 4 | O35: 100 | P35: 28 | Q35: 6 | R35: 0 | S35: 11 | T35: 7 | U35: 4 | V35: 0.292 | X35: 549 | Z35: 7
A36: Craig Counsell | B36: ARI | C36: 141 | D36: 458 | E36: 535 | F36: 126 | G36: 97 | H36: 22 | I36: 3 | J36: 4 | K36: 76 | L36: 38 | M36: 61 | N36: 3 | O36: 76 | P36: 2 | Q36: 6 | R36: 6 | S36: 9 | T36: 6 | U36: 8 | V36: 0.275 | X36: 52 | Z36: 4
A37: Cristian Guzman | B37: MIN | C37: 118 | D37: 493 | E37: 527 | F37: 149 | G37: 97 | H37: 28 | I37: 14 | J37: 10 | K37: 80 | L37: 51 | M37: 21 | N37: 0 | O37: 78 | P37: 5 | Q37: 0 | R37: 8 | S37: 6 | T37: 25 | U37: 8 | V37: 0.302 | X37: 728 | Z37: 0
A38: Damion Easley | B38: DET | C38: 154 | D38: 585 | E38: 658 | F38: 146 | G38: 101 | H38: 27 | I38: 7 | J38: 11 | K38: 77 | L38: 65 | M38: 52 | N38: 3 | O38: 90 | P38: 13 | Q38: 4 | R38: 4 | S38: 10 | T38: 10 | U38: 5 | V38: 0.25 | X38: 464 | Z38: -11
A39: Darin Erstad | B39: ANA | C39: 157 | D39: 631 | E39: 716 | F39: 163 | G39: 118 | H39: 35 | I39: 1 | J39: 9 | K39: 89 | L39: 63 | M39: 62 | N39: 7 | O39: 113 | P39: 10 | Q39: 7 | R39: 1 | S39: 8 | T39: 24 | U39: 10 | V39: 0.258 | X39: 11 | Z39: 7
A40: David Bell | B40: SEA | C40: 135 | D40: 470 | E40: 510 | F40: 122 | G40: 79 | H40: 28 | I40: 0 | J40: 15 | K40: 62 | L40: 64 | M40: 28 | N40: 1 | O40: 59 | P40: 3 | Q40: 4 | R40: 5 | S40: 8 | T40: 2 | U40: 1 | V40: 0.26 | X40: 1108 | Z40: -15
A41: David Eckstein | B41: ANA | C41: 153 | D41: 582 | E41: 664 | F41: 166 | G41: 134 | H41: 26 | I41: 2 | J41: 4 | K41: 82 | L41: 41 | M41: 43 | N41: 0 | O41: 60 | P41: 21 | Q41: 2 | R41: 16 | S41: 11 | T41: 29 | U41: 4 | V41: 0.285 | X41: 10 | Z41: -3
A42: Derek Jeter | B42: NYY | C42: 150 | D42: 614 | E42: 686 | F42: 191 | G42: 132 | H42: 35 | I42: 3 | J42: 21 | K42: 110 | L42: 74 | M42: 56 | N42: 3 | O42: 99 | P42: 10 | Q42: 1 | R42: 5 | S42: 13 | T42: 27 | U42: 2 | V42: 0.311 | X42: 826 | Z42: -17
A43: Derrek Lee | B43: FLA | C43: 158 | D43: 561 | E43: 625 | F43: 158 | G43: 96 | H43: 37 | I43: 4 | J43: 21 | K43: 83 | L43: 75 | M43: 50 | N43: 1 | O43: 126 | P43: 8 | Q43: 6 | R43: 0 | S43: 18 | T43: 4 | U43: 2 | V43: 0.282 | X43: 525 | Z43: -3
A44: Dmitri Young | B44: CIN | C44: 142 | D44: 540 | E44: 586 | F44: 163 | G44: 111 | H44: 28 | I44: 3 | J44: 21 | K44: 68 | L44: 69 | M44: 37 | N44: 10 | O44: 77 | P44: 5 | Q44: 3 | R44: 1 | S44: 22 | T44: 8 | U44: 5 | V44: 0.302 | X44: 505 | Z44: 20
A45: Doug Glanville | B45: PHI | C45: 153 | D45: 634 | E45: 674 | F45: 166 | G45: 125 | H45: 24 | I45: 3 | J45: 14 | K45: 74 | L45: 55 | M45: 19 | N45: 1 | O45: 91 | P45: 4 | Q45: 7 | R45: 10 | S45: 7 | T45: 28 | U45: 6 | V45: 0.262 | X45: 956 | Z45: 20
A46: Doug Mientkiewicz | B46: MIN | C46: 151 | D46: 543 | E46: 626 | F46: 166 | G46: 111 | H46: 39 | I46: 1 | J46: 15 | K46: 77 | L46: 74 | M46: 67 | N46: 6 | O46: 92 | P46: 9 | Q46: 7 | R46: 0 | S46: 10 | T46: 2 | U46: 6 | V46: 0.306 | X46: 741 | Z46: 8
A47: Edgar Martinez | B47: SEA | C47: 132 | D47: 470 | E47: 581 | F47: 144 | G47: 80 | H47: 40 | I47: 1 | J47: 23 | K47: 80 | L47: 116 | M47: 93 | N47: 9 | O47: 90 | P47: 9 | Q47: 9 | R47: 0 | S47: 11 | T47: 4 | U47: 1 | V47: 0.306 | X47: 1086 | Z47: 23
A48: Edgar Renteria | B48: STL | C48: 141 | D48: 493 | E48: 549 | F48: 128 | G48: 96 | H48: 19 | I48: 3 | J48: 10 | K48: 54 | L48: 57 | M48: 39 | N48: 4 | O48: 73 | P48: 3 | Q48: 6 | R48: 8 | S48: 15 | T48: 17 | U48: 4 | V48: 0.26 | X48: 1178 | Z48: -6
A49: Edgardo Alfonzo | B49: NYM | C49: 124 | D49: 457 | E49: 519 | F49: 111 | G49: 72 | H49: 22 | I49: 0 | J49: 17 | K49: 64 | L49: 49 | M49: 51 | N49: 0 | O49: 62 | P49: 5 | Q49: 5 | R49: 1 | S49: 7 | T49: 5 | U49: 0 | V49: 0.243 | X49: 859 | Z49: -10
A50: Ellis Burks | B50: CLE | C50: 124 | D50: 439 | E50: 515 | F50: 123 | G50: 65 | H50: 29 | I50: 1 | J50: 28 | K50: 83 | L50: 74 | M50: 62 | N50: 2 | O50: 85 | P50: 5 | Q50: 9 | R50: 0 | S50: 16 | T50: 5 | U50: 1 | V50: 0.28 | X50: 372 | Z50: 8
A51: Eric Chavez | B51: OAK | C51: 151 | D51: 552 | E51: 604 | F51: 159 | G51: 84 | H51: 43 | I51: 0 | J51: 32 | K51: 91 | L51: 114 | M51: 41 | N51: 9 | O51: 99 | P51: 4 | Q51: 7 | R51: 0 | S51: 7 | T51: 8 | U51: 2 | V51: 0.288 | X51: 906 | Z51: 20
A52: Eric Young | B52: CHC | C52: 149 | D52: 603 | E52: 672 | F52: 168 | G52: 115 | H52: 43 | I52: 4 | J52: 6 | K52: 98 | L52: 42 | M52: 42 | N52: 1 | O52: 45 | P52: 9 | Q52: 3 | R52: 15 | S52: 15 | T52: 31 | U52: 14 | V52: 0.279 | X52: 716 | Z52: 6
A53: Fernando Vina | B53: STL | C53: 154 | D53: 631 | E53: 690 | F53: 191 | G53: 144 | H53: 30 | I53: 8 | J53: 9 | K53: 95 | L53: 56 | M53: 32 | N53: 3 | O53: 35 | P53: 22 | Q53: 2 | R53: 3 | S53: 7 | T53: 17 | U53: 7 | V53: 0.303 | X53: 1189 | Z53: -1
A54: Frank Catalanotto | B54: TEX | C54: 133 | D54: 463 | E54: 512 | F54: 153 | G54: 106 | H54: 31 | I54: 5 | J54: 11 | K54: 77 | L54: 54 | M54: 39 | N54: 3 | O54: 55 | P54: 8 | Q54: 1 | R54: 1 | S54: 5 | T54: 15 | U54: 5 | V54: 0.33 | X54: 1241 | Z54: 4
A55: Frank Menechino | B55: OAK | C55: 139 | D55: 471 | E55: 578 | F55: 114 | G55: 78 | H55: 22 | I55: 2 | J55: 12 | K55: 82 | L55: 60 | M55: 79 | N55: 0 | O55: 97 | P55: 19 | Q55: 6 | R55: 3 | S55: 13 | T55: 2 | U55: 3 | V55: 0.242 | X55: 931 | Z55: 2
A56: Fred McGriff | B56: - - - | C56: 146 | D56: 513 | E56: 586 | F56: 157 | G56: 99 | H56: 25 | I56: 2 | J56: 31 | K56: 67 | L56: 102 | M56: 66 | N56: 13 | O56: 106 | P56: 3 | Q56: 4 | R56: 0 | S56: 13 | T56: 1 | U56: 2 | V56: 0.306 | X56: 293 | Z56: -13
A57: Gabe Kapler | B57: TEX | C57: 134 | D57: 483 | E57: 556 | F57: 129 | G57: 82 | H57: 29 | I57: 1 | J57: 17 | K57: 77 | L57: 72 | M57: 61 | N57: 2 | O57: 70 | P57: 3 | Q57: 7 | R57: 2 | S57: 10 | T57: 23 | U57: 6 | V57: 0.267 | X57: 1256 | Z57: -1
A58: Garret Anderson | B58: ANA | C58: 161 | D58: 672 | E58: 704 | F58: 194 | G58: 125 | H58: 39 | I58: 2 | J58: 28 | K58: 83 | L58: 123 | M58: 27 | N58: 4 | O58: 100 | P58: 0 | Q58: 5 | R58: 0 | S58: 12 | T58: 13 | U58: 6 | V58: 0.289 | X58: 2 | Z58: -4
A59: Gary Sheffield | B59: LAD | C59: 143 | D59: 515 | E59: 618 | F59: 160 | G59: 94 | H59: 28 | I59: 2 | J59: 36 | K59: 98 | L59: 100 | M59: 94 | N59: 13 | O59: 67 | P59: 4 | Q59: 5 | R59: 0 | S59: 12 | T59: 10 | U59: 4 | V59: 0.311 | X59: 114 | Z59: -4
A60: Geoff Blum | B60: MON | C60: 148 | D60: 453 | E60: 514 | F60: 107 | G60: 73 | H60: 25 | I60: 0 | J60: 9 | K60: 57 | L60: 50 | M60: 43 | N60: 8 | O60: 94 | P60: 10 | Q60: 5 | R60: 3 | S60: 12 | T60: 9 | U60: 5 | V60: 0.236 | X60: 550 | Z60: -8
A61: Greg Vaughn | B61: TBD | C61: 136 | D61: 485 | E61: 562 | F61: 113 | G61: 64 | H61: 25 | I61: 0 | J61: 24 | K61: 74 | L61: 82 | M61: 71 | N61: 7 | O61: 130 | P61: 3 | Q61: 3 | R61: 0 | S61: 10 | T61: 11 | U61: 5 | V61: 0.233 | X61: 1233 | Z61: 7
A62: Ichiro Suzuki | B62: SEA | C62: 157 | D62: 692 | E62: 738 | F62: 242 | G62: 192 | H62: 34 | I62: 8 | J62: 8 | K62: 127 | L62: 69 | M62: 30 | N62: 10 | O62: 53 | P62: 8 | Q62: 4 | R62: 4 | S62: 3 | T62: 56 | U62: 14 | V62: 0.35 | X62: 1101 | Z62: 7
A63: Jacque Jones | B63: MIN | C63: 149 | D63: 475 | E63: 520 | F63: 131 | G63: 92 | H63: 25 | I63: 0 | J63: 14 | K63: 57 | L63: 49 | M63: 39 | N63: 2 | O63: 92 | P63: 3 | Q63: 0 | R63: 2 | S63: 10 | T63: 12 | U63: 9 | V63: 0.276 | X63: 735 | Z63: 4
A64: Jason Giambi | B64: OAK | C64: 154 | D64: 520 | E64: 671 | F64: 178 | G64: 91 | H64: 47 | I64: 2 | J64: 38 | K64: 109 | L64: 120 | M64: 129 | N64: 24 | O64: 83 | P64: 13 | Q64: 9 | R64: 0 | S64: 17 | T64: 2 | U64: 0 | V64: 0.342 | X64: 818 | Z64: 19
A65: Jason Kendall | B65: PIT | C65: 157 | D65: 606 | E65: 672 | F65: 161 | G65: 127 | H65: 22 | I65: 2 | J65: 10 | K65: 84 | L65: 53 | M65: 44 | N65: 4 | O65: 48 | P65: 20 | Q65: 2 | R65: 0 | S65: 18 | T65: 13 | U65: 14 | V65: 0.266 | X65: 993 | Z65: 13
A66: Jay Bell | B66: ARI | C66: 129 | D66: 428 | E66: 509 | F66: 106 | G66: 68 | H66: 24 | I66: 1 | J66: 13 | K66: 59 | L66: 46 | M66: 65 | N66: 3 | O66: 79 | P66: 4 | Q66: 4 | R66: 8 | S66: 9 | T66: 0 | U66: 1 | V66: 0.248 | X66: 48 | Z66: 3
A67: Jeff Bagwell | B67: HOU NL | C67: 161 | D67: 600 | E67: 717 | F67: 173 | G67: 87 | H67: 43 | I67: 4 | J67: 39 | K67: 126 | L67: 130 | M67: 106 | N67: 5 | O67: 135 | P67: 6 | Q67: 5 | R67: 0 | S67: 20 | T67: 11 | U67: 3 | V67: 0.288 | X67: 547 | Z67: 5
A68: Jeff Cirillo | B68: COL | C68: 138 | D68: 528 | E68: 586 | F68: 165 | G68: 118 | H68: 26 | I68: 4 | J68: 17 | K68: 72 | L68: 83 | M68: 43 | N68: 6 | O68: 63 | P68: 5 | Q68: 9 | R68: 1 | S68: 15 | T68: 12 | U68: 2 | V68: 0.313 | X68: 1073 | Z68: 1
A69: Jeff Conine | B69: BAL | C69: 139 | D69: 524 | E69: 601 | F69: 163 | G69: 124 | H69: 23 | I69: 2 | J69: 14 | K69: 75 | L69: 97 | M69: 64 | N69: 6 | O69: 75 | P69: 5 | Q69: 8 | R69: 0 | S69: 12 | T69: 12 | U69: 8 | V69: 0.311 | X69: 131 | Z69: 0
A70: Jeff Kent | B70: SFG | C70: 159 | D70: 607 | E70: 696 | F70: 181 | G70: 104 | H70: 49 | I70: 6 | J70: 22 | K70: 84 | L70: 106 | M70: 65 | N70: 4 | O70: 96 | P70: 11 | Q70: 13 | R70: 0 | S70: 11 | T70: 7 | U70: 6 | V70: 0.298 | X70: 1119 | Z70: 0
A71: Jermaine Dye | B71: - - - | C71: 158 | D71: 599 | E71: 675 | F71: 169 | G71: 111 | H71: 31 | I71: 1 | J71: 26 | K71: 91 | L71: 106 | M71: 57 | N71: 6 | O71: 112 | P71: 7 | Q71: 11 | R71: 1 | S71: 8 | T71: 9 | U71: 1 | V71: 0.282 | X71: 911 | Z71: -11
A72: Jeromy Burnitz | B72: MIL | C72: 154 | D72: 562 | E72: 651 | F72: 141 | G72: 71 | H72: 32 | I72: 4 | J72: 34 | K72: 104 | L72: 100 | M72: 80 | N72: 9 | O72: 150 | P72: 5 | Q72: 4 | R72: 0 | S72: 8 | T72: 0 | U72: 4 | V72: 0.251 | X72: 867 | Z72: 0
A73: Jerry Hairston | B73: BAL | C73: 159 | D73: 532 | E73: 602 | F73: 124 | G73: 86 | H73: 25 | I73: 5 | J73: 8 | K73: 63 | L73: 47 | M73: 44 | N73: 0 | O73: 73 | P73: 13 | Q73: 4 | R73: 9 | S73: 12 | T73: 29 | U73: 11 | V73: 0.233 | X73: 144 | Z73: 6
A74: Jim Edmonds | B74: STL | C74: 150 | D74: 500 | E74: 608 | F74: 152 | G74: 83 | H74: 38 | I74: 1 | J74: 30 | K74: 95 | L74: 110 | M74: 93 | N74: 12 | O74: 136 | P74: 4 | Q74: 10 | R74: 1 | S74: 8 | T74: 5 | U74: 5 | V74: 0.304 | X74: 1153 | Z74: 5
A75: Jim Thome | B75: CLE | C75: 156 | D75: 526 | E75: 644 | F75: 153 | G75: 77 | H75: 26 | I75: 1 | J75: 49 | K75: 101 | L75: 124 | M75: 111 | N75: 14 | O75: 185 | P75: 4 | Q75: 3 | R75: 0 | S75: 9 | T75: 0 | U75: 1 | V75: 0.291 | X75: 409 | Z75: 6
A76: Jimmy Rollins | B76: PHI | C76: 158 | D76: 656 | E76: 720 | F76: 180 | G76: 125 | H76: 29 | I76: 12 | J76: 14 | K76: 97 | L76: 54 | M76: 48 | N76: 2 | O76: 108 | P76: 2 | Q76: 5 | R76: 9 | S76: 5 | T76: 46 | U76: 8 | V76: 0.274 | X76: 971 | Z76: 7
A77: Joe Randa | B77: KCR | C77: 151 | D77: 581 | E77: 636 | F77: 147 | G77: 98 | H77: 34 | I77: 2 | J77: 13 | K77: 59 | L77: 83 | M77: 42 | N77: 2 | O77: 80 | P77: 6 | Q77: 6 | R77: 1 | S77: 15 | T77: 3 | U77: 2 | V77: 0.253 | X77: 623 | Z77: -2
A78: John Olerud | B78: SEA | C78: 159 | D78: 572 | E78: 679 | F78: 173 | G78: 119 | H78: 32 | I78: 1 | J78: 21 | K78: 91 | L78: 95 | M78: 94 | N78: 19 | O78: 70 | P78: 5 | Q78: 7 | R78: 1 | S78: 21 | T78: 3 | U78: 1 | V78: 0.302 | X78: 1093 | Z78: 10
A79: John Vander Wal | B79: - - - | C79: 146 | D79: 452 | E79: 527 | F79: 122 | G79: 76 | H79: 28 | I79: 4 | J79: 14 | K79: 58 | L79: 70 | M79: 68 | N79: 9 | O79: 122 | P79: 1 | Q79: 4 | R79: 2 | S79: 10 | T79: 8 | U79: 6 | V79: 0.27 | X79: 853 | Z79: 9
A80: Johnny Damon | B80: OAK | C80: 155 | D80: 644 | E80: 719 | F80: 165 | G80: 118 | H80: 34 | I80: 4 | J80: 9 | K80: 108 | L80: 49 | M80: 61 | N80: 1 | O80: 70 | P80: 5 | Q80: 4 | R80: 5 | S80: 7 | T80: 27 | U80: 12 | V80: 0.256 | X80: 185 | Z80: 5
A81: Jorge Posada | B81: NYY | C81: 138 | D81: 484 | E81: 557 | F81: 134 | G81: 83 | H81: 28 | I81: 1 | J81: 22 | K81: 59 | L81: 95 | M81: 62 | N81: 10 | O81: 132 | P81: 6 | Q81: 5 | R81: 0 | S81: 10 | T81: 2 | U81: 6 | V81: 0.277 | X81: 841 | Z81: 27
A82: Jose Cruz | B82: TOR | C82: 146 | D82: 577 | E82: 627 | F82: 158 | G82: 82 | H82: 38 | I82: 4 | J82: 34 | K82: 92 | L82: 88 | M82: 45 | N82: 4 | O82: 138 | P82: 1 | Q82: 2 | R82: 2 | S82: 8 | T82: 32 | U82: 5 | V82: 0.274 | X82: 1296 | Z82: -4
A83: Jose Hernandez | B83: MIL | C83: 152 | D83: 542 | E83: 592 | F83: 135 | G83: 82 | H83: 26 | I83: 2 | J83: 25 | K83: 67 | L83: 78 | M83: 39 | N83: 8 | O83: 185 | P83: 2 | Q83: 4 | R83: 5 | S83: 9 | T83: 5 | U83: 4 | V83: 0.249 | X83: 688 | Z83: 14
A84: Jose Macias | B84: DET | C84: 137 | D84: 488 | E84: 534 | F84: 131 | G84: 93 | H84: 24 | I84: 6 | J84: 8 | K84: 62 | L84: 51 | M84: 32 | N84: 0 | O84: 54 | P84: 3 | Q84: 3 | R84: 8 | S84: 7 | T84: 21 | U84: 6 | V84: 0.268 | X84: 476 | Z84: -1
A85: Jose Offerman | B85: BOS | C85: 128 | D85: 524 | E85: 594 | F85: 140 | G85: 105 | H85: 23 | I85: 3 | J85: 9 | K85: 76 | L85: 49 | M85: 61 | N85: 2 | O85: 97 | P85: 1 | Q85: 5 | R85: 3 | S85: 9 | T85: 5 | U85: 2 | V85: 0.267 | X85: 205 | Z85: -6
A86: Jose Vidro | B86: MON | C86: 124 | D86: 486 | E86: 531 | F86: 155 | G86: 105 | H86: 34 | I86: 1 | J86: 15 | K86: 82 | L86: 59 | M86: 31 | N86: 2 | O86: 49 | P86: 10 | Q86: 2 | R86: 2 | S86: 18 | T86: 4 | U86: 1 | V86: 0.319 | X86: 802 | Z86: 5
A87: Juan Gonzalez | B87: CLE | C87: 140 | D87: 532 | E87: 595 | F87: 173 | G87: 103 | H87: 34 | I87: 1 | J87: 35 | K87: 97 | L87: 140 | M87: 41 | N87: 5 | O87: 94 | P87: 6 | Q87: 16 | R87: 0 | S87: 18 | T87: 1 | U87: 0 | V87: 0.325 | X87: 1251 | Z87: -4
A88: Juan Pierre | B88: COL | C88: 156 | D88: 617 | E88: 683 | F88: 202 | G88: 163 | H88: 26 | I88: 11 | J88: 2 | K88: 108 | L88: 55 | M88: 41 | N88: 1 | O88: 29 | P88: 10 | Q88: 1 | R88: 14 | S88: 6 | T88: 46 | U88: 17 | V88: 0.327 | X88: 443 | Z88: -4
A89: Julio Lugo | B89: HOU NL | C89: 140 | D89: 513 | E89: 586 | F89: 135 | G89: 102 | H89: 20 | I89: 3 | J89: 10 | K89: 93 | L89: 37 | M89: 46 | N89: 0 | O89: 116 | P89: 5 | Q89: 7 | R89: 15 | S89: 7 | T89: 12 | U89: 11 | V89: 0.263 | X89: 565 | Z89: 4
A90: Kenny Lofton | B90: CLE | C90: 133 | D90: 517 | E90: 576 | F90: 135 | G90: 96 | H90: 21 | I90: 4 | J90: 14 | K90: 91 | L90: 66 | M90: 47 | N90: 1 | O90: 69 | P90: 2 | Q90: 5 | R90: 5 | S90: 8 | T90: 16 | U90: 8 | V90: 0.261 | X90: 246 | Z90: 7
A91: Kevin Young | B91: PIT | C91: 142 | D91: 449 | E91: 507 | F91: 104 | G91: 57 | H91: 33 | I91: 0 | J91: 14 | K91: 53 | L91: 65 | M91: 42 | N91: 3 | O91: 119 | P91: 11 | Q91: 5 | R91: 0 | S91: 17 | T91: 15 | U91: 11 | V91: 0.232 | X91: 1018 | Z91: -2
A92: Lance Berkman | B92: HOU NL | C92: 156 | D92: 577 | E92: 688 | F92: 191 | G92: 97 | H92: 55 | I92: 5 | J92: 34 | K92: 110 | L92: 126 | M92: 92 | N92: 5 | O92: 121 | P92: 13 | Q92: 6 | R92: 0 | S92: 8 | T92: 7 | U92: 9 | V92: 0.331 | X92: 548 | Z92: -8
A93: Larry Walker | B93: COL | C93: 142 | D93: 497 | E93: 601 | F93: 174 | G93: 98 | H93: 35 | I93: 3 | J93: 38 | K93: 107 | L93: 123 | M93: 82 | N93: 6 | O93: 103 | P93: 14 | Q93: 8 | R93: 0 | S93: 9 | T93: 14 | U93: 5 | V93: 0.35 | X93: 455 | Z93: 13
A94: Lee Stevens | B94: MON | C94: 152 | D94: 542 | E94: 628 | F94: 133 | G94: 72 | H94: 35 | I94: 1 | J94: 25 | K94: 77 | L94: 95 | M94: 74 | N94: 12 | O94: 157 | P94: 5 | Q94: 7 | R94: 0 | S94: 17 | T94: 2 | U94: 1 | V94: 0.245 | X94: 796 | Z94: 10
A95: Luis Castillo | B95: FLA | C95: 134 | D95: 537 | E95: 612 | F95: 141 | G95: 113 | H95: 16 | I95: 10 | J95: 2 | K95: 76 | L95: 45 | M95: 67 | N95: 0 | O95: 90 | P95: 1 | Q95: 3 | R95: 4 | S95: 6 | T95: 33 | U95: 16 | V95: 0.263 | X95: 513 | Z95: -3
A96: Luis Gonzalez | B96: ARI | C96: 162 | D96: 609 | E96: 728 | F96: 198 | G96: 98 | H96: 36 | I96: 7 | J96: 57 | K96: 128 | L96: 142 | M96: 100 | N96: 24 | O96: 83 | P96: 14 | Q96: 5 | R96: 0 | S96: 14 | T96: 1 | U96: 1 | V96: 0.325 | X96: 55 | Z96: 20
A97: Luis Rivas | B97: MIN | C97: 153 | D97: 563 | E97: 619 | F97: 150 | G97: 116 | H97: 21 | I97: 6 | J97: 7 | K97: 70 | L97: 47 | M97: 40 | N97: 0 | O97: 99 | P97: 6 | Q97: 5 | R97: 5 | S97: 15 | T97: 31 | U97: 11 | V97: 0.266 | X97: 753 | Z97: 6
A98: Magglio Ordonez | B98: CHW | C98: 160 | D98: 593 | E98: 671 | F98: 181 | G98: 109 | H98: 40 | I98: 1 | J98: 31 | K98: 97 | L98: 113 | M98: 70 | N98: 7 | O98: 70 | P98: 5 | Q98: 3 | R98: 0 | S98: 14 | T98: 25 | U98: 7 | V98: 0.305 | X98: 248 | Z98: 10
A99: Manny Ramirez | B99: BOS | C99: 142 | D99: 529 | E99: 620 | F99: 162 | G99: 86 | H99: 33 | I99: 2 | J99: 41 | K99: 93 | L99: 125 | M99: 81 | N99: 25 | O99: 147 | P99: 8 | Q99: 2 | R99: 0 | S99: 9 | T99: 0 | U99: 1 | V99: 0.306 | X99: 210 | Z99: 2
A100: Mark Grace | B100: ARI | C100: 145 | D100: 476 | E100: 553 | F100: 142 | G100: 94 | H100: 31 | I100: 2 | J100: 15 | K100: 66 | L100: 78 | M100: 67 | N100: 6 | O100: 36 | P100: 4 | Q100: 5 | R100: 1 | S100: 7 | T100: 1 | U100: 0 | V100: 0.298 | X100: 56 | Z100: 12
A101: Mark Grudzielanek | B101: LAD | C101: 133 | D101: 539 | E101: 586 | F101: 146 | G101: 109 | H101: 21 | I101: 3 | J101: 13 | K101: 83 | L101: 55 | M101: 28 | N101: 0 | O101: 83 | P101: 11 | Q101: 5 | R101: 3 | S101: 9 | T101: 4 | U101: 4 | V101: 0.271 | X101: 653 | Z101: 1
A102: Marlon Anderson | B102: PHI | C102: 147 | D102: 522 | E102: 574 | F102: 153 | G102: 110 | H102: 30 | I102: 2 | J102: 11 | K102: 69 | L102: 61 | M102: 35 | N102: 5 | O102: 74 | P102: 2 | Q102: 5 | R102: 10 | S102: 12 | T102: 8 | U102: 5 | V102: 0.293 | X102: 947 | Z102: 2
A103: Matt Lawton | B103: - - - | C103: 151 | D103: 559 | E103: 657 | F103: 155 | G103: 105 | H103: 36 | I103: 1 | J103: 13 | K103: 95 | L103: 64 | M103: 85 | N103: 6 | O103: 80 | P103: 11 | Q103: 2 | R103: 0 | S103: 16 | T103: 29 | U103: 8 | V103: 0.277 | X103: 390 | Z103: -2
A104: Melvin Mora | B104: BAL | C104: 128 | D104: 436 | E104: 503 | F104: 109 | G104: 74 | H104: 28 | I104: 0 | J104: 7 | K104: 49 | L104: 48 | M104: 41 | N104: 2 | O104: 91 | P104: 14 | Q104: 7 | R104: 5 | S104: 6 | T104: 11 | U104: 4 | V104: 0.25 | X104: 157 | Z104: 5
A105: Michael Barrett | B105: MON | C105: 132 | D105: 472 | E105: 506 | F105: 118 | G105: 77 | H105: 33 | I105: 2 | J105: 6 | K105: 42 | L105: 38 | M105: 25 | N105: 2 | O105: 54 | P105: 2 | Q105: 3 | R105: 4 | S105: 14 | T105: 2 | U105: 1 | V105: 0.25 | X105: 762 | Z105: 9
A106: Miguel Tejada | B106: OAK | C106: 162 | D106: 622 | E106: 683 | F106: 166 | G106: 101 | H106: 31 | I106: 3 | J106: 31 | K106: 107 | L106: 113 | M106: 43 | N106: 5 | O106: 89 | P106: 13 | Q106: 4 | R106: 1 | S106: 14 | T106: 11 | U106: 5 | V106: 0.267 | X106: 941 | Z106: -22
A107: Mike Cameron | B107: SEA | C107: 150 | D107: 540 | E107: 633 | F107: 144 | G107: 84 | H107: 30 | I107: 5 | J107: 25 | K107: 99 | L107: 110 | M107: 69 | N107: 3 | O107: 155 | P107: 10 | Q107: 13 | R107: 1 | S107: 13 | T107: 34 | U107: 5 | V107: 0.267 | X107: 1070 | Z107: 4
A108: Mike Lowell | B108: FLA | C108: 146 | D108: 551 | E108: 614 | F108: 156 | G108: 101 | H108: 37 | I108: 0 | J108: 18 | K108: 65 | L108: 100 | M108: 43 | N108: 3 | O108: 79 | P108: 10 | Q108: 10 | R108: 0 | S108: 9 | T108: 1 | U108: 2 | V108: 0.283 | X108: 527 | Z108: -4
A109: Mike Piazza | B109: NYM | C109: 141 | D109: 503 | E109: 573 | F109: 151 | G109: 86 | H109: 29 | I109: 0 | J109: 36 | K109: 81 | L109: 94 | M109: 67 | N109: 19 | O109: 87 | P109: 2 | Q109: 1 | R109: 0 | S109: 20 | T109: 0 | U109: 2 | V109: 0.3 | X109: 893 | Z109: -4
A110: Mike Sweeney | B110: KCR | C110: 147 | D110: 559 | E110: 632 | F110: 170 | G110: 95 | H110: 46 | I110: 0 | J110: 29 | K110: 97 | L110: 99 | M110: 64 | N110: 13 | O110: 64 | P110: 2 | Q110: 6 | R110: 1 | S110: 13 | T110: 10 | U110: 3 | V110: 0.304 | X110: 634 | Z110: 5
A111: Moises Alou | B111: HOU NL | C111: 136 | D111: 513 | E111: 581 | F111: 170 | G111: 111 | H111: 31 | I111: 1 | J111: 27 | K111: 79 | L111: 108 | M111: 57 | N111: 14 | O111: 57 | P111: 3 | Q111: 8 | R111: 0 | S111: 18 | T111: 5 | U111: 1 | V111: 0.331 | X111: 261 | Z111: 8
A112: Neifi Perez | B112: - - - | C112: 136 | D112: 581 | E112: 623 | F112: 162 | G112: 119 | H112: 26 | I112: 9 | J112: 8 | K112: 83 | L112: 59 | M112: 26 | N112: 1 | O112: 68 | P112: 1 | Q112: 4 | R112: 11 | S112: 10 | T112: 9 | U112: 6 | V112: 0.279 | X112: 620 | Z112: 3
A113: Omar Vizquel | B113: CLE | C113: 155 | D113: 611 | E113: 693 | F113: 156 | G113: 120 | H113: 26 | I113: 8 | J113: 2 | K113: 84 | L113: 50 | M113: 61 | N113: 0 | O113: 72 | P113: 2 | Q113: 4 | R113: 15 | S113: 14 | T113: 13 | U113: 9 | V113: 0.255 | X113: 411 | Z113: 1
A114: Orlando Cabrera | B114: MON | C114: 162 | D114: 626 | E114: 684 | F114: 173 | G114: 112 | H114: 41 | I114: 6 | J114: 14 | K114: 64 | L114: 96 | M114: 43 | N114: 5 | O114: 54 | P114: 4 | Q114: 7 | R114: 4 | S114: 15 | T114: 19 | U114: 7 | V114: 0.276 | X114: 766 | Z114: 0
A115: Pat Burrell | B115: PHI | C115: 155 | D115: 539 | E115: 618 | F115: 139 | G115: 81 | H115: 29 | I115: 2 | J115: 27 | K115: 70 | L115: 89 | M115: 70 | N115: 7 | O115: 162 | P115: 5 | Q115: 4 | R115: 0 | S115: 12 | T115: 2 | U115: 1 | V115: 0.258 | X115: 949 | Z115: 1
A116: Paul Konerko | B116: CHW | C116: 156 | D116: 582 | E116: 650 | F116: 164 | G116: 97 | H116: 35 | I116: 0 | J116: 32 | K116: 92 | L116: 99 | M116: 54 | N116: 6 | O116: 89 | P116: 9 | Q116: 5 | R116: 0 | S116: 17 | T116: 1 | U116: 0 | V116: 0.282 | X116: 242 | Z116: 3
A117: Paul Lo Duca | B117: LAD | C117: 125 | D117: 460 | E117: 519 | F117: 147 | G117: 94 | H117: 28 | I117: 0 | J117: 25 | K117: 71 | L117: 90 | M117: 39 | N117: 2 | O117: 30 | P117: 6 | Q117: 9 | R117: 5 | S117: 11 | T117: 2 | U117: 4 | V117: 0.32 | X117: 662 | Z117: -4
A118: Paul O'Neill | B118: NYY | C118: 137 | D118: 510 | E118: 563 | F118: 136 | G118: 81 | H118: 33 | I118: 1 | J118: 21 | K118: 77 | L118: 70 | M118: 48 | N118: 4 | O118: 59 | P118: 2 | Q118: 3 | R118: 0 | S118: 20 | T118: 22 | U118: 3 | V118: 0.267 | X118: 1009818 | Z118: -5
A119: Phil Nevin | B119: SDP | C119: 149 | D119: 546 | E119: 624 | F119: 167 | G119: 95 | H119: 31 | I119: 0 | J119: 41 | K119: 97 | L119: 126 | M119: 71 | N119: 7 | O119: 147 | P119: 4 | Q119: 3 | R119: 0 | S119: 13 | T119: 4 | U119: 4 | V119: 0.306 | X119: 1049 | Z119: 7
A120: Placido Polanco | B120: STL | C120: 144 | D120: 564 | E120: 610 | F120: 173 | G120: 140 | H120: 26 | I120: 4 | J120: 3 | K120: 87 | L120: 38 | M120: 25 | N120: 0 | O120: 43 | P120: 6 | Q120: 1 | R120: 14 | S120: 22 | T120: 12 | U120: 3 | V120: 0.307 | X120: 1176 | Z120: -3
A121: Preston Wilson | B121: FLA | C121: 123 | D121: 468 | E121: 513 | F121: 128 | G121: 73 | H121: 30 | I121: 2 | J121: 23 | K121: 70 | L121: 71 | M121: 36 | N121: 2 | O121: 107 | P121: 6 | Q121: 3 | R121: 0 | S121: 14 | T121: 20 | U121: 8 | V121: 0.274 | X121: 545 | Z121: -7
A122: Rafael Palmeiro | B122: TEX | C122: 160 | D122: 600 | E122: 714 | F122: 164 | G122: 84 | H122: 33 | I122: 0 | J122: 47 | K122: 98 | L122: 123 | M122: 101 | N122: 8 | O122: 90 | P122: 7 | Q122: 6 | R122: 0 | S122: 8 | T122: 1 | U122: 1 | V122: 0.273 | X122: 1266 | Z122: -7
A123: Ramon Hernandez | B123: OAK | C123: 136 | D123: 453 | E123: 509 | F123: 115 | G123: 75 | H123: 25 | I123: 0 | J123: 15 | K123: 55 | L123: 60 | M123: 37 | N123: 3 | O123: 68 | P123: 6 | Q123: 4 | R123: 9 | S123: 10 | T123: 1 | U123: 1 | V123: 0.254 | X123: 918 | Z123: 13
A124: Raul Mondesi | B124: TOR | C124: 149 | D124: 572 | E124: 653 | F124: 144 | G124: 87 | H124: 26 | I124: 4 | J124: 27 | K124: 88 | L124: 84 | M124: 73 | N124: 3 | O124: 128 | P124: 6 | Q124: 2 | R124: 0 | S124: 13 | T124: 30 | U124: 11 | V124: 0.252 | X124: 1314 | Z124: 3
A125: Ray Durham | B125: CHW | C125: 152 | D125: 611 | E125: 691 | F125: 163 | G125: 91 | H125: 42 | I125: 10 | J125: 20 | K125: 104 | L125: 65 | M125: 64 | N125: 3 | O125: 110 | P125: 4 | Q125: 6 | R125: 6 | S125: 10 | T125: 23 | U125: 10 | V125: 0.267 | X125: 230 | Z125: 1
A126: Rey Ordonez | B126: NYM | C126: 149 | D126: 461 | E126: 505 | F126: 114 | G126: 83 | H126: 24 | I126: 4 | J126: 3 | K126: 31 | L126: 44 | M126: 34 | N126: 17 | O126: 43 | P126: 1 | Q126: 2 | R126: 7 | S126: 17 | T126: 3 | U126: 2 | V126: 0.247 | X126: 889 | Z126: -5
A127: Rey Sanchez | B127: - - - | C127: 149 | D127: 544 | E127: 579 | F127: 153 | G127: 129 | H127: 18 | I127: 6 | J127: 0 | K127: 56 | L127: 37 | M127: 15 | N127: 1 | O127: 49 | P127: 2 | Q127: 5 | R127: 13 | S127: 20 | T127: 11 | U127: 1 | V127: 0.281 | X127: 213 | Z127: -10
A128: Rich Aurilia | B128: SFG | C128: 156 | D128: 636 | E128: 689 | F128: 206 | G128: 127 | H128: 37 | I128: 5 | J128: 37 | K128: 114 | L128: 97 | M128: 47 | N128: 2 | O128: 83 | P128: 0 | Q128: 3 | R128: 3 | S128: 14 | T128: 1 | U128: 3 | V128: 0.324 | X128: 1106 | Z128: 2
A129: Richard Hidalgo | B129: HOU NL | C129: 146 | D129: 512 | E129: 593 | F129: 141 | G129: 90 | H129: 29 | I129: 3 | J129: 19 | K129: 70 | L129: 80 | M129: 54 | N129: 3 | O129: 107 | P129: 16 | Q129: 11 | R129: 0 | S129: 15 | T129: 3 | U129: 5 | V129: 0.275 | X129: 561 | Z129: -5
A130: Richie Sexson | B130: MIL | C130: 158 | D130: 598 | E130: 667 | F130: 162 | G130: 90 | H130: 24 | I130: 3 | J130: 45 | K130: 94 | L130: 125 | M130: 60 | N130: 5 | O130: 178 | P130: 6 | Q130: 3 | R130: 0 | S130: 20 | T130: 2 | U130: 4 | V130: 0.271 | X130: 709 | Z130: 9
A131: Ricky Gutierrez | B131: CHC | C131: 147 | D131: 528 | E131: 606 | F131: 153 | G131: 117 | H131: 23 | I131: 3 | J131: 10 | K131: 76 | L131: 66 | M131: 40 | N131: 0 | O131: 56 | P131: 10 | Q131: 11 | R131: 17 | S131: 13 | T131: 4 | U131: 3 | V131: 0.29 | X131: 387 | Z131: -2
A132: Roberto Alomar | B132: CLE | C132: 157 | D132: 575 | E132: 677 | F132: 193 | G132: 127 | H132: 34 | I132: 12 | J132: 20 | K132: 113 | L132: 100 | M132: 80 | N132: 5 | O132: 71 | P132: 4 | Q132: 9 | R132: 9 | S132: 9 | T132: 30 | U132: 6 | V132: 0.336 | X132: 860 | Z132: 4
A133: Robin Ventura | B133: NYM | C133: 142 | D133: 456 | E133: 549 | F133: 108 | G133: 67 | H133: 20 | I133: 0 | J133: 21 | K133: 70 | L133: 61 | M133: 88 | N133: 10 | O133: 101 | P133: 1 | Q133: 4 | R133: 0 | S133: 13 | T133: 2 | U133: 5 | V133: 0.237 | X133: 854 | Z133: 2
A134: Roger Cedeno | B134: DET | C134: 131 | D134: 523 | E134: 572 | F134: 153 | G134: 122 | H134: 14 | I134: 11 | J134: 6 | K134: 79 | L134: 48 | M134: 36 | N134: 1 | O134: 83 | P134: 2 | Q134: 5 | R134: 6 | S134: 5 | T134: 55 | U134: 15 | V134: 0.293 | X134: 869 | Z134: 1
A135: Ryan Klesko | B135: SDP | C135: 146 | D135: 538 | E135: 638 | F135: 154 | G135: 84 | H135: 34 | I135: 6 | J135: 30 | K135: 105 | L135: 113 | M135: 88 | N135: 7 | O135: 89 | P135: 3 | Q135: 9 | R135: 0 | S135: 16 | T135: 23 | U135: 4 | V135: 0.286 | X135: 1041 | Z135: -4
A136: Sammy Sosa | B136: CHC | C136: 160 | D136: 577 | E136: 711 | F136: 189 | G136: 86 | H136: 34 | I136: 5 | J136: 64 | K136: 146 | L136: 160 | M136: 116 | N136: 37 | O136: 153 | P136: 6 | Q136: 12 | R136: 0 | S136: 6 | T136: 0 | U136: 2 | V136: 0.328 | X136: 302 | Z136: -4
A137: Scott Rolen | B137: PHI | C137: 151 | D137: 554 | E137: 653 | F137: 160 | G137: 95 | H137: 39 | I137: 1 | J137: 25 | K137: 96 | L137: 107 | M137: 74 | N137: 6 | O137: 127 | P137: 13 | Q137: 12 | R137: 0 | S137: 6 | T137: 16 | U137: 5 | V137: 0.289 | X137: 970 | Z137: -2
A138: Scott Spiezio | B138: ANA | C138: 139 | D138: 457 | E138: 503 | F138: 124 | G138: 78 | H138: 29 | I138: 4 | J138: 13 | K138: 57 | L138: 54 | M138: 34 | N138: 4 | O138: 65 | P138: 5 | Q138: 4 | R138: 3 | S138: 6 | T138: 5 | U138: 2 | V138: 0.271 | X138: 37 | Z138: -17
A139: Sean Casey | B139: CIN | C139: 145 | D139: 533 | E139: 588 | F139: 165 | G139: 112 | H139: 40 | I139: 0 | J139: 13 | K139: 69 | L139: 89 | M139: 43 | N139: 8 | O139: 63 | P139: 9 | Q139: 3 | R139: 0 | S139: 16 | T139: 3 | U139: 1 | V139: 0.31 | X139: 314 | Z139: -1
A140: Shane Halter | B140: DET | C140: 136 | D140: 450 | E140: 507 | F140: 128 | G140: 77 | H140: 32 | I140: 7 | J140: 12 | K140: 53 | L140: 65 | M140: 37 | N140: 2 | O140: 100 | P140: 7 | Q140: 6 | R140: 7 | S140: 14 | T140: 3 | U140: 3 | V140: 0.284 | X140: 468 | Z140: 4
A141: Shannon Stewart | B141: TOR | C141: 155 | D141: 640 | E141: 698 | F141: 202 | G141: 139 | H141: 44 | I141: 7 | J141: 12 | K141: 103 | L141: 60 | M141: 46 | N141: 1 | O141: 72 | P141: 11 | Q141: 1 | R141: 0 | S141: 9 | T141: 27 | U141: 10 | V141: 0.316 | X141: 1322 | Z141: 5
A142: Shawn Green | B142: LAD | C142: 161 | D142: 619 | E142: 701 | F142: 184 | G142: 100 | H142: 31 | I142: 4 | J142: 49 | K142: 121 | L142: 125 | M142: 72 | N142: 10 | O142: 107 | P142: 5 | Q142: 5 | R142: 0 | S142: 10 | T142: 20 | U142: 4 | V142: 0.297 | X142: 651 | Z142: -15
A143: Steve Finley | B143: ARI | C143: 140 | D143: 495 | E143: 548 | F143: 136 | G143: 91 | H143: 27 | I143: 4 | J143: 14 | K143: 66 | L143: 73 | M143: 47 | N143: 9 | O143: 67 | P143: 1 | Q143: 3 | R143: 2 | S143: 8 | T143: 11 | U143: 7 | V143: 0.275 | X143: 54 | Z143: 7
A144: Terrence Long | B144: OAK | C144: 162 | D144: 629 | E144: 687 | F144: 178 | G144: 125 | H144: 37 | I144: 4 | J144: 12 | K144: 90 | L144: 85 | M144: 52 | N144: 8 | O144: 103 | P144: 0 | Q144: 6 | R144: 0 | S144: 17 | T144: 9 | U144: 3 | V144: 0.283 | X144: 927 | Z144: -3
A145: Tim Salmon | B145: ANA | C145: 137 | D145: 475 | E145: 581 | F145: 108 | G145: 69 | H145: 21 | I145: 1 | J145: 17 | K145: 63 | L145: 49 | M145: 96 | N145: 4 | O145: 121 | P145: 8 | Q145: 2 | R145: 0 | S145: 11 | T145: 9 | U145: 3 | V145: 0.227 | X145: 32 | Z145: -8
A146: Tino Martinez | B146: NYY | C146: 154 | D146: 589 | E146: 635 | F146: 165 | G146: 105 | H146: 24 | I146: 2 | J146: 34 | K146: 89 | L146: 113 | M146: 42 | N146: 2 | O146: 89 | P146: 2 | Q146: 2 | R146: 0 | S146: 12 | T146: 1 | U146: 2 | V146: 0.28 | X146: 1168 | Z146: -4
A147: Todd Helton | B147: COL | C147: 159 | D147: 587 | E147: 697 | F147: 197 | G147: 92 | H147: 54 | I147: 2 | J147: 49 | K147: 132 | L147: 146 | M147: 98 | N147: 15 | O147: 104 | P147: 5 | Q147: 5 | R147: 1 | S147: 14 | T147: 7 | U147: 5 | V147: 0.336 | X147: 432 | Z147: 0
A148: Todd Walker | B148: - - - | C148: 151 | D148: 551 | E148: 610 | F148: 163 | G148: 109 | H148: 35 | I148: 2 | J148: 17 | K148: 93 | L148: 75 | M148: 51 | N148: 1 | O148: 82 | P148: 1 | Q148: 3 | R148: 4 | S148: 14 | T148: 1 | U148: 8 | V148: 0.296 | X148: 359 | Z148: -19
A149: Todd Zeile | B149: NYM | C149: 151 | D149: 531 | E149: 612 | F149: 141 | G149: 105 | H149: 25 | I149: 1 | J149: 10 | K149: 66 | L149: 62 | M149: 73 | N149: 3 | O149: 102 | P149: 6 | Q149: 2 | R149: 0 | S149: 15 | T149: 1 | U149: 0 | V149: 0.266 | X149: 457 | Z149: -8
A150: Tony Batista | B150: - - - | C150: 156 | D150: 579 | E150: 622 | F150: 138 | G150: 80 | H150: 27 | I150: 6 | J150: 25 | K150: 70 | L150: 87 | M150: 32 | N150: 1 | O150: 113 | P150: 4 | Q150: 7 | R150: 0 | S150: 9 | T150: 5 | U150: 2 | V150: 0.238 | X150: 124 | Z150: 4
A151: Tony Womack | B151: ARI | C151: 125 | D151: 481 | E151: 518 | F151: 128 | G151: 101 | H151: 19 | I151: 5 | J151: 3 | K151: 66 | L151: 30 | M151: 23 | N151: 2 | O151: 54 | P151: 6 | Q151: 1 | R151: 7 | S151: 4 | T151: 28 | U151: 7 | V151: 0.266 | X151: 78 | Z151: 5
A152: Torii Hunter | B152: MIN | C152: 148 | D152: 564 | E152: 603 | F152: 147 | G152: 83 | H152: 32 | I152: 5 | J152: 27 | K152: 82 | L152: 92 | M152: 29 | N152: 0 | O152: 125 | P152: 8 | Q152: 1 | R152: 1 | S152: 12 | T152: 9 | U152: 6 | V152: 0.261 | X152: 731 | Z152: -23
A153: Travis Lee | B153: PHI | C153: 157 | D153: 555 | E153: 640 | F153: 143 | G153: 87 | H153: 34 | I153: 2 | J153: 20 | K153: 75 | L153: 90 | M153: 71 | N153: 5 | O153: 109 | P153: 4 | Q153: 9 | R153: 1 | S153: 15 | T153: 3 | U153: 4 | V153: 0.258 | X153: 958 | Z153: -10
A154: Trot Nixon | B154: BOS | C154: 148 | D154: 535 | E154: 633 | F154: 150 | G154: 88 | H154: 31 | I154: 4 | J154: 27 | K154: 100 | L154: 88 | M154: 79 | N154: 1 | O154: 113 | P154: 7 | Q154: 6 | R154: 6 | S154: 8 | T154: 7 | U154: 4 | V154: 0.28 | X154: 204 | Z154: -1
A155: Troy Glaus | B155: ANA | C155: 161 | D155: 588 | E155: 708 | F155: 147 | G155: 66 | H155: 38 | I155: 2 | J155: 41 | K155: 100 | L155: 108 | M155: 107 | N155: 7 | O155: 158 | P155: 6 | Q155: 7 | R155: 0 | S155: 16 | T155: 10 | U155: 3 | V155: 0.25 | X155: 15 | Z155: -14
A156: Vinny Castilla | B156: - - - | C156: 146 | D156: 538 | E156: 581 | F156: 140 | G156: 80 | H156: 34 | I156: 1 | J156: 25 | K156: 69 | L156: 91 | M156: 35 | N156: 3 | O156: 108 | P156: 4 | Q156: 4 | R156: 0 | S156: 22 | T156: 1 | U156: 4 | V156: 0.26 | X156: 84 | Z156: -13
A157: Vladimir Guerrero | B157: MON | C157: 159 | D157: 599 | E157: 671 | F157: 184 | G157: 101 | H157: 45 | I157: 4 | J157: 34 | K157: 107 | L157: 108 | M157: 60 | N157: 24 | O157: 88 | P157: 9 | Q157: 3 | R157: 0 | S157: 24 | T157: 37 | U157: 16 | V157: 0.307 | X157: 778 | Z157: -6

Sheet 2002 (hidden)
A1: Name | B1: Team | C1: G | D1: AB | E1: PA | F1: H | G1: 1B | H1: 2B | I1: 3B | J1: HR | K1: R | L1: RBI | M1: BB | N1: IBB | O1: SO | P1: HBP | Q1: SF | R1: SH | S1: GDP | T1: SB | U1: CS | V1: AVG | W1: playerid | X1: UBR | Y1: wGDP | Z1: Fielding
A2: Aaron Boone | B2: CIN | C2: 162 | D2: 606 | E2: 685 | F2: 146 | G2: 80 | H2: 38 | I2: 2 | J2: 26 | K2: 83 | L2: 87 | M2: 56 | N2: 4 | O2: 111 | P2: 10 | Q2: 4 | R2: 9 | S2: 9 | T2: 32 | U2: 8 | V2: 0.241 | W2: 311 | X2: 1.3 | Y2: 3 | Z2: 2.4
A3: Adam Dunn | B3: CIN | C3: 158 | D3: 535 | E3: 676 | F3: 133 | G3: 77 | H3: 28 | I3: 2 | J3: 26 | K3: 84 | L3: 71 | M3: 128 | N3: 13 | O3: 170 | P3: 9 | Q3: 3 | R3: 1 | S3: 8 | T3: 19 | U3: 9 | V3: 0.249 | W3: 319 | X3: 2.3 | Y3: 0 | Z3: 3.8
A4: Adam Kennedy | B4: ANA | C4: 144 | D4: 474 | E4: 509 | F4: 148 | G4: 103 | H4: 32 | I4: 6 | J4: 7 | K4: 65 | L4: 52 | M4: 19 | N4: 1 | O4: 80 | P4: 7 | Q4: 4 | R4: 5 | S4: 5 | T4: 17 | U4: 4 | V4: 0.312 | W4: 19 | X4: 1.6 | Y4: 1.7 | Z4: 2.9
A5: Adrian Beltre | B5: LAD | C5: 159 | D5: 587 | E5: 635 | F5: 151 | G5: 99 | H5: 26 | I5: 5 | J5: 21 | K5: 70 | L5: 75 | M5: 37 | N5: 4 | O5: 96 | P5: 4 | Q5: 6 | R5: 1 | S5: 17 | T5: 7 | U5: 5 | V5: 0.257 | W5: 639 | X5: -0.6 | Y5: -0.7 | Z5: 21.7
A6: Albert Pujols | B6: STL | C6: 157 | D6: 590 | E6: 675 | F6: 185 | G6: 109 | H6: 40 | I6: 2 | J6: 34 | K6: 118 | L6: 127 | M6: 72 | N6: 13 | O6: 69 | P6: 9 | Q6: 4 | R6: 0 | S6: 20 | T6: 2 | U6: 4 | V6: 0.314 | W6: 1177 | X6: -0.3 | Y6: -1.3 | Z6: -4.7
A7: Alex Gonzalez | B7: CHC | C7: 142 | D7: 513 | E7: 568 | F7: 127 | G7: 77 | H7: 27 | I7: 5 | J7: 18 | K7: 58 | L7: 61 | M7: 46 | N7: 7 | O7: 136 | P7: 3 | Q7: 2 | R7: 4 | S7: 11 | T7: 5 | U7: 3 | V7: 0.248 | W7: 281 | X7: -0.2 | Y7: -0.3 | Z7: -4.8
A8: Alex Rodriguez | B8: TEX | C8: 162 | D8: 624 | E8: 725 | F8: 187 | G8: 101 | H8: 27 | I8: 2 | J8: 57 | K8: 125 | L8: 142 | M8: 87 | N8: 12 | O8: 122 | P8: 10 | Q8: 4 | R8: 0 | S8: 14 | T8: 9 | U8: 4 | V8: 0.3 | W8: 1274 | X8: 2.2 | Y8: 0.1 | Z8: 12.5
A9: Alfonso Soriano | B9: NYY | C9: 156 | D9: 696 | E9: 741 | F9: 209 | G9: 117 | H9: 51 | I9: 2 | J9: 39 | K9: 128 | L9: 102 | M9: 23 | N9: 1 | O9: 157 | P9: 14 | Q9: 7 | R9: 1 | S9: 8 | T9: 41 | U9: 13 | V9: 0.3 | W9: 847 | X9: 1.3 | Y9: 2.7 | Z9: -7
A10: Andruw Jones | B10: ATL | C10: 154 | D10: 560 | E10: 659 | F10: 148 | G10: 79 | H10: 34 | I10: 0 | J10: 35 | K10: 91 | L10: 94 | M10: 83 | N10: 4 | O10: 135 | P10: 10 | Q10: 6 | R10: 0 | S10: 14 | T10: 8 | U10: 3 | V10: 0.264 | W10: 96 | X10: -0.4 | Y10: 0.3 | Z10: 15.7
A11: Aramis Ramirez | B11: PIT | C11: 142 | D11: 522 | E11: 570 | F11: 122 | G11: 78 | H11: 26 | I11: 0 | J11: 18 | K11: 51 | L11: 71 | M11: 29 | N11: 3 | O11: 95 | P11: 8 | Q11: 11 | R11: 0 | S11: 17 | T11: 2 | U11: 0 | V11: 0.234 | W11: 1002 | X11: -0.4 | Y11: 0.4 | Z11: -5.7
A12: Barry Bonds | B12: SFG | C12: 143 | D12: 403 | E12: 612 | F12: 149 | G12: 70 | H12: 31 | I12: 2 | J12: 46 | K12: 117 | L12: 110 | M12: 198 | N12: 68 | O12: 47 | P12: 9 | Q12: 2 | R12: 0 | S12: 4 | T12: 9 | U12: 2 | V12: 0.37 | W12: 1109 | X12: 2.3 | Y12: 0.9 | Z12: 4.3
A13: Barry Larkin | B13: CIN | C13: 145 | D13: 507 | E13: 567 | F13: 124 | G13: 78 | H13: 37 | I13: 2 | J13: 7 | K13: 72 | L13: 47 | M13: 44 | N13: 9 | O13: 57 | P13: 3 | Q13: 7 | R13: 6 | S13: 13 | T13: 13 | U13: 4 | V13: 0.245 | W13: 335 | X13: -1.7 | Y13: 0.9 | Z13: -6.8
A14: Ben Grieve | B14: TBD | C14: 136 | D14: 482 | E14: 561 | F14: 121 | G14: 72 | H14: 30 | I14: 0 | J14: 19 | K14: 62 | L14: 64 | M14: 69 | N14: 5 | O14: 121 | P14: 8 | Q14: 2 | R14: 0 | S14: 15 | T14: 8 | U14: 2 | V14: 0.251 | W14: 1209 | X14: -0.1 | Y14: 0.7 | Z14: -6.4
A15: Benito Santiago | B15: SFG | C15: 126 | D15: 478 | E15: 517 | F15: 133 | G15: 88 | H15: 24 | I15: 5 | J15: 16 | K15: 56 | L15: 74 | M15: 27 | N15: 8 | O15: 73 | P15: 2 | Q15: 7 | R15: 3 | S15: 19 | T15: 4 | U15: 2 | V15: 0.278 | W15: 1130 | X15: -1.2 | Y15: -0.1 | Z15: 0
A16: Bernie Williams | B16: NYY | C16: 154 | D16: 612 | E16: 699 | F16: 204 | G16: 146 | H16: 37 | I16: 2 | J16: 19 | K16: 102 | L16: 102 | M16: 83 | N16: 7 | O16: 97 | P16: 3 | Q16: 1 | R16: 0 | S16: 19 | T16: 8 | U16: 4 | V16: 0.333 | W16: 857 | X16: 0.1 | Y16: -0.1 | Z16: -17
A17: Bobby Abreu | B17: PHI | C17: 157 | D17: 572 | E17: 685 | F17: 176 | G17: 100 | H17: 50 | I17: 6 | J17: 20 | K17: 102 | L17: 85 | M17: 104 | N17: 9 | O17: 117 | P17: 3 | Q17: 6 | R17: 0 | S17: 11 | T17: 31 | U17: 12 | V17: 0.308 | W17: 945 | X17: 0.9 | Y17: 1.1 | Z17: -7
A18: Brad Wilkerson | B18: MON | C18: 153 | D18: 507 | E18: 603 | F18: 135 | G18: 80 | H18: 27 | I18: 8 | J18: 20 | K18: 92 | L18: 59 | M18: 81 | N18: 7 | O18: 161 | P18: 5 | Q18: 4 | R18: 6 | S18: 5 | T18: 7 | U18: 8 | V18: 0.266 | W18: 804 | X18: 1.1 | Y18: -2 | Z18: -11.3
A19: Brent Abernathy | B19: TBD | C19: 117 | D19: 463 | E19: 504 | F19: 112 | G19: 88 | H19: 18 | I19: 4 | J19: 2 | K19: 46 | L19: 40 | M19: 25 | N19: 0 | O19: 46 | P19: 6 | Q19: 2 | R19: 8 | S19: 8 | T19: 10 | U19: 4 | V19: 0.242 | W19: 1192 | X19: 0 | Y19: 0.3 | Z19: 3.3
A20: Bret Boone | B20: SEA | C20: 155 | D20: 608 | E20: 675 | F20: 169 | G20: 108 | H20: 34 | I20: 3 | J20: 24 | K20: 88 | L20: 107 | M20: 53 | N20: 4 | O20: 102 | P20: 6 | Q20: 6 | R20: 2 | S20: 11 | T20: 12 | U20: 5 | V20: 0.278 | W20: 1067 | X20: 1.2 | Y20: 0.3 | Z20: -1
A21: Brian Daubach | B21: BOS | C21: 137 | D21: 444 | E21: 506 | F21: 118 | G21: 72 | H21: 24 | I21: 2 | J21: 20 | K21: 62 | L21: 78 | M21: 51 | N21: 4 | O21: 126 | P21: 7 | Q21: 4 | R21: 0 | S21: 10 | T21: 2 | U21: 1 | V21: 0.266 | W21: 186 | X21: -0.4 | Y21: -0.1 | Z21: -9.5
A22: Brian Giles | B22: PIT | C22: 153 | D22: 497 | E22: 644 | F22: 148 | G22: 68 | H22: 37 | I22: 5 | J22: 38 | K22: 95 | L22: 103 | M22: 135 | N22: 24 | O22: 74 | P22: 7 | Q22: 5 | R22: 0 | S22: 10 | T22: 15 | U22: 6 | V22: 0.298 | W22: 990 | X22: 2.2 | Y22: 0.4 | Z22: -6.3
A23: Brian Jordan | B23: LAD | C23: 128 | D23: 471 | E23: 515 | F23: 134 | G23: 86 | H23: 27 | I23: 3 | J23: 18 | K23: 65 | L23: 80 | M23: 34 | N23: 3 | O23: 86 | P23: 6 | Q23: 4 | R23: 0 | S23: 10 | T23: 2 | U23: 2 | V23: 0.285 | W23: 658 | X23: 0.9 | Y23: -0.5 | Z23: 0.7
A24: Carlos Beltran | B24: KCR | C24: 162 | D24: 637 | E24: 722 | F24: 174 | G24: 94 | H24: 44 | I24: 7 | J24: 29 | K24: 114 | L24: 105 | M24: 71 | N24: 1 | O24: 135 | P24: 4 | Q24: 7 | R24: 3 | S24: 12 | T24: 35 | U24: 7 | V24: 0.273 | W24: 589 | X24: 0.4 | Y24: 4 | Z24: 7.1
A25: Carlos Delgado | B25: TOR | C25: 143 | D25: 505 | E25: 628 | F25: 140 | G25: 71 | H25: 34 | I25: 2 | J25: 33 | K25: 103 | L25: 108 | M25: 102 | N25: 18 | O25: 126 | P25: 13 | Q25: 8 | R25: 0 | S25: 8 | T25: 1 | U25: 0 | V25: 0.277 | W25: 1297 | X25: 1.3 | Y25: 0.2 | Z25: 1.4
A26: Carlos Guillen | B26: SEA | C26: 134 | D26: 475 | E26: 528 | F26: 124 | G26: 85 | H26: 24 | I26: 6 | J26: 9 | K26: 73 | L26: 56 | M26: 46 | N26: 4 | O26: 91 | P26: 1 | Q26: 3 | R26: 3 | S26: 8 | T26: 4 | U26: 5 | V26: 0.261 | W26: 1079 | X26: 1.3 | Y26: -1.3 | Z26: -6.4
A27: Carlos Lee | B27: CHW | C27: 140 | D27: 492 | E27: 576 | F27: 130 | G27: 76 | H27: 26 | I27: 2 | J27: 26 | K27: 82 | L27: 80 | M27: 75 | N27: 4 | O27: 73 | P27: 2 | Q27: 7 | R27: 0 | S27: 5 | T27: 1 | U27: 4 | V27: 0.264 | W27: 243 | X27: 2.2 | Y27: -1.5 | Z27: -8.2
A28: Chipper Jones | B28: ATL | C28: 158 | D28: 548 | E28: 662 | F28: 179 | G28: 117 | H28: 35 | I28: 1 | J28: 26 | K28: 90 | L28: 100 | M28: 107 | N28: 23 | O28: 89 | P28: 2 | Q28: 5 | R28: 0 | S28: 18 | T28: 8 | U28: 2 | V28: 0.327 | W28: 97 | X28: -0.8 | Y28: 0.7 | Z28: -0.4
A29: Cliff Floyd | B29: - - - | C29: 146 | D29: 520 | E29: 609 | F29: 150 | G29: 79 | H29: 43 | I29: 0 | J29: 28 | K29: 86 | L29: 79 | M29: 76 | N29: 19 | O29: 106 | P29: 10 | Q29: 3 | R29: 0 | S29: 6 | T29: 15 | U29: 5 | V29: 0.288 | W29: 518 | X29: 2.2 | Y29: 0.9 | Z29: -10.9
A30: Corey Koskie | B30: MIN | C30: 140 | D30: 490 | E30: 576 | F30: 131 | G30: 76 | H30: 37 | I30: 3 | J30: 15 | K30: 71 | L30: 69 | M30: 72 | N30: 4 | O30: 127 | P30: 9 | Q30: 5 | R30: 0 | S30: 14 | T30: 10 | U30: 11 | V30: 0.267 | W30: 738 | X30: -0.1 | Y30: -2.7 | Z30: 19.9
A31: Corey Patterson | B31: CHC | C31: 153 | D31: 592 | E31: 628 | F31: 150 | G31: 101 | H31: 30 | I31: 5 | J31: 14 | K31: 71 | L31: 54 | M31: 19 | N31: 1 | O31: 142 | P31: 8 | Q31: 5 | R31: 4 | S31: 8 | T31: 18 | U31: 3 | V31: 0.253 | W31: 300 | X31: 1.2 | Y31: 2.3 | Z31: -5.3
A32: Craig Biggio | B32: HOU NL | C32: 145 | D32: 577 | E32: 655 | F32: 146 | G32: 92 | H32: 36 | I32: 3 | J32: 15 | K32: 96 | L32: 58 | M32: 50 | N32: 2 | O32: 111 | P32: 17 | Q32: 2 | R32: 9 | S32: 15 | T32: 16 | U32: 2 | V32: 0.253 | W32: 549 | X32: -1.4 | Y32: 2.3 | Z32: 0.6
A33: Cristian Guzman | B33: MIN | C33: 148 | D33: 623 | E33: 656 | F33: 170 | G33: 124 | H33: 31 | I33: 6 | J33: 9 | K33: 80 | L33: 59 | M33: 17 | N33: 2 | O33: 79 | P33: 2 | Q33: 6 | R33: 8 | S33: 12 | T33: 12 | U33: 13 | V33: 0.273 | W33: 728 | X33: 0.3 | Y33: -3.1 | Z33: 2.9
A34: Darin Erstad | B34: ANA | C34: 150 | D34: 625 | E34: 663 | F34: 177 | G34: 135 | H34: 28 | I34: 4 | J34: 10 | K34: 99 | L34: 73 | M34: 27 | N34: 4 | O34: 67 | P34: 2 | Q34: 4 | R34: 5 | S34: 9 | T34: 23 | U34: 3 | V34: 0.283 | W34: 11 | X34: 3 | Y34: 3.3 | Z34: 18.2
A35: David Bell | B35: SFG | C35: 154 | D35: 552 | E35: 628 | F35: 144 | G35: 93 | H35: 29 | I35: 2 | J35: 20 | K35: 82 | L35: 73 | M35: 54 | N35: 2 | O35: 80 | P35: 9 | Q35: 7 | R35: 6 | S35: 18 | T35: 1 | U35: 2 | V35: 0.261 | W35: 1108 | X35: -1.7 | Y35: -0.7 | Z35: 5.4
A36: David Eckstein | B36: ANA | C36: 152 | D36: 608 | E36: 702 | F36: 178 | G36: 142 | H36: 22 | I36: 6 | J36: 8 | K36: 107 | L36: 63 | M36: 45 | N36: 0 | O36: 44 | P36: 27 | Q36: 8 | R36: 14 | S36: 7 | T36: 21 | U36: 13 | V36: 0.293 | W36: 10 | X36: 2.1 | Y36: -1.3 | Z36: 4.4
A37: Deivi Cruz | B37: SDP | C37: 151 | D37: 514 | E37: 547 | F37: 135 | G37: 98 | H37: 28 | I37: 2 | J37: 7 | K37: 49 | L37: 47 | M37: 22 | N37: 2 | O37: 58 | P37: 3 | Q37: 5 | R37: 3 | S37: 20 | T37: 2 | U37: 3 | V37: 0.263 | W37: 1025 | X37: -3.2 | Y37: -0.9 | Z37: -5
A38: Derek Jeter | B38: NYY | C38: 157 | D38: 644 | E38: 730 | F38: 191 | G38: 147 | H38: 26 | I38: 0 | J38: 18 | K38: 124 | L38: 75 | M38: 73 | N38: 2 | O38: 114 | P38: 7 | Q38: 3 | R38: 3 | S38: 14 | T38: 32 | U38: 3 | V38: 0.297 | W38: 826 | X38: -0.5 | Y38: 5.1 | Z38: -0.1
A39: Derrek Lee | B39: FLA | C39: 162 | D39: 581 | E39: 688 | F39: 157 | G39: 88 | H39: 35 | I39: 7 | J39: 27 | K39: 95 | L39: 86 | M39: 98 | N39: 8 | O39: 164 | P39: 5 | Q39: 4 | R39: 0 | S39: 14 | T39: 19 | U39: 9 | V39: 0.27 | W39: 525 | X39: 0 | Y39: 0 | Z39: -3.5
A40: Doug Mientkiewicz | B40: MIN | C40: 143 | D40: 467 | E40: 554 | F40: 122 | G40: 82 | H40: 29 | I40: 1 | J40: 10 | K40: 60 | L40: 64 | M40: 74 | N40: 8 | O40: 69 | P40: 6 | Q40: 7 | R40: 0 | S40: 7 | T40: 1 | U40: 2 | V40: 0.261 | W40: 741 | X40: 1.5 | Y40: -0.7 | Z40: 11.9
A41: Edgar Renteria | B41: STL | C41: 152 | D41: 544 | E41: 609 | F41: 166 | G41: 117 | H41: 36 | I41: 2 | J41: 11 | K41: 77 | L41: 83 | M41: 49 | N41: 7 | O41: 57 | P41: 4 | Q41: 5 | R41: 7 | S41: 17 | T41: 22 | U41: 7 | V41: 0.305 | W41: 1178 | X41: -0.8 | Y41: 1.4 | Z41: 6.6
A42: Edgardo Alfonzo | B42: NYM | C42: 135 | D42: 490 | E42: 562 | F42: 151 | G42: 109 | H42: 26 | I42: 0 | J42: 16 | K42: 78 | L42: 56 | M42: 62 | N42: 8 | O42: 55 | P42: 7 | Q42: 3 | R42: 0 | S42: 5 | T42: 6 | U42: 0 | V42: 0.308 | W42: 859 | X42: 2 | Y42: 1.2 | Z42: 6.9
A43: Ellis Burks | B43: CLE | C43: 138 | D43: 518 | E43: 570 | F43: 156 | G43: 96 | H43: 28 | I43: 0 | J43: 32 | K43: 92 | L43: 91 | M43: 44 | N43: 3 | O43: 108 | P43: 6 | Q43: 1 | R43: 1 | S43: 13 | T43: 2 | U43: 3 | V43: 0.301 | W43: 372 | X43: 0.5 | Y43: -0.9 | Z43: -0.3
A44: Eric Chavez | B44: OAK | C44: 153 | D44: 585 | E44: 653 | F44: 161 | G44: 93 | H44: 31 | I44: 3 | J44: 34 | K44: 87 | L44: 109 | M44: 65 | N44: 13 | O44: 119 | P44: 1 | Q44: 2 | R44: 0 | S44: 8 | T44: 8 | U44: 3 | V44: 0.275 | W44: 906 | X44: 2.2 | Y44: 0.3 | Z44: 11
A45: Eric Hinske | B45: TOR | C45: 151 | D45: 566 | E45: 650 | F45: 158 | G45: 94 | H45: 38 | I45: 2 | J45: 24 | K45: 99 | L45: 84 | M45: 77 | N45: 5 | O45: 138 | P45: 2 | Q45: 5 | R45: 0 | S45: 12 | T45: 13 | U45: 1 | V45: 0.279 | W45: 1305 | X45: 0.8 | Y45: 2.1 | Z45: 2.4
A46: Eric Karros | B46: LAD | C46: 142 | D46: 524 | E46: 573 | F46: 142 | G46: 102 | H46: 26 | I46: 1 | J46: 13 | K46: 52 | L46: 73 | M46: 37 | N46: 1 | O46: 74 | P46: 6 | Q46: 6 | R46: 0 | S46: 11 | T46: 4 | U46: 2 | V46: 0.271 | W46: 659 | X46: 0.3 | Y46: -0.1 | Z46: 9.7
A47: Eric Young | B47: MIL | C47: 138 | D47: 496 | E47: 553 | F47: 139 | G47: 104 | H47: 29 | I47: 3 | J47: 3 | K47: 57 | L47: 28 | M47: 39 | N47: 0 | O47: 38 | P47: 6 | Q47: 4 | R47: 8 | S47: 14 | T47: 31 | U47: 11 | V47: 0.28 | W47: 716 | X47: -2 | Y47: 1.5 | Z47: -0.3
A48: Fernando Vina | B48: STL | C48: 150 | D48: 622 | E48: 692 | F48: 168 | G48: 133 | H48: 29 | I48: 5 | J48: 1 | K48: 75 | L48: 54 | M48: 44 | N48: 2 | O48: 36 | P48: 18 | Q48: 7 | R48: 1 | S48: 11 | T48: 17 | U48: 11 | V48: 0.27 | W48: 1189 | X48: -0.5 | Y48: -1.3 | Z48: -1.1
A49: Frank Thomas | B49: CHW | C49: 148 | D49: 523 | E49: 628 | F49: 132 | G49: 74 | H49: 29 | I49: 1 | J49: 28 | K49: 77 | L49: 92 | M49: 88 | N49: 2 | O49: 115 | P49: 7 | Q49: 10 | R49: 0 | S49: 10 | T49: 3 | U49: 0 | V49: 0.252 | W49: 255 | X49: 1 | Y49: 0.6 | Z49: -0.6
A50: Fred McGriff | B50: CHC | C50: 146 | D50: 523 | E50: 595 | F50: 143 | G50: 84 | H50: 27 | I50: 2 | J50: 30 | K50: 67 | L50: 103 | M50: 63 | N50: 6 | O50: 99 | P50: 4 | Q50: 5 | R50: 0 | S50: 13 | T50: 1 | U50: 2 | V50: 0.273 | W50: 293 | X50: -0.3 | Y50: -0.7 | Z50: -0.9
A51: Garret Anderson | B51: ANA | C51: 158 | D51: 638 | E51: 678 | F51: 195 | G51: 107 | H51: 56 | I51: 3 | J51: 29 | K51: 93 | L51: 123 | M51: 30 | N51: 11 | O51: 80 | P51: 0 | Q51: 10 | R51: 0 | S51: 11 | T51: 6 | U51: 4 | V51: 0.306 | W51: 2 | X51: 2.8 | Y51: -0.5 | Z51: -1.1
A52: Gary Sheffield | B52: ATL | C52: 135 | D52: 492 | E52: 579 | F52: 151 | G52: 100 | H52: 26 | I52: 0 | J52: 25 | K52: 82 | L52: 84 | M52: 72 | N52: 2 | O52: 53 | P52: 11 | Q52: 4 | R52: 0 | S52: 16 | T52: 12 | U52: 2 | V52: 0.307 | W52: 114 | X52: -0.5 | Y52: 1.5 | Z52: 0.8
A53: Ichiro Suzuki | B53: SEA | C53: 157 | D53: 647 | E53: 728 | F53: 208 | G53: 165 | H53: 27 | I53: 8 | J53: 8 | K53: 111 | L53: 51 | M53: 68 | N53: 27 | O53: 62 | P53: 5 | Q53: 5 | R53: 3 | S53: 8 | T53: 31 | U53: 15 | V53: 0.321 | W53: 1101 | X53: 1.8 | Y53: -0.2 | Z53: 6.7
A54: Jack Wilson | B54: PIT | C54: 147 | D54: 527 | E54: 586 | F54: 133 | G54: 103 | H54: 22 | I54: 4 | J54: 4 | K54: 77 | L54: 47 | M54: 37 | N54: 2 | O54: 74 | P54: 4 | Q54: 1 | R54: 17 | S54: 7 | T54: 5 | U54: 2 | V54: 0.252 | W54: 1017 | X54: 2.6 | Y54: 0.1 | Z54: -4.1
A55: Jacque Jones | B55: MIN | C55: 149 | D55: 577 | E55: 626 | F55: 173 | G55: 107 | H55: 37 | I55: 2 | J55: 27 | K55: 96 | L55: 85 | M55: 37 | N55: 2 | O55: 129 | P55: 2 | Q55: 6 | R55: 4 | S55: 8 | T55: 6 | U55: 7 | V55: 0.3 | W55: 735 | X55: 0.2 | Y55: -1.8 | Z55: 17.6
A56: Jason Giambi | B56: NYY | C56: 155 | D56: 560 | E56: 689 | F56: 176 | G56: 100 | H56: 34 | I56: 1 | J56: 41 | K56: 120 | L56: 122 | M56: 109 | N56: 4 | O56: 112 | P56: 15 | Q56: 5 | R56: 0 | S56: 18 | T56: 2 | U56: 2 | V56: 0.314 | W56: 818 | X56: 0.2 | Y56: -0.5 | Z56: -2.5
A57: Jason Kendall | B57: PIT | C57: 145 | D57: 545 | E57: 605 | F57: 154 | G57: 123 | H57: 25 | I57: 3 | J57: 3 | K57: 59 | L57: 44 | M57: 49 | N57: 1 | O57: 29 | P57: 9 | Q57: 2 | R57: 0 | S57: 11 | T57: 15 | U57: 8 | V57: 0.283 | W57: 993 | X57: 0.8 | Y57: -0.4 | Z57: 3
A58: Jason Varitek | B58: BOS | C58: 132 | D58: 467 | E58: 519 | F58: 124 | G58: 86 | H58: 27 | I58: 1 | J58: 10 | K58: 58 | L58: 61 | M58: 41 | N58: 3 | O58: 95 | P58: 7 | Q58: 3 | R58: 1 | S58: 13 | T58: 4 | U58: 3 | V58: 0.266 | W58: 217 | X58: 0.1 | Y58: -0.5 | Z58: 4
A59: Jay Gibbons | B59: BAL | C59: 136 | D59: 490 | E59: 541 | F59: 121 | G59: 63 | H59: 29 | I59: 1 | J59: 28 | K59: 71 | L59: 69 | M59: 45 | N59: 3 | O59: 66 | P59: 2 | Q59: 4 | R59: 0 | S59: 9 | T59: 1 | U59: 3 | V59: 0.247 | W59: 141 | X59: 0.5 | Y59: -1.1 | Z59: -0.5
A60: Jeff Bagwell | B60: HOU NL | C60: 158 | D60: 571 | E60: 691 | F60: 166 | G60: 100 | H60: 33 | I60: 2 | J60: 31 | K60: 94 | L60: 98 | M60: 101 | N60: 8 | O60: 130 | P60: 10 | Q60: 9 | R60: 0 | S60: 16 | T60: 7 | U60: 3 | V60: 0.291 | W60: 547 | X60: -0.2 | Y60: 0.1 | Z60: 3.1
A61: Jeff Cirillo | B61: SEA | C61: 146 | D61: 485 | E61: 547 | F61: 121 | G61: 95 | H61: 20 | I61: 0 | J61: 6 | K61: 51 | L61: 54 | M61: 31 | N61: 0 | O61: 67 | P61: 9 | Q61: 9 | R61: 13 | S61: 12 | T61: 8 | U61: 4 | V61: 0.249 | W61: 1073 | X61: 0.3 | Y61: -0.1 | Z61: 10
A62: Jeff Kent | B62: SFG | C62: 152 | D62: 623 | E62: 682 | F62: 195 | G62: 114 | H62: 42 | I62: 2 | J62: 37 | K62: 102 | L62: 108 | M62: 52 | N62: 3 | O62: 101 | P62: 4 | Q62: 3 | R62: 0 | S62: 20 | T62: 5 | U62: 1 | V62: 0.313 | W62: 1119 | X62: -0.2 | Y62: 0.5 | Z62: 1.6
A63: Jeffrey Hammonds | B63: MIL | C63: 128 | D63: 448 | E63: 510 | F63: 115 | G63: 75 | H63: 26 | I63: 5 | J63: 9 | K63: 47 | L63: 41 | M63: 52 | N63: 0 | O63: 86 | P63: 2 | Q63: 7 | R63: 1 | S63: 13 | T63: 4 | U63: 5 | V63: 0.257 | W63: 687 | X63: -0.5 | Y63: -1.3 | Z63: -8.7
A64: Jermaine Dye | B64: OAK | C64: 131 | D64: 488 | E64: 555 | F64: 123 | G64: 71 | H64: 27 | I64: 1 | J64: 24 | K64: 74 | L64: 86 | M64: 52 | N64: 2 | O64: 108 | P64: 10 | Q64: 5 | R64: 0 | S64: 15 | T64: 2 | U64: 0 | V64: 0.252 | W64: 911 | X64: -0.8 | Y64: 0.4 | Z64: -14.9
A65: Jeromy Burnitz | B65: NYM | C65: 154 | D65: 479 | E65: 550 | F65: 103 | G65: 69 | H65: 15 | I65: 0 | J65: 19 | K65: 65 | L65: 54 | M65: 58 | N65: 5 | O65: 135 | P65: 10 | Q65: 2 | R65: 1 | S65: 11 | T65: 10 | U65: 7 | V65: 0.215 | W65: 867 | X65: 0.6 | Y65: -1 | Z65: 5.6
A66: Jim Edmonds | B66: STL | C66: 144 | D66: 476 | E66: 576 | F66: 148 | G66: 87 | H66: 31 | I66: 2 | J66: 28 | K66: 96 | L66: 83 | M66: 86 | N66: 14 | O66: 134 | P66: 8 | Q66: 6 | R66: 0 | S66: 9 | T66: 4 | U66: 3 | V66: 0.311 | W66: 1153 | X66: 1.5 | Y66: -0.5 | Z66: 6.6
A67: Jim Thome | B67: CLE | C67: 147 | D67: 480 | E67: 613 | F67: 146 | G67: 73 | H67: 19 | I67: 2 | J67: 52 | K67: 101 | L67: 118 | M67: 122 | N67: 18 | O67: 139 | P67: 5 | Q67: 6 | R67: 0 | S67: 5 | T67: 1 | U67: 2 | V67: 0.304 | W67: 409 | X67: 3.2 | Y67: -0.7 | Z67: -4.8
A68: Jimmy Rollins | B68: PHI | C68: 154 | D68: 637 | E68: 705 | F68: 156 | G68: 102 | H68: 33 | I68: 10 | J68: 11 | K68: 82 | L68: 60 | M68: 54 | N68: 3 | O68: 103 | P68: 4 | Q68: 4 | R68: 6 | S68: 14 | T68: 31 | U68: 13 | V68: 0.245 | W68: 971 | X68: -0.9 | Y68: 0.7 | Z68: -3.3
A69: Joe Randa | B69: KCR | C69: 151 | D69: 549 | E69: 617 | F69: 155 | G69: 103 | H69: 36 | I69: 5 | J69: 11 | K69: 63 | L69: 80 | M69: 46 | N69: 1 | O69: 69 | P69: 9 | Q69: 11 | R69: 2 | S69: 13 | T69: 2 | U69: 1 | V69: 0.282 | W69: 623 | X69: 0 | Y69: -0.1 | Z69: 4.7
A70: John Olerud | B70: SEA | C70: 154 | D70: 553 | E70: 668 | F70: 166 | G70: 105 | H70: 39 | I70: 0 | J70: 22 | K70: 85 | L70: 102 | M70: 98 | N70: 6 | O70: 66 | P70: 5 | Q70: 12 | R70: 0 | S70: 19 | T70: 0 | U70: 0 | V70: 0.3 | W70: 1093 | X70: -0.8 | Y70: -0.1 | Z70: -0.5
A71: Johnny Damon | B71: BOS | C71: 154 | D71: 623 | E71: 702 | F71: 178 | G71: 119 | H71: 34 | I71: 11 | J71: 14 | K71: 118 | L71: 63 | M71: 65 | N71: 5 | O71: 70 | P71: 6 | Q71: 5 | R71: 3 | S71: 4 | T71: 31 | U71: 6 | V71: 0.286 | W71: 185 | X71: 2.8 | Y71: 3.6 | Z71: 2.3
A72: Jorge Posada | B72: NYY | C72: 143 | D72: 511 | E72: 598 | F72: 137 | G72: 76 | H72: 40 | I72: 1 | J72: 20 | K72: 79 | L72: 99 | M72: 81 | N72: 9 | O72: 143 | P72: 3 | Q72: 3 | R72: 0 | S72: 23 | T72: 1 | U72: 0 | V72: 0.268 | W72: 841 | X72: -3 | Y72: 0.2 | Z72: -4
A73: Jose Cruz | B73: TOR | C73: 124 | D73: 466 | E73: 522 | F73: 114 | G73: 65 | H73: 26 | I73: 5 | J73: 18 | K73: 64 | L73: 70 | M73: 51 | N73: 1 | O73: 106 | P73: 0 | Q73: 4 | R73: 1 | S73: 8 | T73: 7 | U73: 1 | V73: 0.245 | W73: 1296 | X73: 1.2 | Y73: 1 | Z73: 8.8
A74: Jose Hernandez | B74: MIL | C74: 152 | D74: 525 | E74: 582 | F74: 151 | G74: 101 | H74: 24 | I74: 2 | J74: 24 | K74: 72 | L74: 73 | M74: 52 | N74: 5 | O74: 188 | P74: 4 | Q74: 1 | R74: 0 | S74: 19 | T74: 3 | U74: 5 | V74: 0.288 | W74: 688 | X74: -2.1 | Y74: -1.5 | Z74: 9.8
A75: Jose Valentin | B75: CHW | C75: 135 | D75: 474 | E75: 527 | F75: 118 | G75: 63 | H75: 26 | I75: 4 | J75: 25 | K75: 70 | L75: 75 | M75: 43 | N75: 2 | O75: 99 | P75: 2 | Q75: 5 | R75: 3 | S75: 9 | T75: 3 | U75: 3 | V75: 0.249 | W75: 256 | X75: 0.6 | Y75: -0.7 | Z75: 11.7
A76: Jose Vidro | B76: MON | C76: 152 | D76: 604 | E76: 681 | F76: 190 | G76: 125 | H76: 43 | I76: 3 | J76: 19 | K76: 103 | L76: 96 | M76: 60 | N76: 1 | O76: 70 | P76: 3 | Q76: 3 | R76: 11 | S76: 12 | T76: 2 | U76: 1 | V76: 0.315 | W76: 802 | X76: 0.3 | Y76: -0.1 | Z76: -7.9
A77: Juan Encarnacion | B77: - - - | C77: 152 | D77: 584 | E77: 644 | F77: 158 | G77: 107 | H77: 22 | I77: 5 | J77: 24 | K77: 77 | L77: 85 | M77: 46 | N77: 0 | O77: 113 | P77: 4 | Q77: 7 | R77: 3 | S77: 18 | T77: 21 | U77: 9 | V77: 0.271 | W77: 320 | X77: -1.7 | Y77: 0.4 | Z77: -1
A78: Juan Pierre | B78: COL | C78: 152 | D78: 592 | E78: 640 | F78: 170 | G78: 144 | H78: 20 | I78: 5 | J78: 1 | K78: 90 | L78: 35 | M78: 31 | N78: 0 | O78: 52 | P78: 9 | Q78: 0 | R78: 8 | S78: 7 | T78: 47 | U78: 12 | V78: 0.287 | W78: 443 | X78: 0.3 | Y78: 4.3 | Z78: 14.1
A79: Juan Uribe | B79: COL | C79: 155 | D79: 566 | E79: 618 | F79: 136 | G79: 98 | H79: 25 | I79: 7 | J79: 6 | K79: 69 | L79: 49 | M79: 34 | N79: 1 | O79: 120 | P79: 5 | Q79: 6 | R79: 7 | S79: 17 | T79: 9 | U79: 2 | V79: 0.24 | W79: 454 | X79: -2.3 | Y79: 0.9 | Z79: -2.9
A80: Junior Spivey | B80: ARI | C80: 143 | D80: 538 | E80: 626 | F80: 162 | G80: 106 | H80: 34 | I80: 6 | J80: 16 | K80: 103 | L80: 78 | M80: 65 | N80: 5 | O80: 100 | P80: 16 | Q80: 6 | R80: 1 | S80: 10 | T80: 11 | U80: 6 | V80: 0.301 | W80: 74 | X80: 1.1 | Y80: -0.4 | Z80: 0.2
A81: Kenny Lofton | B81: - - - | C81: 139 | D81: 532 | E81: 611 | F81: 139 | G81: 89 | H81: 30 | I81: 9 | J81: 11 | K81: 98 | L81: 51 | M81: 72 | N81: 0 | O81: 73 | P81: 1 | Q81: 1 | R81: 5 | S81: 1 | T81: 29 | U81: 11 | V81: 0.261 | W81: 246 | X81: 2.9 | Y81: 1.1 | Z81: -3.3
A82: Kevin Young | B82: PIT | C82: 146 | D82: 468 | E82: 525 | F82: 115 | G82: 72 | H82: 26 | I82: 1 | J82: 16 | K82: 60 | L82: 51 | M82: 50 | N82: 2 | O82: 101 | P82: 4 | Q82: 3 | R82: 0 | S82: 13 | T82: 4 | U82: 6 | V82: 0.246 | W82: 1018 | X82: -0.2 | Y82: -1.8 | Z82: 2.9
A83: Lance Berkman | B83: HOU NL | C83: 158 | D83: 578 | E83: 692 | F83: 169 | G83: 90 | H83: 35 | I83: 2 | J83: 42 | K83: 106 | L83: 128 | M83: 107 | N83: 20 | O83: 118 | P83: 4 | Q83: 3 | R83: 0 | S83: 10 | T83: 8 | U83: 4 | V83: 0.292 | W83: 548 | X83: 2 | Y83: -0.1 | Z83: -6.4
A84: Larry Walker | B84: COL | C84: 136 | D84: 477 | E84: 553 | F84: 161 | G84: 91 | H84: 40 | I84: 4 | J84: 26 | K84: 95 | L84: 104 | M84: 65 | N84: 6 | O84: 73 | P84: 7 | Q84: 4 | R84: 0 | S84: 8 | T84: 6 | U84: 5 | V84: 0.338 | W84: 455 | X84: 1.5 | Y84: -0.9 | Z84: 3.4
A85: Luis Castillo | B85: FLA | C85: 146 | D85: 606 | E85: 668 | F85: 185 | G85: 160 | H85: 18 | I85: 5 | J85: 2 | K85: 86 | L85: 39 | M85: 55 | N85: 4 | O85: 76 | P85: 2 | Q85: 1 | R85: 4 | S85: 7 | T85: 48 | U85: 15 | V85: 0.305 | W85: 513 | X85: 1.2 | Y85: 3.2 | Z85: -5.3
A86: Luis Gonzalez | B86: ARI | C86: 148 | D86: 524 | E86: 633 | F86: 151 | G86: 101 | H86: 19 | I86: 3 | J86: 28 | K86: 90 | L86: 103 | M86: 97 | N86: 8 | O86: 76 | P86: 5 | Q86: 7 | R86: 0 | S86: 12 | T86: 9 | U86: 2 | V86: 0.288 | W86: 55 | X86: 2.4 | Y86: 0.9 | Z86: 9.8
A87: Magglio Ordonez | B87: CHW | C87: 153 | D87: 590 | E87: 654 | F87: 189 | G87: 103 | H87: 47 | I87: 1 | J87: 38 | K87: 116 | L87: 135 | M87: 53 | N87: 2 | O87: 77 | P87: 7 | Q87: 3 | R87: 0 | S87: 21 | T87: 7 | U87: 5 | V87: 0.32 | W87: 248 | X87: -1 | Y87: -0.7 | Z87: -12.7
A88: Manny Ramirez | B88: BOS | C88: 120 | D88: 436 | E88: 518 | F88: 152 | G88: 88 | H88: 31 | I88: 0 | J88: 33 | K88: 84 | L88: 107 | M88: 73 | N88: 14 | O88: 85 | P88: 8 | Q88: 1 | R88: 0 | S88: 13 | T88: 0 | U88: 0 | V88: 0.349 | W88: 210 | X88: -1.5 | Y88: 0 | Z88: -5
A89: Mark Bellhorn | B89: CHC | C89: 146 | D89: 445 | E89: 529 | F89: 115 | G89: 60 | H89: 24 | I89: 4 | J89: 27 | K89: 86 | L89: 56 | M89: 76 | N89: 3 | O89: 144 | P89: 6 | Q89: 0 | R89: 2 | S89: 6 | T89: 7 | U89: 5 | V89: 0.258 | W89: 264 | X89: 0.2 | Y89: -0.7 | Z89: -5
A90: Mark Grudzielanek | B90: LAD | C90: 150 | D90: 536 | E90: 566 | F90: 145 | G90: 113 | H90: 23 | I90: 0 | J90: 9 | K90: 56 | L90: 50 | M90: 22 | N90: 4 | O90: 89 | P90: 3 | Q90: 4 | R90: 1 | S90: 17 | T90: 4 | U90: 1 | V90: 0.271 | W90: 653 | X90: -1.9 | Y90: 0.3 | Z90: 9.6
A91: Mark Kotsay | B91: SDP | C91: 153 | D91: 578 | E91: 646 | F91: 169 | G91: 118 | H91: 27 | I91: 7 | J91: 17 | K91: 82 | L91: 61 | M91: 59 | N91: 0 | O91: 89 | P91: 3 | Q91: 4 | R91: 2 | S91: 10 | T91: 11 | U91: 9 | V91: 0.292 | W91: 1042 | X91: 0.1 | Y91: -1.6 | Z91: 9.3
A92: Marlon Anderson | B92: PHI | C92: 145 | D92: 539 | E92: 592 | F92: 139 | G92: 95 | H92: 30 | I92: 6 | J92: 8 | K92: 64 | L92: 48 | M92: 42 | N92: 14 | O92: 71 | P92: 5 | Q92: 4 | R92: 2 | S92: 16 | T92: 5 | U92: 1 | V92: 0.258 | W92: 947 | X92: -1.1 | Y92: 0.5 | Z92: -3.8
A93: Marty Cordova | B93: BAL | C93: 131 | D93: 458 | E93: 513 | F93: 116 | G93: 71 | H93: 25 | I93: 2 | J93: 18 | K93: 55 | L93: 64 | M93: 47 | N93: 3 | O93: 111 | P93: 3 | Q93: 3 | R93: 2 | S93: 17 | T93: 1 | U93: 6 | V93: 0.253 | W93: 132 | X93: -1.2 | Y93: -2.4 | Z93: 1.3
A94: Melvin Mora | B94: BAL | C94: 149 | D94: 557 | E94: 652 | F94: 130 | G94: 77 | H94: 30 | I94: 4 | J94: 19 | K94: 86 | L94: 64 | M94: 70 | N94: 2 | O94: 108 | P94: 20 | Q94: 4 | R94: 1 | S94: 7 | T94: 16 | U94: 10 | V94: 0.233 | W94: 157 | X94: 0.5 | Y94: -1 | Z94: 7
A95: Michael Tucker | B95: KCR | C95: 144 | D95: 475 | E95: 543 | F95: 118 | G95: 73 | H95: 27 | I95: 6 | J95: 12 | K95: 65 | L95: 56 | M95: 56 | N95: 1 | O95: 105 | P95: 3 | Q95: 2 | R95: 7 | S95: 5 | T95: 23 | U95: 9 | V95: 0.248 | W95: 635 | X95: 2.2 | Y95: 0.8 | Z95: -0.1
A96: Michael Young | B96: TEX | C96: 156 | D96: 573 | E96: 633 | F96: 150 | G96: 107 | H96: 26 | I96: 8 | J96: 9 | K96: 77 | L96: 62 | M96: 41 | N96: 1 | O96: 112 | P96: 0 | Q96: 6 | R96: 13 | S96: 14 | T96: 6 | U96: 7 | V96: 0.262 | W96: 1286 | X96: -0.9 | Y96: -1.8 | Z96: 6.3
A97: Miguel Tejada | B97: OAK | C97: 162 | D97: 662 | E97: 715 | F97: 204 | G97: 140 | H97: 30 | I97: 0 | J97: 34 | K97: 108 | L97: 131 | M97: 38 | N97: 3 | O97: 84 | P97: 11 | Q97: 4 | R97: 0 | S97: 21 | T97: 7 | U97: 2 | V97: 0.308 | W97: 941 | X97: -1 | Y97: 0.5 | Z97: -16.1
A98: Mike Cameron | B98: SEA | C98: 158 | D98: 545 | E98: 640 | F98: 130 | G98: 74 | H98: 26 | I98: 5 | J98: 25 | K98: 84 | L98: 80 | M98: 79 | N98: 3 | O98: 176 | P98: 7 | Q98: 5 | R98: 4 | S98: 8 | T98: 31 | U98: 8 | V98: 0.239 | W98: 1070 | X98: 2.4 | Y98: 2.8 | Z98: 11.4
A99: Mike Lieberthal | B99: PHI | C99: 130 | D99: 476 | E99: 530 | F99: 133 | G99: 87 | H99: 29 | I99: 2 | J99: 15 | K99: 46 | L99: 52 | M99: 38 | N99: 2 | O99: 58 | P99: 14 | Q99: 2 | R99: 0 | S99: 16 | T99: 0 | U99: 1 | V99: 0.279 | W99: 959 | X99: -1.3 | Y99: -0.5 | Z99: -3
A100: Mike Lowell | B100: FLA | C100: 160 | D100: 597 | E100: 678 | F100: 165 | G100: 97 | H100: 44 | I100: 0 | J100: 24 | K100: 88 | L100: 92 | M100: 65 | N100: 5 | O100: 92 | P100: 4 | Q100: 11 | R100: 0 | S100: 16 | T100: 4 | U100: 3 | V100: 0.276 | W100: 527 | X100: -0.1 | Y100: -0.5 | Z100: -8.8
A101: Mike Piazza | B101: NYM | C101: 135 | D101: 478 | E101: 541 | F101: 134 | G101: 76 | H101: 23 | I101: 2 | J101: 33 | K101: 69 | L101: 98 | M101: 57 | N101: 9 | O101: 82 | P101: 3 | Q101: 3 | R101: 0 | S101: 26 | T101: 0 | U101: 3 | V101: 0.28 | W101: 893 | X101: -3.2 | Y101: -1.3 | Z101: -12
A102: Mike Sweeney | B102: KCR | C102: 126 | D102: 471 | E102: 545 | F102: 160 | G102: 104 | H102: 31 | I102: 1 | J102: 24 | K102: 81 | L102: 86 | M102: 61 | N102: 10 | O102: 46 | P102: 6 | Q102: 7 | R102: 0 | S102: 9 | T102: 9 | U102: 7 | V102: 0.34 | W102: 634 | X102: -0.1 | Y102: -1.2 | Z102: 1.7
A103: Mo Vaughn | B103: NYM | C103: 139 | D103: 487 | E103: 558 | F103: 126 | G103: 82 | H103: 18 | I103: 0 | J103: 26 | K103: 67 | L103: 72 | M103: 59 | N103: 6 | O103: 145 | P103: 10 | Q103: 2 | R103: 0 | S103: 15 | T103: 0 | U103: 1 | V103: 0.259 | W103: 899 | X103: -1.7 | Y103: -0.5 | Z103: -9.9
A104: Moises Alou | B104: CHC | C104: 132 | D104: 484 | E104: 534 | F104: 133 | G104: 94 | H104: 23 | I104: 1 | J104: 15 | K104: 50 | L104: 61 | M104: 47 | N104: 4 | O104: 61 | P104: 0 | Q104: 3 | R104: 0 | S104: 15 | T104: 8 | U104: 0 | V104: 0.275 | W104: 261 | X104: -0.9 | Y104: 1.6 | Z104: 3.4
A105: Neifi Perez | B105: KCR | C105: 145 | D105: 554 | E105: 585 | F105: 131 | G105: 104 | H105: 20 | I105: 4 | J105: 3 | K105: 65 | L105: 37 | M105: 20 | N105: 2 | O105: 53 | P105: 0 | Q105: 6 | R105: 5 | S105: 11 | T105: 8 | U105: 9 | V105: 0.236 | W105: 620 | X105: 0 | Y105: -2.2 | Z105: -11.7
A106: Nomar Garciaparra | B106: BOS | C106: 156 | D106: 635 | E106: 693 | F106: 197 | G106: 112 | H106: 56 | I106: 5 | J106: 24 | K106: 101 | L106: 120 | M106: 41 | N106: 4 | O106: 63 | P106: 6 | Q106: 11 | R106: 0 | S106: 17 | T106: 5 | U106: 2 | V106: 0.31 | W106: 190 | X106: -0.3 | Y106: 0.1 | Z106: -8.6
A107: Omar Vizquel | B107: CLE | C107: 151 | D107: 582 | E107: 663 | F107: 160 | G107: 110 | H107: 31 | I107: 5 | J107: 14 | K107: 85 | L107: 72 | M107: 56 | N107: 3 | O107: 64 | P107: 8 | Q107: 10 | R107: 7 | S107: 7 | T107: 18 | U107: 10 | V107: 0.275 | W107: 411 | X107: 2.8 | Y107: -0.6 | Z107: -3
A108: Orlando Cabrera | B108: MON | C108: 153 | D108: 563 | E108: 626 | F108: 148 | G108: 97 | H108: 43 | I108: 1 | J108: 7 | K108: 64 | L108: 56 | M108: 48 | N108: 4 | O108: 53 | P108: 2 | Q108: 4 | R108: 9 | S108: 16 | T108: 25 | U108: 7 | V108: 0.263 | W108: 766 | X108: 0.5 | Y108: 2 | Z108: -0.6
A109: Pat Burrell | B109: PHI | C109: 157 | D109: 586 | E109: 684 | F109: 165 | G109: 87 | H109: 39 | I109: 2 | J109: 37 | K109: 96 | L109: 116 | M109: 89 | N109: 9 | O109: 153 | P109: 3 | Q109: 6 | R109: 0 | S109: 16 | T109: 1 | U109: 0 | V109: 0.282 | W109: 949 | X109: -0.2 | Y109: 0.2 | Z109: -3.7
A110: Paul Konerko | B110: CHW | C110: 151 | D110: 570 | E110: 630 | F110: 173 | G110: 116 | H110: 30 | I110: 0 | J110: 27 | K110: 81 | L110: 104 | M110: 44 | N110: 2 | O110: 72 | P110: 9 | Q110: 7 | R110: 0 | S110: 17 | T110: 0 | U110: 0 | V110: 0.304 | W110: 242 | X110: -1.9 | Y110: 0 | Z110: -4.4
A111: Paul Lo Duca | B111: LAD | C111: 149 | D111: 580 | E111: 632 | F111: 163 | G111: 114 | H111: 38 | I111: 1 | J111: 10 | K111: 74 | L111: 64 | M111: 34 | N111: 2 | O111: 31 | P111: 10 | Q111: 4 | R111: 4 | S111: 20 | T111: 3 | U111: 1 | V111: 0.281 | W111: 662 | X111: -2.6 | Y111: 0.1 | Z111: 2.1
A112: Placido Polanco | B112: - - - | C112: 147 | D112: 548 | E112: 595 | F112: 158 | G112: 115 | H112: 32 | I112: 2 | J112: 9 | K112: 75 | L112: 49 | M112: 26 | N112: 1 | O112: 41 | P112: 8 | Q112: 0 | R112: 13 | S112: 15 | T112: 5 | U112: 3 | V112: 0.288 | W112: 1176 | X112: -0.4 | Y112: -0.3 | Z112: 9.4
A113: Preston Wilson | B113: FLA | C113: 141 | D113: 510 | E113: 582 | F113: 124 | G113: 77 | H113: 22 | I113: 2 | J113: 23 | K113: 80 | L113: 65 | M113: 58 | N113: 3 | O113: 140 | P113: 9 | Q113: 3 | R113: 2 | S113: 17 | T113: 20 | U113: 11 | V113: 0.243 | W113: 545 | X113: -1.7 | Y113: -0.7 | Z113: -2.9
A114: Rafael Furcal | B114: ATL | C114: 154 | D114: 636 | E114: 693 | F114: 175 | G114: 128 | H114: 31 | I114: 8 | J114: 8 | K114: 95 | L114: 47 | M114: 43 | N114: 0 | O114: 114 | P114: 3 | Q114: 2 | R114: 9 | S114: 8 | T114: 27 | U114: 15 | V114: 0.275 | W114: 88 | X114: -0.1 | Y114: -0.9 | Z114: 4.5
A115: Rafael Palmeiro | B115: TEX | C115: 155 | D115: 546 | E115: 663 | F115: 149 | G115: 72 | H115: 34 | I115: 0 | J115: 43 | K115: 99 | L115: 105 | M115: 104 | N115: 16 | O115: 94 | P115: 6 | Q115: 7 | R115: 0 | S115: 10 | T115: 2 | U115: 0 | V115: 0.273 | W115: 1266 | X115: 0.8 | Y115: 0.4 | Z115: 2.4
A116: Randall Simon | B116: DET | C116: 130 | D116: 482 | E116: 506 | F116: 145 | G116: 108 | H116: 17 | I116: 1 | J116: 19 | K116: 51 | L116: 82 | M116: 13 | N116: 5 | O116: 30 | P116: 4 | Q116: 7 | R116: 0 | S116: 13 | T116: 0 | U116: 1 | V116: 0.301 | W116: 497 | X116: -1.4 | Y116: -0.5 | Z116: -11.5
A117: Randy Winn | B117: TBD | C117: 152 | D117: 607 | E117: 674 | F117: 181 | G117: 119 | H117: 39 | I117: 9 | J117: 14 | K117: 87 | L117: 75 | M117: 55 | N117: 3 | O117: 109 | P117: 6 | Q117: 5 | R117: 1 | S117: 9 | T117: 27 | U117: 8 | V117: 0.298 | W117: 1235 | X117: 0.4 | Y117: 2 | Z117: 1.2
A118: Raul Ibanez | B118: KCR | C118: 137 | D118: 497 | E118: 544 | F118: 146 | G118: 79 | H118: 37 | I118: 6 | J118: 24 | K118: 70 | L118: 103 | M118: 40 | N118: 5 | O118: 76 | P118: 2 | Q118: 4 | R118: 1 | S118: 11 | T118: 5 | U118: 3 | V118: 0.294 | W118: 607 | X118: -0.4 | Y118: -0.3 | Z118: 0.5
A119: Raul Mondesi | B119: - - - | C119: 146 | D119: 569 | E119: 637 | F119: 132 | G119: 71 | H119: 34 | I119: 1 | J119: 26 | K119: 90 | L119: 88 | M119: 59 | N119: 3 | O119: 103 | P119: 5 | Q119: 4 | R119: 0 | S119: 11 | T119: 15 | U119: 6 | V119: 0.232 | W119: 1314 | X119: 1.7 | Y119: 0.4 | Z119: -16.7
A120: Ray Durham | B120: - - - | C120: 150 | D120: 564 | E120: 659 | F120: 163 | G120: 108 | H120: 34 | I120: 6 | J120: 15 | K120: 114 | L120: 70 | M120: 73 | N120: 1 | O120: 93 | P120: 7 | Q120: 5 | R120: 10 | S120: 15 | T120: 26 | U120: 7 | V120: 0.289 | W120: 230 | X120: 0.3 | Y120: 2.2 | Z120: -8.7
A121: Reggie Sanders | B121: SFG | C121: 140 | D121: 505 | E121: 571 | F121: 126 | G121: 74 | H121: 23 | I121: 6 | J121: 23 | K121: 75 | L121: 85 | M121: 47 | N121: 3 | O121: 121 | P121: 12 | Q121: 7 | R121: 0 | S121: 10 | T121: 18 | U121: 6 | V121: 0.25 | W121: 1129 | X121: 1.1 | Y121: 1 | Z121: 9.2
A122: Rich Aurilia | B122: SFG | C122: 133 | D122: 538 | E122: 589 | F122: 138 | G122: 86 | H122: 35 | I122: 2 | J122: 15 | K122: 76 | L122: 61 | M122: 37 | N122: 0 | O122: 90 | P122: 4 | Q122: 7 | R122: 3 | S122: 15 | T122: 1 | U122: 2 | V122: 0.257 | W122: 1106 | X122: -0.4 | Y122: -0.7 | Z122: 6.4
A123: Richie Sexson | B123: MIL | C123: 157 | D123: 570 | E123: 652 | F123: 159 | G123: 91 | H123: 37 | I123: 2 | J123: 29 | K123: 86 | L123: 102 | M123: 70 | N123: 7 | O123: 136 | P123: 8 | Q123: 4 | R123: 0 | S123: 17 | T123: 0 | U123: 0 | V123: 0.279 | W123: 709 | X123: -1.1 | Y123: 0 | Z123: 0.6
A124: Robert Fick | B124: DET | C124: 148 | D124: 556 | E124: 614 | F124: 150 | G124: 95 | H124: 36 | I124: 2 | J124: 17 | K124: 66 | L124: 63 | M124: 46 | N124: 4 | O124: 90 | P124: 7 | Q124: 5 | R124: 0 | S124: 17 | T124: 0 | U124: 1 | V124: 0.27 | W124: 466 | X124: -1.1 | Y124: -0.5 | Z124: 2
A125: Roberto Alomar | B125: NYM | C125: 149 | D125: 590 | E125: 655 | F125: 157 | G125: 118 | H125: 24 | I125: 4 | J125: 11 | K125: 73 | L125: 53 | M125: 57 | N125: 4 | O125: 83 | P125: 1 | Q125: 1 | R125: 6 | S125: 12 | T125: 16 | U125: 4 | V125: 0.266 | W125: 860 | X125: 0.3 | Y125: 1.5 | Z125: -1.3
A126: Robin Ventura | B126: NYY | C126: 141 | D126: 465 | E126: 562 | F126: 115 | G126: 71 | H126: 17 | I126: 0 | J126: 27 | K126: 68 | L126: 93 | M126: 90 | N126: 9 | O126: 101 | P126: 2 | Q126: 5 | R126: 0 | S126: 14 | T126: 3 | U126: 1 | V126: 0.247 | W126: 854 | X126: 0.2 | Y126: 0.1 | Z126: 2.7
A127: Roger Cedeno | B127: NYM | C127: 149 | D127: 511 | E127: 562 | F127: 133 | G127: 105 | H127: 19 | I127: 2 | J127: 7 | K127: 65 | L127: 41 | M127: 42 | N127: 1 | O127: 92 | P127: 2 | Q127: 2 | R127: 5 | S127: 10 | T127: 25 | U127: 4 | V127: 0.26 | W127: 869 | X127: -0.8 | Y127: 3.3 | Z127: -5.6
A128: Ryan Klesko | B128: SDP | C128: 146 | D128: 540 | E128: 625 | F128: 162 | G128: 93 | H128: 39 | I128: 1 | J128: 29 | K128: 90 | L128: 95 | M128: 76 | N128: 11 | O128: 86 | P128: 4 | Q128: 4 | R128: 1 | S128: 7 | T128: 6 | U128: 2 | V128: 0.3 | W128: 1041 | X128: 2.9 | Y128: 0.3 | Z128: -5.4
A129: Sammy Sosa | B129: CHC | C129: 150 | D129: 556 | E129: 666 | F129: 160 | G129: 90 | H129: 19 | I129: 2 | J129: 49 | K129: 122 | L129: 108 | M129: 103 | N129: 15 | O129: 144 | P129: 3 | Q129: 4 | R129: 0 | S129: 14 | T129: 2 | U129: 0 | V129: 0.288 | W129: 302 | X129: -0.3 | Y129: 0.4 | Z129: -13.4
A130: Scott Hatteberg | B130: OAK | C130: 136 | D130: 492 | E130: 569 | F130: 138 | G130: 97 | H130: 22 | I130: 4 | J130: 15 | K130: 58 | L130: 61 | M130: 69 | N130: 1 | O130: 56 | P130: 6 | Q130: 1 | R130: 1 | S130: 8 | T130: 0 | U130: 0 | V130: 0.28 | W130: 916 | X130: 1.7 | Y130: 0 | Z130: 7.5
A131: Scott Rolen | B131: - - - | C131: 155 | D131: 580 | E131: 667 | F131: 154 | G131: 86 | H131: 29 | I131: 8 | J131: 31 | K131: 89 | L131: 110 | M131: 72 | N131: 4 | O131: 102 | P131: 12 | Q131: 3 | R131: 0 | S131: 22 | T131: 8 | U131: 4 | V131: 0.266 | W131: 970 | X131: -2.7 | Y131: -0.1 | Z131: 22.6
A132: Scott Spiezio | B132: ANA | C132: 153 | D132: 491 | E132: 571 | F132: 140 | G132: 92 | H132: 34 | I132: 2 | J132: 12 | K132: 80 | L132: 82 | M132: 67 | N132: 7 | O132: 52 | P132: 4 | Q132: 6 | R132: 3 | S132: 12 | T132: 6 | U132: 7 | V132: 0.285 | W132: 37 | X132: 0.3 | Y132: -1.8 | Z132: 10.7
A133: Shannon Stewart | B133: TOR | C133: 141 | D133: 577 | E133: 641 | F133: 175 | G133: 121 | H133: 38 | I133: 6 | J133: 10 | K133: 103 | L133: 45 | M133: 54 | N133: 2 | O133: 60 | P133: 9 | Q133: 1 | R133: 0 | S133: 17 | T133: 14 | U133: 2 | V133: 0.303 | W133: 1322 | X133: -1.9 | Y133: 1.9 | Z133: 2.7
A134: Shawn Green | B134: LAD | C134: 158 | D134: 582 | E134: 685 | F134: 166 | G134: 92 | H134: 31 | I134: 1 | J134: 42 | K134: 110 | L134: 114 | M134: 93 | N134: 22 | O134: 112 | P134: 5 | Q134: 5 | R134: 0 | S134: 26 | T134: 8 | U134: 5 | V134: 0.285 | W134: 651 | X134: -3.5 | Y134: -0.5 | Z134: -3
A135: Shea Hillenbrand | B135: BOS | C135: 156 | D135: 634 | E135: 676 | F135: 186 | G135: 121 | H135: 43 | I135: 4 | J135: 18 | K135: 94 | L135: 83 | M135: 25 | N135: 4 | O135: 95 | P135: 12 | Q135: 5 | R135: 0 | S135: 18 | T135: 4 | U135: 2 | V135: 0.293 | W135: 196 | X135: -1.5 | Y135: -0.1 | Z135: -7.5
A136: Steve Cox | B136: TBD | C136: 148 | D136: 560 | E136: 633 | F136: 142 | G136: 95 | H136: 30 | I136: 1 | J136: 16 | K136: 65 | L136: 72 | M136: 60 | N136: 5 | O136: 116 | P136: 7 | Q136: 6 | R136: 0 | S136: 15 | T136: 5 | U136: 0 | V136: 0.254 | W136: 1200 | X136: -0.5 | Y136: 1 | Z136: -3.6
A137: Steve Finley | B137: ARI | C137: 150 | D137: 505 | E137: 577 | F137: 145 | G137: 92 | H137: 24 | I137: 4 | J137: 25 | K137: 82 | L137: 89 | M137: 65 | N137: 7 | O137: 73 | P137: 3 | Q137: 3 | R137: 1 | S137: 10 | T137: 16 | U137: 4 | V137: 0.287 | W137: 54 | X137: 0.5 | Y137: 1.5 | Z137: 0.1
A138: Terrence Long | B138: OAK | C138: 162 | D138: 587 | E138: 640 | F138: 141 | G138: 89 | H138: 32 | I138: 4 | J138: 16 | K138: 71 | L138: 67 | M138: 48 | N138: 6 | O138: 96 | P138: 2 | Q138: 3 | R138: 0 | S138: 17 | T138: 3 | U138: 6 | V138: 0.24 | W138: 927 | X138: -1.4 | Y138: -2 | Z138: -2.9
A139: Tim Salmon | B139: ANA | C139: 138 | D139: 483 | E139: 568 | F139: 138 | G139: 78 | H139: 37 | I139: 1 | J139: 22 | K139: 84 | L139: 88 | M139: 71 | N139: 3 | O139: 102 | P139: 7 | Q139: 7 | R139: 0 | S139: 6 | T139: 6 | U139: 3 | V139: 0.286 | W139: 32 | X139: 1.7 | Y139: -0.1 | Z139: -2.7
A140: Tino Martinez | B140: STL | C140: 150 | D140: 511 | E140: 576 | F140: 134 | G140: 87 | H140: 25 | I140: 1 | J140: 21 | K140: 63 | L140: 75 | M140: 58 | N140: 9 | O140: 71 | P140: 2 | Q140: 4 | R140: 1 | S140: 12 | T140: 3 | U140: 2 | V140: 0.262 | W140: 1168 | X140: 0 | Y140: -0.3 | Z140: 0.8
A141: Todd Helton | B141: COL | C141: 156 | D141: 553 | E141: 668 | F141: 182 | G141: 109 | H141: 39 | I141: 4 | J141: 30 | K141: 107 | L141: 109 | M141: 99 | N141: 21 | O141: 91 | P141: 5 | Q141: 10 | R141: 0 | S141: 10 | T141: 5 | U141: 1 | V141: 0.329 | W141: 432 | X141: 1.1 | Y141: 0.5 | Z141: 11.7
A142: Todd Walker | B142: CIN | C142: 155 | D142: 612 | E142: 675 | F142: 183 | G142: 127 | H142: 42 | I142: 3 | J142: 11 | K142: 79 | L142: 64 | M142: 50 | N142: 7 | O142: 81 | P142: 3 | Q142: 3 | R142: 7 | S142: 9 | T142: 8 | U142: 5 | V142: 0.299 | W142: 359 | X142: 0.1 | Y142: -0.5 | Z142: -2.5
A143: Todd Zeile | B143: COL | C143: 144 | D143: 506 | E143: 580 | F143: 138 | G143: 97 | H143: 23 | I143: 0 | J143: 18 | K143: 61 | L143: 87 | M143: 66 | N143: 3 | O143: 92 | P143: 1 | Q143: 7 | R143: 0 | S143: 27 | T143: 1 | U143: 1 | V143: 0.273 | W143: 457 | X143: -4.7 | Y143: -0.3 | Z143: -11.4
A144: Tony Batista | B144: BAL | C144: 161 | D144: 615 | E144: 682 | F144: 150 | G144: 82 | H144: 36 | I144: 1 | J144: 31 | K144: 90 | L144: 87 | M144: 50 | N144: 9 | O144: 107 | P144: 11 | Q144: 6 | R144: 0 | S144: 13 | T144: 5 | U144: 4 | V144: 0.244 | W144: 124 | X144: -0.1 | Y144: -0.7 | Z144: -15.5
A145: Tony Womack | B145: ARI | C145: 153 | D145: 590 | E145: 652 | F145: 160 | G145: 127 | H145: 23 | I145: 5 | J145: 5 | K145: 90 | L145: 57 | M145: 46 | N145: 2 | O145: 80 | P145: 4 | Q145: 6 | R145: 6 | S145: 9 | T145: 29 | U145: 12 | V145: 0.271 | W145: 78 | X145: 1 | Y145: 0.7 | Z145: -7.1
A146: Torii Hunter | B146: MIN | C146: 148 | D146: 561 | E146: 604 | F146: 162 | G146: 92 | H146: 37 | I146: 4 | J146: 29 | K146: 89 | L146: 94 | M146: 35 | N146: 3 | O146: 118 | P146: 5 | Q146: 3 | R146: 0 | S146: 17 | T146: 23 | U146: 8 | V146: 0.289 | W146: 731 | X146: -1.6 | Y146: 1.2 | Z146: 3
A147: Travis Lee | B147: PHI | C147: 153 | D147: 536 | E147: 592 | F147: 142 | G147: 101 | H147: 26 | I147: 2 | J147: 13 | K147: 55 | L147: 70 | M147: 54 | N147: 10 | O147: 104 | P147: 0 | Q147: 2 | R147: 0 | S147: 12 | T147: 5 | U147: 3 | V147: 0.265 | W147: 958 | X147: 0.7 | Y147: -0.3 | Z147: 7.3
A148: Trot Nixon | B148: BOS | C148: 152 | D148: 532 | E148: 612 | F148: 136 | G148: 73 | H148: 36 | I148: 3 | J148: 24 | K148: 81 | L148: 94 | M148: 65 | N148: 2 | O148: 109 | P148: 5 | Q148: 7 | R148: 3 | S148: 7 | T148: 4 | U148: 2 | V148: 0.256 | W148: 204 | X148: 1.8 | Y148: -0.1 | Z148: 3.9
A149: Troy Glaus | B149: ANA | C149: 156 | D149: 569 | E149: 671 | F149: 142 | G149: 87 | H149: 24 | I149: 1 | J149: 30 | K149: 99 | L149: 111 | M149: 88 | N149: 4 | O149: 144 | P149: 6 | Q149: 8 | R149: 0 | S149: 12 | T149: 10 | U149: 3 | V149: 0.25 | W149: 15 | X149: 0.6 | Y149: 0.7 | Z149: -4.6
A150: Vernon Wells | B150: TOR | C150: 159 | D150: 608 | E150: 648 | F150: 167 | G150: 106 | H150: 34 | I150: 4 | J150: 23 | K150: 87 | L150: 100 | M150: 27 | N150: 0 | O150: 85 | P150: 3 | Q150: 8 | R150: 2 | S150: 15 | T150: 9 | U150: 4 | V150: 0.275 | W150: 1326 | X150: -0.1 | Y150: 0.1 | Z150: -6.1
A151: Vinny Castilla | B151: ATL | C151: 143 | D151: 543 | E151: 578 | F151: 126 | G151: 89 | H151: 23 | I151: 2 | J151: 12 | K151: 56 | L151: 61 | M151: 22 | N151: 4 | O151: 69 | P151: 7 | Q151: 6 | R151: 0 | S151: 22 | T151: 4 | U151: 1 | V151: 0.232 | W151: 84 | X151: -1.9 | Y151: 0.4 | Z151: -1.4
A152: Vladimir Guerrero | B152: MON | C152: 161 | D152: 614 | E152: 709 | F152: 206 | G152: 128 | H152: 37 | I152: 2 | J152: 39 | K152: 106 | L152: 111 | M152: 84 | N152: 32 | O152: 70 | P152: 6 | Q152: 5 | R152: 0 | S152: 20 | T152: 40 | U152: 20 | V152: 0.336 | W152: 778 | X152: -2.1 | Y152: -0.5 | Z152: 6.3

Sheet 2000f (hidden)

Sheet 2001f (hidden)

Sheet 2002f (hidden)
A1: Name | B1: Team | C1: Pos | D1: Inn | E1: rSZ | F1: rCERA | G1: rSB | H1: rGDP | I1: rARM | J1: rGFP | K1: rPM | L1: rTS | M1: DRS | N1: ARM | O1: DPR | P1: RngR | Q1: ErrR | R1: UZR | S1: UZR/150 | T1: FRM | U1: OAA | V1: RAA | W1: Def | X1: playerid
A2: Derrek Lee | B2: FLA | C2: 1B | D2: 1441.1 | H2: 0 | J2: 0 | K2: 0 | M2: 0 | O2: 0.7 | P2: -3.6 | Q2: -0.6 | R2: -3.5 | S2: -3.1 | W2: -15.9 | X2: 525
A3: Miguel Tejada | B3: OAK | C3: SS | D3: 1424 | H3: 0 | J3: 0 | K3: 0 | M3: 0 | O3: -0.6 | P3: -15 | Q3: -0.5 | R3: -16.1 | S3: -13.7 | W3: -8.8 | X3: 941
A4: Terrence Long | B4: OAK | C4: CF | D4: 1410 | I4: 0 | J4: 0 | K4: 0 | M4: 0 | N4: -1.4 | P4: 0 | Q4: -1.5 | R4: -2.9 | S4: -2.9 | W4: -0.4 | X4: 927
A5: Vladimir Guerrero | B5: MON | C5: RF | D5: 1409.1 | I5: 0 | J5: 0 | K5: 0 | M5: 0 | N5: 10 | P5: -1.7 | Q5: -1.9 | R5: 6.3 | S5: 6.2 | W5: -0.9 | X5: 778
A6: Mike Lowell | B6: FLA | C6: 3B | D6: 1401.1 | H6: 0 | J6: 0 | K6: 0 | M6: 0 | O6: 1.1 | P6: -12.7 | Q6: 2.8 | R6: -8.8 | S6: -8.6 | W6: -6.4 | X6: 527
A7: Alex Rodriguez | B7: TEX | C7: SS | D7: 1390.2 | H7: 0 | J7: 0 | K7: 0 | M7: 0 | O7: -1.4 | P7: 9 | Q7: 5 | R7: 12.5 | S7: 12.4 | W7: 19.6 | X7: 1274
A8: Shawn Green | B8: LAD | C8: RF | D8: 1388.2 | I8: 0 | J8: 0 | K8: 0 | M8: 0 | N8: 1.5 | P8: -6.3 | Q8: 1.8 | R8: -3 | S8: -2.6 | W8: -10.1 | X8: 651
A9: Alfonso Soriano | B9: NYY | C9: 2B | D9: 1388 | H9: 0 | J9: 0 | K9: 0 | M9: 0 | O9: 0.5 | P9: -1.6 | Q9: -6 | R9: -7 | S9: -7.2 | W9: -4.7 | X9: 847
A10: Derek Jeter | B10: NYY | C10: SS | D10: 1383.1 | H10: 0 | J10: 0 | K10: 0 | M10: 0 | O10: -0.6 | P10: 0.3 | Q10: 0.3 | R10: -0.1 | S10: -0.1 | W10: 7.1 | X10: 826
A11: Pat Burrell | B11: PHI | C11: LF | D11: 1383 | I11: 0 | J11: 0 | K11: 0 | M11: 0 | N11: -0.9 | P11: -3.6 | Q11: 0.8 | R11: -3.7 | S11: -3.8 | W11: -10.8 | X11: 949
A12: Tony Batista | B12: BAL | C12: 3B | D12: 1373.2 | H12: 0 | J12: 0 | K12: 0 | M12: 0 | O12: -0.3 | P12: -19.6 | Q12: 4.3 | R12: -15.5 | S12: -14 | W12: -13.2 | X12: 124
A13: Adrian Beltre | B13: LAD | C13: 3B | D13: 1372 | H13: 0 | J13: 0 | K13: 0 | M13: 0 | O13: -1 | P13: 23.7 | Q13: -1 | R13: 21.7 | S13: 23.4 | W13: 24.1 | X13: 639
A14: Shea Hillenbrand | B14: BOS | C14: 3B | D14: 1366 | H14: 0 | J14: 0 | K14: 0 | M14: 0 | O14: -0.7 | P14: -4.8 | Q14: -2 | R14: -7.5 | S14: -7.6 | W14: -5.1 | X14: 196
A15: Scott Rolen | B15: - - - | C15: 3B | D15: 1360 | H15: 0 | J15: 0 | K15: 0 | M15: 0 | O15: 2.1 | P15: 20 | Q15: 0.5 | R15: 22.6 | S15: 22.1 | W15: 24.9 | X15: 970
A16: Andruw Jones | B16: ATL | C16: CF | D16: 1357 | I16: 0 | J16: 0 | K16: 0 | M16: 0 | N16: 3.5 | P16: 11.2 | Q16: 1.1 | R16: 15.7 | S16: 16.1 | W16: 18.1 | X16: 96
A17: Orlando Cabrera | B17: MON | C17: SS | D17: 1352.1 | H17: 0 | J17: 0 | K17: 0 | M17: 0 | O17: -1.2 | P17: 5.3 | Q17: -4.7 | R17: -0.6 | S17: -0.5 | W17: 6.4 | X17: 766
A18: Jeff Bagwell | B18: HOU | C18: 1B | D18: 1350 | H18: 0 | J18: 0 | K18: 0 | M18: 0 | O18: -0.4 | P18: 1.2 | Q18: 2.3 | R18: 3.1 | S18: 3.2 | W18: -8.5 | X18: 547
A19: Jimmy Rollins | B19: PHI | C19: SS | D19: 1343.1 | H19: 0 | J19: 0 | K19: 0 | M19: 0 | O19: -3.1 | P19: -5.2 | Q19: 5 | R19: -3.3 | S19: -3 | W19: 3.6 | X19: 971
A20: Todd Helton | B20: COL | C20: 1B | D20: 1342 | H20: 0 | J20: 0 | K20: 0 | M20: 0 | O20: 0 | P20: 8.9 | Q20: 2.8 | R20: 11.7 | S20: 12 | W20: 0.2 | X20: 432
A21: Chipper Jones | B21: ATL | C21: LF | D21: 1342 | I21: 0 | J21: 0 | K21: 0 | M21: 0 | N21: -0.9 | P21: -0.5 | Q21: 1 | R21: -0.4 | S21: -0.7 | W21: -7.3 | X21: 97
A22: Nomar Garciaparra | B22: BOS | C22: SS | D22: 1341 | H22: 0 | J22: 0 | K22: 0 | M22: 0 | O22: 0.4 | P22: -5.9 | Q22: -3.1 | R22: -8.6 | S22: -7.9 | W22: -1.7 | X22: 190
A23: Troy Glaus | B23: ANA | C23: 3B | D23: 1335.1 | H23: 0 | J23: 0 | K23: 0 | M23: 0 | O23: 0.9 | P23: -6.3 | Q23: 0.8 | R23: -4.6 | S23: -4.4 | W23: -2.3 | X23: 15
A24: Richie Sexson | B24: MIL | C24: 1B | D24: 1324.1 | H24: 0 | J24: 0 | K24: 0 | M24: 0 | O24: -0.2 | P24: -2.7 | Q24: 3.5 | R24: 0.6 | S24: 0.6 | W24: -10.8 | X24: 709
A25: Jose Vidro | B25: MON | C25: 2B | D25: 1323 | H25: 0 | J25: 0 | K25: 0 | M25: 0 | O25: -3.5 | P25: -6.7 | Q25: 2.3 | R25: -7.9 | S25: -7.5 | W25: -5.6 | X25: 802
A26: Todd Walker | B26: CIN | C26: 2B | D26: 1319.1 | H26: 0 | J26: 0 | K26: 0 | M26: 0 | O26: -1 | P26: -6.5 | Q26: 5.1 | R26: -2.5 | S26: -2.3 | W26: -0.2 | X26: 359
A27: Johnny Damon | B27: BOS | C27: CF | D27: 1319 | I27: 0 | J27: 0 | K27: 0 | M27: 0 | N27: -3.5 | P27: 4.2 | Q27: 1.5 | R27: 2.3 | S27: 2.4 | W27: 4.5 | X27: 185
A28: John Olerud | B28: SEA | C28: 1B | D28: 1318.2 | H28: 0 | J28: 0 | K28: 0 | M28: 0 | O28: -0.1 | P28: -3 | Q28: 2.6 | R28: -0.5 | S28: -0.5 | W28: -11.8 | X28: 1093
A29: Bret Boone | B29: SEA | C29: 2B | D29: 1318.1 | H29: 0 | J29: 0 | K29: 0 | M29: 0 | O29: -0.6 | P29: -5.9 | Q29: 5.4 | R29: -1 | S29: -1.1 | W29: 1.2 | X29: 1067
A30: Mike Cameron | B30: SEA | C30: CF | D30: 1318 | I30: 0 | J30: 0 | K30: 0 | M30: 0 | N30: -3.3 | P30: 14.4 | Q30: 0.3 | R30: 11.4 | S30: 10.9 | W30: 13.6 | X30: 1070
A31: Bernie Williams | B31: NYY | C31: CF | D31: 1317.1 | I31: 0 | J31: 0 | K31: 0 | M31: 0 | N31: -9.1 | P31: -6.4 | Q31: -1.5 | R31: -17 | S31: -18.4 | W31: -14.8 | X31: 857
A32: Juan Uribe | B32: COL | C32: SS | D32: 1316 | H32: 0 | J32: 0 | K32: 0 | M32: 0 | O32: 0.2 | P32: -0.6 | Q32: -2.5 | R32: -2.9 | S32: -2.6 | W32: 3.9 | X32: 454
A33: Rafael Furcal | B33: ATL | C33: SS | D33: 1314.2 | H33: 0 | J33: 0 | K33: 0 | M33: 0 | O33: -0.2 | P33: 8.6 | Q33: -4.2 | R33: 4.1 | S33: 3.9 | W33: 10.9 | X33: 88
A34: Fernando Vina | B34: STL | C34: 2B | D34: 1312.1 | H34: 0 | J34: 0 | K34: 0 | M34: 0 | O34: 3.1 | P34: -4.2 | Q34: 0.1 | R34: -1.1 | S34: -0.9 | W34: 1.2 | X34: 1189
A35: Carlos Beltran | B35: KCR | C35: CF | D35: 1309.1 | I35: 0 | J35: 0 | K35: 0 | M35: 0 | N35: 4.1 | P35: 5.1 | Q35: -2 | R35: 7.1 | S35: 6.9 | W35: 9.4 | X35: 589
A36: Sammy Sosa | B36: CHC | C36: RF | D36: 1294.1 | I36: 0 | J36: 0 | K36: 0 | M36: 0 | N36: -9.1 | P36: -4.4 | Q36: 0.1 | R36: -13.4 | S36: -12.2 | W36: -20.1 | X36: 302
A37: Omar Vizquel | B37: CLE | C37: SS | D37: 1291 | H37: 0 | J37: 0 | K37: 0 | M37: 0 | O37: -0.1 | P37: -8.6 | Q37: 5.7 | R37: -3 | S37: -3 | W37: 3.7 | X37: 411
A38: Magglio Ordonez | B38: CHW | C38: RF | D38: 1288 | I38: 0 | J38: 0 | K38: 0 | M38: 0 | N38: -6.9 | P38: -6.5 | Q38: 0.7 | R38: -12.7 | S38: -13.3 | W38: -19.3 | X38: 248
A39: Edgar Renteria | B39: STL | C39: SS | D39: 1287.1 | H39: 0 | J39: 0 | K39: 0 | M39: 0 | O39: 2 | P39: 2.4 | Q39: 2.2 | R39: 6.6 | S39: 7.2 | W39: 13.3 | X39: 1178
A40: Ichiro Suzuki | B40: SEA | C40: RF | D40: 1284.1 | I40: 0 | J40: 0 | K40: 0 | M40: 0 | N40: -2.8 | P40: 10 | Q40: 0.8 | R40: 8 | S40: 7.9 | W40: 1.4 | X40: 1101
A41: Brian Giles | B41: PIT | C41: LF | D41: 1278.2 | I41: 0 | J41: 0 | K41: 0 | M41: 0 | N41: 2.4 | P41: -6.6 | Q41: -2.5 | R41: -6.7 | S41: -7.1 | W41: -13.3 | X41: 990
A42: Aaron Boone | B42: CIN | C42: 3B | D42: 1277.1 | H42: 0 | J42: 0 | K42: 0 | M42: 0 | O42: -1 | P42: 5.4 | Q42: 0.2 | R42: 4.6 | S42: 4.9 | W42: 6.8 | X42: 311
A43: David Eckstein | B43: ANA | C43: SS | D43: 1276.1 | H43: 0 | J43: 0 | K43: 0 | M43: 0 | O43: -0.7 | P43: 3.1 | Q43: 2 | R43: 4.4 | S43: 4.9 | W43: 11 | X43: 10
A44: Roberto Alomar | B44: NYM | C44: 2B | D44: 1272.2 | H44: 0 | J44: 0 | K44: 0 | M44: 0 | O44: 1 | P44: -2.9 | Q44: 0.6 | R44: -1.3 | S44: -1.6 | W44: 0.9 | X44: 860
A45: Tony Womack | B45: ARI | C45: SS | D45: 1271.2 | H45: 0 | J45: 0 | K45: 0 | M45: 0 | O45: -1.2 | P45: -4.4 | Q45: -1.5 | R45: -7.1 | S45: -8.3 | W45: -0.6 | X45: 78
A46: Jose Hernandez | B46: MIL | C46: SS | D46: 1268.1 | H46: 0 | J46: 0 | K46: 0 | M46: 0 | O46: -1.4 | P46: 9.2 | Q46: 2 | R46: 9.8 | S46: 10.5 | W46: 16.3 | X46: 688
A47: Eric Chavez | B47: OAK | C47: 3B | D47: 1262 | H47: 0 | J47: 0 | K47: 0 | M47: 0 | O47: -0.4 | P47: 9.7 | Q47: 2 | R47: 11.3 | S47: 11.1 | W47: 13.5 | X47: 906
A48: Cristian Guzman | B48: MIN | C48: SS | D48: 1261.2 | H48: 0 | J48: 0 | K48: 0 | M48: 0 | O48: -0.7 | P48: 2.6 | Q48: 1 | R48: 2.9 | S48: 3.5 | W48: 9.4 | X48: 728
A49: Jeff Kent | B49: SFG | C49: 2B | D49: 1259.1 | H49: 0 | J49: 0 | K49: 0 | M49: 0 | O49: 2.5 | P49: 2.5 | Q49: -3.3 | R49: 1.6 | S49: 1.6 | W49: 3.8 | X49: 1119
A50: Michael Young | B50: TEX | C50: 2B | D50: 1258.2 | H50: 0 | J50: 0 | K50: 0 | M50: 0 | O50: -0.6 | P50: 3.1 | Q50: 3.1 | R50: 5.6 | S50: 5.7 | W50: 7.7 | X50: 1286
A51: Luis Castillo | B51: FLA | C51: 2B | D51: 1257.2 | H51: 0 | J51: 0 | K51: 0 | M51: 0 | O51: 0.4 | P51: -5.6 | Q51: 0 | R51: -5.3 | S51: -5.4 | W51: -3.1 | X51: 513
A52: Eric Hinske | B52: TOR | C52: 3B | D52: 1255.1 | H52: 0 | J52: 0 | K52: 0 | M52: 0 | O52: -0.7 | P52: 5.4 | Q52: -2.2 | R52: 2.4 | S52: 2.5 | W52: 4.6 | X52: 1305
A53: Luis Gonzalez | B53: ARI | C53: LF | D53: 1246.2 | I53: 0 | J53: 0 | K53: 0 | M53: 0 | N53: -2.9 | P53: 12.5 | Q53: 0.2 | R53: 9.8 | S53: 12.2 | W53: 3.4 | X53: 55
A54: Vernon Wells | B54: TOR | C54: CF | D54: 1240.1 | I54: 0 | J54: 0 | K54: 0 | M54: 0 | N54: 3.9 | P54: -11 | Q54: 1.4 | R54: -5.7 | S54: -6.3 | W54: -3.6 | X54: 1326
A55: Craig Biggio | B55: HOU | C55: 2B | D55: 1236.2 | H55: 0 | J55: 0 | K55: 0 | M55: 0 | O55: 1 | P55: -1.7 | Q55: 1.5 | R55: 0.9 | S55: 1 | W55: 3 | X55: 549
A56: Alex Gonzalez | B56: CHC | C56: SS | D56: 1236 | H56: 0 | J56: 0 | K56: 0 | M56: 0 | O56: 1.1 | P56: -3.1 | Q56: -2.7 | R56: -4.8 | S56: -6.4 | W56: 1.6 | X56: 281
A57: Torii Hunter | B57: MIN | C57: CF | D57: 1234.2 | I57: 0 | J57: 0 | K57: 0 | M57: 0 | N57: 2.5 | P57: -0.1 | Q57: 0.7 | R57: 3 | S57: 3.5 | W57: 5.1 | X57: 731
A58: Travis Lee | B58: PHI | C58: 1B | D58: 1230.2 | H58: 0 | J58: 0 | K58: 0 | M58: 0 | O58: -0.4 | P58: 4.7 | Q58: 3 | R58: 7.3 | S58: 7.4 | W58: -3.2 | X58: 958
A59: Junior Spivey | B59: ARI | C59: 2B | D59: 1230.2 | H59: 0 | J59: 0 | K59: 0 | M59: 0 | O59: -2.4 | P59: 5.3 | Q59: -2.6 | R59: 0.2 | S59: 0.2 | W59: 2.4 | X59: 74
A60: Carlos Delgado | B60: TOR | C60: 1B | D60: 1229 | H60: 0 | J60: 0 | K60: 0 | M60: 0 | O60: 0.4 | P60: 2.6 | Q60: -1.5 | R60: 1.4 | S60: 1.2 | W60: -9.1 | X60: 1297
A61: Mark Kotsay | B61: SDP | C61: CF | D61: 1228.1 | I61: 0 | J61: 0 | K61: 0 | M61: 0 | N61: 3.1 | P61: 6.1 | Q61: 0.1 | R61: 9.3 | S61: 9.8 | W61: 11.4 | X61: 1042
A62: Darin Erstad | B62: ANA | C62: CF | D62: 1227.2 | I62: 0 | J62: 0 | K62: 0 | M62: 0 | N62: 2.1 | P62: 14.1 | Q62: 1.8 | R62: 18.1 | S62: 17.7 | W62: 20.2 | X62: 11
A63: Mark Grudzielanek | B63: LAD | C63: 2B | D63: 1226.1 | H63: 0 | J63: 0 | K63: 0 | M63: 0 | O63: 2.5 | P63: 4.6 | Q63: 2.5 | R63: 9.6 | S63: 11.7 | W63: 11.7 | X63: 653
A64: Bobby Abreu | B64: PHI | C64: RF | D64: 1225.1 | I64: 0 | J64: 0 | K64: 0 | M64: 0 | N64: -4.4 | P64: -0.3 | Q64: -0.5 | R64: -5.1 | S64: -6.8 | W64: -11.4 | X64: 945
A65: Trot Nixon | B65: BOS | C65: RF | D65: 1223 | I65: 0 | J65: 0 | K65: 0 | M65: 0 | N65: -7.8 | P65: 12.2 | Q65: 0.5 | R65: 4.8 | S65: 6 | W65: -1.4 | X65: 204
A66: Vinny Castilla | B66: ATL | C66: 3B | D66: 1222.1 | H66: 0 | J66: 0 | K66: 0 | M66: 0 | O66: 0.2 | P66: -7.3 | Q66: 5.8 | R66: -1.4 | S66: -1.6 | W66: 0.7 | X66: 84
A67: Tino Martinez | B67: STL | C67: 1B | D67: 1221 | H67: 0 | J67: 0 | K67: 0 | M67: 0 | O67: 0.3 | P67: -2.6 | Q67: 3.1 | R67: 0.8 | S67: 0.9 | W67: -9.7 | X67: 1168
A68: Corey Patterson | B68: CHC | C68: CF | D68: 1214.1 | I68: 0 | J68: 0 | K68: 0 | M68: 0 | N68: -3.5 | P68: -2 | Q68: 0.2 | R68: -5.3 | S68: -6.7 | W68: -3.2 | X68: 300
A69: Neifi Perez | B69: KCR | C69: SS | D69: 1208.2 | H69: 0 | J69: 0 | K69: 0 | M69: 0 | O69: 2.7 | P69: -12.7 | Q69: -0.2 | R69: -10.2 | S69: -11.4 | W69: -4 | X69: 620
A70: Randy Winn | B70: TBD | C70: CF | D70: 1203 | I70: 0 | J70: 0 | K70: 0 | M70: 0 | N70: 1 | P70: -2 | Q70: 0.3 | R70: -0.7 | S70: -0.8 | W70: 1.4 | X70: 1235
A71: Robert Fick | B71: DET | C71: RF | D71: 1202.2 | I71: 0 | J71: 0 | K71: 0 | M71: 0 | N71: 5.6 | P71: -2.6 | Q71: -1 | R71: 2 | S71: 1.9 | W71: -4.1 | X71: 466
A72: Paul Konerko | B72: CHW | C72: 1B | D72: 1201 | H72: 0 | J72: 0 | K72: 0 | M72: 0 | O72: 0.1 | P72: -4.7 | Q72: 0.2 | R72: -4.4 | S72: -4.6 | W72: -14.6 | X72: 242
A73: Marlon Anderson | B73: PHI | C73: 2B | D73: 1199.2 | H73: 0 | J73: 0 | K73: 0 | M73: 0 | O73: -2.6 | P73: 1.2 | Q73: -2.3 | R73: -3.8 | S73: -3.8 | W73: -1.7 | X73: 947
A74: Juan Pierre | B74: COL | C74: CF | D74: 1195.2 | I74: 0 | J74: 0 | K74: 0 | M74: 0 | N74: -5.6 | P74: 18.7 | Q74: 1 | R74: 14.1 | S74: 14.6 | W74: 16.2 | X74: 443
A75: Jason Kendall | B75: PIT | C75: C | D75: 1191.2 | E75: 0 | F75: 0 | G75: 0 | J75: 0 | M75: 0 | W75: 13.2 | X75: 993
A76: Eric Karros | B76: LAD | C76: 1B | D76: 1191 | H76: 0 | J76: 0 | K76: 0 | M76: 0 | O76: 0.4 | P76: 5.3 | Q76: 4 | R76: 9.7 | S76: 12.2 | W76: -0.5 | X76: 659
A77: Jorge Posada | B77: NYY | C77: C | D77: 1190.2 | E77: 0 | F77: 0 | G77: 0 | J77: 0 | M77: 0 | W77: 6.2 | X77: 841
A78: Jack Wilson | B78: PIT | C78: SS | D78: 1184.1 | H78: 0 | J78: 0 | K78: 0 | M78: 0 | O78: 1.5 | P78: -10.9 | Q78: 5.3 | R78: -4.1 | S78: -3.9 | W78: 2 | X78: 1017
A79: Paul Lo Duca | B79: LAD | C79: C | D79: 1184 | E79: 0 | F79: 0 | G79: 0 | J79: 0 | M79: 0 | W79: 13.2 | X79: 662
A80: Corey Koskie | B80: MIN | C80: 3B | D80: 1180.1 | H80: 0 | J80: 0 | K80: 0 | M80: 0 | O80: -0.9 | P80: 15.4 | Q80: 5.4 | R80: 19.9 | S80: 22.4 | W80: 21.9 | X80: 738
A81: Jacque Jones | B81: MIN | C81: LF | D81: 1179 | I81: 0 | J81: 0 | K81: 0 | M81: 0 | N81: 5 | P81: 13.3 | Q81: -0.7 | R81: 17.6 | S81: 18 | W81: 11.5 | X81: 735
A82: Preston Wilson | B82: FLA | C82: CF | D82: 1178.2 | I82: 0 | J82: 0 | K82: 0 | M82: 0 | N82: 2.3 | P82: -4.3 | Q82: -1 | R82: -2.9 | S82: -3.6 | W82: -0.9 | X82: 545
A83: Garret Anderson | B83: ANA | C83: LF | D83: 1177.2 | I83: 0 | J83: 0 | K83: 0 | M83: 0 | N83: -0.5 | P83: -0.6 | Q83: 1 | R83: 0 | S83: -0.2 | W83: -6.1 | X83: 2
A84: Doug Mientkiewicz | B84: MIN | C84: 1B | D84: 1177.1 | H84: 0 | J84: 0 | K84: 0 | M84: 0 | O84: 0.1 | P84: 9.7 | Q84: 2.1 | R84: 11.9 | S84: 16.9 | W84: 1.8 | X84: 741
A85: Todd Zeile | B85: COL | C85: 3B | D85: 1173.1 | H85: 0 | J85: 0 | K85: 0 | M85: 0 | O85: -0.7 | P85: -6.9 | Q85: -3.8 | R85: -11.4 | S85: -12.4 | W85: -9.4 | X85: 457
A86: Steve Finley | B86: ARI | C86: CF | D86: 1169 | I86: 0 | J86: 0 | K86: 0 | M86: 0 | N86: 2.2 | P86: -3 | Q86: 0.9 | R86: 0.1 | S86: 0.4 | W86: 2.1 | X86: 54
A87: Rey Ordonez | B87: NYM | C87: SS | D87: 1167.1 | H87: 0 | J87: 0 | K87: 0 | M87: 0 | O87: 2.3 | P87: 10.6 | Q87: -0.6 | R87: 12.3 | S87: 15 | W87: 18.4 | X87: 889
A88: Deivi Cruz | B88: SDP | C88: SS | D88: 1162 | H88: 0 | J88: 0 | K88: 0 | M88: 0 | O88: -0.8 | P88: -4.4 | Q88: 0.1 | R88: -5 | S88: -5.8 | W88: 0.9 | X88: 1025
A89: Jim Edmonds | B89: STL | C89: CF | D89: 1158.1 | I89: 0 | J89: 0 | K89: 0 | M89: 0 | N89: 3.8 | P89: 2.8 | Q89: 0.1 | R89: 6.6 | S89: 7.3 | W89: 8.6 | X89: 1153
A90: Edgardo Alfonzo | B90: NYM | C90: 3B | D90: 1156 | H90: 0 | J90: 0 | K90: 0 | M90: 0 | O90: -0.1 | P90: 3.8 | Q90: 3.1 | R90: 6.9 | S90: 7.1 | W90: 8.8 | X90: 859
A91: Fred McGriff | B91: CHC | C91: 1B | D91: 1150.1 | H91: 0 | J91: 0 | K91: 0 | M91: 0 | O91: -0.1 | P91: -1.4 | Q91: 0.6 | R91: -0.9 | S91: -1.1 | W91: -10.8 | X91: 293
A92: Jeromy Burnitz | B92: NYM | C92: RF | D92: 1148 | I92: 0 | J92: 0 | K92: 0 | M92: 0 | N92: -2.4 | P92: 9.7 | Q92: -1.7 | R92: 5.6 | S92: 7 | W92: -0.3 | X92: 867
A93: David Bell | B93: SFG | C93: 3B | D93: 1137 | H93: 0 | J93: 0 | K93: 0 | M93: 0 | O93: -0.4 | P93: 3.6 | Q93: 3.3 | R93: 6.4 | S93: 9.4 | W93: 8.4 | X93: 1108
A94: Reggie Sanders | B94: SFG | C94: RF | D94: 1135.2 | I94: 0 | J94: 0 | K94: 0 | M94: 0 | N94: -0.6 | P94: 9.5 | Q94: 0.3 | R94: 9.2 | S94: 9.9 | W94: 3.4 | X94: 1129
A95: Carlos Lee | B95: CHW | C95: LF | D95: 1134.2 | I95: 0 | J95: 0 | K95: 0 | M95: 0 | N95: -4 | P95: -5.5 | Q95: 1.3 | R95: -8.2 | S95: -9.7 | W95: -14 | X95: 243
A96: Robin Ventura | B96: NYY | C96: 3B | D96: 1133.1 | H96: 0 | J96: 0 | K96: 0 | M96: 0 | O96: -0.1 | P96: 4.4 | Q96: -2.2 | R96: 2.2 | S96: 2.4 | W96: 4.1 | X96: 854
A97: Kevin Young | B97: PIT | C97: 1B | D97: 1130.2 | H97: 0 | J97: 0 | K97: 0 | M97: 0 | O97: 0.3 | P97: 4.4 | Q97: -1.8 | R97: 2.9 | S97: 3.1 | W97: -6.8 | X97: 1018
A98: Mike Lieberthal | B98: PHI | C98: C | D98: 1127.1 | E98: 0 | F98: 0 | G98: 0 | J98: 0 | M98: 0 | W98: 6.7 | X98: 959
A99: Rich Aurilia | B99: SFG | C99: SS | D99: 1126 | H99: 0 | J99: 0 | K99: 0 | M99: 0 | O99: 1.3 | P99: 1.5 | Q99: 3.5 | R99: 6.4 | S99: 8 | W99: 12.2 | X99: 1106
A100: Mo Vaughn | B100: NYM | C100: 1B | D100: 1124.2 | H100: 0 | J100: 0 | K100: 0 | M100: 0 | O100: 0.4 | P100: -3.7 | Q100: -6.5 | R100: -9.9 | S100: -14.1 | W100: -19.5 | X100: 899
A101: Barry Bonds | B101: SFG | C101: LF | D101: 1115 | I101: 0 | J101: 0 | K101: 0 | M101: 0 | N101: -3.2 | P101: 7.1 | Q101: 0.5 | R101: 4.3 | S101: 4.4 | W101: -1.4 | X101: 1109
A102: Kenny Lofton | B102: - - - | C102: CF | D102: 1114.2 | I102: 0 | J102: 0 | K102: 0 | M102: 0 | N102: 0.6 | P102: -5.5 | Q102: 1.6 | R102: -3.3 | S102: -3.5 | W102: -1.4 | X102: 246
A103: Chris Gomez | B103: TBD | C103: SS | D103: 1113.1 | H103: 0 | J103: 0 | K103: 0 | M103: 0 | O103: 0.4 | P103: 2.6 | Q103: -0.2 | R103: 2.8 | S103: 3.5 | W103: 8.5 | X103: 1208
A104: Carlos Guillen | B104: SEA | C104: SS | D104: 1113 | H104: 0 | J104: 0 | K104: 0 | M104: 0 | O104: -1.6 | P104: -1.6 | Q104: -3.2 | R104: -6.4 | S104: -8.3 | W104: -0.6 | X104: 1079
A105: Joe Randa | B105: KCR | C105: 3B | D105: 1110.2 | H105: 0 | J105: 0 | K105: 0 | M105: 0 | O105: -1.7 | P105: 0 | Q105: 6.4 | R105: 4.7 | S105: 5.3 | W105: 6.6 | X105: 623
A106: Adam Kennedy | B106: ANA | C106: 2B | D106: 1110 | H106: 0 | J106: 0 | K106: 0 | M106: 0 | O106: -0.8 | P106: 4.1 | Q106: -0.4 | R106: 2.9 | S106: 3.7 | W106: 4.8 | X106: 19
A107: Jim Thome | B107: CLE | C107: 1B | D107: 1109.1 | H107: 0 | J107: 0 | K107: 0 | M107: 0 | O107: -0.3 | P107: -4.4 | Q107: -0.1 | R107: -4.8 | S107: -5.6 | W107: -14.3 | X107: 409
A108: Jeff Cirillo | B108: SEA | C108: 3B | D108: 1107.1 | H108: 0 | J108: 0 | K108: 0 | M108: 0 | O108: 0.7 | P108: 4.2 | Q108: 4 | R108: 9 | S108: 12.8 | W108: 10.9 | X108: 1073
A109: Scott Spiezio | B109: ANA | C109: 1B | D109: 1106.1 | H109: 0 | J109: 0 | K109: 0 | M109: 0 | O109: 0.2 | P109: 8.9 | Q109: 1.7 | R109: 10.9 | S109: 16.5 | W109: 1.4 | X109: 37
A110: Gary Sheffield | B110: ATL | C110: RF | D110: 1102 | I110: 0 | J110: 0 | K110: 0 | M110: 0 | N110: -0.9 | P110: 0.8 | Q110: 0.8 | R110: 0.8 | S110: 0.7 | W110: -4.9 | X110: 114
A111: Ramon Hernandez | B111: OAK | C111: C | D111: 1099.2 | E111: 0 | F111: 0 | G111: 0 | J111: 0 | M111: 0 | W111: 18.4 | X111: 918
A112: Barry Larkin | B112: CIN | C112: SS | D112: 1090.2 | H112: 0 | J112: 0 | K112: 0 | M112: 0 | O112: -0.3 | P112: -10.3 | Q112: 3.9 | R112: -6.8 | S112: -7.5 | W112: -1.2 | X112: 335
A113: Roger Cedeno | B113: NYM | C113: LF | D113: 1087.1 | I113: 0 | J113: 0 | K113: 0 | M113: 0 | N113: -1.1 | P113: -2.5 | Q113: -2 | R113: -5.6 | S113: -6.7 | W113: -11.2 | X113: 869
A114: Raul Mondesi | B114: - - - | C114: RF | D114: 1087.1 | I114: 0 | J114: 0 | K114: 0 | M114: 0 | N114: 0.3 | P114: -15.2 | Q114: -0.6 | R114: -15.5 | S114: -20.4 | W114: -21.1 | X114: 1314
A115: Brad Ausmus | B115: HOU | C115: C | D115: 1079 | E115: 0 | F115: 0 | G115: 0 | J115: 0 | M115: 0 | W115: 14.3 | X115: 546
A116: Geronimo Gil | B116: BAL | C116: C | D116: 1068.2 | E116: 0 | F116: 0 | G116: 0 | J116: 0 | M116: 0 | W116: 12.2 | X116: 142
A117: Aramis Ramirez | B117: PIT | C117: 3B | D117: 1068.1 | H117: 0 | J117: 0 | K117: 0 | M117: 0 | O117: 1 | P117: -5.5 | Q117: -1.2 | R117: -5.7 | S117: -5.8 | W117: -3.8 | X117: 1002
A118: Benito Santiago | B118: SFG | C118: C | D118: 1066 | E118: 0 | F118: 0 | G118: 0 | J118: 0 | M118: 0 | W118: 9.1 | X118: 1130
A119: Jason Varitek | B119: BOS | C119: C | D119: 1064.2 | E119: 0 | F119: 0 | G119: 0 | J119: 0 | M119: 0 | W119: 13.1 | X119: 217
A120: Placido Polanco | B120: - - - | C120: 3B | D120: 1063 | H120: 0 | J120: 0 | K120: 0 | M120: 0 | O120: -0.1 | P120: 3.2 | Q120: 5.5 | R120: 8.6 | S120: 9.8 | W120: 10.4 | X120: 1176
A121: Jerry Hairston | B121: BAL | C121: 2B | D121: 1043.2 | H121: 0 | J121: 0 | K121: 0 | M121: 0 | O121: -0.4 | P121: 6.2 | Q121: 1.9 | R121: 7.7 | S121: 9.4 | W121: 9.4 | X121: 144
A122: Ben Grieve | B122: TBD | C122: RF | D122: 1038.2 | I122: 0 | J122: 0 | K122: 0 | M122: 0 | N122: -3.4 | P122: -3.1 | Q122: 0.1 | R122: -6.4 | S122: -7.9 | W122: -11.7 | X122: 1209
A123: Larry Walker | B123: COL | C123: RF | D123: 1037 | I123: 0 | J123: 0 | K123: 0 | M123: 0 | N123: 10.3 | P123: -6.1 | Q123: -0.8 | R123: 3.4 | S123: 3.5 | W123: -1.9 | X123: 455
A124: Eric Young | B124: MIL | C124: 2B | D124: 1034 | H124: 0 | J124: 0 | K124: 0 | M124: 0 | O124: -1.1 | P124: 2 | Q124: -0.8 | R124: 0.1 | S124: 0.4 | W124: 1.9 | X124: 716
A125: A.J. Pierzynski | B125: MIN | C125: C | D125: 1034 | E125: 0 | F125: 0 | G125: 0 | J125: 0 | M125: 0 | W125: 7.9 | X125: 746
A126: Chris Singleton | B126: BAL | C126: CF | D126: 1023.1 | I126: 0 | J126: 0 | K126: 0 | M126: 0 | N126: -0.5 | P126: 0.9 | Q126: 0 | R126: 0.4 | S126: 0.4 | W126: 2.1 | X126: 170
A127: Brian Jordan | B127: LAD | C127: LF | D127: 1020.2 | I127: 0 | J127: 0 | K127: 0 | M127: 0 | N127: -3.4 | P127: 0.3 | Q127: 1.3 | R127: -1.8 | S127: -3.3 | W127: -7.1 | X127: 658
A128: Brent Abernathy | B128: TBD | C128: 2B | D128: 1015 | H128: 0 | J128: 0 | K128: 0 | M128: 0 | O128: -0.4 | P128: 3.2 | Q128: 0.4 | R128: 3.3 | S128: 4.6 | W128: 5 | X128: 1192
A129: Moises Alou | B129: CHC | C129: LF | D129: 1014.2 | I129: 0 | J129: 0 | K129: 0 | M129: 0 | N129: 0.2 | P129: 3.7 | Q129: 1.2 | R129: 5.1 | S129: 6.8 | W129: -0.1 | X129: 261
A130: Bengie Molina | B130: ANA | C130: C | D130: 1014.1 | E130: 0 | F130: 0 | G130: 0 | J130: 0 | M130: 0 | W130: 18.7 | X130: 24
A131: J.T. Snow | B131: SFG | C131: 1B | D131: 1013 | H131: 0 | J131: 0 | K131: 0 | M131: 0 | O131: -0.5 | P131: -9.8 | Q131: 0.8 | R131: -9.5 | S131: -12.5 | W131: -18.1 | X131: 1133
A132: Mike Bordick | B132: BAL | C132: SS | D132: 1007.2 | H132: 0 | J132: 0 | K132: 0 | M132: 0 | O132: -0.2 | P132: -0.4 | Q132: 8.5 | R132: 7.8 | S132: 9.4 | W132: 13 | X132: 129
A133: Mike Piazza | B133: NYM | C133: C | D133: 1006.2 | E133: 0 | F133: 0 | G133: 0 | J133: 0 | M133: 0 | W133: -3.4 | X133: 893
A134: Bobby Higginson | B134: DET | C134: LF | D134: 1002.1 | I134: 0 | J134: 0 | K134: 0 | M134: 0 | N134: 8 | P134: -16.9 | Q134: 0.1 | R134: -8.8 | S134: -11.2 | W134: -13.9 | X134: 469
A135: Pokey Reese | B135: PIT | C135: 2B | D135: 997.1 | H135: 0 | J135: 0 | K135: 0 | M135: 0 | O135: 1.7 | P135: 10 | Q135: 2.8 | R135: 14.5 | S135: 18.8 | W135: 16.2 | X135: 1004
A136: Cesar Izturis | B136: LAD | C136: SS | D136: 992.2 | H136: 0 | J136: 0 | K136: 0 | M136: 0 | O136: 3.9 | P136: -1 | Q136: 2.4 | R136: 5.3 | S136: 9.1 | W136: 10.4 | X136: 656
A137: Carlos Pena | B137: - - - | C137: 1B | D137: 977.2 | H137: 0 | J137: 0 | K137: 0 | M137: 0 | O137: 0.2 | P137: -9.3 | Q137: 1.6 | R137: -7.5 | S137: -9.7 | W137: -15.9 | X137: 934
A138: Steve Cox | B138: TBD | C138: 1B | D138: 967.2 | H138: 0 | J138: 0 | K138: 0 | M138: 0 | O138: 0.2 | P138: -4.9 | Q138: 1.1 | R138: -3.6 | S138: -5.5 | W138: -11.9 | X138: 1200
A139: Ryan Klesko | B139: SDP | C139: 1B | D139: 967.1 | H139: 0 | J139: 0 | K139: 0 | M139: 0 | O139: 0 | P139: -3.6 | Q139: 2.4 | R139: -1.1 | S139: -1.5 | W139: -9.4 | X139: 1041
A140: Chris Truby | B140: - - - | C140: 3B | D140: 967 | H140: 0 | J140: 0 | K140: 0 | M140: 0 | O140: 0.9 | P140: -6.3 | Q140: 1.5 | R140: -3.8 | S140: -4.5 | W140: -2.1 | X140: 799
A141: Jermaine Dye | B141: OAK | C141: RF | D141: 957.1 | I141: 0 | J141: 0 | K141: 0 | M141: 0 | N141: -4.3 | P141: -10.3 | Q141: -0.3 | R141: -14.9 | S141: -24.8 | W141: -19.9 | X141: 911
A142: Lance Berkman | B142: HOU | C142: CF | D142: 955 | I142: 0 | J142: 0 | K142: 0 | M142: 0 | N142: 1.7 | P142: -0.9 | Q142: 0.4 | R142: 1.3 | S142: 2 | W142: 2.9 | X142: 548
A143: Rondell White | B143: NYY | C143: LF | D143: 945.2 | I143: 0 | J143: 0 | K143: 0 | M143: 0 | N143: -1.8 | P143: -2.6 | Q143: 1.5 | R143: -2.9 | S143: -3.7 | W143: -7.7 | X143: 856
A144: Andy Fox | B144: FLA | C144: SS | D144: 940.1 | H144: 0 | J144: 0 | K144: 0 | M144: 0 | O144: -0.9 | P144: -1.2 | Q144: -4 | R144: -6.1 | S144: -9.8 | W144: -1.2 | X144: 1379
A145: Daryle Ward | B145: HOU | C145: LF | D145: 937.1 | I145: 0 | J145: 0 | K145: 0 | M145: 0 | N145: -0.7 | P145: -6.7 | Q145: 0.6 | R145: -6.8 | S145: -12 | W145: -11.7 | X145: 579
A146: Sean Casey | B146: CIN | C146: 1B | D146: 935 | H146: 0 | J146: 0 | K146: 0 | M146: 0 | O146: 0.5 | P146: 6 | Q146: 1 | R146: 7.5 | S146: 9.8 | W146: -0.5 | X146: 314
A147: Dave Roberts | B147: LAD | C147: CF | D147: 935 | I147: 0 | J147: 0 | K147: 0 | M147: 0 | N147: -0.1 | P147: 0.5 | Q147: 1.1 | R147: 1.5 | S147: 2.3 | W147: 3.1 | X147: 670
A148: Michael Barrett | B148: MON | C148: C | D148: 931.1 | E148: 0 | F148: 0 | G148: 0 | J148: 0 | M148: 0 | W148: 4 | X148: 762
A149: J.D. Drew | B149: STL | C149: RF | D149: 929.2 | I149: 0 | J149: 0 | K149: 0 | M149: 0 | N149: -3.2 | P149: 1.9 | Q149: 0.7 | R149: -0.5 | S149: -0.8 | W149: -5.3 | X149: 1152
A150: Travis Fryman | B150: CLE | C150: 3B | D150: 927.1 | H150: 0 | J150: 0 | K150: 0 | M150: 0 | O150: 0.2 | P150: -14 | Q150: 2.4 | R150: -11.4 | S150: -15.6 | W150: -9.8 | X150: 385
A151: Herbert Perry | B151: TEX | C151: 3B | D151: 921 | H151: 0 | J151: 0 | K151: 0 | M151: 0 | O151: 0 | P151: -3.9 | Q151: -0.8 | R151: -4.7 | S151: -6.7 | W151: -3.1 | X151: 1270
A152: Tim Salmon | B152: ANA | C152: RF | D152: 918.2 | I152: 0 | J152: 0 | K152: 0 | M152: 0 | N152: 0.3 | P152: -3.5 | Q152: 0.4 | R152: -2.7 | S152: -4 | W152: -7.5 | X152: 32
A153: Jeff Conine | B153: BAL | C153: 1B | D153: 917.2 | H153: 0 | J153: 0 | K153: 0 | M153: 0 | O153: -0.5 | P153: 2 | Q153: -1.1 | R153: 0.4 | S153: 0.5 | W153: -7.4 | X153: 131
A154: Carlos Febles | B154: KCR | C154: 2B | D154: 916.2 | H154: 0 | J154: 0 | K154: 0 | M154: 0 | O154: 0.3 | P154: -11.4 | Q154: -0.3 | R154: -11.4 | S154: -15 | W154: -9.8 | X154: 598
A155: Richard Hidalgo | B155: HOU | C155: RF | D155: 911.1 | I155: 0 | J155: 0 | K155: 0 | M155: 0 | N155: -1.1 | P155: 2.5 | Q155: 1 | R155: 2.3 | S155: 3.5 | W155: -2.4 | X155: 561
A156: Adam Dunn | B156: CIN | C156: LF | D156: 911 | I156: 0 | J156: 0 | K156: 0 | M156: 0 | N156: 4.4 | P156: 5.7 | Q156: -2.2 | R156: 7.9 | S156: 12.2 | W156: 3.2 | X156: 319
A157: Jason LaRue | B157: CIN | C157: C | D157: 906.1 | E157: 0 | F157: 0 | G157: 0 | J157: 0 | M157: 0 | W157: 8.8 | X157: 337
A158: Dan Wilson | B158: SEA | C158: C | D158: 902.2 | E158: 0 | F158: 0 | G158: 0 | J158: 0 | M158: 0 | W158: 11.7 | X158: 1102
A159: Doug Glanville | B159: PHI | C159: CF | D159: 891.1 | I159: 0 | J159: 0 | K159: 0 | M159: 0 | N159: 3.9 | P159: 0.2 | Q159: 1 | R159: 5 | S159: 8 | W159: 6.5 | X159: 956
A160: Ray Durham | B160: - - - | C160: 2B | D160: 884.2 | H160: 0 | J160: 0 | K160: 0 | M160: 0 | O160: 0.3 | P160: -3.4 | Q160: -5.7 | R160: -8.7 | S160: -12.7 | W160: -7.2 | X160: 230
A161: Royce Clayton | B161: CHW | C161: SS | D161: 883.1 | H161: 0 | J161: 0 | K161: 0 | M161: 0 | O161: -0.3 | P161: 0.2 | Q161: 3.5 | R161: 3.4 | S161: 5.3 | W161: 8 | X161: 226
A162: Albert Pujols | B162: STL | C162: LF | D162: 874.2 | I162: 0 | J162: 0 | K162: 0 | M162: 0 | N162: -1.6 | P162: -3.1 | Q162: 0.3 | R162: -4.5 | S162: -7 | W162: -9 | X162: 1177
A163: Mike Sweeney | B163: KCR | C163: 1B | D163: 872 | H163: 0 | J163: 0 | K163: 0 | M163: 0 | O163: 0.6 | P163: 2.9 | Q163: -1.8 | R163: 1.7 | S163: 2.6 | W163: -5.8 | X163: 634
A164: Shannon Stewart | B164: TOR | C164: LF | D164: 861.2 | I164: 0 | J164: 0 | K164: 0 | M164: 0 | N164: -2.8 | P164: 4.9 | Q164: 0.6 | R164: 2.7 | S164: 4.9 | W164: -1.8 | X164: 1322
A165: Jared Sandberg | B165: TBD | C165: 3B | D165: 841.2 | H165: 0 | J165: 0 | K165: 0 | M165: 0 | O165: 0.5 | P165: 5.8 | Q165: -2.4 | R165: 3.9 | S165: 6.4 | W165: 5.4 | X165: 1224
A166: Brent Mayne | B166: KCR | C166: C | D166: 836.2 | E166: 0 | F166: 0 | G166: 0 | J166: 0 | M166: 0 | W166: 7.2 | X166: 614
A167: Rafael Palmeiro | B167: TEX | C167: 1B | D167: 836.1 | H167: 0 | J167: 0 | K167: 0 | M167: 0 | O167: -0.5 | P167: 2.5 | Q167: 0.4 | R167: 2.4 | S167: 4.2 | W167: -4.8 | X167: 1266
A168: Ivan Rodriguez | B168: TEX | C168: C | D168: 836.1 | E168: 0 | F168: 0 | G168: 0 | J168: 0 | M168: 0 | W168: 5.2 | X168: 1275
A169: Einar Diaz | B169: CLE | C169: C | D169: 833.1 | E169: 0 | F169: 0 | G169: 0 | J169: 0 | M169: 0 | W169: 5.1 | X169: 378
A170: Fernando Tatis | B170: MON | C170: 3B | D170: 832.2 | H170: 0 | J170: 0 | K170: 0 | M170: 0 | O170: -1.1 | P170: -8.5 | Q170: -0.6 | R170: -10.2 | S170: -15.7 | W170: -8.8 | X170: 798
A171: Bill Mueller | B171: - - - | C171: 3B | D171: 832.2 | H171: 0 | J171: 0 | K171: 0 | M171: 0 | O171: 1.1 | P171: 3.6 | Q171: 1.9 | R171: 6.6 | S171: 13.1 | W171: 8 | X171: 295
A172: Mike Matheny | B172: STL | C172: C | D172: 830 | E172: 0 | F172: 0 | G172: 0 | J172: 0 | M172: 0 | W172: 13.1 | X172: 1169
A173: Geoff Blum | B173: HOU | C173: 3B | D173: 824 | H173: 0 | J173: 0 | K173: 0 | M173: 0 | O173: 0.6 | P173: -6.6 | Q173: 2.7 | R173: -3.3 | S173: -4.6 | W173: -1.8 | X173: 550
A174: Tsuyoshi Shinjo | B174: SFG | C174: CF | D174: 820.2 | I174: 0 | J174: 0 | K174: 0 | M174: 0 | N174: 2.3 | P174: 6 | Q174: -1.1 | R174: 7.2 | S174: 10.1 | W174: 8.6 | X174: 1132
A175: Brandon Inge | B175: DET | C175: C | D175: 820.1 | E175: 0 | F175: 0 | G175: 0 | J175: 0 | M175: 0 | W175: 5 | X175: 470
A176: Rey Sanchez | B176: BOS | C176: 2B | D176: 817.2 | H176: 0 | J176: 0 | K176: 0 | M176: 0 | O176: 1.2 | P176: 1.3 | Q176: 3 | R176: 5.6 | S176: 9.3 | W176: 7 | X176: 213
A177: Javy Lopez | B177: ATL | C177: C | D177: 815.1 | E177: 0 | F177: 0 | G177: 0 | J177: 0 | M177: 0 | W177: 11 | X177: 103
A178: Luis Rivas | B178: MIN | C178: 2B | D178: 811.2 | H178: 0 | J178: 0 | K178: 0 | M178: 0 | O178: -1.4 | P178: -0.6 | Q178: 0.2 | R178: -1.8 | S178: -3.2 | W178: -0.4 | X178: 753
A179: Ricky Gutierrez | B179: CLE | C179: 2B | D179: 797.1 | H179: 0 | J179: 0 | K179: 0 | M179: 0 | O179: -0.8 | P179: -12.3 | Q179: -0.6 | R179: -13.7 | S179: -21.2 | W179: -12.3 | X179: 387
A180: Jay Gibbons | B180: BAL | C180: RF | D180: 787.2 | I180: 0 | J180: 0 | K180: 0 | M180: 0 | N180: -0.7 | P180: -0.6 | Q180: 0.8 | R180: -0.4 | S180: -0.8 | W180: -4.5 | X180: 141
A181: Jason Giambi | B181: NYY | C181: 1B | D181: 781.2 | H181: 0 | J181: 0 | K181: 0 | M181: 0 | O181: -0.4 | P181: -2.7 | Q181: 0.7 | R181: -2.5 | S181: -4.9 | W181: -9.2 | X181: 818
A182: Craig Counsell | B182: ARI | C182: 3B | D182: 774.2 | H182: 0 | J182: 0 | K182: 0 | M182: 0 | O182: -1.1 | P182: 10.3 | Q182: 2.1 | R182: 11.3 | S182: 19.5 | W182: 12.7 | X182: 52
A183: Austin Kearns | B183: CIN | C183: RF | D183: 773.2 | I183: 0 | J183: 0 | K183: 0 | M183: 0 | N183: 6.6 | P183: 9 | Q183: -0.3 | R183: 15.4 | S183: 24.6 | W183: 11.4 | X183: 332
A184: Bubba Trammell | B184: SDP | C184: RF | D184: 764.1 | I184: 0 | J184: 0 | K184: 0 | M184: 0 | N184: -5.7 | P184: -3.7 | Q184: 0.4 | R184: -9 | S184: -17.9 | W184: -13 | X184: 1057
A185: Damian Miller | B185: ARI | C185: C | D185: 764 | E185: 0 | F185: 0 | G185: 0 | J185: 0 | M185: 0 | W185: 7.6 | X185: 65
A186: Milton Bradley | B186: CLE | C186: CF | D186: 749.1 | I186: 0 | J186: 0 | K186: 0 | M186: 0 | N186: 3.2 | P186: 5.1 | Q186: 0 | R186: 8.4 | S186: 15 | W186: 9.6 | X186: 369
A187: Jay Payton | B187: - - - | C187: CF | D187: 745.2 | I187: 0 | J187: 0 | K187: 0 | M187: 0 | N187: 1.1 | P187: 5.5 | Q187: 0.6 | R187: 7.2 | S187: 13.7 | W187: 8.5 | X187: 890
A188: Toby Hall | B188: TBD | C188: C | D188: 737.1 | E188: 0 | F188: 0 | G188: 0 | J188: 0 | M188: 0 | W188: 8.3 | X188: 1210
A189: Kevin Millar | B189: FLA | C189: LF | D189: 737 | I189: 0 | J189: 0 | K189: 0 | M189: 0 | N189: -4 | P189: -11.6 | Q189: 1.7 | R189: -13.9 | S189: -20.4 | W189: -17.7 | X189: 529
A190: Mark Ellis | B190: OAK | C190: 2B | D190: 732.2 | H190: 0 | J190: 0 | K190: 0 | M190: 0 | O190: 0.2 | P190: 0.5 | Q190: 0.7 | R190: 1.4 | S190: 2.5 | W190: 2.7 | X190: 1443
A191: Gary Bennett | B191: COL | C191: C | D191: 731.2 | E191: 0 | F191: 0 | G191: 0 | J191: 0 | M191: 0 | W191: 2.3 | X191: 420
A192: Damion Easley | B192: DET | C192: 2B | D192: 731.1 | H192: 0 | J192: 0 | K192: 0 | M192: 0 | O192: 1.1 | P192: 3.9 | Q192: 1.4 | R192: 6.3 | S192: 12 | W192: 7.6 | X192: 464
A193: Scott Hatteberg | B193: OAK | C193: 1B | D193: 720.1 | H193: 0 | J193: 0 | K193: 0 | M193: 0 | O193: 0.1 | P193: 6.3 | Q193: 1 | R193: 7.5 | S193: 13.4 | W193: 1.3 | X193: 916
A194: Dustan Mohr | B194: MIN | C194: RF | D194: 718 | I194: 0 | J194: 0 | K194: 0 | M194: 0 | N194: 1.2 | P194: 6.5 | Q194: 0.5 | R194: 8.2 | S194: 14.6 | W194: 4.5 | X194: 744
A195: Julio Lugo | B195: HOU | C195: SS | D195: 716 | H195: 0 | J195: 0 | K195: 0 | M195: 0 | O195: -2.1 | P195: 2 | Q195: 1 | R195: 0.9 | S195: 1.5 | W195: 4.6 | X195: 565
A196: Todd Hollandsworth | B196: - - - | C196: LF | D196: 715 | I196: 0 | J196: 0 | K196: 0 | M196: 0 | N196: 2.4 | P196: -11.9 | Q196: 0.1 | R196: -9.3 | S196: -18.6 | W196: -13 | X196: 433
A197: Juan Encarnacion | B197: - - - | C197: RF | D197: 710.2 | I197: 0 | J197: 0 | K197: 0 | M197: 0 | N197: 2.2 | P197: 0.3 | Q197: -1.3 | R197: 1.2 | S197: 1.5 | W197: -2.5 | X197: 320
A198: Tom Lampkin | B198: SDP | C198: C | D198: 710.1 | E198: 0 | F198: 0 | G198: 0 | J198: 0 | M198: 0 | W198: 7.1 | X198: 1043
A199: Timo Perez | B199: NYM | C199: CF | D199: 709.1 | I199: 0 | J199: 0 | K199: 0 | M199: 0 | N199: 1.8 | P199: -4.2 | Q199: -0.3 | R199: -2.8 | S199: -4.9 | W199: -1.6 | X199: 891
A200: Mark Johnson | B200: CHW | C200: C | D200: 708.1 | E200: 0 | F200: 0 | G200: 0 | J200: 0 | M200: 0 | W200: 8.1 | X200: 240
... 1064 more rows

Sheet 2003 (hidden)
A1: Name | B1: Team | C1: G | D1: AB | E1: PA | F1: H | G1: 1B | H1: 2B | I1: 3B | J1: HR | K1: R | L1: RBI | M1: BB | N1: IBB | O1: SO | P1: HBP | Q1: SF | R1: SH | S1: GDP | T1: SB | U1: CS | V1: AVG | W1: playerid | X1: UBR | Y1: wGDP | Z1: Fielding
A2: A.J. Pierzynski | B2: MIN | C2: 137 | D2: 487 | E2: 533 | F2: 152 | G2: 103 | H2: 35 | I2: 3 | J2: 11 | K2: 63 | L2: 74 | M2: 24 | N2: 12 | O2: 55 | P2: 15 | Q2: 5 | R2: 2 | S2: 13 | T2: 3 | U2: 1 | V2: 0.312 | W2: 746 | X2: 1 | Y2: -0.4 | Z2: -1
A3: Aaron Boone | B3: - - - | C3: 160 | D3: 592 | E3: 656 | F3: 158 | G3: 99 | H3: 32 | I3: 3 | J3: 24 | K3: 92 | L3: 96 | M3: 46 | N3: 2 | O3: 104 | P3: 8 | Q3: 2 | R3: 6 | S3: 13 | T3: 23 | U3: 3 | V3: 0.267 | W3: 311 | X3: 0.3 | Y3: 0.1 | Z3: -7.2
A4: Adam Kennedy | B4: ANA | C4: 143 | D4: 449 | E4: 510 | F4: 121 | G4: 90 | H4: 17 | I4: 1 | J4: 13 | K4: 71 | L4: 49 | M4: 45 | N4: 4 | O4: 73 | P4: 9 | Q4: 5 | R4: 2 | S4: 7 | T4: 22 | U4: 9 | V4: 0.269 | W4: 19 | X4: -0.9 | Y4: 0.2 | Z4: 9.8
A5: Adrian Beltre | B5: LAD | C5: 158 | D5: 559 | E5: 608 | F5: 134 | G5: 79 | H5: 30 | I5: 2 | J5: 23 | K5: 50 | L5: 80 | M5: 37 | N5: 4 | O5: 103 | P5: 5 | Q5: 6 | R5: 1 | S5: 13 | T5: 2 | U5: 2 | V5: 0.24 | W5: 639 | X5: -0.5 | Y5: -0.1 | Z5: 20.6
A6: Albert Pujols | B6: STL | C6: 157 | D6: 591 | E6: 685 | F6: 212 | G6: 117 | H6: 51 | I6: 1 | J6: 43 | K6: 137 | L6: 124 | M6: 79 | N6: 12 | O6: 65 | P6: 10 | Q6: 5 | R6: 0 | S6: 13 | T6: 5 | U6: 1 | V6: 0.359 | W6: 1177 | X6: -0.4 | Y6: 0.4 | Z6: 2.5
A7: Alex Cora | B7: LAD | C7: 148 | D7: 477 | E7: 514 | F7: 119 | G7: 88 | H7: 24 | I7: 3 | J7: 4 | K7: 39 | L7: 34 | M7: 16 | N7: 3 | O7: 59 | P7: 10 | Q7: 2 | R7: 9 | S7: 5 | T7: 4 | U7: 2 | V7: 0.249 | W7: 1386 | X7: 2 | Y7: 0.2 | Z7: 1.6
A8: Alex Gonzalez | B8: CHC | C8: 152 | D8: 536 | E8: 601 | F8: 122 | G8: 65 | H8: 37 | I8: 0 | J8: 20 | K8: 71 | L8: 59 | M8: 47 | N8: 1 | O8: 123 | P8: 6 | Q8: 4 | R8: 8 | S8: 17 | T8: 3 | U8: 3 | V8: 0.228 | W8: 281 | X8: -1.3 | Y8: -0.6 | Z8: 6.9
A9: Alex Gonzalez | B9: FLA | C9: 150 | D9: 528 | E9: 582 | F9: 135 | G9: 78 | H9: 33 | I9: 6 | J9: 18 | K9: 52 | L9: 77 | M9: 33 | N9: 13 | O9: 106 | P9: 13 | Q9: 5 | R9: 3 | S9: 8 | T9: 0 | U9: 4 | V9: 0.256 | W9: 520 | X9: 1 | Y9: -1.5 | Z9: 7.2
A10: Alex Rodriguez | B10: TEX | C10: 161 | D10: 607 | E10: 715 | F10: 181 | G10: 98 | H10: 30 | I10: 6 | J10: 47 | K10: 124 | L10: 118 | M10: 87 | N10: 10 | O10: 126 | P10: 15 | Q10: 6 | R10: 0 | S10: 16 | T10: 17 | U10: 3 | V10: 0.298 | W10: 1274 | X10: -1.3 | Y10: -0.3 | Z10: 11.2
A11: Alex Sanchez | B11: - - - | C11: 144 | D11: 557 | E11: 599 | F11: 160 | G11: 128 | H11: 23 | I11: 8 | J11: 1 | K11: 58 | L11: 32 | M11: 25 | N11: 0 | O11: 74 | P11: 3 | Q11: 5 | R11: 9 | S11: 5 | T11: 52 | U11: 24 | V11: 0.287 | W11: 708 | X11: 1 | Y11: 3.2 | Z11: -12.4
A12: Alfonso Soriano | B12: NYY | C12: 156 | D12: 682 | E12: 734 | F12: 198 | G12: 119 | H12: 36 | I12: 5 | J12: 38 | K12: 114 | L12: 91 | M12: 38 | N12: 7 | O12: 130 | P12: 12 | Q12: 2 | R12: 0 | S12: 8 | T12: 35 | U12: 8 | V12: 0.29 | W12: 847 | X12: 0 | Y12: 1.7 | Z12: -4.7
A13: Andruw Jones | B13: ATL | C13: 156 | D13: 595 | E13: 659 | F13: 165 | G13: 99 | H13: 28 | I13: 2 | J13: 36 | K13: 101 | L13: 116 | M13: 53 | N13: 2 | O13: 125 | P13: 5 | Q13: 6 | R13: 0 | S13: 18 | T13: 4 | U13: 3 | V13: 0.277 | W13: 96 | X13: 2.2 | Y13: -0.2 | Z13: 17.3
A14: Angel Berroa | B14: KCR | C14: 158 | D14: 567 | E14: 635 | F14: 163 | G14: 111 | H14: 28 | I14: 7 | J14: 17 | K14: 92 | L14: 73 | M14: 29 | N14: 3 | O14: 100 | P14: 18 | Q14: 8 | R14: 13 | S14: 13 | T14: 21 | U14: 5 | V14: 0.287 | W14: 591 | X14: -0.1 | Y14: 0.1 | Z14: -5
A15: Aramis Ramirez | B15: - - - | C15: 159 | D15: 607 | E15: 670 | F15: 165 | G15: 104 | H15: 32 | I15: 2 | J15: 27 | K15: 75 | L15: 106 | M15: 42 | N15: 3 | O15: 99 | P15: 10 | Q15: 11 | R15: 0 | S15: 21 | T15: 2 | U15: 2 | V15: 0.272 | W15: 1002 | X15: 0.8 | Y15: 0.5 | Z15: 0.5
A16: Aubrey Huff | B16: TBD | C16: 162 | D16: 636 | E16: 706 | F16: 198 | G16: 114 | H16: 47 | I16: 3 | J16: 34 | K16: 91 | L16: 107 | M16: 53 | N16: 17 | O16: 80 | P16: 8 | Q16: 9 | R16: 0 | S16: 19 | T16: 2 | U16: 3 | V16: 0.311 | W16: 1213 | X16: 1.2 | Y16: -0.5 | Z16: -11.3
A17: Barry Bonds | B17: SFG | C17: 130 | D17: 390 | E17: 550 | F17: 133 | G17: 65 | H17: 22 | I17: 1 | J17: 45 | K17: 111 | L17: 90 | M17: 148 | N17: 61 | O17: 58 | P17: 10 | Q17: 2 | R17: 0 | S17: 7 | T17: 7 | U17: 0 | V17: 0.341 | W17: 1109 | X17: 0.6 | Y17: -0.5 | Z17: 11.6
A18: Bernie Williams | B18: NYY | C18: 119 | D18: 445 | E18: 521 | F18: 117 | G18: 82 | H18: 19 | I18: 1 | J18: 15 | K18: 77 | L18: 64 | M18: 71 | N18: 8 | O18: 61 | P18: 3 | Q18: 2 | R18: 0 | S18: 21 | T18: 5 | U18: 0 | V18: 0.263 | W18: 857 | X18: -0.2 | Y18: 0.8 | Z18: -21.2
A19: Bill Mueller | B19: BOS | C19: 146 | D19: 524 | E19: 600 | F19: 171 | G19: 102 | H19: 45 | I19: 5 | J19: 19 | K19: 85 | L19: 85 | M19: 59 | N19: 2 | O19: 77 | P19: 7 | Q19: 6 | R19: 4 | S19: 11 | T19: 1 | U19: 4 | V19: 0.326 | W19: 295 | X19: 1.3 | Y19: -0.9 | Z19: -7
A20: Bobby Abreu | B20: PHI | C20: 158 | D20: 577 | E20: 695 | F20: 173 | G20: 117 | H20: 35 | I20: 1 | J20: 20 | K20: 99 | L20: 101 | M20: 109 | N20: 13 | O20: 126 | P20: 2 | Q20: 7 | R20: 0 | S20: 13 | T20: 22 | U20: 9 | V20: 0.3 | W20: 945 | X20: -2.2 | Y20: 1.8 | Z20: 12.3
A21: Bobby Higginson | B21: DET | C21: 130 | D21: 469 | E21: 539 | F21: 110 | G21: 79 | H21: 13 | I21: 4 | J21: 14 | K21: 61 | L21: 52 | M21: 59 | N21: 3 | O21: 73 | P21: 3 | Q21: 6 | R21: 1 | S21: 12 | T21: 8 | U21: 8 | V21: 0.235 | W21: 469 | X21: -0.4 | Y21: -0.7 | Z21: -2.7
A22: Bobby Kielty | B22: - - - | C22: 137 | D22: 427 | E22: 509 | F22: 104 | G22: 64 | H22: 26 | I22: 1 | J22: 13 | K22: 71 | L22: 57 | M22: 71 | N22: 6 | O22: 92 | P22: 7 | Q22: 4 | R22: 0 | S22: 11 | T22: 8 | U22: 3 | V22: 0.244 | W22: 736 | X22: 0.6 | Y22: -0.5 | Z22: -7.9
A23: Brad Ausmus | B23: HOU | C23: 143 | D23: 450 | E23: 509 | F23: 103 | G23: 85 | H23: 12 | I23: 2 | J23: 4 | K23: 43 | L23: 47 | M23: 46 | N23: 1 | O23: 66 | P23: 4 | Q23: 5 | R23: 4 | S23: 8 | T23: 5 | U23: 3 | V23: 0.229 | W23: 546 | X23: 2.4 | Y23: -0.8 | Z23: 5
A24: Brad Wilkerson | B24: MON | C24: 146 | D24: 504 | E24: 602 | F24: 135 | G24: 78 | H24: 34 | I24: 4 | J24: 19 | K24: 78 | L24: 77 | M24: 89 | N24: 0 | O24: 155 | P24: 4 | Q24: 3 | R24: 2 | S24: 5 | T24: 13 | U24: 10 | V24: 0.268 | W24: 804 | X24: 1 | Y24: 0.3 | Z24: 6.8
A25: Bret Boone | B25: SEA | C25: 159 | D25: 622 | E25: 705 | F25: 183 | G25: 108 | H25: 35 | I25: 5 | J25: 35 | K25: 111 | L25: 117 | M25: 68 | N25: 3 | O25: 125 | P25: 7 | Q25: 7 | R25: 1 | S25: 17 | T25: 16 | U25: 3 | V25: 0.294 | W25: 1067 | X25: -1.8 | Y25: 1.4 | Z25: 10
A26: Brian Giles | B26: - - - | C26: 134 | D26: 492 | E26: 609 | F26: 147 | G26: 87 | H26: 34 | I26: 6 | J26: 20 | K26: 93 | L26: 88 | M26: 105 | N26: 12 | O26: 58 | P26: 8 | Q26: 4 | R26: 0 | S26: 12 | T26: 4 | U26: 3 | V26: 0.299 | W26: 990 | X26: 0.1 | Y26: 0.4 | Z26: -6.1
A27: Brian Roberts | B27: BAL | C27: 112 | D27: 460 | E27: 512 | F27: 124 | G27: 93 | H27: 22 | I27: 4 | J27: 5 | K27: 65 | L27: 41 | M27: 46 | N27: 1 | O27: 58 | P27: 1 | Q27: 1 | R27: 4 | S27: 9 | T27: 23 | U27: 6 | V27: 0.27 | W27: 166 | X27: 2.4 | Y27: -0.6 | Z27: 9.9
A28: Carl Crawford | B28: TBD | C28: 151 | D28: 630 | E28: 661 | F28: 177 | G28: 145 | H28: 18 | I28: 9 | J28: 5 | K28: 80 | L28: 54 | M28: 26 | N28: 4 | O28: 102 | P28: 1 | Q28: 3 | R28: 1 | S28: 5 | T28: 55 | U28: 10 | V28: 0.281 | W28: 1201 | X28: 0.5 | Y28: 0.3 | Z28: 14.6
A29: Carl Everett | B29: - - - | C29: 147 | D29: 526 | E29: 602 | F29: 151 | G29: 93 | H29: 27 | I29: 3 | J29: 28 | K29: 93 | L29: 92 | M29: 53 | N29: 6 | O29: 84 | P29: 15 | Q29: 4 | R29: 4 | S29: 7 | T29: 8 | U29: 4 | V29: 0.287 | W29: 1249 | X29: 1 | Y29: -0.1 | Z29: -8
A30: Carlos Beltran | B30: KCR | C30: 141 | D30: 521 | E30: 602 | F30: 160 | G30: 110 | H30: 14 | I30: 10 | J30: 26 | K30: 102 | L30: 100 | M30: 72 | N30: 4 | O30: 81 | P30: 2 | Q30: 7 | R30: 0 | S30: 8 | T30: 41 | U30: 4 | V30: 0.307 | W30: 589 | X30: -2 | Y30: -0.5 | Z30: 9.2
A31: Carlos Delgado | B31: TOR | C31: 161 | D31: 570 | E31: 705 | F31: 172 | G31: 91 | H31: 38 | I31: 1 | J31: 42 | K31: 117 | L31: 145 | M31: 109 | N31: 23 | O31: 137 | P31: 19 | Q31: 7 | R31: 0 | S31: 9 | T31: 0 | U31: 0 | V31: 0.302 | W31: 1297 | X31: -0.6 | Y31: 1.4 | Z31: -7.2
A32: Carlos Lee | B32: CHW | C32: 158 | D32: 623 | E32: 671 | F32: 181 | G32: 114 | H32: 35 | I32: 1 | J32: 31 | K32: 100 | L32: 113 | M32: 37 | N32: 2 | O32: 91 | P32: 4 | Q32: 7 | R32: 0 | S32: 20 | T32: 18 | U32: 4 | V32: 0.291 | W32: 243 | X32: 0.1 | Y32: 0.2 | Z32: 7.8
A33: Carlos Pena | B33: DET | C33: 131 | D33: 452 | E33: 516 | F33: 112 | G33: 67 | H33: 21 | I33: 6 | J33: 18 | K33: 51 | L33: 50 | M33: 53 | N33: 1 | O33: 123 | P33: 6 | Q33: 4 | R33: 1 | S33: 6 | T33: 4 | U33: 5 | V33: 0.248 | W33: 934 | X33: 1.8 | Y33: -1.2 | Z33: -8.1
A34: Casey Blake | B34: CLE | C34: 152 | D34: 557 | E34: 621 | F34: 143 | G34: 91 | H34: 35 | I34: 0 | J34: 17 | K34: 80 | L34: 67 | M34: 38 | N34: 1 | O34: 109 | P34: 10 | Q34: 8 | R34: 8 | S34: 11 | T34: 7 | U34: 9 | V34: 0.257 | W34: 719 | X34: 0.7 | Y34: -0.2 | Z34: 4.9
A35: Cesar Izturis | B35: LAD | C35: 158 | D35: 558 | E35: 593 | F35: 140 | G35: 112 | H35: 21 | I35: 6 | J35: 1 | K35: 47 | L35: 40 | M35: 25 | N35: 8 | O35: 70 | P35: 0 | Q35: 3 | R35: 7 | S35: 8 | T35: 10 | U35: 5 | V35: 0.251 | W35: 656 | X35: -1.1 | Y35: -0.4 | Z35: 3.4
A36: Chipper Jones | B36: ATL | C36: 153 | D36: 555 | E36: 656 | F36: 169 | G36: 107 | H36: 33 | I36: 2 | J36: 27 | K36: 103 | L36: 106 | M36: 94 | N36: 13 | O36: 83 | P36: 1 | Q36: 6 | R36: 0 | S36: 10 | T36: 2 | U36: 2 | V36: 0.305 | W36: 97 | X36: 1.3 | Y36: 6.4 | Z36: -6.8
A37: Corey Koskie | B37: MIN | C37: 131 | D37: 469 | E37: 562 | F37: 137 | G37: 92 | H37: 29 | I37: 2 | J37: 14 | K37: 76 | L37: 69 | M37: 77 | N37: 5 | O37: 113 | P37: 7 | Q37: 9 | R37: 0 | S37: 5 | T37: 11 | U37: 5 | V37: 0.292 | W37: 738 | X37: 2.1 | Y37: -4.1 | Z37: 8.2
A38: Craig Biggio | B38: HOU | C38: 153 | D38: 628 | E38: 717 | F38: 166 | G38: 105 | H38: 44 | I38: 2 | J38: 15 | K38: 102 | L38: 62 | M38: 57 | N38: 3 | O38: 116 | P38: 27 | Q38: 2 | R38: 3 | S38: 4 | T38: 8 | U38: 4 | V38: 0.264 | W38: 549 | X38: 0.5 | Y38: -1.2 | Z38: -11
A39: Cristian Guzman | B39: MIN | C39: 143 | D39: 534 | E39: 585 | F39: 143 | G39: 111 | H39: 15 | I39: 14 | J39: 3 | K39: 78 | L39: 53 | M39: 30 | N39: 0 | O39: 79 | P39: 5 | Q39: 4 | R39: 12 | S39: 4 | T39: 18 | U39: 9 | V39: 0.268 | W39: 728 | X39: -1.3 | Y39: -0.4 | Z39: -2.7
A40: D'Angelo Jimenez | B40: - - - | C40: 146 | D40: 561 | E40: 639 | F40: 153 | G40: 108 | H40: 24 | I40: 7 | J40: 14 | K40: 69 | L40: 57 | M40: 66 | N40: 1 | O40: 89 | P40: 2 | Q40: 4 | R40: 6 | S40: 7 | T40: 11 | U40: 7 | V40: 0.273 | W40: 1038 | X40: 1.1 | Y40: -1.8 | Z40: -2.1
A41: David Eckstein | B41: ANA | C41: 120 | D41: 452 | E41: 517 | F41: 114 | G41: 88 | H41: 22 | I41: 1 | J41: 3 | K41: 59 | L41: 31 | M41: 36 | N41: 0 | O41: 45 | P41: 15 | Q41: 4 | R41: 10 | S41: 9 | T41: 16 | U41: 5 | V41: 0.252 | W41: 10 | X41: 0.5 | Y41: -0.4 | Z41: 3.1
A42: David Ortiz | B42: BOS | C42: 128 | D42: 448 | E42: 509 | F42: 129 | G42: 57 | H42: 39 | I42: 2 | J42: 31 | K42: 79 | L42: 101 | M42: 58 | N42: 8 | O42: 83 | P42: 1 | Q42: 2 | R42: 0 | S42: 9 | T42: 0 | U42: 0 | V42: 0.288 | W42: 745 | X42: -0.7 | Y42: 1 | Z42: 0.3
A43: Deivi Cruz | B43: BAL | C43: 152 | D43: 548 | E43: 572 | F43: 137 | G43: 97 | H43: 24 | I43: 2 | J43: 14 | K43: 61 | L43: 65 | M43: 13 | N43: 1 | O43: 49 | P43: 2 | Q43: 2 | R43: 7 | S43: 13 | T43: 1 | U43: 2 | V43: 0.25 | W43: 1025 | X43: 3.3 | Y43: -0.1 | Z43: 5.1
A44: Derek Jeter | B44: NYY | C44: 119 | D44: 482 | E44: 542 | F44: 156 | G44: 118 | H44: 25 | I44: 3 | J44: 10 | K44: 87 | L44: 52 | M44: 43 | N44: 2 | O44: 88 | P44: 13 | Q44: 1 | R44: 3 | S44: 10 | T44: 11 | U44: 5 | V44: 0.324 | W44: 826 | X44: -1 | Y44: 1.6 | Z44: -3.7
A45: Derrek Lee | B45: FLA | C45: 155 | D45: 539 | E45: 643 | F45: 146 | G45: 82 | H45: 31 | I45: 2 | J45: 31 | K45: 91 | L45: 92 | M45: 88 | N45: 7 | O45: 131 | P45: 10 | Q45: 6 | R45: 0 | S45: 9 | T45: 21 | U45: 8 | V45: 0.271 | W45: 525 | X45: 0.2 | Y45: -0.3 | Z45: -1.9
A46: Desi Relaford | B46: KCR | C46: 141 | D46: 500 | E46: 557 | F46: 127 | G46: 87 | H46: 27 | I46: 5 | J46: 8 | K46: 70 | L46: 59 | M46: 40 | N46: 1 | O46: 70 | P46: 6 | Q46: 3 | R46: 8 | S46: 10 | T46: 20 | U46: 4 | V46: 0.254 | W46: 1096 | X46: 1.4 | Y46: 3.3 | Z46: -5.6
A47: Dmitri Young | B47: DET | C47: 155 | D47: 562 | E47: 635 | F47: 167 | G47: 97 | H47: 34 | I47: 7 | J47: 29 | K47: 78 | L47: 85 | M47: 58 | N47: 16 | O47: 130 | P47: 11 | Q47: 4 | R47: 0 | S47: 16 | T47: 2 | U47: 1 | V47: 0.297 | W47: 505 | X47: -0.3 | Y47: 2.1 | Z47: -17.8
A48: Doug Mientkiewicz | B48: MIN | C48: 142 | D48: 487 | E48: 574 | F48: 146 | G48: 96 | H48: 38 | I48: 1 | J48: 11 | K48: 67 | L48: 65 | M48: 74 | N48: 4 | O48: 55 | P48: 5 | Q48: 6 | R48: 2 | S48: 9 | T48: 4 | U48: 1 | V48: 0.3 | W48: 741 | X48: -2.3 | Y48: 0.3 | Z48: 8.7
A49: Edgar Martinez | B49: SEA | C49: 145 | D49: 497 | E49: 603 | F49: 146 | G49: 97 | H49: 25 | I49: 0 | J49: 24 | K49: 72 | L49: 98 | M49: 92 | N49: 7 | O49: 95 | P49: 7 | Q49: 7 | R49: 0 | S49: 17 | T49: 0 | U49: 1 | V49: 0.294 | W49: 1086 | X49: 1.3 | Y49: 1
A50: Edgar Renteria | B50: STL | C50: 157 | D50: 587 | E50: 663 | F50: 194 | G50: 133 | H50: 47 | I50: 1 | J50: 13 | K50: 96 | L50: 100 | M50: 65 | N50: 12 | O50: 54 | P50: 1 | Q50: 7 | R50: 3 | S50: 21 | T50: 34 | U50: 7 | V50: 0.33 | W50: 1178 | X50: -1.8 | Y50: 0.7 | Z50: 5.3
A51: Edgardo Alfonzo | B51: SFG | C51: 142 | D51: 514 | E51: 586 | F51: 133 | G51: 93 | H51: 25 | I51: 2 | J51: 13 | K51: 56 | L51: 81 | M51: 58 | N51: 4 | O51: 41 | P51: 4 | Q51: 7 | R51: 3 | S51: 14 | T51: 5 | U51: 2 | V51: 0.259 | W51: 859 | X51: -0.2 | Y51: -0.5 | Z51: -0.6
A52: Endy Chavez | B52: MON | C52: 141 | D52: 483 | E52: 526 | F52: 121 | G52: 86 | H52: 25 | I52: 5 | J52: 5 | K52: 66 | L52: 47 | M52: 31 | N52: 3 | O52: 59 | P52: 0 | Q52: 3 | R52: 9 | S52: 7 | T52: 18 | U52: 7 | V52: 0.251 | W52: 768 | X52: -1.2 | Y52: 0.2 | Z52: 1.2
A53: Eric Chavez | B53: OAK | C53: 156 | D53: 588 | E53: 654 | F53: 166 | G53: 93 | H53: 39 | I53: 5 | J53: 29 | K53: 94 | L53: 101 | M53: 62 | N53: 10 | O53: 89 | P53: 1 | Q53: 3 | R53: 0 | S53: 14 | T53: 8 | U53: 3 | V53: 0.282 | W53: 906 | X53: -0.6 | Y53: 0.1 | Z53: -3.6
A54: Eric Hinske | B54: TOR | C54: 124 | D54: 449 | E54: 514 | F54: 109 | G54: 49 | H54: 45 | I54: 3 | J54: 12 | K54: 74 | L54: 63 | M54: 59 | N54: 1 | O54: 104 | P54: 1 | Q54: 5 | R54: 0 | S54: 11 | T54: 12 | U54: 2 | V54: 0.243 | W54: 1305 | X54: -1 | Y54: 0.3 | Z54: -10.4
A55: Eric Young | B55: - - - | C55: 135 | D55: 475 | E55: 541 | F55: 119 | G55: 83 | H55: 20 | I55: 1 | J55: 15 | K55: 80 | L55: 34 | M55: 57 | N55: 2 | O55: 44 | P55: 5 | Q55: 2 | R55: 2 | S55: 12 | T55: 28 | U55: 12 | V55: 0.251 | W55: 716 | X55: -1.1 | Y55: -0.8 | Z55: -8.8
A56: Erubiel Durazo | B56: OAK | C56: 154 | D56: 537 | E56: 645 | F56: 139 | G56: 89 | H56: 29 | I56: 0 | J56: 21 | K56: 92 | L56: 77 | M56: 100 | N56: 12 | O56: 105 | P56: 2 | Q56: 6 | R56: 0 | S56: 11 | T56: 1 | U56: 1 | V56: 0.259 | W56: 1413 | X56: -0.9 | Y56: 0.1 | Z56: -1.1
A57: Frank Catalanotto | B57: TOR | C57: 133 | D57: 489 | E57: 535 | F57: 146 | G57: 93 | H57: 34 | I57: 6 | J57: 13 | K57: 83 | L57: 59 | M57: 35 | N57: 1 | O57: 62 | P57: 6 | Q57: 3 | R57: 2 | S57: 9 | T57: 2 | U57: 2 | V57: 0.299 | W57: 1241 | X57: -3.4 | Y57: -0.7 | Z57: -8.5
A58: Frank Thomas | B58: CHW | C58: 153 | D58: 546 | E58: 662 | F58: 146 | G58: 69 | H58: 35 | I58: 0 | J58: 42 | K58: 87 | L58: 105 | M58: 100 | N58: 4 | O58: 115 | P58: 12 | Q58: 4 | R58: 0 | S58: 11 | T58: 0 | U58: 0 | V58: 0.267 | W58: 255 | X58: 0.2 | Y58: 1.5 | Z58: 0.2
A59: Garret Anderson | B59: ANA | C59: 159 | D59: 638 | E59: 673 | F59: 201 | G59: 119 | H59: 49 | I59: 4 | J59: 29 | K59: 80 | L59: 116 | M59: 31 | N59: 10 | O59: 83 | P59: 0 | Q59: 4 | R59: 0 | S59: 15 | T59: 6 | U59: 3 | V59: 0.315 | W59: 2 | X59: 2.3 | Y59: -1.8 | Z59: 11.6
A60: Gary Matthews Jr. | B60: - - - | C60: 144 | D60: 468 | E60: 513 | F60: 116 | G60: 77 | H60: 31 | I60: 2 | J60: 6 | K60: 71 | L60: 42 | M60: 43 | N60: 0 | O60: 95 | P60: 2 | Q60: 0 | R60: 0 | S60: 8 | T60: 12 | U60: 8 | V60: 0.248 | W60: 153 | X60: 0.7 | Y60: 2 | Z60: 6.3
A61: Gary Sheffield | B61: ATL | C61: 155 | D61: 576 | E61: 678 | F61: 190 | G61: 112 | H61: 37 | I61: 2 | J61: 39 | K61: 126 | L61: 132 | M61: 86 | N61: 6 | O61: 55 | P61: 8 | Q61: 8 | R61: 0 | S61: 16 | T61: 18 | U61: 4 | V61: 0.33 | W61: 114 | X61: 1.4 | Y61: -0.1 | Z61: 1.8
A62: Geoff Jenkins | B62: MIL | C62: 124 | D62: 487 | E62: 554 | F62: 144 | G62: 84 | H62: 30 | I62: 2 | J62: 28 | K62: 81 | L62: 95 | M62: 58 | N62: 10 | O62: 120 | P62: 6 | Q62: 3 | R62: 0 | S62: 12 | T62: 0 | U62: 0 | V62: 0.296 | W62: 690 | X62: 0.6 | Y62: 0.6 | Z62: 1.2
A63: Hank Blalock | B63: TEX | C63: 143 | D63: 567 | E63: 615 | F63: 170 | G63: 105 | H63: 33 | I63: 3 | J63: 29 | K63: 89 | L63: 90 | M63: 44 | N63: 1 | O63: 97 | P63: 1 | Q63: 3 | R63: 0 | S63: 16 | T63: 2 | U63: 3 | V63: 0.3 | W63: 1419 | X63: -2.3 | Y63: -0.6 | Z63: 14.5
A64: Hideki Matsui | B64: NYY | C64: 163 | D64: 623 | E64: 695 | F64: 179 | G64: 120 | H64: 42 | I64: 1 | J64: 16 | K64: 82 | L64: 106 | M64: 63 | N64: 5 | O64: 86 | P64: 3 | Q64: 6 | R64: 0 | S64: 25 | T64: 2 | U64: 2 | V64: 0.287 | W64: 1659 | X64: 1.9 | Y64: 1.9 | Z64: -22.2
A65: Ichiro Suzuki | B65: SEA | C65: 159 | D65: 679 | E65: 725 | F65: 212 | G65: 162 | H65: 29 | I65: 8 | J65: 13 | K65: 111 | L65: 62 | M65: 36 | N65: 7 | O65: 69 | P65: 6 | Q65: 1 | R65: 3 | S65: 3 | T65: 34 | U65: 8 | V65: 0.312 | W65: 1101 | X65: -0.1 | Y65: -1.1 | Z65: 21.1
A66: Ivan Rodriguez | B66: FLA | C66: 144 | D66: 511 | E66: 578 | F66: 152 | G66: 97 | H66: 36 | I66: 3 | J66: 16 | K66: 90 | L66: 85 | M66: 55 | N66: 6 | O66: 92 | P66: 6 | Q66: 5 | R66: 1 | S66: 18 | T66: 10 | U66: 6 | V66: 0.297 | W66: 1275 | X66: 0.6 | Y66: -0.5 | Z66: 1
A67: Jack Wilson | B67: PIT | C67: 150 | D67: 558 | E67: 615 | F67: 143 | G67: 110 | H67: 21 | I67: 3 | J67: 9 | K67: 58 | L67: 62 | M67: 36 | N67: 3 | O67: 74 | P67: 4 | Q67: 6 | R67: 11 | S67: 11 | T67: 5 | U67: 5 | V67: 0.256 | W67: 1017 | X67: 1.5 | Y67: -0.2 | Z67: 6.5
A68: Jacque Jones | B68: MIN | C68: 136 | D68: 517 | E68: 548 | F68: 157 | G68: 107 | H68: 33 | I68: 1 | J68: 16 | K68: 76 | L68: 69 | M68: 21 | N68: 2 | O68: 105 | P68: 4 | Q68: 5 | R68: 1 | S68: 10 | T68: 13 | U68: 1 | V68: 0.304 | W68: 735 | X68: -2.5 | Y68: -0.5 | Z68: 0
A69: Jason Giambi | B69: NYY | C69: 156 | D69: 535 | E69: 690 | F69: 134 | G69: 68 | H69: 25 | I69: 0 | J69: 41 | K69: 97 | L69: 107 | M69: 129 | N69: 9 | O69: 140 | P69: 21 | Q69: 5 | R69: 0 | S69: 9 | T69: 2 | U69: 1 | V69: 0.25 | W69: 818 | X69: 0.7 | Y69: 0.3 | Z69: -2.2
A70: Jason Kendall | B70: PIT | C70: 150 | D70: 587 | E70: 666 | F70: 191 | G70: 153 | H70: 29 | I70: 3 | J70: 6 | K70: 84 | L70: 58 | M70: 49 | N70: 3 | O70: 40 | P70: 25 | Q70: 3 | R70: 1 | S70: 9 | T70: 8 | U70: 7 | V70: 0.325 | W70: 993 | X70: 2.8 | Y70: -0.4 | Z70: -4
A71: Jason Varitek | B71: BOS | C71: 142 | D71: 451 | E71: 521 | F71: 123 | G71: 66 | H71: 31 | I71: 1 | J71: 25 | K71: 63 | L71: 85 | M71: 51 | N71: 8 | O71: 106 | P71: 7 | Q71: 7 | R71: 5 | S71: 10 | T71: 3 | U71: 2 | V71: 0.273 | W71: 217 | X71: 0 | Y71: -0.1 | Z71: 1
A72: Jay Gibbons | B72: BAL | C72: 160 | D72: 625 | E72: 682 | F72: 173 | G72: 109 | H72: 39 | I72: 2 | J72: 23 | K72: 80 | L72: 100 | M72: 49 | N72: 11 | O72: 89 | P72: 3 | Q72: 5 | R72: 0 | S72: 12 | T72: 0 | U72: 1 | V72: 0.277 | W72: 141 | X72: 1.6 | Y72: -0.2 | Z72: -9.4
A73: Jay Payton | B73: COL | C73: 157 | D73: 600 | E73: 658 | F73: 181 | G73: 116 | H73: 32 | I73: 5 | J73: 28 | K73: 93 | L73: 89 | M73: 43 | N73: 3 | O73: 77 | P73: 7 | Q73: 3 | R73: 5 | S73: 27 | T73: 6 | U73: 4 | V73: 0.302 | W73: 890 | X73: 0.2 | Y73: 1.8 | Z73: -5.5
A74: Jeff Bagwell | B74: HOU | C74: 160 | D74: 605 | E74: 702 | F74: 168 | G74: 99 | H74: 28 | I74: 2 | J74: 39 | K74: 109 | L74: 100 | M74: 88 | N74: 3 | O74: 119 | P74: 6 | Q74: 3 | R74: 0 | S74: 25 | T74: 11 | U74: 4 | V74: 0.278 | W74: 547 | X74: 3.9 | Y74: -1.4 | Z74: 2.7
A75: Jeff Conine | B75: - - - | C75: 149 | D75: 577 | E75: 646 | F75: 163 | G75: 104 | H75: 36 | I75: 3 | J75: 20 | K75: 88 | L75: 95 | M75: 50 | N75: 5 | O75: 70 | P75: 5 | Q75: 13 | R75: 1 | S75: 16 | T75: 5 | U75: 0 | V75: 0.282 | W75: 131 | X75: 1.2 | Y75: 0 | Z75: -2.9
A76: Jeff Kent | B76: HOU | C76: 130 | D76: 505 | E76: 552 | F76: 150 | G76: 88 | H76: 39 | I76: 1 | J76: 22 | K76: 77 | L76: 93 | M76: 39 | N76: 2 | O76: 85 | P76: 5 | Q76: 3 | R76: 0 | S76: 13 | T76: 6 | U76: 2 | V76: 0.297 | W76: 1119 | X76: 1.5 | Y76: -1.2 | Z76: -0.5
A77: Jeromy Burnitz | B77: - - - | C77: 126 | D77: 464 | E77: 505 | F77: 111 | G77: 58 | H77: 22 | I77: 0 | J77: 31 | K77: 63 | L77: 77 | M77: 35 | N77: 9 | O77: 112 | P77: 5 | Q77: 1 | R77: 0 | S77: 5 | T77: 5 | U77: 4 | V77: 0.239 | W77: 867 | X77: 0.9 | Y77: 3.5 | Z77: -2.3
A78: Jim Edmonds | B78: STL | C78: 137 | D78: 447 | E78: 531 | F78: 123 | G78: 50 | H78: 32 | I78: 2 | J78: 39 | K78: 89 | L78: 89 | M78: 77 | N78: 6 | O78: 127 | P78: 4 | Q78: 2 | R78: 1 | S78: 11 | T78: 1 | U78: 3 | V78: 0.275 | W78: 1153 | X78: 0.2 | Y78: -1.9 | Z78: 8.2
A79: Jim Thome | B79: PHI | C79: 159 | D79: 578 | E79: 698 | F79: 154 | G79: 74 | H79: 30 | I79: 3 | J79: 47 | K79: 111 | L79: 131 | M79: 111 | N79: 11 | O79: 182 | P79: 4 | Q79: 5 | R79: 0 | S79: 5 | T79: 0 | U79: 3 | V79: 0.266 | W79: 409 | X79: -1.9 | Y79: -0.3 | Z79: -5.8
A80: Jimmy Rollins | B80: PHI | C80: 156 | D80: 628 | E80: 689 | F80: 165 | G80: 109 | H80: 42 | I80: 6 | J80: 8 | K80: 85 | L80: 62 | M80: 54 | N80: 4 | O80: 113 | P80: 0 | Q80: 2 | R80: 5 | S80: 9 | T80: 20 | U80: 12 | V80: 0.263 | W80: 971 | X80: 2.2 | Y80: 4 | Z80: 6.1
A81: Jody Gerut | B81: CLE | C81: 127 | D81: 480 | E81: 525 | F81: 134 | G81: 77 | H81: 33 | I81: 2 | J81: 22 | K81: 66 | L81: 75 | M81: 35 | N81: 4 | O81: 70 | P81: 7 | Q81: 2 | R81: 1 | S81: 13 | T81: 4 | U81: 5 | V81: 0.279 | W81: 1696 | X81: 1.4 | Y81: -1.1 | Z81: 9.4
A82: Joe Crede | B82: CHW | C82: 151 | D82: 536 | E82: 580 | F82: 140 | G82: 88 | H82: 31 | I82: 2 | J82: 19 | K82: 68 | L82: 75 | M82: 32 | N82: 1 | O82: 75 | P82: 6 | Q82: 4 | R82: 2 | S82: 11 | T82: 1 | U82: 1 | V82: 0.261 | W82: 227 | X82: -1.2 | Y82: 0.4 | Z82: 6.9
A83: Joe Randa | B83: KCR | C83: 131 | D83: 502 | E83: 566 | F83: 146 | G83: 98 | H83: 31 | I83: 1 | J83: 16 | K83: 80 | L83: 72 | M83: 41 | N83: 0 | O83: 61 | P83: 7 | Q83: 7 | R83: 9 | S83: 12 | T83: 1 | U83: 0 | V83: 0.291 | W83: 623 | X83: 0.6 | Y83: -1.4 | Z83: 0.1
A84: John Olerud | B84: SEA | C84: 152 | D84: 539 | E84: 634 | F84: 145 | G84: 100 | H84: 35 | I84: 0 | J84: 10 | K84: 64 | L84: 83 | M84: 84 | N84: 7 | O84: 67 | P84: 6 | Q84: 3 | R84: 2 | S84: 20 | T84: 0 | U84: 1 | V84: 0.269 | W84: 1093 | X84: -0.4 | Y84: -1.6 | Z84: 9.3
A85: Johnny Damon | B85: BOS | C85: 145 | D85: 608 | E85: 690 | F85: 166 | G85: 116 | H85: 32 | I85: 6 | J85: 12 | K85: 103 | L85: 67 | M85: 68 | N85: 4 | O85: 74 | P85: 2 | Q85: 6 | R85: 6 | S85: 5 | T85: 30 | U85: 6 | V85: 0.273 | W85: 185 | X85: -0.4 | Y85: -0.7 | Z85: -5.1
A86: Jorge Posada | B86: NYY | C86: 142 | D86: 481 | E86: 588 | F86: 135 | G86: 81 | H86: 24 | I86: 0 | J86: 30 | K86: 83 | L86: 101 | M86: 93 | N86: 6 | O86: 110 | P86: 10 | Q86: 4 | R86: 0 | S86: 13 | T86: 2 | U86: 4 | V86: 0.281 | W86: 841 | X86: -0.4 | Y86: -0.1 | Z86: 3
A87: Jose Cruz | B87: SFG | C87: 158 | D87: 539 | E87: 650 | F87: 135 | G87: 88 | H87: 26 | I87: 1 | J87: 20 | K87: 90 | L87: 68 | M87: 102 | N87: 6 | O87: 121 | P87: 0 | Q87: 7 | R87: 2 | S87: 14 | T87: 5 | U87: 8 | V87: 0.25 | W87: 1296 | X87: -0.5 | Y87: 4.2 | Z87: 13.5
A88: Jose Guillen | B88: - - - | C88: 136 | D88: 485 | E88: 535 | F88: 151 | G88: 90 | H88: 28 | I88: 2 | J88: 31 | K88: 77 | L88: 86 | M88: 24 | N88: 2 | O88: 95 | P88: 14 | Q88: 3 | R88: 8 | S88: 16 | T88: 1 | U88: 3 | V88: 0.311 | W88: 57 | X88: -0.4 | Y88: -0.6 | Z88: -1.5
A89: Jose Hernandez | B89: - - - | C89: 150 | D89: 519 | E89: 571 | F89: 117 | G89: 83 | H89: 18 | I89: 3 | J89: 13 | K89: 58 | L89: 57 | M89: 46 | N89: 0 | O89: 177 | P89: 1 | Q89: 5 | R89: 0 | S89: 16 | T89: 2 | U89: 1 | V89: 0.225 | W89: 688 | X89: -0.2 | Y89: 2 | Z89: -6.6
A90: Jose Valentin | B90: CHW | C90: 144 | D90: 503 | E90: 569 | F90: 119 | G90: 63 | H90: 26 | I90: 2 | J90: 28 | K90: 79 | L90: 74 | M90: 54 | N90: 4 | O90: 114 | P90: 3 | Q90: 2 | R90: 7 | S90: 6 | T90: 8 | U90: 3 | V90: 0.237 | W90: 256 | X90: -0.4 | Y90: -0.3 | Z90: 11.9
A91: Jose Vidro | B91: MON | C91: 144 | D91: 509 | E91: 592 | F91: 158 | G91: 107 | H91: 36 | I91: 0 | J91: 15 | K91: 77 | L91: 65 | M91: 69 | N91: 6 | O91: 50 | P91: 7 | Q91: 5 | R91: 2 | S91: 16 | T91: 3 | U91: 2 | V91: 0.31 | W91: 802 | X91: 1.4 | Y91: -0.2 | Z91: -4.9
A92: Juan Encarnacion | B92: FLA | C92: 156 | D92: 601 | E92: 653 | F92: 162 | G92: 100 | H92: 37 | I92: 6 | J92: 19 | K92: 80 | L92: 94 | M92: 37 | N92: 0 | O92: 82 | P92: 4 | Q92: 6 | R92: 5 | S92: 17 | T92: 19 | U92: 8 | V92: 0.27 | W92: 320 | X92: -4.3 | Y92: -0.6 | Z92: -7.9
A93: Juan Pierre | B93: FLA | C93: 162 | D93: 668 | E93: 747 | F93: 204 | G93: 168 | H93: 28 | I93: 7 | J93: 1 | K93: 100 | L93: 41 | M93: 55 | N93: 1 | O93: 35 | P93: 5 | Q93: 3 | R93: 15 | S93: 9 | T93: 65 | U93: 20 | V93: 0.305 | W93: 443 | X93: -1.7 | Y93: 0.4 | Z93: 9.4
A94: Julio Lugo | B94: - - - | C94: 139 | D94: 498 | E94: 556 | F94: 135 | G94: 100 | H94: 16 | I94: 4 | J94: 15 | K94: 64 | L94: 55 | M94: 44 | N94: 1 | O94: 100 | P94: 4 | Q94: 3 | R94: 7 | S94: 7 | T94: 12 | U94: 4 | V94: 0.271 | W94: 565 | X94: -2.4 | Y94: -0.6 | Z94: 1.7
A95: Ken Harvey | B95: KCR | C95: 135 | D95: 485 | E95: 524 | F95: 129 | G95: 86 | H95: 30 | I95: 0 | J95: 13 | K95: 50 | L95: 64 | M95: 29 | N95: 4 | O95: 94 | P95: 5 | Q95: 2 | R95: 3 | S95: 15 | T95: 2 | U95: 3 | V95: 0.266 | W95: 604 | X95: -0.1 | Y95: -2.5 | Z95: -0.9
A96: Kenny Lofton | B96: - - - | C96: 140 | D96: 547 | E96: 610 | F96: 162 | G96: 110 | H96: 32 | I96: 8 | J96: 12 | K96: 97 | L96: 46 | M96: 46 | N96: 3 | O96: 51 | P96: 4 | Q96: 6 | R96: 7 | S96: 6 | T96: 30 | U96: 9 | V96: 0.296 | W96: 246 | X96: -1.4 | Y96: -1 | Z96: 4.1
A97: Kevin Millar | B97: BOS | C97: 148 | D97: 544 | E97: 618 | F97: 150 | G97: 94 | H97: 30 | I97: 1 | J97: 25 | K97: 83 | L97: 96 | M97: 60 | N97: 5 | O97: 108 | P97: 5 | Q97: 9 | R97: 0 | S97: 14 | T97: 3 | U97: 2 | V97: 0.276 | W97: 529 | X97: -0.2 | Y97: -0.1 | Z97: -13.8
A98: Lance Berkman | B98: HOU | C98: 153 | D98: 538 | E98: 658 | F98: 155 | G98: 89 | H98: 35 | I98: 6 | J98: 25 | K98: 110 | L98: 93 | M98: 107 | N98: 13 | O98: 108 | P98: 9 | Q98: 3 | R98: 1 | S98: 10 | T98: 5 | U98: 3 | V98: 0.288 | W98: 548 | X98: -0.3 | Y98: -1.4 | Z98: 13
A99: Larry Walker | B99: COL | C99: 143 | D99: 454 | E99: 564 | F99: 129 | G99: 81 | H99: 25 | I99: 7 | J99: 16 | K99: 86 | L99: 79 | M99: 98 | N99: 14 | O99: 87 | P99: 11 | Q99: 1 | R99: 0 | S99: 9 | T99: 7 | U99: 4 | V99: 0.284 | W99: 455 | X99: 0.2 | Y99: -0.1 | Z99: 4
A100: Luis Castillo | B100: FLA | C100: 152 | D100: 595 | E100: 676 | F100: 187 | G100: 156 | H100: 19 | I100: 6 | J100: 6 | K100: 99 | L100: 39 | M100: 63 | N100: 0 | O100: 60 | P100: 2 | Q100: 1 | R100: 15 | S100: 7 | T100: 21 | U100: 19 | V100: 0.314 | W100: 513 | X100: -0.3 | Y100: 0.9 | Z100: 11.5
A101: Luis Gonzalez | B101: ARI | C101: 156 | D101: 579 | E101: 679 | F101: 176 | G101: 100 | H101: 46 | I101: 4 | J101: 26 | K101: 92 | L101: 104 | M101: 94 | N101: 17 | O101: 67 | P101: 3 | Q101: 3 | R101: 0 | S101: 19 | T101: 5 | U101: 3 | V101: 0.304 | W101: 55 | X101: 0.1 | Y101: 1.9 | Z101: -2.1
A102: Luis Rivas | B102: MIN | C102: 135 | D102: 475 | E102: 521 | F102: 123 | G102: 90 | H102: 16 | I102: 9 | J102: 8 | K102: 69 | L102: 43 | M102: 30 | N102: 0 | O102: 65 | P102: 5 | Q102: 3 | R102: 8 | S102: 20 | T102: 17 | U102: 7 | V102: 0.259 | W102: 753 | X102: -2.4 | Y102: 0 | Z102: -10.3
A103: Magglio Ordonez | B103: CHW | C103: 160 | D103: 606 | E103: 674 | F103: 192 | G103: 114 | H103: 46 | I103: 3 | J103: 29 | K103: 95 | L103: 99 | M103: 57 | N103: 1 | O103: 73 | P103: 7 | Q103: 4 | R103: 0 | S103: 20 | T103: 9 | U103: 5 | V103: 0.317 | W103: 248 | X103: 1 | Y103: -0.5 | Z103: 0.9
A104: Manny Ramirez | B104: BOS | C104: 154 | D104: 569 | E104: 679 | F104: 185 | G104: 111 | H104: 36 | I104: 1 | J104: 37 | K104: 117 | L104: 104 | M104: 97 | N104: 28 | O104: 94 | P104: 8 | Q104: 5 | R104: 0 | S104: 22 | T104: 3 | U104: 1 | V104: 0.325 | W104: 210 | X104: 0.2 | Y104: 0.7 | Z104: -5.4
A105: Marcus Giles | B105: ATL | C105: 145 | D105: 551 | E105: 635 | F105: 174 | G105: 102 | H105: 49 | I105: 2 | J105: 21 | K105: 101 | L105: 69 | M105: 59 | N105: 2 | O105: 80 | P105: 11 | Q105: 4 | R105: 10 | S105: 7 | T105: 14 | U105: 4 | V105: 0.316 | W105: 89 | X105: -1.4 | Y105: 1.8 | Z105: 8.3
A106: Mark Ellis | B106: OAK | C106: 154 | D106: 553 | E106: 622 | F106: 137 | G106: 92 | H106: 31 | I106: 5 | J106: 9 | K106: 78 | L106: 52 | M106: 48 | N106: 4 | O106: 94 | P106: 7 | Q106: 5 | R106: 9 | S106: 7 | T106: 6 | U106: 2 | V106: 0.248 | W106: 1443 | X106: 2.5 | Y106: 1.5 | Z106: 5
A107: Mark Grudzielanek | B107: CHC | C107: 121 | D107: 481 | E107: 531 | F107: 151 | G107: 109 | H107: 38 | I107: 1 | J107: 3 | K107: 73 | L107: 38 | M107: 30 | N107: 0 | O107: 64 | P107: 11 | Q107: 2 | R107: 7 | S107: 12 | T107: 6 | U107: 2 | V107: 0.314 | W107: 653 | X107: -1.4 | Y107: 3.7 | Z107: 0.3
A108: Mark Kotsay | B108: SDP | C108: 128 | D108: 482 | E108: 541 | F108: 128 | G108: 89 | H108: 28 | I108: 4 | J108: 7 | K108: 64 | L108: 38 | M108: 56 | N108: 3 | O108: 82 | P108: 1 | Q108: 1 | R108: 1 | S108: 8 | T108: 6 | U108: 3 | V108: 0.266 | W108: 1042 | X108: -1.5 | Y108: -0.5 | Z108: 18.7
A109: Mark Loretta | B109: SDP | C109: 154 | D109: 589 | E109: 653 | F109: 185 | G109: 140 | H109: 28 | I109: 4 | J109: 13 | K109: 74 | L109: 72 | M109: 54 | N109: 2 | O109: 62 | P109: 3 | Q109: 4 | R109: 3 | S109: 17 | T109: 5 | U109: 4 | V109: 0.314 | W109: 1383 | X109: 0.8 | Y109: -1.3 | Z109: 5.5
A110: Mark Teixeira | B110: TEX | C110: 146 | D110: 529 | E110: 589 | F110: 137 | G110: 77 | H110: 29 | I110: 5 | J110: 26 | K110: 66 | L110: 84 | M110: 44 | N110: 5 | O110: 120 | P110: 14 | Q110: 2 | R110: 0 | S110: 14 | T110: 1 | U110: 2 | V110: 0.259 | W110: 1281 | X110: -0.6 | Y110: -1.9 | Z110: 6.4
A111: Marlon Anderson | B111: TBD | C111: 145 | D111: 482 | E111: 535 | F111: 130 | G111: 94 | H111: 27 | I111: 3 | J111: 6 | K111: 59 | L111: 67 | M111: 41 | N111: 5 | O111: 60 | P111: 3 | Q111: 5 | R111: 4 | S111: 6 | T111: 19 | U111: 3 | V111: 0.27 | W111: 947 | X111: 1.6 | Y111: 0.1 | Z111: 3.5
A112: Marlon Byrd | B112: PHI | C112: 135 | D112: 495 | E112: 553 | F112: 150 | G112: 111 | H112: 28 | I112: 4 | J112: 7 | K112: 86 | L112: 45 | M112: 44 | N112: 3 | O112: 94 | P112: 7 | Q112: 3 | R112: 4 | S112: 8 | T112: 11 | U112: 1 | V112: 0.303 | W112: 950 | X112: 2.3 | Y112: 0.3 | Z112: 5.3
A113: Marquis Grissom | B113: SFG | C113: 149 | D113: 587 | E113: 618 | F113: 176 | G113: 120 | H113: 33 | I113: 3 | J113: 20 | K113: 82 | L113: 79 | M113: 20 | N113: 0 | O113: 82 | P113: 2 | Q113: 6 | R113: 3 | S113: 14 | T113: 11 | U113: 3 | V113: 0.3 | W113: 652 | X113: -0.7 | Y113: 1.2 | Z113: -3.1
A114: Michael Young | B114: TEX | C114: 160 | D114: 666 | E114: 713 | F114: 204 | G114: 148 | H114: 33 | I114: 9 | J114: 14 | K114: 106 | L114: 72 | M114: 36 | N114: 1 | O114: 103 | P114: 1 | Q114: 7 | R114: 3 | S114: 14 | T114: 13 | U114: 2 | V114: 0.306 | W114: 1286 | X114: 0 | Y114: 0.2 | Z114: -4.3
A115: Miguel Tejada | B115: OAK | C115: 162 | D115: 636 | E115: 703 | F115: 177 | G115: 108 | H115: 42 | I115: 0 | J115: 27 | K115: 98 | L115: 106 | M115: 53 | N115: 7 | O115: 65 | P115: 6 | Q115: 8 | R115: 0 | S115: 12 | T115: 10 | U115: 0 | V115: 0.278 | W115: 941 | X115: -1.6 | Y115: 3.8 | Z115: -10.6
A116: Mike Cameron | B116: SEA | C116: 147 | D116: 534 | E116: 612 | F116: 135 | G116: 81 | H116: 31 | I116: 5 | J116: 18 | K116: 74 | L116: 76 | M116: 70 | N116: 1 | O116: 137 | P116: 5 | Q116: 2 | R116: 1 | S116: 13 | T116: 17 | U116: 7 | V116: 0.253 | W116: 1070 | X116: 0.8 | Y116: 0.5 | Z116: 19.2
A117: Mike Lieberthal | B117: PHI | C117: 131 | D117: 508 | E117: 561 | F117: 159 | G117: 115 | H117: 30 | I117: 1 | J117: 13 | K117: 68 | L117: 81 | M117: 38 | N117: 2 | O117: 59 | P117: 12 | Q117: 3 | R117: 0 | S117: 14 | T117: 0 | U117: 0 | V117: 0.313 | W117: 959 | X117: 0.3 | Y117: -0.1 | Z117: -6
A118: Mike Lowell | B118: FLA | C118: 130 | D118: 492 | E118: 557 | F118: 136 | G118: 76 | H118: 27 | I118: 1 | J118: 32 | K118: 76 | L118: 105 | M118: 56 | N118: 6 | O118: 78 | P118: 3 | Q118: 6 | R118: 0 | S118: 14 | T118: 3 | U118: 1 | V118: 0.276 | W118: 527 | X118: -0.4 | Y118: 0.3 | Z118: 2.2
A119: Moises Alou | B119: CHC | C119: 151 | D119: 565 | E119: 638 | F119: 158 | G119: 100 | H119: 35 | I119: 1 | J119: 22 | K119: 83 | L119: 91 | M119: 63 | N119: 7 | O119: 67 | P119: 7 | Q119: 3 | R119: 0 | S119: 16 | T119: 3 | U119: 1 | V119: 0.28 | W119: 261 | X119: 0.4 | Y119: 0 | Z119: 11.9
A120: Nomar Garciaparra | B120: BOS | C120: 156 | D120: 658 | E120: 719 | F120: 198 | G120: 120 | H120: 37 | I120: 13 | J120: 28 | K120: 120 | L120: 105 | M120: 39 | N120: 1 | O120: 61 | P120: 11 | Q120: 10 | R120: 1 | S120: 10 | T120: 19 | U120: 5 | V120: 0.301 | W120: 190 | X120: 0.4 | Y120: 2.2 | Z120: 0.2
A121: Orlando Cabrera | B121: MON | C121: 162 | D121: 626 | E121: 691 | F121: 186 | G121: 120 | H121: 47 | I121: 2 | J121: 17 | K121: 95 | L121: 80 | M121: 52 | N121: 3 | O121: 64 | P121: 1 | Q121: 9 | R121: 3 | S121: 18 | T121: 24 | U121: 2 | V121: 0.297 | W121: 766 | X121: -1.2 | Y121: -0.8 | Z121: 1.3
A122: Orlando Hudson | B122: TOR | C122: 142 | D122: 474 | E122: 521 | F122: 127 | G122: 91 | H122: 21 | I122: 6 | J122: 9 | K122: 54 | L122: 57 | M122: 39 | N122: 1 | O122: 87 | P122: 5 | Q122: 3 | R122: 0 | S122: 13 | T122: 5 | U122: 4 | V122: 0.268 | W122: 1307 | X122: 1.2 | Y122: -0.5 | Z122: 1.6
A123: Pat Burrell | B123: PHI | C123: 146 | D123: 522 | E123: 599 | F123: 109 | G123: 53 | H123: 31 | I123: 4 | J123: 21 | K123: 57 | L123: 64 | M123: 72 | N123: 2 | O123: 142 | P123: 4 | Q123: 1 | R123: 0 | S123: 18 | T123: 0 | U123: 0 | V123: 0.209 | W123: 949 | X123: 0.5 | Y123: 0.2 | Z123: 1.4
A124: Paul Lo Duca | B124: LAD | C124: 147 | D124: 568 | E124: 630 | F124: 155 | G124: 112 | H124: 34 | I124: 2 | J124: 7 | K124: 64 | L124: 52 | M124: 44 | N124: 6 | O124: 54 | P124: 10 | Q124: 1 | R124: 7 | S124: 21 | T124: 0 | U124: 2 | V124: 0.273 | W124: 662 | X124: -0.4 | Y124: 0.3 | Z124: 10.1
A125: Placido Polanco | B125: PHI | C125: 122 | D125: 492 | E125: 554 | F125: 142 | G125: 95 | H125: 30 | I125: 3 | J125: 14 | K125: 87 | L125: 63 | M125: 42 | N125: 1 | O125: 38 | P125: 8 | Q125: 4 | R125: 8 | S125: 16 | T125: 14 | U125: 2 | V125: 0.289 | W125: 1176 | X125: 2.1 | Y125: 2.3 | Z125: 11
A126: Preston Wilson | B126: COL | C126: 155 | D126: 600 | E126: 661 | F126: 169 | G126: 89 | H126: 43 | I126: 1 | J126: 36 | K126: 94 | L126: 141 | M126: 54 | N126: 1 | O126: 139 | P126: 4 | Q126: 3 | R126: 0 | S126: 23 | T126: 14 | U126: 7 | V126: 0.282 | W126: 545 | X126: -1.7 | Y126: -1 | Z126: 1.8
A127: Rafael Furcal | B127: ATL | C127: 156 | D127: 664 | E127: 734 | F127: 194 | G127: 134 | H127: 35 | I127: 10 | J127: 15 | K127: 130 | L127: 61 | M127: 60 | N127: 2 | O127: 76 | P127: 3 | Q127: 4 | R127: 3 | S127: 1 | T127: 25 | U127: 2 | V127: 0.292 | W127: 88 | X127: 1.2 | Y127: -1.4 | Z127: -7.9
A128: Rafael Palmeiro | B128: TEX | C128: 154 | D128: 561 | E128: 654 | F128: 146 | G128: 85 | H128: 21 | I128: 2 | J128: 38 | K128: 92 | L128: 112 | M128: 84 | N128: 9 | O128: 77 | P128: 5 | Q128: 4 | R128: 0 | S128: 7 | T128: 2 | U128: 0 | V128: 0.26 | W128: 1266 | X128: 2.4 | Y128: -0.1 | Z128: 4.7
A129: Ramon Hernandez | B129: OAK | C129: 140 | D129: 483 | E129: 536 | F129: 132 | G129: 86 | H129: 24 | I129: 1 | J129: 21 | K129: 70 | L129: 78 | M129: 33 | N129: 2 | O129: 79 | P129: 12 | Q129: 6 | R129: 2 | S129: 14 | T129: 0 | U129: 0 | V129: 0.273 | W129: 918 | X129: -0.9 | Y129: -0.8 | Z129: 2
A130: Ramon Santiago | B130: DET | C130: 141 | D130: 444 | E130: 507 | F130: 100 | G130: 79 | H130: 18 | I130: 1 | J130: 2 | K130: 41 | L130: 29 | M130: 33 | N130: 0 | O130: 66 | P130: 10 | Q130: 2 | R130: 18 | S130: 9 | T130: 10 | U130: 4 | V130: 0.225 | W130: 1417 | X130: 2.2 | Y130: -0.2 | Z130: -12
A131: Randy Winn | B131: SEA | C131: 157 | D131: 600 | E131: 660 | F131: 177 | G131: 125 | H131: 37 | I131: 4 | J131: 11 | K131: 103 | L131: 75 | M131: 41 | N131: 0 | O131: 108 | P131: 8 | Q131: 5 | R131: 6 | S131: 9 | T131: 23 | U131: 5 | V131: 0.295 | W131: 1235 | X131: -5.2 | Y131: 0.1 | Z131: 4.2
A132: Raul Ibanez | B132: KCR | C132: 157 | D132: 608 | E132: 671 | F132: 179 | G132: 123 | H132: 33 | I132: 5 | J132: 18 | K132: 95 | L132: 90 | M132: 49 | N132: 5 | O132: 81 | P132: 3 | Q132: 10 | R132: 1 | S132: 10 | T132: 8 | U132: 4 | V132: 0.294 | W132: 607 | X132: -1.7 | Y132: -1.2 | Z132: -2.6
A133: Raul Mondesi | B133: - - - | C133: 143 | D133: 523 | E133: 586 | F133: 142 | G133: 83 | H133: 31 | I133: 4 | J133: 24 | K133: 83 | L133: 71 | M133: 56 | N133: 6 | O133: 97 | P133: 3 | Q133: 4 | R133: 0 | S133: 9 | T133: 22 | U133: 11 | V133: 0.272 | W133: 1314 | X133: 1.4 | Y133: 1.3 | Z133: 6.4
A134: Rich Aurilia | B134: SFG | C134: 129 | D134: 505 | E134: 545 | F134: 140 | G134: 100 | H134: 26 | I134: 1 | J134: 13 | K134: 65 | L134: 58 | M134: 36 | N134: 0 | O134: 82 | P134: 1 | Q134: 3 | R134: 0 | S134: 18 | T134: 2 | U134: 2 | V134: 0.277 | W134: 1106 | X134: 0.1 | Y134: -0.2 | Z134: 3.4
A135: Richard Hidalgo | B135: HOU | C135: 141 | D135: 514 | E135: 585 | F135: 159 | G135: 84 | H135: 43 | I135: 4 | J135: 28 | K135: 91 | L135: 88 | M135: 58 | N135: 8 | O135: 104 | P135: 8 | Q135: 5 | R135: 0 | S135: 10 | T135: 9 | U135: 7 | V135: 0.309 | W135: 561 | X135: -0.6 | Y135: -0.3 | Z135: 17.3
A136: Richie Sexson | B136: MIL | C136: 162 | D136: 606 | E136: 718 | F136: 165 | G136: 90 | H136: 28 | I136: 2 | J136: 45 | K136: 97 | L136: 124 | M136: 98 | N136: 7 | O136: 151 | P136: 9 | Q136: 5 | R136: 0 | S136: 18 | T136: 2 | U136: 3 | V136: 0.272 | W136: 709 | X136: -1.3 | Y136: -1 | Z136: -5.1
A137: Roberto Alomar | B137: - - - | C137: 140 | D137: 516 | E137: 598 | F137: 133 | G137: 98 | H137: 28 | I137: 2 | J137: 5 | K137: 76 | L137: 39 | M137: 59 | N137: 3 | O137: 77 | P137: 3 | Q137: 8 | R137: 12 | S137: 17 | T137: 12 | U137: 2 | V137: 0.258 | W137: 860 | X137: -2.2 | Y137: 0.9 | Z137: -5.2
A138: Rocco Baldelli | B138: TBD | C138: 156 | D138: 637 | E138: 684 | F138: 184 | G138: 133 | H138: 32 | I138: 8 | J138: 11 | K138: 89 | L138: 78 | M138: 30 | N138: 4 | O138: 128 | P138: 8 | Q138: 6 | R138: 3 | S138: 10 | T138: 27 | U138: 10 | V138: 0.289 | W138: 1656 | X138: -0.2 | Y138: -0.3 | Z138: -5.3
A139: Roger Cedeno | B139: NYM | C139: 148 | D139: 484 | E139: 527 | F139: 129 | G139: 93 | H139: 25 | I139: 4 | J139: 7 | K139: 70 | L139: 37 | M139: 38 | N139: 3 | O139: 86 | P139: 1 | Q139: 2 | R139: 2 | S139: 8 | T139: 14 | U139: 9 | V139: 0.267 | W139: 869 | X139: -0.8 | Y139: -0.7 | Z139: -8
A140: Rondell White | B140: - - - | C140: 137 | D140: 488 | E140: 534 | F140: 141 | G140: 92 | H140: 23 | I140: 4 | J140: 22 | K140: 62 | L140: 87 | M140: 31 | N140: 2 | O140: 79 | P140: 10 | Q140: 5 | R140: 0 | S140: 13 | T140: 1 | U140: 4 | V140: 0.289 | W140: 856 | X140: 0.8 | Y140: -1.6 | Z140: -0.4
A141: Ronnie Belliard | B141: COL | C141: 116 | D141: 447 | E141: 505 | F141: 124 | G141: 83 | H141: 31 | I141: 2 | J141: 8 | K141: 73 | L141: 50 | M141: 49 | N141: 0 | O141: 71 | P141: 2 | Q141: 1 | R141: 6 | S141: 7 | T141: 7 | U141: 2 | V141: 0.277 | W141: 677 | X141: -1.1 | Y141: -0.6 | Z141: -7.3
A142: Royce Clayton | B142: MIL | C142: 146 | D142: 483 | E142: 543 | F142: 110 | G142: 82 | H142: 16 | I142: 1 | J142: 11 | K142: 49 | L142: 39 | M142: 49 | N142: 10 | O142: 92 | P142: 3 | Q142: 4 | R142: 4 | S142: 25 | T142: 5 | U142: 2 | V142: 0.228 | W142: 226 | X142: 0.5 | Y142: 2 | Z142: -0.5
A143: Sammy Sosa | B143: CHC | C143: 137 | D143: 517 | E143: 589 | F143: 144 | G143: 82 | H143: 22 | I143: 0 | J143: 40 | K143: 99 | L143: 103 | M143: 62 | N143: 9 | O143: 143 | P143: 5 | Q143: 5 | R143: 0 | S143: 14 | T143: 0 | U143: 1 | V143: 0.279 | W143: 302 | X143: 0.4 | Y143: 0.5 | Z143: -6.9
A144: Scott Hatteberg | B144: OAK | C144: 147 | D144: 541 | E144: 622 | F144: 137 | G144: 91 | H144: 34 | I144: 0 | J144: 12 | K144: 63 | L144: 61 | M144: 66 | N144: 0 | O144: 53 | P144: 9 | Q144: 3 | R144: 3 | S144: 14 | T144: 0 | U144: 1 | V144: 0.253 | W144: 916 | X144: -1.7 | Y144: -0.1 | Z144: -3.4
A145: Scott Podsednik | B145: MIL | C145: 154 | D145: 558 | E145: 628 | F145: 175 | G145: 129 | H145: 29 | I145: 8 | J145: 9 | K145: 100 | L145: 58 | M145: 56 | N145: 2 | O145: 91 | P145: 4 | Q145: 2 | R145: 8 | S145: 11 | T145: 43 | U145: 10 | V145: 0.314 | W145: 1095 | X145: -0.1 | Y145: -0.4 | Z145: -8.6
A146: Scott Rolen | B146: STL | C146: 154 | D146: 559 | E146: 657 | F146: 160 | G146: 82 | H146: 49 | I146: 1 | J146: 28 | K146: 98 | L146: 104 | M146: 82 | N146: 5 | O146: 104 | P146: 9 | Q146: 7 | R146: 0 | S146: 19 | T146: 13 | U146: 3 | V146: 0.286 | W146: 970 | X146: -1 | Y146: 0.2 | Z146: 7.7
A147: Scott Spiezio | B147: ANA | C147: 158 | D147: 521 | E147: 581 | F147: 138 | G147: 79 | H147: 36 | I147: 7 | J147: 16 | K147: 69 | L147: 83 | M147: 46 | N147: 8 | O147: 66 | P147: 5 | Q147: 7 | R147: 2 | S147: 12 | T147: 6 | U147: 3 | V147: 0.265 | W147: 37 | X147: -0.3 | Y147: 1.8 | Z147: -0.6
A148: Sean Burroughs | B148: SDP | C148: 146 | D148: 517 | E148: 578 | F148: 148 | G148: 108 | H148: 27 | I148: 6 | J148: 7 | K148: 62 | L148: 58 | M148: 44 | N148: 4 | O148: 75 | P148: 11 | Q148: 4 | R148: 2 | S148: 13 | T148: 7 | U148: 2 | V148: 0.286 | W148: 1021 | X148: -0.7 | Y148: -1 | Z148: 3.4
A149: Sean Casey | B149: CIN | C149: 147 | D149: 573 | E149: 629 | F149: 167 | G149: 131 | H149: 19 | I149: 3 | J149: 14 | K149: 71 | L149: 80 | M149: 51 | N149: 4 | O149: 58 | P149: 2 | Q149: 3 | R149: 0 | S149: 19 | T149: 4 | U149: 0 | V149: 0.291 | W149: 314 | X149: 0.9 | Y149: -0.1 | Z149: 3.5
A150: Shannon Stewart | B150: - - - | C150: 136 | D150: 573 | E150: 644 | F150: 176 | G150: 117 | H150: 44 | I150: 2 | J150: 13 | K150: 90 | L150: 73 | M150: 52 | N150: 3 | O150: 66 | P150: 6 | Q150: 11 | R150: 2 | S150: 10 | T150: 4 | U150: 6 | V150: 0.307 | W150: 1322 | X150: 0.8 | Y150: 0.4 | Z150: 3.1
A151: Shawn Green | B151: LAD | C151: 160 | D151: 611 | E151: 691 | F151: 171 | G151: 101 | H151: 49 | I151: 2 | J151: 19 | K151: 84 | L151: 85 | M151: 68 | N151: 2 | O151: 112 | P151: 6 | Q151: 6 | R151: 0 | S151: 18 | T151: 6 | U151: 2 | V151: 0.28 | W151: 651 | X151: 0 | Y151: 4.3 | Z151: -9.6
A152: Shea Hillenbrand | B152: - - - | C152: 134 | D152: 515 | E152: 554 | F152: 144 | G152: 88 | H152: 35 | I152: 1 | J152: 20 | K152: 60 | L152: 97 | M152: 24 | N152: 4 | O152: 70 | P152: 6 | Q152: 9 | R152: 0 | S152: 22 | T152: 1 | U152: 0 | V152: 0.28 | W152: 196 | X152: -0.5 | Y152: -1.9 | Z152: -9
A153: Steve Finley | B153: ARI | C153: 147 | D153: 516 | E153: 582 | F153: 148 | G153: 92 | H153: 24 | I153: 10 | J153: 22 | K153: 82 | L153: 70 | M153: 57 | N153: 4 | O153: 94 | P153: 6 | Q153: 3 | R153: 0 | S153: 6 | T153: 15 | U153: 8 | V153: 0.287 | W153: 54 | X153: 2 | Y153: 6.6 | Z153: -3.7
A154: Terrence Long | B154: OAK | C154: 140 | D154: 486 | E154: 522 | F154: 119 | G154: 81 | H154: 22 | I154: 2 | J154: 14 | K154: 64 | L154: 61 | M154: 31 | N154: 4 | O154: 67 | P154: 3 | Q154: 2 | R154: 0 | S154: 9 | T154: 4 | U154: 1 | V154: 0.245 | W154: 927 | X154: -2.2 | Y154: -1 | Z154: -0.5
A155: Tim Salmon | B155: ANA | C155: 148 | D155: 528 | E155: 621 | F155: 145 | G155: 87 | H155: 35 | I155: 4 | J155: 19 | K155: 78 | L155: 72 | M155: 77 | N155: 3 | O155: 93 | P155: 10 | Q155: 6 | R155: 0 | S155: 12 | T155: 3 | U155: 1 | V155: 0.275 | W155: 32 | X155: 1.4 | Y155: -0.6 | Z155: -6.4
A156: Tino Martinez | B156: STL | C156: 138 | D156: 476 | E156: 547 | F156: 130 | G156: 88 | H156: 25 | I156: 2 | J156: 15 | K156: 66 | L156: 69 | M156: 53 | N156: 7 | O156: 71 | P156: 9 | Q156: 7 | R156: 2 | S156: 14 | T156: 1 | U156: 1 | V156: 0.273 | W156: 1168 | X156: -2.7 | Y156: 0.1 | Z156: 3.9
A157: Todd Helton | B157: COL | C157: 160 | D157: 583 | E157: 703 | F157: 209 | G157: 122 | H157: 49 | I157: 5 | J157: 33 | K157: 135 | L157: 117 | M157: 111 | N157: 21 | O157: 72 | P157: 2 | Q157: 7 | R157: 0 | S157: 19 | T157: 0 | U157: 4 | V157: 0.358 | W157: 432 | X157: 2.4 | Y157: 3.2 | Z157: -1.5
A158: Todd Walker | B158: BOS | C158: 144 | D158: 587 | E158: 647 | F158: 166 | G158: 111 | H158: 38 | I158: 4 | J158: 13 | K158: 92 | L158: 85 | M158: 48 | N158: 0 | O158: 54 | P158: 1 | Q158: 10 | R158: 1 | S158: 17 | T158: 1 | U158: 1 | V158: 0.283 | W158: 359 | X158: -0.9 | Y158: -0.1 | Z158: -13
A159: Tony Batista | B159: BAL | C159: 161 | D159: 631 | E159: 670 | F159: 148 | G159: 101 | H159: 20 | I159: 1 | J159: 26 | K159: 76 | L159: 99 | M159: 28 | N159: 4 | O159: 102 | P159: 5 | Q159: 6 | R159: 0 | S159: 20 | T159: 4 | U159: 3 | V159: 0.235 | W159: 124 | X159: 3.2 | Y159: -0.4 | Z159: 1.5
A160: Torii Hunter | B160: MIN | C160: 154 | D160: 581 | E160: 642 | F160: 145 | G160: 84 | H160: 31 | I160: 4 | J160: 26 | K160: 83 | L160: 102 | M160: 50 | N160: 7 | O160: 106 | P160: 5 | Q160: 6 | R160: 0 | S160: 15 | T160: 6 | U160: 7 | V160: 0.25 | W160: 731 | X160: 2.7 | Y160: 1 | Z160: 16.2
A161: Travis Lee | B161: TBD | C161: 145 | D161: 542 | E161: 613 | F161: 149 | G161: 90 | H161: 37 | I161: 3 | J161: 19 | K161: 75 | L161: 70 | M161: 64 | N161: 4 | O161: 97 | P161: 0 | Q161: 6 | R161: 1 | S161: 13 | T161: 6 | U161: 2 | V161: 0.275 | W161: 958 | X161: -0.5 | Y161: -1.9 | Z161: 17
A162: Trot Nixon | B162: BOS | C162: 134 | D162: 441 | E162: 513 | F162: 135 | G162: 77 | H162: 24 | I162: 6 | J162: 28 | K162: 81 | L162: 87 | M162: 65 | N162: 4 | O162: 96 | P162: 3 | Q162: 3 | R162: 1 | S162: 3 | T162: 4 | U162: 2 | V162: 0.306 | W162: 204 | X162: 1 | Y162: 0.3 | Z162: 5.4
A163: Ty Wigginton | B163: NYM | C163: 156 | D163: 573 | E163: 633 | F163: 146 | G163: 93 | H163: 36 | I163: 6 | J163: 11 | K163: 73 | L163: 71 | M163: 46 | N163: 2 | O163: 124 | P163: 9 | Q163: 4 | R163: 1 | S163: 15 | T163: 12 | U163: 2 | V163: 0.255 | W163: 1491 | X163: 1.2 | Y163: 2.4 | Z163: -15.6
A164: Vernon Wells | B164: TOR | C164: 161 | D164: 678 | E164: 735 | F164: 215 | G164: 128 | H164: 49 | I164: 5 | J164: 33 | K164: 118 | L164: 117 | M164: 42 | N164: 2 | O164: 80 | P164: 7 | Q164: 8 | R164: 0 | S164: 21 | T164: 4 | U164: 1 | V164: 0.317 | W164: 1326 | Z164: -19.2
A165: Vinny Castilla | B165: ATL | C165: 147 | D165: 542 | E165: 578 | F165: 150 | G165: 97 | H165: 28 | I165: 3 | J165: 22 | K165: 65 | L165: 76 | M165: 26 | N165: 3 | O165: 86 | P165: 3 | Q165: 6 | R165: 1 | S165: 22 | T165: 1 | U165: 2 | V165: 0.277 | W165: 84 | X165: 0.7 | Y165: -2.5 | Z165: 5.1
A166: Wes Helms | B166: MIL | C166: 134 | D166: 476 | E166: 536 | F166: 124 | G166: 80 | H166: 21 | I166: 0 | J166: 23 | K166: 56 | L166: 67 | M166: 43 | N166: 3 | O166: 131 | P166: 10 | Q166: 7 | R166: 0 | S166: 10 | T166: 0 | U166: 1 | V166: 0.261 | W166: 94 | X166: 0.8 | Y166: -0.4 | Z166: -10.9

Sheet 2003f (hidden)
A1: Name | B1: Team | C1: Pos | D1: Inn | E1: rSZ | F1: rCERA | G1: rSB | H1: rGDP | I1: rARM | J1: rGFP | K1: rPM | L1: rTS | M1: DRS | N1: ARM | O1: DPR | P1: RngR | Q1: ErrR | R1: UZR | S1: UZR/150 | T1: FRM | U1: OAA | V1: RAA | W1: Def | X1: playerid
A2: Richie Sexson | B2: MIL | C2: 1B | D2: 1452 | H2: 0 | J2: 0 | K2: -8 | M2: -11 | O2: -0.3 | P2: -4.2 | Q2: -0.5 | R2: -5.1 | S2: -5.3 | W2: -17.5 | X2: 709
A3: Juan Pierre | B3: FLA | C3: CF | D3: 1433.1 | I3: -3 | J3: 0 | K3: 11 | M3: 8 | N3: -5.4 | P3: 14.6 | Q3: 0.2 | R3: 9.4 | S3: 8.5 | W3: 11.8 | X3: 443
A4: Miguel Tejada | B4: OAK | C4: SS | D4: 1417.2 | H4: -1 | J4: 0 | K4: -3 | M4: -4 | O4: -2.2 | P4: -11.6 | Q4: 3.1 | R4: -10.6 | S4: -9.4 | W4: -3.3 | X4: 941
A5: Vernon Wells | B5: TOR | C5: CF | D5: 1416 | I5: -7 | J5: 0 | K5: -7 | M5: -14 | N5: -5.5 | P5: -15 | Q5: 1.3 | R5: -19.2 | S5: -19.5 | W5: -16.8 | X5: 1326
A6: Aramis Ramirez | B6: - - - | C6: 3B | D6: 1397.2 | H6: 0 | J6: 0 | K6: -3 | M6: -2 | O6: -0.3 | P6: 9.8 | Q6: -9 | R6: 0.5 | S6: 0.5 | W6: 2.9 | X6: 1002
A7: Shawn Green | B7: LAD | C7: RF | D7: 1397.2 | I7: -4 | J7: 0 | K7: -4 | M7: -8 | N7: -2.5 | P7: -8 | Q7: 0.9 | R7: -9.6 | S7: -11.2 | W7: -16.8 | X7: 651
A8: Michael Young | B8: TEX | C8: 2B | D8: 1389.1 | H8: 3 | J8: 0 | K8: -8 | M8: -5 | O8: -0.3 | P8: -9.8 | Q8: 5.3 | R8: -4.8 | S8: -4 | W8: -2.4 | X8: 1286
A9: Orlando Cabrera | B9: MON | C9: SS | D9: 1385.2 | H9: -1 | J9: 0 | K9: 4 | M9: 3 | O9: -0.5 | P9: -0.3 | Q9: 2.2 | R9: 1.3 | S9: 1.3 | W9: 8.4 | X9: 766
A10: Angel Berroa | B10: KCR | C10: SS | D10: 1381.2 | H10: 1 | J10: 0 | K10: -10 | M10: -9 | O10: 1.5 | P10: -5.9 | Q10: -0.6 | R10: -5 | S10: -4.2 | W10: 2.1 | X10: 591
A11: Alfonso Soriano | B11: NYY | C11: 2B | D11: 1376 | H11: 0 | J11: 0 | K11: -2 | M11: -2 | O11: -1.6 | P11: -0.5 | Q11: -2.6 | R11: -4.7 | S11: -4.9 | W11: -2.3 | X11: 847
A12: Jeff Bagwell | B12: HOU | C12: 1B | D12: 1375.2 | H12: 0 | J12: 0 | K12: 5 | M12: 4 | O12: -0.2 | P12: 4.6 | Q12: -1.6 | R12: 2.7 | S12: 3.2 | W12: -9.1 | X12: 547
A13: Bret Boone | B13: SEA | C13: 2B | D13: 1375 | H13: 3 | J13: 0 | K13: -7 | M13: -4 | O13: 2.2 | P13: 5 | Q13: 2.8 | R13: 10 | S13: 10.4 | W13: 12.3 | X13: 1067
A14: Bobby Abreu | B14: PHI | C14: RF | D14: 1373.1 | I14: 3 | J14: 0 | K14: 3 | M14: 6 | N14: 3.1 | P14: 7.8 | Q14: 1.4 | R14: 12.3 | S14: 12.6 | W14: 5.2 | X14: 945
A15: Alex Rodriguez | B15: TEX | C15: SS | D15: 1369.2 | H15: 0 | J15: 0 | K15: 8 | M15: 8 | O15: -0.3 | P15: 2.9 | Q15: 8.7 | R15: 11.2 | S15: 10.1 | W15: 18.3 | X15: 1274
A16: Todd Helton | B16: COL | C16: 1B | D16: 1369 | H16: 0 | J16: 0 | K16: -8 | M16: -8 | O16: 0.1 | P16: -2 | Q16: 0.5 | R16: -1.5 | S16: -1.2 | W16: -13.2 | X16: 432
A17: Edgar Renteria | B17: STL | C17: SS | D17: 1367.1 | H17: 1 | J17: 0 | K17: -2 | M17: -1 | O17: 1.1 | P17: 2.7 | Q17: 1.5 | R17: 5.3 | S17: 5.4 | W17: 12.3 | X17: 1178
A18: Ichiro Suzuki | B18: SEA | C18: RF | D18: 1367 | I18: 6 | J18: 0 | K18: 9 | M18: 15 | N18: 7.2 | P18: 12 | Q18: 1.8 | R18: 21.1 | S18: 20.2 | W18: 14 | X18: 1101
A19: Cesar Izturis | B19: LAD | C19: SS | D19: 1365.1 | H19: 0 | J19: 0 | K19: 8 | M19: 8 | O19: 0.6 | P19: -0.2 | Q19: 3.1 | R19: 3.4 | S19: 3.2 | W19: 10.5 | X19: 656
A20: Nomar Garciaparra | B20: BOS | C20: SS | D20: 1364.2 | H20: -4 | J20: 0 | K20: 10 | M20: 6 | O20: -1.7 | P20: 0.8 | Q20: 1.1 | R20: 0.2 | S20: 0.1 | W20: 7.2 | X20: 190
A21: Tony Batista | B21: BAL | C21: 3B | D21: 1364.1 | H21: 0 | J21: 0 | K21: -2 | M21: -2 | O21: 1.6 | P21: 0.4 | Q21: -0.5 | R21: 1.5 | S21: 1.4 | W21: 3.8 | X21: 124
A22: Jim Thome | B22: PHI | C22: 1B | D22: 1361.2 | H22: 0 | J22: 0 | K22: -9 | M22: -6 | O22: 0.2 | P22: -9.4 | Q22: 3.3 | R22: -5.8 | S22: -5 | W22: -17.5 | X22: 409
A23: Luis Gonzalez | B23: ARI | C23: LF | D23: 1359.1 | I23: -4 | J23: 0 | K23: -1 | M23: -5 | N23: -0.6 | P23: -2.5 | Q23: 1 | R23: -2.1 | S23: -2.4 | W23: -9 | X23: 55
A24: Jimmy Rollins | B24: PHI | C24: SS | D24: 1357.2 | H24: 2 | J24: 0 | K24: 9 | M24: 11 | O24: 1.5 | P24: 2.1 | Q24: 2.5 | R24: 6.1 | S24: 6 | W24: 13.1 | X24: 971
A25: Juan Encarnacion | B25: FLA | C25: RF | D25: 1355.1 | I25: -4 | J25: 0 | K25: -6 | M25: -10 | N25: -3.8 | P25: -6.3 | Q25: 2.2 | R25: -7.9 | S25: -7.9 | W25: -14.9 | X25: 320
A26: Derrek Lee | B26: FLA | C26: 1B | D26: 1353.2 | H26: 0 | J26: 0 | K26: -9 | M26: -8 | O26: 1 | P26: -6 | Q26: 3.1 | R26: -1.9 | S26: -2.4 | W26: -13.5 | X26: 525
A27: Rafael Furcal | B27: ATL | C27: SS | D27: 1350 | H27: 0 | J27: 0 | K27: 8 | M27: 8 | O27: -0.6 | P27: -1.8 | Q27: -5.6 | R27: -7.9 | S27: -7.5 | W27: -1 | X27: 88
A28: Lance Berkman | B28: HOU | C28: LF | D28: 1348.1 | I28: 5 | J28: 0 | K28: 1 | M28: 6 | N28: 7.5 | P28: 4.4 | Q28: 1 | R28: 13 | S28: 15.8 | W28: 6 | X28: 548
A29: Adrian Beltre | B29: LAD | C29: 3B | D29: 1346 | H29: 0 | J29: 0 | K29: 23 | M29: 25 | O29: 1 | P29: 19.2 | Q29: 0.4 | R29: 20.6 | S29: 20.8 | W29: 22.9 | X29: 639
A30: Scott Rolen | B30: STL | C30: 3B | D30: 1339 | H30: 0 | J30: 0 | K30: -5 | M30: -4 | O30: -0.8 | P30: 4.9 | Q30: 3.6 | R30: 7.7 | S30: 8.5 | W30: 10 | X30: 970
A31: Eric Chavez | B31: OAK | C31: 3B | D31: 1333.1 | H31: 0 | J31: 0 | K31: 7 | M31: 7 | O31: 0 | P31: -10.6 | Q31: 6.9 | R31: -3.6 | S31: -3 | W31: -1.3 | X31: 906
A32: Jose Cruz | B32: SFG | C32: RF | D32: 1332.2 | I32: 9 | J32: 0 | K32: 5 | M32: 14 | N32: 12.6 | P32: -0.9 | Q32: 1 | R32: 12.8 | S32: 13.1 | W32: 5.9 | X32: 1296
A33: Andruw Jones | B33: ATL | C33: CF | D33: 1329 | I33: 4 | J33: 0 | K33: 10 | M33: 14 | N33: -0.2 | P33: 17.3 | Q33: 0.1 | R33: 17.3 | S33: 17.4 | W33: 19.5 | X33: 96
A34: Ty Wigginton | B34: NYM | C34: 3B | D34: 1329 | H34: 0 | J34: 0 | K34: -20 | M34: -19 | O34: -0.4 | P34: -18 | Q34: 2.7 | R34: -15.6 | S34: -14.5 | W34: -13.3 | X34: 1491
A35: Carlos Lee | B35: CHW | C35: LF | D35: 1328.2 | I35: -7 | J35: 0 | K35: 8 | M35: 1 | N35: 2.5 | P35: 7.5 | Q35: -2.1 | R35: 7.8 | S35: 8.3 | W35: 1 | X35: 243
A36: Magglio Ordonez | B36: CHW | C36: RF | D36: 1324.2 | I36: 2 | J36: 0 | K36: 6 | M36: 8 | N36: -5.5 | P36: 4.6 | Q36: 1.8 | R36: 0.9 | S36: 0.6 | W36: -5.9 | X36: 248
A37: Rocco Baldelli | B37: TBD | C37: CF | D37: 1322.2 | I37: 7 | J37: 0 | K37: -5 | M37: 2 | N37: 7.6 | P37: -12.6 | Q37: -0.3 | R37: -5.3 | S37: -4.3 | W37: -3.1 | X37: 1656
A38: Alex Gonzalez | B38: FLA | C38: SS | D38: 1315.2 | H38: 4 | J38: 0 | K38: -7 | M38: -3 | O38: 2.8 | P38: 4.1 | Q38: 0 | R38: 6.9 | S38: 7.3 | W38: 13.7 | X38: 520
A39: Craig Biggio | B39: HOU | C39: CF | D39: 1313 | I39: -2 | J39: 0 | K39: -3 | M39: -5 | N39: 0.2 | P39: -11.5 | Q39: 0.3 | R39: -11 | S39: -11.8 | W39: -8.7 | X39: 549
A40: Luis Castillo | B40: FLA | C40: 2B | D40: 1312.1 | H40: 1 | J40: 0 | K40: 8 | M40: 9 | O40: 1.9 | P40: 8.1 | Q40: 1.5 | R40: 11.5 | S40: 12.7 | W40: 13.8 | X40: 513
A41: Preston Wilson | B41: COL | C41: CF | D41: 1307.1 | I41: 1 | J41: 0 | K41: -6 | M41: -5 | N41: 1.5 | P41: -0.7 | Q41: 0.9 | R41: 1.8 | S41: 1.6 | W41: 4 | X41: 545
A42: Joe Crede | B42: CHW | C42: 3B | D42: 1306 | H42: 0 | J42: 0 | K42: 12 | M42: 12 | O42: 0.8 | P42: 4.3 | Q42: 1.8 | R42: 6.9 | S42: 7.2 | W42: 9.1 | X42: 227
A43: Torii Hunter | B43: MIN | C43: CF | D43: 1299.1 | I43: 0 | J43: 0 | K43: 16 | M43: 16 | N43: 0.8 | P43: 15 | Q43: 0.4 | R43: 16.2 | S43: 15.9 | W43: 18.4 | X43: 731
A44: Mark Ellis | B44: OAK | C44: 2B | D44: 1297.2 | H44: 0 | J44: 0 | K44: 17 | M44: 17 | O44: -2.6 | P44: 6.6 | Q44: 1 | R44: 5 | S44: 5 | W44: 7.2 | X44: 1443
A45: Jack Wilson | B45: PIT | C45: SS | D45: 1294.2 | H45: 0 | J45: 0 | K45: 6 | M45: 6 | O45: 2.2 | P45: 0.8 | Q45: 3.6 | R45: 6.5 | S45: 6.4 | W45: 13.2 | X45: 1017
A46: Gary Sheffield | B46: ATL | C46: RF | D46: 1288.1 | I46: -1 | J46: 0 | K46: -1 | M46: -2 | N46: 3.8 | P46: -1.1 | Q46: -0.8 | R46: 1.8 | S46: 2.4 | W46: -4.8 | X46: 114
A47: John Olerud | B47: SEA | C47: 1B | D47: 1287 | H47: 0 | J47: 0 | K47: 10 | M47: 12 | O47: 0.3 | P47: 5.6 | Q47: 3.4 | R47: 9.3 | S47: 10 | W47: -1.7 | X47: 1093
A48: Mike Cameron | B48: SEA | C48: CF | D48: 1284 | I48: -2 | J48: 0 | K48: 13 | M48: 11 | N48: -4.3 | P48: 23.6 | Q48: 0 | R48: 19.2 | S48: 16.4 | W48: 21.4 | X48: 1070
A49: Chipper Jones | B49: ATL | C49: LF | D49: 1282.1 | I49: -1 | J49: 0 | K49: 2 | M49: 1 | N49: 1 | P49: -7 | Q49: -0.8 | R49: -6.8 | S49: -8.7 | W49: -13.4 | X49: 97
A50: Jason Kendall | B50: PIT | C50: C | D50: 1278.1 | E50: 0 | F50: 9 | G50: -4 | J50: 0 | M50: 5 | W50: 7 | X50: 993
A51: Carlos Delgado | B51: TOR | C51: 1B | D51: 1278 | H51: 0 | J51: 0 | K51: -6 | M51: -6 | O51: 0.3 | P51: -8.7 | Q51: 1.2 | R51: -7.2 | S51: -5.8 | W51: -18.2 | X51: 1297
A52: Jay Gibbons | B52: BAL | C52: RF | D52: 1274.2 | I52: 0 | J52: 0 | K52: -6 | M52: -6 | N52: -3.7 | P52: -5.1 | Q52: 0.3 | R52: -8.5 | S52: -9.4 | W52: -15.1 | X52: 141
A53: Vinny Castilla | B53: ATL | C53: 3B | D53: 1266.1 | H53: 0 | J53: 0 | K53: 2 | M53: 2 | O53: 1.3 | P53: 4.4 | Q53: -0.6 | R53: 5.1 | S53: 5.1 | W53: 7.2 | X53: 84
A54: Johnny Damon | B54: BOS | C54: CF | D54: 1265 | I54: -5 | J54: 0 | K54: 7 | M54: 2 | N54: -3.4 | P54: -2 | Q54: 0.3 | R54: -5.1 | S54: -5.5 | W54: -2.9 | X54: 185
A55: Deivi Cruz | B55: BAL | C55: SS | D55: 1261.1 | H55: 1 | J55: 0 | K55: 4 | M55: 5 | O55: 1.1 | P55: 3.5 | Q55: 0.5 | R55: 5.1 | S55: 5.5 | W55: 11.6 | X55: 1025
A56: Sean Casey | B56: CIN | C56: 1B | D56: 1251.2 | H56: 0 | J56: 0 | K56: 2 | M56: 3 | O56: -0.5 | P56: 1.8 | Q56: 2.2 | R56: 3.5 | S56: 3.4 | W56: -7.3 | X56: 314
A57: Mark Loretta | B57: SDP | C57: 2B | D57: 1247.1 | H57: -1 | J57: 0 | K57: 7 | M57: 6 | O57: -1.4 | P57: 5 | Q57: 2 | R57: 5.5 | S57: 5.8 | W57: 7.6 | X57: 1383
A58: Travis Lee | B58: TBD | C58: 1B | D58: 1244.1 | H58: 0 | J58: 0 | K58: 9 | M58: 10 | O58: 0.1 | P58: 13.4 | Q58: 3.6 | R58: 17 | S58: 17.9 | W58: 6.4 | X58: 958
A59: Garret Anderson | B59: ANA | C59: LF | D59: 1241.1 | I59: -1 | J59: 0 | K59: 1 | M59: 0 | N59: 1.4 | P59: 8.5 | Q59: 1.6 | R59: 11.6 | S59: 12 | W59: 5.2 | X59: 2
A60: Alex Gonzalez | B60: CHC | C60: SS | D60: 1237.1 | H60: 2 | J60: 0 | K60: 0 | M60: 2 | O60: 3.5 | P60: -0.3 | Q60: 4 | R60: 7.2 | S60: 8.5 | W60: 13.6 | X60: 281
A61: Marquis Grissom | B61: SFG | C61: CF | D61: 1236.2 | I61: -3 | J61: 0 | K61: 0 | M61: -3 | N61: -5.3 | P61: 4.9 | Q61: -2.7 | R61: -3.1 | S61: -4.4 | W61: -0.9 | X61: 652
A62: Cristian Guzman | B62: MIN | C62: SS | D62: 1232.1 | H62: -1 | J62: 0 | K62: -12 | M62: -13 | O62: -2.8 | P62: -2.5 | Q62: 2.6 | R62: -2.7 | S62: -3.7 | W62: 3.6 | X62: 728
A63: Jay Payton | B63: COL | C63: LF | D63: 1230 | I63: 2 | J63: 0 | K63: -3 | M63: -1 | N63: 2.2 | P63: -8.2 | Q63: 0.9 | R63: -5.1 | S63: -4.8 | W63: -11.4 | X63: 890
A64: D'Angelo Jimenez | B64: - - - | C64: 2B | D64: 1226 | H64: 0 | J64: 0 | K64: -6 | M64: -6 | O64: 0.6 | P64: -3.6 | Q64: 0.9 | R64: -2.1 | S64: -2.7 | W64: 0 | X64: 1038
A65: Moises Alou | B65: CHC | C65: LF | D65: 1219 | I65: -2 | J65: 0 | K65: -2 | M65: -4 | N65: -3.3 | P65: 15.3 | Q65: 0 | R65: 11.9 | S65: 15.4 | W65: 5.7 | X65: 261
A66: Royce Clayton | B66: MIL | C66: SS | D66: 1217.2 | H66: -1 | J66: 0 | K66: -6 | M66: -7 | O66: -0.8 | P66: -1.5 | Q66: 1.8 | R66: -0.5 | S66: -0.7 | W66: 5.8 | X66: 226
A67: Raul Mondesi | B67: - - - | C67: RF | D67: 1216 | I67: -1 | J67: 0 | K67: 1 | M67: 0 | N67: 1.5 | P67: 3.9 | Q67: 0.2 | R67: 5.6 | S67: 6.5 | W67: -0.7 | X67: 1314
A68: Marcus Giles | B68: ATL | C68: 2B | D68: 1213.2 | H68: -2 | J68: 0 | K68: 21 | M68: 19 | O68: 0.4 | P68: 8.7 | Q68: -0.8 | R68: 8.3 | S68: 8.1 | W68: 10.4 | X68: 89
A69: Jose Valentin | B69: CHW | C69: SS | D69: 1200 | H69: 1 | J69: 0 | K69: 9 | M69: 10 | O69: 1.2 | P69: 12.5 | Q69: -1.8 | R69: 11.9 | S69: 13.8 | W69: 18.1 | X69: 256
A70: Richard Hidalgo | B70: HOU | C70: RF | D70: 1200 | I70: 17 | J70: 0 | K70: 2 | M70: 19 | N70: 10.9 | P70: 5.7 | Q70: 0.7 | R70: 17.3 | S70: 20.1 | W70: 11.1 | X70: 561
A71: Julio Lugo | B71: - - - | C71: SS | D71: 1198 | H71: -2 | J71: 0 | K71: 1 | M71: -1 | O71: -1.3 | P71: 5.4 | Q71: -2.4 | R71: 1.7 | S71: 1.7 | W71: 7.8 | X71: 565
A72: Randy Winn | B72: SEA | C72: LF | D72: 1188 | I72: -6 | J72: 0 | K72: 7 | M72: 1 | N72: -2.7 | P72: 6.7 | Q72: -0.4 | R72: 3.6 | S72: 3 | W72: -2.5 | X72: 1235
A73: Todd Walker | B73: BOS | C73: 2B | D73: 1187.1 | H73: 0 | J73: 0 | K73: -12 | M73: -12 | O73: -1.1 | P73: -9 | Q73: -3 | R73: -13 | S73: -14.3 | W73: -11 | X73: 359
A74: Pat Burrell | B74: PHI | C74: LF | D74: 1186.2 | I74: 3 | J74: 0 | K74: 4 | M74: 7 | N74: -2.2 | P74: 3 | Q74: 0.6 | R74: 1.4 | S74: 1.8 | W74: -4.7 | X74: 949
A75: Casey Blake | B75: CLE | C75: 3B | D75: 1184 | H75: 0 | J75: 0 | K75: 14 | M75: 13 | O75: 0.5 | P75: 1.9 | Q75: 0.3 | R75: 2.8 | S75: 2.8 | W75: 4.8 | X75: 719
A76: Sammy Sosa | B76: CHC | C76: RF | D76: 1178.2 | I76: -2 | J76: 0 | K76: -2 | M76: -4 | N76: -5 | P76: -0.3 | Q76: -1.6 | R76: -6.9 | S76: -8.8 | W76: -13 | X76: 302
A77: Aaron Boone | B77: - - - | C77: 3B | D77: 1178 | H77: 0 | J77: 0 | K77: 7 | M77: 7 | O77: 1 | P77: -1.1 | Q77: -1.4 | R77: -1.4 | S77: -1.7 | W77: 0.6 | X77: 311
A78: Ramon Hernandez | B78: OAK | C78: C | D78: 1172.2 | E78: 0 | F78: 1 | G78: 2 | J78: 0 | M78: 2 | W78: 12.1 | X78: 918
A79: Kenny Lofton | B79: - - - | C79: CF | D79: 1170 | I79: -1 | J79: 0 | K79: 0 | M79: -1 | N79: 3.8 | P79: 0 | Q79: 0.3 | R79: 4.1 | S79: 5 | W79: 6.1 | X79: 246
A80: Steve Finley | B80: ARI | C80: CF | D80: 1168.1 | I80: 4 | J80: 0 | K80: -3 | M80: 1 | N80: 1.8 | P80: -5.1 | Q80: -0.4 | R80: -3.7 | S80: -4.8 | W80: -1.7 | X80: 54
A81: Hank Blalock | B81: TEX | C81: 3B | D81: 1167 | H81: 0 | J81: 0 | K81: 26 | M81: 28 | O81: 0.3 | P81: 15.6 | Q81: -0.7 | R81: 15.2 | S81: 22.2 | W81: 17.2 | X81: 1419
A82: A.J. Pierzynski | B82: MIN | C82: C | D82: 1165.2 | E82: 0 | F82: 6 | G82: -1 | J82: 0 | M82: 6 | W82: 9 | X82: 746
A83: Jorge Posada | B83: NYY | C83: C | D83: 1165 | E83: 0 | F83: -5 | G83: 3 | J83: 0 | M83: -2 | W83: 13 | X83: 841
A84: Carl Crawford | B84: TBD | C84: LF | D84: 1159.1 | I84: 2 | J84: 0 | K84: 8 | M84: 10 | N84: -0.7 | P84: 13.9 | Q84: 1.3 | R84: 14.5 | S84: 15.4 | W84: 8.5 | X84: 1201
A85: Doug Mientkiewicz | B85: MIN | C85: 1B | D85: 1159.1 | H85: 0 | J85: 0 | K85: 12 | M85: 13 | O85: -0.9 | P85: 7.3 | Q85: 2.1 | R85: 8.5 | S85: 10.5 | W85: -1.4 | X85: 741
A86: Jose Vidro | B86: MON | C86: 2B | D86: 1158.1 | H86: -1 | J86: 0 | K86: 1 | M86: 0 | O86: -2.6 | P86: -5.4 | Q86: 3.1 | R86: -4.9 | S86: -5.8 | W86: -2.9 | X86: 802
A87: Brad Ausmus | B87: HOU | C87: C | D87: 1158 | E87: 0 | F87: 2 | G87: 5 | J87: 0 | M87: 9 | W87: 14.9 | X87: 546
A88: Orlando Hudson | B88: TOR | C88: 2B | D88: 1146.2 | H88: 1 | J88: 0 | K88: 17 | M88: 18 | O88: -1 | P88: 1.3 | Q88: 1.4 | R88: 1.6 | S88: 1.7 | W88: 3.6 | X88: 1307
A89: Sean Burroughs | B89: SDP | C89: 3B | D89: 1144.2 | H89: 0 | J89: 0 | K89: -3 | M89: -2 | O89: -0.3 | P89: 0.6 | Q89: 3.1 | R89: 3.4 | S89: 4.4 | W89: 5.4 | X89: 1021
A90: Luis Rivas | B90: MIN | C90: 2B | D90: 1144 | H90: -1 | J90: 0 | K90: -19 | M90: -20 | O90: -2.2 | P90: -8.3 | Q90: 0.1 | R90: -10.3 | S90: -13.5 | W90: -8.4 | X90: 753
A91: Mike Lieberthal | B91: PHI | C91: C | D91: 1143.2 | E91: 0 | F91: -1 | G91: -6 | J91: 0 | M91: -9 | W91: 3.8 | X91: 959
A92: Edgardo Alfonzo | B92: SFG | C92: 3B | D92: 1143 | H92: 0 | J92: 0 | K92: -10 | M92: -9 | O92: 0.2 | P92: -3.1 | Q92: 1.8 | R92: -1.1 | S92: -1.3 | W92: 0.9 | X92: 859
A93: Roberto Alomar | B93: - - - | C93: 2B | D93: 1141 | H93: -1 | J93: 0 | K93: -13 | M93: -14 | O93: 0 | P93: -5.9 | Q93: 0.7 | R93: -5.2 | S93: -6.7 | W93: -3.2 | X93: 860
A94: Wes Helms | B94: MIL | C94: 3B | D94: 1137.2 | H94: 0 | J94: 0 | K94: -8 | M94: -10 | O94: -1.6 | P94: -6.6 | Q94: -2.7 | R94: -10.9 | S94: -13 | W94: -8.9 | X94: 94
A95: Ivan Rodriguez | B95: FLA | C95: C | D95: 1132.1 | E95: 0 | F95: 5 | G95: 1 | J95: 0 | M95: 6 | W95: 10.7 | X95: 1275
A96: Corey Koskie | B96: MIN | C96: 3B | D96: 1128 | H96: 0 | J96: 0 | K96: 1 | M96: 2 | O96: -0.3 | P96: 4.1 | Q96: 4.4 | R96: 8.2 | S96: 10.3 | W96: 10.1 | X96: 738
A97: Carlos Beltran | B97: KCR | C97: CF | D97: 1123 | I97: 2 | J97: 0 | K97: -2 | M97: 0 | N97: 4.3 | P97: 4.8 | Q97: 0.1 | R97: 9.2 | S97: 9.9 | W97: 11.1 | X97: 589
A98: Adam Kennedy | B98: ANA | C98: 2B | D98: 1119.2 | H98: 1 | J98: 0 | K98: 11 | M98: 12 | O98: 0.6 | P98: 6.4 | Q98: 2.7 | R98: 9.8 | S98: 11.6 | W98: 11.7 | X98: 19
A99: Alex Sanchez | B99: - - - | C99: CF | D99: 1118.2 | I99: -6 | J99: 0 | K99: -2 | M99: -8 | N99: -6 | P99: -4.8 | Q99: -1.6 | R99: -12.4 | S99: -12.4 | W99: -10.5 | X99: 708
A100: Bill Mueller | B100: BOS | C100: 3B | D100: 1118.1 | H100: 0 | J100: 0 | K100: 2 | M100: 1 | O100: -0.8 | P100: -6.7 | Q100: 0.1 | R100: -7.4 | S100: -8.8 | W100: -5.5 | X100: 295
A101: Jeff Kent | B101: HOU | C101: 2B | D101: 1113 | H101: -2 | J101: 0 | K101: -6 | M101: -8 | O101: -1 | P101: 1.8 | Q101: -1.3 | R101: -0.5 | S101: -0.4 | W101: 1.4 | X101: 1119
A102: Scott Hatteberg | B102: OAK | C102: 1B | D102: 1111.1 | H102: 0 | J102: 0 | K102: 1 | M102: 1 | O102: 0.1 | P102: -2.9 | Q102: -0.6 | R102: -3.4 | S102: -4.5 | W102: -12.9 | X102: 916
A103: Mike Lowell | B103: FLA | C103: 3B | D103: 1109.2 | H103: 0 | J103: 0 | K103: -9 | M103: -5 | O103: 0.7 | P103: -4.1 | Q103: 5.6 | R103: 2.2 | S103: 2.6 | W103: 4.1 | X103: 527
A104: Toby Hall | B104: TBD | C104: C | D104: 1107 | E104: 0 | F104: -2 | G104: 6 | J104: 0 | M104: 5 | W104: 15.5 | X104: 1210
A105: Alex Cora | B105: LAD | C105: 2B | D105: 1103 | H105: 3 | J105: 0 | K105: 0 | M105: 3 | O105: 2.6 | P105: -1.8 | Q105: -0.2 | R105: 0.5 | S105: 0.3 | W105: 2.4 | X105: 1386
A106: Larry Walker | B106: COL | C106: RF | D106: 1102.2 | I106: 9 | J106: 0 | K106: 1 | M106: 10 | N106: 5.6 | P106: -1.9 | Q106: 0.2 | R106: 4 | S106: 3.7 | W106: -1.7 | X106: 455
A107: Marlon Byrd | B107: PHI | C107: CF | D107: 1100.1 | I107: 1 | J107: 0 | K107: 0 | M107: 1 | N107: -0.3 | P107: 5.8 | Q107: -0.2 | R107: 5.3 | S107: 7 | W107: 7.2 | X107: 950
A108: Mike Matheny | B108: STL | C108: C | D108: 1096.2 | E108: 0 | F108: -2 | G108: -1 | J108: 0 | M108: -3 | W108: 8.4 | X108: 1169
A109: Carlos Pena | B109: DET | C109: 1B | D109: 1094.2 | H109: 0 | J109: 0 | K109: -4 | M109: -6 | O109: -0.6 | P109: -2.5 | Q109: -5 | R109: -8.1 | S109: -9.8 | W109: -17.5 | X109: 934
A110: Scott Podsednik | B110: MIL | C110: CF | D110: 1090 | I110: 1 | J110: 0 | K110: -10 | M110: -9 | N110: 1.5 | P110: -13.5 | Q110: 0 | R110: -11.9 | S110: -12.5 | W110: -10 | X110: 1095
A111: Geoff Jenkins | B111: MIL | C111: LF | D111: 1088.1 | I111: 2 | J111: 0 | K111: 1 | M111: 3 | N111: 2.5 | P111: -3.1 | Q111: 1.8 | R111: 1.2 | S111: 1.3 | W111: -4.4 | X111: 690
A112: Paul Lo Duca | B112: LAD | C112: C | D112: 1080 | E112: 0 | F112: 10 | G112: 9 | J112: 0 | M112: 20 | W112: 18.3 | X112: 662
A113: Trot Nixon | B113: BOS | C113: RF | D113: 1078.2 | I113: -1 | J113: 0 | K113: 5 | M113: 4 | N113: -2.1 | P113: 7.5 | Q113: 0.4 | R113: 5.8 | S113: 8.6 | W113: 0.2 | X113: 204
A114: Jason Varitek | B114: BOS | C114: C | D114: 1075.1 | E114: 0 | F114: -5 | G114: 1 | J114: 0 | M114: -4 | W114: 10.2 | X114: 217
A115: Joe Randa | B115: KCR | C115: 3B | D115: 1073.1 | H115: 0 | J115: 0 | K115: -2 | M115: -2 | O115: -0.2 | P115: -4.7 | Q115: 5 | R115: 0.1 | S115: 0 | W115: 1.9 | X115: 623
A116: Manny Ramirez | B116: BOS | C116: LF | D116: 1073 | I116: 5 | J116: 0 | K116: -14 | M116: -9 | N116: 4.1 | P116: -9.6 | Q116: 0.1 | R116: -5.4 | S116: -7.6 | W116: -10.9 | X116: 210
A117: Tino Martinez | B117: STL | C117: 1B | D117: 1065 | H117: 0 | J117: 0 | K117: 0 | M117: 0 | O117: 0 | P117: 1.2 | Q117: 2.7 | R117: 3.9 | S117: 4.7 | W117: -5.2 | X117: 1168
A118: Rich Aurilia | B118: SFG | C118: SS | D118: 1064 | H118: 0 | J118: 0 | K118: -5 | M118: -5 | O118: 0.2 | P118: 3 | Q118: 0.2 | R118: 3.4 | S118: 4.8 | W118: 8.9 | X118: 1106
A119: Eric Hinske | B119: TOR | C119: 3B | D119: 1063.2 | H119: 0 | J119: 0 | K119: -4 | M119: -5 | O119: -1.5 | P119: -3.6 | Q119: -5.3 | R119: -10.4 | S119: -13.1 | W119: -8.6 | X119: 1305
A120: Marlon Anderson | B120: TBD | C120: 2B | D120: 1060.1 | H120: 3 | J120: 0 | K120: 3 | M120: 6 | O120: -0.8 | P120: 10.8 | Q120: -4.2 | R120: 5.8 | S120: 7.6 | W120: 7.6 | X120: 947
A121: Brian Giles | B121: - - - | C121: LF | D121: 1060.1 | I121: -5 | J121: 0 | K121: -6 | M121: -11 | N121: -2.8 | P121: -2 | Q121: 0.6 | R121: -4.2 | S121: -4.7 | W121: -9.7 | X121: 990
A122: Mark Kotsay | B122: SDP | C122: CF | D122: 1055.1 | I122: 4 | J122: 0 | K122: 0 | M122: 4 | N122: 5.7 | P122: 13.4 | Q122: -0.4 | R122: 18.7 | S122: 21.4 | W122: 20.6 | X122: 1042
A123: Barry Bonds | B123: SFG | C123: LF | D123: 1044 | I123: 2 | J123: 0 | K123: 3 | M123: 5 | N123: 2.2 | P123: 8.2 | Q123: 1.2 | R123: 11.6 | S123: 14.6 | W123: 6.2 | X123: 1109
A124: Raul Ibanez | B124: KCR | C124: LF | D124: 1042 | I124: 2 | J124: 0 | K124: -1 | M124: 1 | N124: 0.6 | P124: -1.6 | Q124: 0.1 | R124: -0.8 | S124: -1.1 | W124: -6.2 | X124: 607
A125: Jeff Conine | B125: BAL | C125: 1B | D125: 1037.2 | H125: 0 | J125: 0 | K125: -4 | M125: -3 | O125: 0.4 | P125: -4 | Q125: -1.5 | R125: -5.1 | S125: -5.9 | W125: -14 | X125: 131
A126: Derek Jeter | B126: NYY | C126: SS | D126: 1033.2 | H126: -2 | J126: 0 | K126: -11 | M126: -13 | O126: -0.2 | P126: -3.7 | Q126: 0.3 | R126: -3.7 | S126: -5.5 | W126: 1.6 | X126: 826
A127: Endy Chavez | B127: MON | C127: CF | D127: 1033.1 | I127: 8 | J127: 0 | K127: -7 | M127: 1 | N127: 10.1 | P127: -9 | Q127: 0.1 | R127: 1.2 | S127: 4.1 | W127: 3 | X127: 768
A128: Jim Edmonds | B128: STL | C128: CF | D128: 1017.1 | I128: 4 | J128: 0 | K128: 4 | M128: 8 | N128: 6 | P128: 2.7 | Q128: -0.6 | R128: 8.1 | S128: 9.4 | W128: 9.8 | X128: 1153
A129: Mark Grudzielanek | B129: CHC | C129: 2B | D129: 1011.2 | H129: 3 | J129: 0 | K129: -4 | M129: -1 | O129: 2.2 | P129: -3.2 | Q129: 1.3 | R129: 0.3 | S129: 0.3 | W129: 2 | X129: 653
A130: Wil Cordero | B130: MON | C130: 1B | D130: 1004 | H130: 0 | J130: 0 | K130: -2 | M130: -3 | O130: 0.3 | P130: -4.5 | Q130: 1.5 | R130: -2.7 | S130: -3.5 | W130: -11.3 | X130: 770
A131: Bernie Williams | B131: NYY | C131: CF | D131: 1001.1 | I131: -7 | J131: 0 | K131: -10 | M131: -17 | N131: -5.8 | P131: -15.5 | Q131: 0.1 | R131: -21.2 | S131: -28.4 | W131: -19.5 | X131: 857
A132: Adam Everett | B132: HOU | C132: SS | D132: 1000.2 | H132: 0 | J132: 0 | K132: 16 | M132: 16 | O132: 0.3 | P132: 8.9 | Q132: -0.4 | R132: 8.8 | S132: 11.8 | W132: 14 | X132: 1430
A133: Hideki Matsui | B133: NYY | C133: LF | D133: 997.1 | I133: -2 | J133: 0 | K133: -7 | M133: -9 | N133: 0.4 | P133: -19.3 | Q133: -1.3 | R133: -20.1 | S133: -26.3 | W133: -25.3 | X133: 1659
A134: Bobby Higginson | B134: DET | C134: RF | D134: 996.2 | I134: -5 | J134: 0 | K134: 3 | M134: -2 | N134: -9.5 | P134: 7.7 | Q134: -0.9 | R134: -2.6 | S134: -3.6 | W134: -7.8 | X134: 469
A135: Javy Lopez | B135: ATL | C135: C | D135: 992 | E135: 0 | F135: 4 | G135: 1 | J135: 0 | M135: 4 | W135: 9.5 | X135: 103
A136: Shannon Stewart | B136: - - - | C136: LF | D136: 986.1 | I136: -1 | J136: 0 | K136: 2 | M136: 1 | N136: -2.2 | P136: 3.9 | Q136: -1.3 | R136: 0.4 | S136: 0.4 | W136: -4.7 | X136: 1322
A137: David Eckstein | B137: ANA | C137: SS | D137: 985 | H137: 0 | J137: 0 | K137: 3 | M137: 3 | O137: -0.4 | P137: 0.6 | Q137: 2.9 | R137: 3.1 | S137: 4.8 | W137: 8.1 | X137: 10
A138: Eric Young | B138: - - - | C138: 2B | D138: 976.1 | H138: -3 | J138: 0 | K138: -10 | M138: -13 | O138: -2 | P138: -3.8 | Q138: -2.6 | R138: -8.3 | S138: -11.1 | W138: -6.6 | X138: 716
A139: Rondell White | B139: - - - | C139: LF | D139: 969.1 | I139: 0 | J139: 0 | K139: 4 | M139: 4 | N139: -4.4 | P139: 3.7 | Q139: 0.4 | R139: -0.4 | S139: 0.5 | W139: -5.3 | X139: 856
A140: Jason LaRue | B140: CIN | C140: C | D140: 954.1 | E140: 0 | F140: 1 | G140: 1 | J140: 0 | M140: 2 | W140: 9.2 | X140: 337
A141: Bengie Molina | B141: ANA | C141: C | D141: 949.2 | E141: 0 | F141: -3 | G141: 6 | J141: 0 | M141: 2 | W141: 14.1 | X141: 24
A142: Vladimir Guerrero | B142: MON | C142: RF | D142: 949.2 | I142: 0 | J142: 0 | K142: -4 | M142: -4 | N142: 1.4 | P142: -7.2 | Q142: -1.3 | R142: -7.1 | S142: -9.6 | W142: -12 | X142: 778
A143: Chris Stynes | B143: COL | C143: 3B | D143: 948.2 | H143: 0 | J143: 0 | K143: 6 | M143: 7 | O143: 0.4 | P143: 7.3 | Q143: 3.1 | R143: 10.8 | S143: 15.2 | W143: 12.4 | X143: 303
A144: Brent Mayne | B144: KCR | C144: C | D144: 948 | E144: 0 | F144: 1 | G144: 2 | J144: 0 | M144: 2 | W144: 10.1 | X144: 614
A145: Paul Konerko | B145: CHW | C145: 1B | D145: 938.2 | H145: 0 | J145: 0 | K145: 3 | M145: 3 | O145: 1.2 | P145: -2.6 | Q145: 3.4 | R145: 2 | S145: 2.1 | W145: -6.1 | X145: 242
A146: Mark Teixeira | B146: TEX | C146: 1B | D146: 932.2 | H146: 0 | J146: 0 | K146: 21 | M146: 19 | O146: 0.4 | P146: 11.4 | Q146: 0.2 | R146: 12 | S146: 22.7 | W146: 4 | X146: 1281
A147: Damian Miller | B147: CHC | C147: C | D147: 929.2 | E147: 0 | F147: -4 | G147: 3 | J147: 0 | M147: 0 | W147: 11 | X147: 65
A148: Brandon Phillips | B148: CLE | C148: 2B | D148: 925.1 | H148: 0 | J148: 0 | K148: 5 | M148: 5 | O148: -0.3 | P148: 6 | Q148: -2.2 | R148: 3.5 | S148: 5.2 | W148: 5.1 | X148: 791
A149: Brian Roberts | B149: BAL | C149: 2B | D149: 925 | H149: 1 | J149: 0 | K149: 12 | M149: 13 | O149: 1.2 | P149: 8 | Q149: 2.2 | R149: 11.3 | S149: 16.8 | W149: 12.9 | X149: 166
A150: Ben Broussard | B150: CLE | C150: 1B | D150: 925 | H150: 0 | J150: 0 | K150: -5 | M150: -4 | O150: -0.1 | P150: -1.4 | Q150: -0.7 | R150: -2.2 | S150: -3.2 | W150: -10.1 | X150: 312
A151: Luis Matos | B151: BAL | C151: CF | D151: 920 | I151: 0 | J151: 0 | K151: 10 | M151: 10 | N151: 0.4 | P151: 4.2 | Q151: -0.2 | R151: 4.4 | S151: 6 | W151: 6 | X151: 152
A152: Robert Fick | B152: ATL | C152: 1B | D152: 915.2 | H152: 0 | J152: 0 | K152: 4 | M152: 4 | O152: -0.6 | P152: 6.2 | Q152: -2.4 | R152: 3.1 | S152: 4.7 | W152: -4.8 | X152: 466
A153: Ronnie Belliard | B153: COL | C153: 2B | D153: 909.1 | H153: 0 | J153: 0 | K153: -2 | M153: -2 | O153: 1.2 | P153: -3.9 | Q153: -4.5 | R153: -7.3 | S153: -9.9 | W153: -5.7 | X153: 677
A154: Ryan Klesko | B154: SDP | C154: 1B | D154: 908 | H154: 0 | J154: 0 | K154: -7 | M154: -6 | O154: -0.1 | P154: -0.4 | Q154: 0.4 | R154: 0 | S154: 0 | W154: -7.8 | X154: 1041
A155: Ramon Vazquez | B155: SDP | C155: SS | D155: 904.2 | H155: -1 | J155: 0 | K155: 0 | M155: -1 | O155: -0.1 | P155: 3.5 | Q155: -1.8 | R155: 1.6 | S155: 2.5 | W155: 6.3 | X155: 1058
A156: Albert Pujols | B156: STL | C156: LF | D156: 904.1 | I156: -1 | J156: 0 | K156: -3 | M156: -4 | N156: -4.4 | P156: 1.6 | Q156: 0.2 | R156: -2.6 | S156: -4.1 | W156: -7.2 | X156: 1177
A157: Benito Santiago | B157: SFG | C157: C | D157: 902.2 | E157: 0 | F157: 6 | G157: -6 | J157: 0 | M157: -1 | W157: 1.7 | X157: 1130
A158: Charles Johnson | B158: COL | C158: C | D158: 897.2 | E158: 0 | F158: -2 | G158: 3 | J158: 0 | M158: 1 | W158: 10.7 | X158: 523
A159: Brook Fordyce | B159: BAL | C159: C | D159: 884.2 | E159: 0 | F159: -5 | G159: -5 | J159: 0 | M159: -10 | W159: 2.6 | X159: 138
A160: Placido Polanco | B160: PHI | C160: 2B | D160: 873.2 | H160: 1 | J160: 0 | K160: 14 | M160: 15 | O160: 1.9 | P160: 10.5 | Q160: 2.1 | R160: 14.5 | S160: 23.7 | W160: 16 | X160: 1176
A161: Chris Woodward | B161: TOR | C161: SS | D161: 871 | H161: -1 | J161: 0 | K161: -2 | M161: -3 | O161: -1.6 | P161: -3.6 | Q161: -1.1 | R161: -6.3 | S161: -8.9 | W161: -1.8 | X161: 1329
A162: Dave Roberts | B162: LAD | C162: CF | D162: 870.1 | I162: -2 | J162: 0 | K162: 3 | M162: 1 | N162: -1.5 | P162: 7.4 | Q162: -0.5 | R162: 5.4 | S162: 9.9 | W162: 6.8 | X162: 670
A163: Ray Durham | B163: SFG | C163: 2B | D163: 867.2 | H163: 1 | J163: 0 | K163: 5 | M163: 6 | O163: 1.1 | P163: -0.2 | Q163: 2.4 | R163: 3.3 | S163: 4.7 | W163: 4.8 | X163: 230
A164: Brandon Inge | B164: DET | C164: C | D164: 867.1 | E164: 0 | F164: 1 | G164: 5 | J164: 0 | M164: 8 | W164: 12.4 | X164: 470
A165: Kevin Millar | B165: BOS | C165: 1B | D165: 853 | H165: 0 | J165: 0 | K165: 1 | M165: 1 | O165: -0.7 | P165: -12.4 | Q165: 2.7 | R165: -10.4 | S165: -14 | W165: -17.7 | X165: 529
A166: Aubrey Huff | B166: TBD | C166: RF | D166: 850.1 | I166: 1 | J166: 0 | K166: -2 | M166: -1 | N166: -0.3 | P166: -7.3 | Q166: 0 | R166: -7.7 | S166: -11.8 | W166: -12.1 | X166: 1213
A167: Miguel Olivo | B167: CHW | C167: C | D167: 848 | E167: 0 | F167: 1 | G167: 3 | J167: 0 | M167: 3 | W167: 10.3 | X167: 1638
A168: Xavier Nady | B168: SDP | C168: RF | D168: 846.2 | I168: 0 | J168: 0 | K168: 6 | M168: 6 | N168: 2.4 | P168: 6 | Q168: -0.8 | R168: 7.5 | S168: 13.6 | W168: 3.2 | X168: 1658
A169: Einar Diaz | B169: TEX | C169: C | D169: 842 | E169: 0 | F169: 1 | G169: 1 | J169: 0 | M169: 3 | W169: 8.2 | X169: 378
A170: Brian Schneider | B170: MON | C170: C | D170: 841 | E170: 0 | F170: 2 | G170: 2 | J170: 0 | M170: 4 | W170: 9.2 | X170: 795
A171: Milton Bradley | B171: CLE | C171: CF | D171: 838.2 | I171: 2 | J171: 0 | K171: -1 | M171: 1 | N171: 1.7 | P171: 1 | Q171: 0.5 | R171: 3.2 | S171: 5.3 | W171: 4.6 | X171: 369
A172: Adam Dunn | B172: CIN | C172: LF | D172: 828.2 | I172: 1 | J172: 0 | K172: -2 | M172: -1 | N172: 0.1 | P172: -1.8 | Q172: -1.3 | R172: -3 | S172: -4.1 | W172: -7.2 | X172: 319
A173: Eddie Perez | B173: MIL | C173: C | D173: 821.2 | E173: 0 | F173: -4 | G173: 1 | J173: 0 | M173: -5 | W173: 8 | X173: 400
A174: Morgan Ensberg | B174: HOU | C174: 3B | D174: 818 | H174: 0 | J174: 0 | K174: 14 | M174: 14 | O174: -1.2 | P174: 9.4 | Q174: 1.8 | R174: 9.9 | S174: 18.2 | W174: 11.3 | X174: 556
A175: Dan Wilson | B175: SEA | C175: C | D175: 817.1 | E175: 0 | F175: -2 | G175: -1 | J175: 0 | M175: -1 | W175: 6 | X175: 1102
A176: Ken Harvey | B176: KCR | C176: 1B | D176: 816.1 | H176: 0 | J176: 0 | K176: 4 | M176: 3 | O176: 0.5 | P176: 1.1 | Q176: -2.5 | R176: -0.9 | S176: -1.8 | W176: -7.9 | X176: 604
A177: J.T. Snow | B177: SFG | C177: 1B | D177: 812.1 | H177: 0 | J177: 0 | K177: 7 | M177: 7 | O177: 0.1 | P177: 8.8 | Q177: -0.3 | R177: 8.6 | S177: 14.6 | W177: 1.6 | X177: 1133
A178: Randall Simon | B178: - - - | C178: 1B | D178: 812 | H178: 0 | J178: 0 | K178: 0 | M178: 0 | O178: 0.4 | P178: 3.3 | Q178: 0.2 | R178: 4 | S178: 6 | W178: -3 | X178: 497
A179: Junior Spivey | B179: ARI | C179: 2B | D179: 808.2 | H179: -2 | J179: 0 | K179: 2 | M179: 0 | O179: -2.2 | P179: -6.3 | Q179: 0.6 | R179: -7.9 | S179: -12.9 | W179: -6.5 | X179: 74
A180: Roger Cedeno | B180: NYM | C180: RF | D180: 803 | I180: -3 | J180: 0 | K180: -4 | M180: -7 | N180: -1.6 | P180: -5 | Q180: 0.3 | R180: -6.3 | S180: -9.6 | W180: -10.4 | X180: 869
A181: Jose Guillen | B181: - - - | C181: RF | D181: 802.2 | I181: 2 | J181: 0 | K181: 7 | M181: 9 | N181: 1.1 | P181: 1.2 | Q181: -0.6 | R181: 1.7 | S181: 3.2 | W181: -2.4 | X181: 57
A182: Alex Cintron | B182: ARI | C182: SS | D182: 795.2 | H182: -2 | J182: 0 | K182: -1 | M182: -3 | O182: -1.9 | P182: -8.4 | Q182: 1.5 | R182: -8.8 | S182: -16.8 | W182: -4.7 | X182: 50
A183: Scott Spiezio | B183: ANA | C183: 1B | D183: 791.1 | H183: 0 | J183: 0 | K183: 9 | M183: 10 | O183: 0.2 | P183: 5.1 | Q183: 0.7 | R183: 6 | S183: 11.2 | W183: -0.8 | X183: 37
A184: Eric Munson | B184: DET | C184: 3B | D184: 781 | H184: 0 | J184: 0 | K184: -3 | M184: -2 | O184: 0 | P184: -7.1 | Q184: -3.1 | R184: -10.2 | S184: -16.8 | W184: -8.9 | X184: 481
A185: Jacque Jones | B185: MIN | C185: LF | D185: 754.1 | I185: -2 | J185: 0 | K185: -1 | M185: -3 | N185: -1.2 | P185: 2.9 | Q185: -0.2 | R185: 1.5 | S185: 2 | W185: -2.4 | X185: 735
A186: Gary Bennett | B186: SDP | C186: C | D186: 747 | E186: 0 | F186: 7 | G186: -4 | J186: 0 | M186: 3 | W186: 2.4 | X186: 420
A187: Aaron Guiel | B187: KCR | C187: RF | D187: 744.1 | I187: 4 | J187: 0 | K187: -3 | M187: 1 | N187: 2.5 | P187: -6.6 | Q187: 1.1 | R187: -2.9 | S187: -5.3 | W187: -6.8 | X187: 1503
A188: Jason Giambi | B188: NYY | C188: 1B | D188: 742.2 | H188: 0 | J188: 0 | K188: -4 | M188: -5 | O188: 0.1 | P188: -2.7 | Q188: 0.5 | R188: -2.2 | S188: -2.6 | W188: -8.5 | X188: 818
A189: Chris Singleton | B189: OAK | C189: CF | D189: 737.1 | I189: 0 | J189: 0 | K189: -5 | M189: -5 | N189: -1.5 | P189: -3.7 | Q189: -0.3 | R189: -5.5 | S189: -12.5 | W189: -4.2 | X189: 170
A190: Rey Sanchez | B190: - - - | C190: SS | D190: 735.2 | H190: 1 | J190: 0 | K190: 3 | M190: 4 | O190: 0.5 | P190: 3.7 | Q190: 3.3 | R190: 7.4 | S190: 14 | W190: 11.2 | X190: 213
A191: Warren Morris | B191: DET | C191: 2B | D191: 734.2 | H191: 4 | J191: 0 | K191: 2 | M191: 6 | O191: 2.6 | P191: 0.3 | Q191: 0.6 | R191: 3.6 | S191: 5.6 | W191: 4.8 | X191: 1424
A192: Troy Glaus | B192: ANA | C192: 3B | D192: 732.1 | H192: 0 | J192: 0 | K192: -9 | M192: -8 | O192: -0.1 | P192: -8.8 | Q192: -5 | R192: -13.9 | S192: -26.5 | W192: -12.6 | X192: 15
A193: Eric Karros | B193: CHC | C193: 1B | D193: 730.2 | H193: 0 | J193: 0 | K193: -7 | M193: -8 | O193: 0.1 | P193: -5.7 | Q193: -1.3 | R193: -7 | S193: -15.1 | W193: -13.2 | X193: 659
A194: Cliff Floyd | B194: NYM | C194: LF | D194: 728.2 | I194: 2 | J194: 0 | K194: 0 | M194: 2 | N194: 0 | P194: -5.9 | Q194: -1.2 | R194: -7.1 | S194: -11.4 | W194: -10.8 | X194: 518
A195: Ramon Santiago | B195: DET | C195: SS | D195: 724 | H195: 1 | J195: 0 | K195: -5 | M195: -4 | O195: 1.5 | P195: -5.3 | Q195: 0.1 | R195: -3.7 | S195: -7.4 | W195: 0 | X195: 1417
A196: Josh Bard | B196: CLE | C196: C | D196: 715.2 | E196: 0 | F196: -2 | G196: 3 | J196: 0 | M196: 2 | W196: 9.1 | X196: 1578
A197: Corey Patterson | B197: CHC | C197: CF | D197: 710.1 | I197: -3 | J197: 0 | K197: 0 | M197: -3 | N197: -1.2 | P197: 3.8 | Q197: 0.2 | R197: 2.8 | S197: 7.6 | W197: 4 | X197: 300
A198: Desi Relaford | B198: KCR | C198: 2B | D198: 705.1 | H198: -1 | J198: 0 | K198: -8 | M198: -9 | O198: -1.1 | P198: -1.4 | Q198: -2.3 | R198: -4.7 | S198: -9.2 | W198: -3.5 | X198: 1096
A199: David Bell | B199: PHI | C199: 3B | D199: 703.2 | H199: 0 | J199: 0 | K199: 5 | M199: 6 | O199: 1 | P199: 4.7 | Q199: 2.4 | R199: 8 | S199: 14.8 | W199: 9.2 | X199: 1108
A200: Brad Wilkerson | B200: MON | C200: LF | D200: 702.1 | I200: 4 | J200: 0 | K200: 4 | M200: 8 | N200: 2.7 | P200: 5 | Q200: -0.2 | R200: 7.5 | S200: 13.4 | W200: 3.9 | X200: 804
... 1655 more rows

Sheet 2004 (hidden)
A1: Name | B1: Team | C1: G | D1: AB | E1: PA | F1: H | G1: 1B | H1: 2B | I1: 3B | J1: HR | K1: R | L1: RBI | M1: BB | N1: IBB | O1: SO | P1: HBP | Q1: SF | R1: SH | S1: GDP | T1: SB | U1: CS | V1: AVG | W1: playerid | X1: UBR | Y1: wGDP | Z1: Fielding
A2: A.J. Pierzynski | B2: SFG | C2: 131 | D2: 471 | E2: 510 | F2: 128 | G2: 87 | H2: 28 | I2: 2 | J2: 11 | K2: 45 | L2: 77 | M2: 19 | N2: 4 | O2: 27 | P2: 15 | Q2: 3 | R2: 2 | S2: 27 | T2: 0 | U2: 1 | V2: 0.272 | W2: 746 | X2: -3.2 | Y2: -5.5 | Z2: -3
A3: Aaron Miles | B3: COL | C3: 134 | D3: 522 | E3: 566 | F3: 153 | G3: 129 | H3: 15 | I3: 3 | J3: 6 | K3: 75 | L3: 47 | M3: 29 | N3: 0 | O3: 53 | P3: 2 | Q3: 6 | R3: 7 | S3: 12 | T3: 12 | U3: 7 | V3: 0.293 | W3: 1844 | X3: 4.5 | Y3: -0.6 | Z3: -2.6
A4: Aaron Rowand | B4: CHW | C4: 140 | D4: 487 | E4: 534 | F4: 151 | G4: 87 | H4: 38 | I4: 2 | J4: 24 | K4: 94 | L4: 69 | M4: 30 | N4: 1 | O4: 91 | P4: 10 | Q4: 2 | R4: 5 | S4: 5 | T4: 17 | U4: 5 | V4: 0.31 | W4: 254 | X4: 4.1 | Y4: 1.7 | Z4: 12.2
A5: Adam Dunn | B5: CIN | C5: 161 | D5: 568 | E5: 681 | F5: 151 | G5: 71 | H5: 34 | I5: 0 | J5: 46 | K5: 105 | L5: 102 | M5: 108 | N5: 11 | O5: 195 | P5: 5 | Q5: 0 | R5: 0 | S5: 8 | T5: 6 | U5: 1 | V5: 0.266 | W5: 319 | X5: 1.7 | Y5: 2.4 | Z5: -2.7
A6: Adam Kennedy | B6: ANA | C6: 144 | D6: 468 | E6: 533 | F6: 130 | G6: 95 | H6: 20 | I6: 5 | J6: 10 | K6: 70 | L6: 48 | M6: 41 | N6: 7 | O6: 92 | P6: 13 | Q6: 2 | R6: 9 | S6: 10 | T6: 15 | U6: 5 | V6: 0.278 | W6: 19 | X6: -0.1 | Y6: 0.9 | Z6: 12.3
A7: Adrian Beltre | B7: LAD | C7: 156 | D7: 598 | E7: 657 | F7: 200 | G7: 120 | H7: 32 | I7: 0 | J7: 48 | K7: 104 | L7: 121 | M7: 53 | N7: 9 | O7: 87 | P7: 2 | Q7: 4 | R7: 0 | S7: 15 | T7: 7 | U7: 2 | V7: 0.334 | W7: 639 | X7: -1.4 | Y7: -1.2 | Z7: 25.5
A8: Albert Pujols | B8: STL | C8: 154 | D8: 592 | E8: 692 | F8: 196 | G8: 97 | H8: 51 | I8: 2 | J8: 46 | K8: 133 | L8: 123 | M8: 84 | N8: 12 | O8: 52 | P8: 7 | Q8: 9 | R8: 0 | S8: 21 | T8: 5 | U8: 5 | V8: 0.331 | W8: 1177 | X8: 4.7 | Y8: -2.4 | Z8: 3.7
A9: Alex Cintron | B9: ARI | C9: 154 | D9: 564 | E9: 613 | F9: 148 | G9: 106 | H9: 31 | I9: 7 | J9: 4 | K9: 56 | L9: 49 | M9: 31 | N9: 2 | O9: 59 | P9: 2 | Q9: 4 | R9: 12 | S9: 11 | T9: 3 | U9: 3 | V9: 0.262 | W9: 50 | X9: 1.8 | Y9: -0.3 | Z9: -9.4
A10: Alex Gonzalez | B10: FLA | C10: 159 | D10: 561 | E10: 599 | F10: 130 | G10: 74 | H10: 30 | I10: 3 | J10: 23 | K10: 67 | L10: 79 | M10: 27 | N10: 9 | O10: 126 | P10: 4 | Q10: 4 | R10: 3 | S10: 17 | T10: 3 | U10: 1 | V10: 0.232 | W10: 520 | X10: -1.3 | Y10: -1.5 | Z10: 7.2
A11: Alex Rodriguez | B11: NYY | C11: 155 | D11: 601 | E11: 698 | F11: 172 | G11: 110 | H11: 24 | I11: 2 | J11: 36 | K11: 112 | L11: 106 | M11: 80 | N11: 6 | O11: 131 | P11: 10 | Q11: 7 | R11: 0 | S11: 18 | T11: 28 | U11: 4 | V11: 0.286 | W11: 1274 | X11: 1.2 | Y11: -0.4 | Z11: 9.1
A12: Alfonso Soriano | B12: TEX | C12: 145 | D12: 608 | E12: 658 | F12: 170 | G12: 106 | H12: 32 | I12: 4 | J12: 28 | K12: 77 | L12: 91 | M12: 33 | N12: 4 | O12: 121 | P12: 10 | Q12: 7 | R12: 0 | S12: 7 | T12: 18 | U12: 5 | V12: 0.28 | W12: 847 | X12: 3.1 | Y12: 1.9 | Z12: -7.1
A13: Andruw Jones | B13: ATL | C13: 154 | D13: 570 | E13: 646 | F13: 149 | G13: 82 | H13: 34 | I13: 4 | J13: 29 | K13: 85 | L13: 91 | M13: 71 | N13: 9 | O13: 147 | P13: 3 | Q13: 2 | R13: 0 | S13: 24 | T13: 6 | U13: 6 | V13: 0.261 | W13: 96 | X13: 0.3 | Y13: -2.7 | Z13: 24.4
A14: Angel Berroa | B14: KCR | C14: 134 | D14: 512 | E14: 554 | F14: 134 | G14: 93 | H14: 27 | I14: 6 | J14: 8 | K14: 72 | L14: 43 | M14: 23 | N14: 0 | O14: 87 | P14: 12 | Q14: 2 | R14: 5 | S14: 10 | T14: 14 | U14: 8 | V14: 0.262 | W14: 591 | X14: 1.2 | Y14: 0.1 | Z14: -10.5
A15: Aramis Ramirez | B15: CHC | C15: 145 | D15: 547 | E15: 606 | F15: 174 | G15: 105 | H15: 32 | I15: 1 | J15: 36 | K15: 99 | L15: 103 | M15: 49 | N15: 6 | O15: 62 | P15: 3 | Q15: 7 | R15: 0 | S15: 25 | T15: 0 | U15: 2 | V15: 0.318 | W15: 1002 | X15: -3.7 | Y15: -4.7 | Z15: -6.1
A16: Aubrey Huff | B16: TBD | C16: 157 | D16: 600 | E16: 667 | F16: 178 | G16: 120 | H16: 27 | I16: 2 | J16: 29 | K16: 92 | L16: 104 | M16: 56 | N16: 6 | O16: 74 | P16: 6 | Q16: 5 | R16: 0 | S16: 9 | T16: 5 | U16: 1 | V16: 0.297 | W16: 1213 | X16: 0.2 | Y16: 0.9 | Z16: 10.2
A17: Barry Bonds | B17: SFG | C17: 147 | D17: 373 | E17: 617 | F17: 135 | G17: 60 | H17: 27 | I17: 3 | J17: 45 | K17: 129 | L17: 101 | M17: 232 | N17: 120 | O17: 41 | P17: 9 | Q17: 3 | R17: 0 | S17: 5 | T17: 6 | U17: 1 | V17: 0.362 | W17: 1109 | X17: -2.9 | Y17: 2 | Z17: 2.2
A18: Bernie Williams | B18: NYY | C18: 148 | D18: 561 | E18: 651 | F18: 147 | G18: 95 | H18: 29 | I18: 1 | J18: 22 | K18: 105 | L18: 70 | M18: 85 | N18: 5 | O18: 96 | P18: 2 | Q18: 2 | R18: 1 | S18: 19 | T18: 1 | U18: 5 | V18: 0.262 | W18: 857 | X18: 0.8 | Y18: -2.3 | Z18: -25.2
A19: Bobby Abreu | B19: PHI | C19: 159 | D19: 574 | E19: 713 | F19: 173 | G19: 95 | H19: 47 | I19: 1 | J19: 30 | K19: 118 | L19: 105 | M19: 127 | N19: 10 | O19: 116 | P19: 5 | Q19: 7 | R19: 0 | S19: 5 | T19: 40 | U19: 5 | V19: 0.301 | W19: 945 | X19: 1.9 | Y19: 3.7 | Z19: -13.8
A20: Bobby Crosby | B20: OAK | C20: 151 | D20: 545 | E20: 623 | F20: 130 | G20: 73 | H20: 34 | I20: 1 | J20: 22 | K20: 70 | L20: 64 | M20: 58 | N20: 0 | O20: 141 | P20: 9 | Q20: 6 | R20: 5 | S20: 20 | T20: 7 | U20: 3 | V20: 0.239 | W20: 1818 | X20: 1.6 | Y20: -2.2 | Z20: 4.9
A21: Bobby Higginson | B21: DET | C21: 131 | D21: 448 | E21: 531 | F21: 110 | G21: 72 | H21: 24 | I21: 2 | J21: 12 | K21: 63 | L21: 64 | M21: 70 | N21: 5 | O21: 84 | P21: 7 | Q21: 4 | R21: 2 | S21: 10 | T21: 5 | U21: 2 | V21: 0.246 | W21: 469 | X21: -1.3 | Y21: 0.5 | Z21: 0
